Workbook

Sheet Титул
A2: Наименование заявителя | Q2: Содержание | V2: Данные для диспетчера имен
Q3: 1 | R3: Результаты | V3: One | Y3: 1
Q4: 2 | R4: Предпосылки | V4: Thousand | Y4: 1000
A5: Полное наименование инвестиционного проекта | Q5: 3 | R5: График инвестирования | V5: Количество кварталов | Y5: 4
Q6: 4 | R6: WACC | V6: НДС_общая | Y6: 0.2
Q7: 5 | R7: Капитальные вложения
A8: Данная финансово-экономическая модель подготовлена в рамках пакета документов в целях заключения специального инвестиционного контракта (СПИК) и является неотъемлемым приложением к бизнес-плану инвестиционного проекта | Q8: 6 | R8: Выручка и себестоимость
Q9: 7 | R9: Операционные затраты
Q10: 8 | R10: Оборотный капитал
Q11: 9 | R11: Налоги
A12: Примечание: | Q12: 10 | R12: Финансирование
A13: 1) Данный шаблон финансовой модели является одним из возможных вариантов оформления финансовой модели и содержит полный набор расчетных и итоговых листов, показателей в соответствии с методическими рекомендациями ФРП, ПП РФ №708 от 16.07.2015, ПП РФ №1048 от 16.07.2020; | Q13: 11 | R13: Отчетность (СПИК)
A14: 2) Отдельные блоки данной финансовой модели и формулы к ним могут быть модифицированы с учетом специфики конкретного инвестиционного проекта. Допускается добавление дополнительных и удаление незадействованных в расчете блоков; | Q14: 12 | R14: Эффективность (СПИК)
A15: 3) Ячейки для ввода исходных данных проекта выделены серым цветом в соответствии с условными обозначениями. Такие ячейки предусмотрены на листах "Предпосылки", "График инвестирования", "Операционные затраты" и "Финансирование" | Q15: 13 | R15: Анализ чувтсвительности (СПИК)
A16: 4) Дополнительно к расчету отдельных показателей финансовой модели приведены пояснения в примечаниях к соответствующим ячейкам; | Q16: 14 | R16: Отчетность (Без СПИК)
A17: 5) На листе Финансирование реализована возможность разрыва циклических ссылок при помощи макроса. Макрос рекомендуется запускать исключительно в случае дополнительной потребности в краткосрочном финансировании операционной деятельности. Запуск макроса осуществляется нажатием на кнопку напротив соответствующего расчета с столбце Е. Привлечение долгосрочного кредита заносится в финансовую модель вручную, исходя из предпосылок | Q17: 15 | R17: Эффективность (Без СПИК)
Q19: Условные обозначения
Q20: Вводимые значения | T20: 1
A21: Полезные ссылки: | Q21: Расчетные показатели | T21: 1
A22: Методические рекомендации СПИК 2.0 по подготовке и оформлению финансовой модели (раздел 11) | Q22: Итоговые показатели | T22: 1
A23: Методические рекомендации СПИК 1.0 по подготовке и оформлению финансовой модели (раздел 8) | Q23: Смена формулы в ячейке | T23: 1
A24: Раздел СПИК официального сайта Фонда развития промышленности
A26: Контактное лицо по вопросам работы с шаблоном финансовой модели: Дихтярь Анна Андреевна (e-mail: dikhtyar@frprf.ru )
A27: Версия №4, дата обновления: 30.06.2023

Sheet Результаты
E1: ="Лист: " & RIGHT(CELL("filename",A1),LEN(CELL("filename",A1))-SEARCH("]",CELL("filename",A1))) -> Лист: Результаты | J1: Проверка: | L1: =IF(AND(E72="Верно",E73="Верно",E74="Верно",E75="Верно"), "Верно", "Имеются некорректные данные") -> Имеются некорректные данные
C2: Параметр | D2: Ед. изм. | E2: Источник | F2: Итоговое значение | H2: =Предпосылки!H2 -> 2023 | I2: =Предпосылки!I2 -> 2024 | J2: =Предпосылки!J2 -> 2025 | K2: =Предпосылки!K2 -> 2026 | L2: =Предпосылки!L2 -> 2027 | M2: =Предпосылки!M2 -> 2028 | N2: =Предпосылки!N2 -> 2029 | O2: =Предпосылки!O2 -> 2030 | P2: =Предпосылки!P2 -> 2031 | Q2: =Предпосылки!Q2 -> 2032 | R2: =Предпосылки!R2 -> 2033 | S2: =Предпосылки!S2 -> 2034 | T2: =Предпосылки!T2 -> 2035 | U2: =Предпосылки!U2 -> 2036 | V2: =Предпосылки!V2 -> 2037 | W2: =Предпосылки!W2 -> 2038 | X2: =Предпосылки!X2 -> 2039 | Y2: =Предпосылки!Y2 -> 2040 | Z2: =Предпосылки!Z2 -> 2041 | AA2: =Предпосылки!AA2 -> 2042 | AB2: =Предпосылки!AB2 -> 2043
H3: 1 | I3: 2 | J3: 3 | K3: 4 | L3: 5 | M3: 6 | N3: 7 | O3: 8 | P3: 9 | Q3: 10 | R3: 11 | S3: 12 | T3: 13 | U3: 14 | V3: 15 | W3: 16 | X3: 17 | Y3: 18 | Z3: 19 | AA3: 20 | AB3: 21
B5: Общая информация о проекте
C7: Наименование проекта | D7: =Титул!A6 -> 0
C8: Местонахождение производственной площадки
C9: Заявитель | D9: Наименование, ОГРН
C10: Тип СПИК | D10: СПИК2.0
C11: Срок СПИК | D11: =Предпосылки!F8 & " лет" -> 15 лет
C12: Срок выхода на проектную операционную прибыль | D12: =INDEX(H2:AB2,,MATCH(1,'Отчетность (СПИК)'!H87:AA87,0))&" год" -> 
C13: Дата анализа | D13: =Предпосылки!F7 -> 2023-08-30
C14: Денежная единица | D14: тыс. руб.
B16: Итоговые показатели
B18: Объем произведенной промышленной продукции в денежном выражении: | F18: =SUM( H18:AA18) -> 0 | H18: =SUM(H19:H20) -> 0 | I18: =SUM(I19:I20) -> 0 | J18: 0 | K18: 0 | L18: 0 | M18: 0 | N18: 0 | O18: 0 | P18: 0 | Q18: 0 | R18: 0 | S18: 0 | T18: 0 | U18: 0 | V18: 0 | W18: 0 | X18: 0 | Y18: 0 | Z18: 0 | AA18: 0
C19: Продукция 1 | D19: ='Выручка и себестоимость'!D7 -> тыс. руб. | F19: =SUM( H19:AA19) -> 0 | H19: =H23*Предпосылки!H36 -> 0 | I19: =I23*Предпосылки!I36 -> 0 | J19: =J23*Предпосылки!J36 -> 0 | K19: =K23*Предпосылки!K36 -> 0 | L19: =L23*Предпосылки!L36 -> 0 | M19: =M23*Предпосылки!M36 -> 0 | N19: =N23*Предпосылки!N36 -> 0 | O19: =O23*Предпосылки!O36 -> 0 | P19: =P23*Предпосылки!P36 -> 0 | Q19: =Q23*Предпосылки!Q36 -> 0 | R19: =R23*Предпосылки!R36 -> 0 | S19: =S23*Предпосылки!S36 -> 0 | T19: =T23*Предпосылки!T36 -> 0 | U19: =U23*Предпосылки!U36 -> 0 | V19: =V23*Предпосылки!V36 -> 0 | W19: =W23*Предпосылки!W36 -> 0 | X19: =X23*Предпосылки!X36 -> 0 | Y19: =Y23*Предпосылки!Y36 -> 0 | Z19: =Z23*Предпосылки!Z36 -> 0 | AA19: =AA23*Предпосылки!AA36 -> 0
C20: Продукция 2 | D20: ='Выручка и себестоимость'!D8 -> тыс. руб. | F20: =SUM( H20:AA20) -> 0 | H20: =H24*Предпосылки!H37 -> 0 | I20: =I24*Предпосылки!I37 -> 0 | J20: =J24*Предпосылки!J37 -> 0 | K20: =K24*Предпосылки!K37 -> 0 | L20: =L24*Предпосылки!L37 -> 0 | M20: =M24*Предпосылки!M37 -> 0 | N20: =N24*Предпосылки!N37 -> 0 | O20: =O24*Предпосылки!O37 -> 0 | P20: =P24*Предпосылки!P37 -> 0 | Q20: =Q24*Предпосылки!Q37 -> 0 | R20: =R24*Предпосылки!R37 -> 0 | S20: =S24*Предпосылки!S37 -> 0 | T20: =T24*Предпосылки!T37 -> 0 | U20: =U24*Предпосылки!U37 -> 0 | V20: =V24*Предпосылки!V37 -> 0 | W20: =W24*Предпосылки!W37 -> 0 | X20: =X24*Предпосылки!X37 -> 0 | Y20: =Y24*Предпосылки!Y37 -> 0 | Z20: =Z24*Предпосылки!Z37 -> 0 | AA20: =AA24*Предпосылки!AA37 -> 0
B22: Объем произведенной промышленной продукции в натуральном выражении: | F22: =SUM( H22:AA22) -> 0 | H22: =SUM(H23:H24) -> 0 | I22: =SUM(I23:I24) -> 0 | J22: 0 | K22: 0 | L22: 0 | M22: 0 | N22: 0 | O22: 0 | P22: 0 | Q22: 0 | R22: 0 | S22: 0 | T22: 0 | U22: 0 | V22: 0 | W22: 0 | X22: 0 | Y22: 0 | Z22: 0 | AA22: 0
C23: Продукция 1 | D23: =Предпосылки!D42 -> тыс. ед. | E23: Лист: Предпосылки | F23: =SUM( H23:AA23) -> 0 | H23: =Предпосылки!H42 -> 0 | I23: =Предпосылки!I42 -> 0 | J23: =Предпосылки!J42 -> 0 | K23: =Предпосылки!K42 -> 0 | L23: =Предпосылки!L42 -> 0 | M23: =Предпосылки!M42 -> 0 | N23: =Предпосылки!N42 -> 0 | O23: =Предпосылки!O42 -> 0 | P23: =Предпосылки!P42 -> 0 | Q23: =Предпосылки!Q42 -> 0 | R23: =Предпосылки!R42 -> 0 | S23: =Предпосылки!S42 -> 0 | T23: =Предпосылки!T42 -> 0 | U23: =Предпосылки!U42 -> 0 | V23: =Предпосылки!V42 -> 0 | W23: =Предпосылки!W42 -> 0 | X23: =Предпосылки!X42 -> 0 | Y23: =Предпосылки!Y42 -> 0 | Z23: =Предпосылки!Z42 -> 0 | AA23: =Предпосылки!AA42 -> 0
C24: Продукция 2 | D24: =Предпосылки!D43 -> тыс. ед. | E24: Лист: Предпосылки | F24: =SUM( H24:AA24) -> 0 | H24: =Предпосылки!H43 -> 0 | I24: =Предпосылки!I43 -> 0 | J24: =Предпосылки!J43 -> 0 | K24: =Предпосылки!K43 -> 0 | L24: =Предпосылки!L43 -> 0 | M24: =Предпосылки!M43 -> 0 | N24: =Предпосылки!N43 -> 0 | O24: =Предпосылки!O43 -> 0 | P24: =Предпосылки!P43 -> 0 | Q24: =Предпосылки!Q43 -> 0 | R24: =Предпосылки!R43 -> 0 | S24: =Предпосылки!S43 -> 0 | T24: =Предпосылки!T43 -> 0 | U24: =Предпосылки!U43 -> 0 | V24: =Предпосылки!V43 -> 0 | W24: =Предпосылки!W43 -> 0 | X24: =Предпосылки!X43 -> 0 | Y24: =Предпосылки!Y43 -> 0 | Z24: =Предпосылки!Z43 -> 0 | AA24: =Предпосылки!AA43 -> 0
B26: Объем реализованной промышленной продукции в денежном выражении: | F26: =SUM( H26:AA26) -> 0 | H26: =SUM(H27:H28) -> 0 | I26: =SUM(I27:I28) -> 0 | J26: 0 | K26: 0 | L26: 0 | M26: 0 | N26: 0 | O26: 0 | P26: 0 | Q26: 0 | R26: 0 | S26: 0 | T26: 0 | U26: 0 | V26: 0 | W26: 0 | X26: 0 | Y26: 0 | Z26: 0 | AA26: 0
C27: Продукция 1 | D27: ='Выручка и себестоимость'!D7 -> тыс. руб. | E27: Лист: Выручка и себестоимость | F27: =SUM( H27:AA27) -> 0 | H27: ='Выручка и себестоимость'!H7 -> 0 | I27: ='Выручка и себестоимость'!I7 -> 0 | J27: ='Выручка и себестоимость'!J7 -> 0 | K27: ='Выручка и себестоимость'!K7 -> 0 | L27: ='Выручка и себестоимость'!L7 -> 0 | M27: ='Выручка и себестоимость'!M7 -> 0 | N27: ='Выручка и себестоимость'!N7 -> 0 | O27: ='Выручка и себестоимость'!O7 -> 0 | P27: ='Выручка и себестоимость'!P7 -> 0 | Q27: ='Выручка и себестоимость'!Q7 -> 0 | R27: ='Выручка и себестоимость'!R7 -> 0 | S27: ='Выручка и себестоимость'!S7 -> 0 | T27: ='Выручка и себестоимость'!T7 -> 0 | U27: ='Выручка и себестоимость'!U7 -> 0 | V27: ='Выручка и себестоимость'!V7 -> 0 | W27: ='Выручка и себестоимость'!W7 -> 0 | X27: ='Выручка и себестоимость'!X7 -> 0 | Y27: ='Выручка и себестоимость'!Y7 -> 0 | Z27: ='Выручка и себестоимость'!Z7 -> 0 | AA27: ='Выручка и себестоимость'!AA7 -> 0
C28: Продукция 2 | D28: ='Выручка и себестоимость'!D8 -> тыс. руб. | E28: Лист: Выручка и себестоимость | F28: =SUM( H28:AA28) -> 0 | H28: ='Выручка и себестоимость'!H8 -> 0 | I28: ='Выручка и себестоимость'!I8 -> 0 | J28: ='Выручка и себестоимость'!J8 -> 0 | K28: ='Выручка и себестоимость'!K8 -> 0 | L28: ='Выручка и себестоимость'!L8 -> 0 | M28: ='Выручка и себестоимость'!M8 -> 0 | N28: ='Выручка и себестоимость'!N8 -> 0 | O28: ='Выручка и себестоимость'!O8 -> 0 | P28: ='Выручка и себестоимость'!P8 -> 0 | Q28: ='Выручка и себестоимость'!Q8 -> 0 | R28: ='Выручка и себестоимость'!R8 -> 0 | S28: ='Выручка и себестоимость'!S8 -> 0 | T28: ='Выручка и себестоимость'!T8 -> 0 | U28: ='Выручка и себестоимость'!U8 -> 0 | V28: ='Выручка и себестоимость'!V8 -> 0 | W28: ='Выручка и себестоимость'!W8 -> 0 | X28: ='Выручка и себестоимость'!X8 -> 0 | Y28: ='Выручка и себестоимость'!Y8 -> 0 | Z28: ='Выручка и себестоимость'!Z8 -> 0 | AA28: ='Выручка и себестоимость'!AA8 -> 0
B30: Объем реализованной промышленной продукции в натуральном выражении: | F30: =SUM( H30:AA30) -> 0 | H30: =SUM(H31:H32) -> 0 | I30: =SUM(I31:I32) -> 0 | J30: 0 | K30: 0 | L30: 0 | M30: 0 | N30: 0 | O30: 0 | P30: 0 | Q30: 0 | R30: 0 | S30: 0 | T30: 0 | U30: 0 | V30: 0 | W30: 0 | X30: 0 | Y30: 0 | Z30: 0 | AA30: 0
C31: Продукция 1 | D31: =Предпосылки!D48 -> тыс. ед. | E31: Лист: Предпосылки | F31: =SUM( H31:AA31) -> 0 | H31: =Предпосылки!H48 -> 0 | I31: =Предпосылки!I48 -> 0 | J31: =Предпосылки!J48 -> 0 | K31: =Предпосылки!K48 -> 0 | L31: =Предпосылки!L48 -> 0 | M31: =Предпосылки!M48 -> 0 | N31: =Предпосылки!N48 -> 0 | O31: =Предпосылки!O48 -> 0 | P31: =Предпосылки!P48 -> 0 | Q31: =Предпосылки!Q48 -> 0 | R31: =Предпосылки!R48 -> 0 | S31: =Предпосылки!S48 -> 0 | T31: =Предпосылки!T48 -> 0 | U31: =Предпосылки!U48 -> 0 | V31: =Предпосылки!V48 -> 0 | W31: =Предпосылки!W48 -> 0 | X31: =Предпосылки!X48 -> 0 | Y31: =Предпосылки!Y48 -> 0 | Z31: =Предпосылки!Z48 -> 0 | AA31: =Предпосылки!AA48 -> 0
C32: Продукция 2 | D32: =Предпосылки!D49 -> тыс. ед. | E32: Лист: Предпосылки | F32: =SUM( H32:AA32) -> 0 | H32: =Предпосылки!H49 -> 0 | I32: =Предпосылки!I49 -> 0 | J32: =Предпосылки!J49 -> 0 | K32: =Предпосылки!K49 -> 0 | L32: =Предпосылки!L49 -> 0 | M32: =Предпосылки!M49 -> 0 | N32: =Предпосылки!N49 -> 0 | O32: =Предпосылки!O49 -> 0 | P32: =Предпосылки!P49 -> 0 | Q32: =Предпосылки!Q49 -> 0 | R32: =Предпосылки!R49 -> 0 | S32: =Предпосылки!S49 -> 0 | T32: =Предпосылки!T49 -> 0 | U32: =Предпосылки!U49 -> 0 | V32: =Предпосылки!V49 -> 0 | W32: =Предпосылки!W49 -> 0 | X32: =Предпосылки!X49 -> 0 | Y32: =Предпосылки!Y49 -> 0 | Z32: =Предпосылки!Z49 -> 0 | AA32: =Предпосылки!AA49 -> 0
B34: Минимальный объем налогов, сборов, страховых взносов к уплате:
C35: С учетом применения мер стимулировани деятельности в сфере промышленности, предусмотренных СПИК: | F35: =SUM( H35:AA35) -> 0 | H35: =SUM(H36:H39) -> 0 | I35: =SUM(I36:I39) -> 0 | J35: 0 | K35: 0 | L35: 0 | M35: 0 | N35: 0 | O35: 0 | P35: 0 | Q35: 0 | R35: 0 | S35: 0 | T35: 0 | U35: 0 | V35: 0 | W35: 0 | X35: 0 | Y35: 0 | Z35: 0 | AA35: 0
C36: в федеральный бюджет | D36: =Налоги!D148 -> тыс. руб. | E36: Лист: Налоги | F36: =SUM( H36:AA36) -> 0 | H36: =-Налоги!H148 -> 0 | I36: =-Налоги!I148 -> 0 | J36: =-Налоги!J148 -> 0 | K36: =-Налоги!K148 -> 0 | L36: =-Налоги!L148 -> 0 | M36: =-Налоги!M148 -> 0 | N36: =-Налоги!N148 -> 0 | O36: =-Налоги!O148 -> 0 | P36: =-Налоги!P148 -> 0 | Q36: =-Налоги!Q148 -> 0 | R36: =-Налоги!R148 -> 0 | S36: =-Налоги!S148 -> 0 | T36: =-Налоги!T148 -> 0 | U36: =-Налоги!U148 -> 0 | V36: =-Налоги!V148 -> 0 | W36: =-Налоги!W148 -> 0 | X36: =-Налоги!X148 -> 0 | Y36: =-Налоги!Y148 -> 0 | Z36: =-Налоги!Z148 -> 0 | AA36: =-Налоги!AA148 -> 0
C37: в региональный бюджет | D37: =Налоги!D149 -> тыс. руб. | E37: Лист: Налоги | F37: =SUM( H37:AA37) -> 0 | H37: =-Налоги!H150 -> 0 | I37: =-Налоги!I150 -> 0 | J37: =-Налоги!J150 -> 0 | K37: =-Налоги!K150 -> 0 | L37: =-Налоги!L150 -> 0 | M37: =-Налоги!M150 -> 0 | N37: =-Налоги!N150 -> 0 | O37: =-Налоги!O150 -> 0 | P37: =-Налоги!P150 -> 0 | Q37: =-Налоги!Q150 -> 0 | R37: =-Налоги!R150 -> 0 | S37: =-Налоги!S150 -> 0 | T37: =-Налоги!T150 -> 0 | U37: =-Налоги!U150 -> 0 | V37: =-Налоги!V150 -> 0 | W37: =-Налоги!W150 -> 0 | X37: =-Налоги!X150 -> 0 | Y37: =-Налоги!Y150 -> 0 | Z37: =-Налоги!Z150 -> 0 | AA37: =-Налоги!AA150 -> 0
C38: в местный бюджет | D38: =Налоги!D150 -> тыс. руб. | E38: Лист: Налоги | F38: =SUM( H38:AA38) -> 0 | H38: =-Налоги!H155 -> 0 | I38: =-Налоги!I155 -> 0 | J38: =-Налоги!J155 -> 0 | K38: =-Налоги!K155 -> 0 | L38: =-Налоги!L155 -> 0 | M38: =-Налоги!M155 -> 0 | N38: =-Налоги!N155 -> 0 | O38: =-Налоги!O155 -> 0 | P38: =-Налоги!P155 -> 0 | Q38: =-Налоги!Q155 -> 0 | R38: =-Налоги!R155 -> 0 | S38: =-Налоги!S155 -> 0 | T38: =-Налоги!T155 -> 0 | U38: =-Налоги!U155 -> 0 | V38: =-Налоги!V155 -> 0 | W38: =-Налоги!W155 -> 0 | X38: =-Налоги!X155 -> 0 | Y38: =-Налоги!Y155 -> 0 | Z38: =-Налоги!Z155 -> 0 | AA38: =-Налоги!AA155 -> 0
C39: страховые взносы | D39: =Налоги!D151 -> тыс. руб. | E39: Лист: Налоги | F39: =SUM( H39:AA39) -> 0 | H39: =-Налоги!H158 -> 0 | I39: =-Налоги!I158 -> 0 | J39: =-Налоги!J158 -> 0 | K39: =-Налоги!K158 -> 0 | L39: =-Налоги!L158 -> 0 | M39: =-Налоги!M158 -> 0 | N39: =-Налоги!N158 -> 0 | O39: =-Налоги!O158 -> 0 | P39: =-Налоги!P158 -> 0 | Q39: =-Налоги!Q158 -> 0 | R39: =-Налоги!R158 -> 0 | S39: =-Налоги!S158 -> 0 | T39: =-Налоги!T158 -> 0 | U39: =-Налоги!U158 -> 0 | V39: =-Налоги!V158 -> 0 | W39: =-Налоги!W158 -> 0 | X39: =-Налоги!X158 -> 0 | Y39: =-Налоги!Y158 -> 0 | Z39: =-Налоги!Z158 -> 0 | AA39: =-Налоги!AA158 -> 0
C41: Без учета применения мер стимулировани деятельности в сфере промышленности, предусмотренных СПИК: | F41: =SUM( H41:AA41) -> 0 | H41: =SUM(H42:H45) -> 0 | I41: =SUM(I42:I45) -> 0 | J41: 0 | K41: 0 | L41: 0 | M41: 0 | N41: 0 | O41: 0 | P41: 0 | Q41: 0 | R41: 0 | S41: 0 | T41: 0 | U41: 0 | V41: 0 | W41: 0 | X41: 0 | Y41: 0 | Z41: 0 | AA41: 0
C42: в федеральный бюджет | D42: =D36 -> тыс. руб. | E42: Лист: Налоги | F42: =SUM( H42:AA42) -> 0 | H42: =-Налоги!H164 -> 0 | I42: =-Налоги!I164 -> 0 | J42: =-Налоги!J164 -> 0 | K42: =-Налоги!K164 -> 0 | L42: =-Налоги!L164 -> 0 | M42: =-Налоги!M164 -> 0 | N42: =-Налоги!N164 -> 0 | O42: =-Налоги!O164 -> 0 | P42: =-Налоги!P164 -> 0 | Q42: =-Налоги!Q164 -> 0 | R42: =-Налоги!R164 -> 0 | S42: =-Налоги!S164 -> 0 | T42: =-Налоги!T164 -> 0 | U42: =-Налоги!U164 -> 0 | V42: =-Налоги!V164 -> 0 | W42: =-Налоги!W164 -> 0 | X42: =-Налоги!X164 -> 0 | Y42: =-Налоги!Y164 -> 0 | Z42: =-Налоги!Z164 -> 0 | AA42: =-Налоги!AA164 -> 0
C43: в региональный бюджет | D43: =D37 -> тыс. руб. | E43: Лист: Налоги | F43: =SUM( H43:AA43) -> 0 | H43: =-Налоги!H166 -> 0 | I43: =-Налоги!I166 -> 0 | J43: =-Налоги!J166 -> 0 | K43: =-Налоги!K166 -> 0 | L43: =-Налоги!L166 -> 0 | M43: =-Налоги!M166 -> 0 | N43: =-Налоги!N166 -> 0 | O43: =-Налоги!O166 -> 0 | P43: =-Налоги!P166 -> 0 | Q43: =-Налоги!Q166 -> 0 | R43: =-Налоги!R166 -> 0 | S43: =-Налоги!S166 -> 0 | T43: =-Налоги!T166 -> 0 | U43: =-Налоги!U166 -> 0 | V43: =-Налоги!V166 -> 0 | W43: =-Налоги!W166 -> 0 | X43: =-Налоги!X166 -> 0 | Y43: =-Налоги!Y166 -> 0 | Z43: =-Налоги!Z166 -> 0 | AA43: =-Налоги!AA166 -> 0
C44: в местный бюджет | D44: тыс. руб. | E44: Лист: Налоги | F44: =SUM( H44:AA44) -> 0 | H44: =-Налоги!H171 -> 0 | I44: =-Налоги!I171 -> 0 | J44: =-Налоги!J171 -> 0 | K44: =-Налоги!K171 -> 0 | L44: =-Налоги!L171 -> 0 | M44: =-Налоги!M171 -> 0 | N44: =-Налоги!N171 -> 0 | O44: =-Налоги!O171 -> 0 | P44: =-Налоги!P171 -> 0 | Q44: =-Налоги!Q171 -> 0 | R44: =-Налоги!R171 -> 0 | S44: =-Налоги!S171 -> 0 | T44: =-Налоги!T171 -> 0 | U44: =-Налоги!U171 -> 0 | V44: =-Налоги!V171 -> 0 | W44: =-Налоги!W171 -> 0 | X44: =-Налоги!X171 -> 0 | Y44: =-Налоги!Y171 -> 0 | Z44: =-Налоги!Z171 -> 0 | AA44: =-Налоги!AA171 -> 0
C45: страховые взносы | D45: тыс. руб. | E45: Лист: Налоги | F45: =SUM( H45:AA45) -> 0 | H45: =-Налоги!H174 -> 0 | I45: =-Налоги!I174 -> 0 | J45: =-Налоги!J174 -> 0 | K45: =-Налоги!K174 -> 0 | L45: =-Налоги!L174 -> 0 | M45: =-Налоги!M174 -> 0 | N45: =-Налоги!N174 -> 0 | O45: =-Налоги!O174 -> 0 | P45: =-Налоги!P174 -> 0 | Q45: =-Налоги!Q174 -> 0 | R45: =-Налоги!R174 -> 0 | S45: =-Налоги!S174 -> 0 | T45: =-Налоги!T174 -> 0 | U45: =-Налоги!U174 -> 0 | V45: =-Налоги!V174 -> 0 | W45: =-Налоги!W174 -> 0 | X45: =-Налоги!X174 -> 0 | Y45: =-Налоги!Y174 -> 0 | Z45: =-Налоги!Z174 -> 0 | AA45: =-Налоги!AA174 -> 0
B47: Количество создаваемых рабочих мест | D47: =Предпосылки!D101 -> чел. | E47: Лист: Предпосылки | F47: =SUM( H47:AA47) -> 0 | H47: =Предпосылки!H98-Предпосылки!G98 -> 0 | I47: =Предпосылки!I98-Предпосылки!H98 -> 0 | J47: =Предпосылки!J98-Предпосылки!I98 -> 0 | K47: =Предпосылки!K98-Предпосылки!J98 -> 0 | L47: =Предпосылки!L98-Предпосылки!K98 -> 0 | M47: =Предпосылки!M98-Предпосылки!L98 -> 0 | N47: =Предпосылки!N98-Предпосылки!M98 -> 0 | O47: =Предпосылки!O98-Предпосылки!N98 -> 0 | P47: =Предпосылки!P98-Предпосылки!O98 -> 0 | Q47: =Предпосылки!Q98-Предпосылки!P98 -> 0 | R47: =Предпосылки!R98-Предпосылки!Q98 -> 0 | S47: =Предпосылки!S98-Предпосылки!R98 -> 0 | T47: =Предпосылки!T98-Предпосылки!S98 -> 0 | U47: =Предпосылки!U98-Предпосылки!T98 -> 0 | V47: =Предпосылки!V98-Предпосылки!U98 -> 0 | W47: =Предпосылки!W98-Предпосылки!V98 -> 0 | X47: =Предпосылки!X98-Предпосылки!W98 -> 0 | Y47: =Предпосылки!Y98-Предпосылки!X98 -> 0 | Z47: =Предпосылки!Z98-Предпосылки!Y98 -> 0 | AA47: =Предпосылки!AA98-Предпосылки!Z98 -> 0
B49: Источники привлечения средств для финансирования инвестиционного проекта
E51: Доля, % | F51: Сумма, тыс. руб
C52: Собственные средства | E52: =IFERROR(F52/$F$55,) -> 0 | F52: =Предпосылки!F212+SUM(Предпосылки!H217:AB218) -> 0
C53: Заемные средства | E53: =IFERROR(F53/$F$55,0) -> 0 | F53: =SUM(Финансирование!H44:AA44,Финансирование!H83:AA83) -> 0
C54: Бюджетные инвестиции | E54: =IFERROR(F54/$F$55,0) -> 0 | F54: =Предпосылки!F233+Предпосылки!F234 -> 0
C55: Итого | E55: =SUM(E52:E54) -> 0 | F55: =SUM(F52:F54) -> 0
B57: Показатели эффективности проекта
E59: Со СПИК | F59: Без СПИК
C60: NPV (чистая приведенная стоимость), тыс. руб. | E60: ='Эффективность (СПИК)'!F51 ->  | F60: ='Эффективность (Без СПИК)'!F51 -> 
C61: IRR (внутренняя норма доходности),% | E61: ='Эффективность (СПИК)'!F52 ->  | F61: ='Эффективность (Без СПИК)'!F52 -> 
C62: PI (индекс рентабельности инвестиций) | E62: ='Эффективность (СПИК)'!F59 ->  | F62: ='Эффективность (Без СПИК)'!F59 -> 
C63: PBP (простой период окупаемости), лет | E63: ='Эффективность (СПИК)'!F53 ->  | F63: ='Эффективность (Без СПИК)'!F53 -> 
C64: DPBP (дисконтированный период окупаемости), лет | E64: ='Эффективность (СПИК)'!F54 ->  | F64: ='Эффективность (Без СПИК)'!F54 -> 
C65: Объем налоговых отчислений (без НДС, акцизов), тыс. руб. | E65: ='Эффективность (СПИК)'!F63 -> 0 | F65: ='Эффективность (Без СПИК)'!F63 -> 0
C66: BNPV бюджетная эффективность, тыс. руб. | E66: ='Эффективность (СПИК)'!F67 -> 0 | F66: ='Эффективность (Без СПИК)'!F67 -> 0
C67: Ставка дисконтирования, % | E67: =WACC!D20 -> 0.2212970607
B69: Проверка корректности финансовой модели
C71: Проверка | E71: Результат
C72: Лист "Капитальные вложения" | E72: ='Капитальные вложения'!L1 -> Верно
C73: Лист "Финансирование" | E73: =Финансирование!L1 -> Верно
C74: Лист "Отчетность" (СПИК) | E74: ='Отчетность (СПИК)'!L1 -> Имеются некорректные данные
C75: Лист "Отчетность" (Без СПИК) | E75: ='Отчетность (Без СПИК)'!L1 -> Имеются некорректные данные

Sheet Предпосылки
E1: ="Лист: " & RIGHT(CELL("filename",A1),LEN(CELL("filename",A1))-SEARCH("]",CELL("filename",A1))) -> Лист: Предпосылки
C2: Параметр | D2: Ед. изм. | E2: Источник | F2: Текущее значение | H2: =YEAR(F7) -> 2023 | I2: =$H$2+H3 -> 2024 | J2: 2025 | K2: 2026 | L2: 2027 | M2: 2028 | N2: 2029 | O2: 2030 | P2: 2031 | Q2: 2032 | R2: 2033 | S2: 2034 | T2: 2035 | U2: 2036 | V2: 2037 | W2: =$H$2+V3 -> 2038 | X2: 2039 | Y2: 2040 | Z2: 2041 | AA2: 2042 | AB2: 2043 | AC2: 2044
H3: 1 | I3: 2 | J3: 3 | K3: 4 | L3: 5 | M3: 6 | N3: 7 | O3: 8 | P3: 9 | Q3: 10 | R3: 11 | S3: 12 | T3: 13 | U3: 14 | V3: 15 | W3: 16 | X3: 17 | Y3: 18 | Z3: 19 | AA3: 20 | AB3: 21
B5: Общие допущения
C7: Дата оценки | D7: х | F7: 2023-08-30
C8: Срок СПИК | D8: лет | F8: =SUM(H8:AB8) -> 15 | H8: 1 | I8: 1 | J8: 1 | K8: 1 | L8: 1 | M8: 1 | N8: 1 | O8: 1 | P8: 1 | Q8: 1 | R8: 1 | S8: 1 | T8: 1 | U8: 1 | V8: 1 | W8: 0 | X8: 0 | Y8: 0 | Z8: 0 | AA8: 0 | AB8: 0
C9: Инвестиционная фаза проекта | D9: х | H9: 1 | I9: 1 | J9: 1 | K9: 1
C10: Эксплуатационная фаза проекта | D10: х | L10: 1 | M10: 1 | N10: 1 | O10: 1 | P10: 1 | Q10: 1 | R10: 1 | S10: 1 | T10: 1 | U10: 1 | V10: 1 | W10: 0 | X10: 0 | Y10: 0 | Z10: 0 | AA10: 0 | AB10: 0
C11: Действие налоговых льгот | D11: лет | E11: Лист: Налоги | F11: =Налоги!F191 -> 15 | H11: =Налоги!H191 -> 1 | I11: =Налоги!I191 -> 1 | J11: =Налоги!J191 -> 1 | K11: =Налоги!K191 -> 1 | L11: =Налоги!L191 -> 1 | M11: =Налоги!M191 -> 1 | N11: =Налоги!N191 -> 1 | O11: =Налоги!O191 -> 1 | P11: =Налоги!P191 -> 1 | Q11: =Налоги!Q191 -> 1 | R11: =Налоги!R191 -> 1 | S11: =Налоги!S191 -> 1 | T11: =Налоги!T191 -> 1 | U11: =Налоги!U191 -> 1 | V11: =Налоги!V191 -> 1 | W11: =Налоги!W191 -> 0 | X11: =Налоги!X191 -> 0 | Y11: =Налоги!Y191 -> 0 | Z11: =Налоги!Z191 -> 0 | AA11: =Налоги!AA191 -> 0 | AB11: 0
C12: Дней в отчетном периоде | D12: дн | H12: =DATE(I2,1,1)-DATE(H2,1,1) -> 365 | I12: =DATE(J2,1,1)-DATE(I2,1,1) -> 366 | J12: 365 | K12: 365 | L12: 365 | M12: 366 | N12: 365 | O12: 365 | P12: 365 | Q12: 366 | R12: 365 | S12: 365 | T12: 365 | U12: 366 | V12: 365 | W12: =DATE(X2,1,1)-DATE(W2,1,1) -> 365 | X12: 365 | Y12: 366 | Z12: 365 | AA12: 365 | AB12: 365
C14: Ставка дисконтирования (WACC) | D14: % | F14: =WACC!D20 -> 0.2212970607
C15: Cтавка дисконтирования для расчета бюджетной эффективности | D15: % | E15: Ключевая ставка ЦБ РФ | F15: 0.075
C16: Темп роста денежных потоков в постпрогнозном периоде (g) | D16: % | F16: =INDEX(H20:AB20,,MATCH(0,H8:AB8,0)-1) -> 0.04
B18: Макроэкономические допущения
C20: Инфляция в России (ИПЦ) | D20: % | E20: МЭР или иные источники | H20: 0.055 | I20: 0.04 | J20: 0.04 | K20: 0.04 | L20: 0.04 | M20: 0.04 | N20: 0.04 | O20: 0.04 | P20: 0.04 | Q20: 0.04 | R20: 0.04 | S20: 0.04 | T20: 0.04 | U20: 0.04 | V20: 0.04 | W20: 0.04 | X20: 0.04 | Y20: 0.04 | Z20: 0.04 | AA20: 0.04 | AB20: 0.04
C21: Рост оплаты труда | D21: % | E21: МЭР или иные источники | H21: 0.026 | I21: 0.029 | J21: 0.028 | K21: 0.028 | L21: 0.028 | M21: 0.028 | N21: 0.028 | O21: 0.028 | P21: 0.028 | Q21: 0.028 | R21: 0.028 | S21: 0.028 | T21: 0.028 | U21: 0.028 | V21: 0.028 | W21: 0.028 | X21: 0.028 | Y21: 0.028 | Z21: 0.028 | AA21: 0.028 | AB21: 0.028
C22: Индекс цен производителей (ИЦП) или темп прироста цен на каждый вид сырья отдельной строкой | D22: % | E22: МЭР или иные источники | H22: 0.045 | I22: 0.043 | J22: 0.039 | K22: 0.039 | L22: 0.039 | M22: 0.039 | N22: 0.039 | O22: 0.039 | P22: 0.039 | Q22: 0.039 | R22: 0.039 | S22: 0.039 | T22: 0.039 | U22: 0.039 | V22: 0.039 | W22: 0.039 | X22: 0.039 | Y22: 0.039 | Z22: 0.039 | AA22: 0.039 | AB22: 0.039
C23: Курс доллара США | D23: руб./долл. США
C24: Инфляция в США | D24: %
C25: …
B27: Индекс-дефлятор (цепной коэффициент):
C28: ИПЦ РФ | D28: х | H28: 1 | I28: =H28*(1+I20) -> 1.04 | J28: 1.0816 | K28: 1.124864 | L28: 1.16985856 | M28: 1.216652902 | N28: 1.265319018 | O28: 1.315931779 | P28: 1.36856905 | Q28: 1.423311812 | R28: 1.480244285 | S28: 1.539454056 | T28: 1.601032219 | U28: 1.665073507 | V28: 1.731676448 | W28: =V28*(1+W20) -> 1.800943506 | X28: 1.872981246 | Y28: 1.947900496 | Z28: 2.025816515 | AA28: 2.106849176 | AB28: 2.191123143
C29: Заработная плата персонала | D29: х | H29: 1 | I29: =H29*(1+I21) -> 1.029 | J29: =I29*(1+J21) -> 1.057812 | K29: 1.087430736 | L29: 1.117878797 | M29: 1.149179403 | N29: 1.181356426 | O29: 1.214434406 | P29: 1.248438569 | Q29: 1.283394849 | R29: 1.319329905 | S29: 1.356271143 | T29: 1.394246735 | U29: 1.433285643 | V29: 1.473417641 | W29: 1.514673335 | X29: 1.557084188 | Y29: 1.600682546 | Z29: 1.645501657 | AA29: 1.691575703 | AB29: 1.738939823
C30: ИЦП РФ | D30: х | H30: 1 | I30: =H30*(1+I22) -> 1.043 | J30: =I30*(1+J22) -> 1.083677 | K30: =J30*(1+K22) -> 1.125940403 | L30: 1.169852079 | M30: 1.21547631 | N30: 1.262879886 | O30: 1.312132201 | P30: 1.363305357 | Q30: 1.416474266 | R30: 1.471716763 | S30: 1.529113716 | T30: 1.588749151 | U30: 1.650710368 | V30: 1.715088073 | W30: 1.781976507 | X30: 1.851473591 | Y30: 1.923681061 | Z30: 1.998704623 | AA30: 2.076654103 | AB30: 2.157643613
C31: …
B33: Предпосылки по расчету выручки
B35: Среднегодовые цены на реализуемую продукцию (без учета НДС)
C36: Продукция 1 | D36: руб./ ед. | H36: =$F36*H28 -> 0 | I36: 0 | J36: 0 | K36: 0 | L36: 0 | M36: 0 | N36: 0 | O36: 0 | P36: 0 | Q36: 0 | R36: 0 | S36: 0 | T36: 0 | U36: 0 | V36: 0 | W36: 0 | X36: 0 | Y36: 0 | Z36: 0 | AA36: 0 | AB36: 0
C37: Продукция 2 | D37: руб./ ед. | H37: =$F37*H28 -> 0 | I37: 0 | J37: 0 | K37: 0 | L37: 0 | M37: 0 | N37: 0 | O37: 0 | P37: 0 | Q37: 0 | R37: 0 | S37: 0 | T37: 0 | U37: 0 | V37: 0 | W37: 0 | X37: 0 | Y37: 0 | Z37: 0 | AA37: 0 | AB37: 0
C38: … | D38: руб./ ед.
B41: Объем производства продукции
C42: Продукция 1 | D42: тыс. ед.
C43: Продукция 2 | D43: тыс. ед.
C44: … | D44: тыс. ед.
C45: Итого | D45: тыс. ед. | H45: =SUM(H42:H44) -> 0 | I45: =SUM(I42:I44) -> 0 | J45: 0 | K45: 0 | L45: 0 | M45: 0 | N45: 0 | O45: 0 | P45: 0 | Q45: 0 | R45: 0 | S45: 0 | T45: 0 | U45: 0 | V45: 0 | W45: 0 | X45: 0 | Y45: 0 | Z45: 0 | AA45: 0 | AB45: 0
B47: Объем реализации продукции
C48: Продукция 1 | D48: тыс. ед. | H48: =H42 -> 0 | I48: =I42 -> 0 | J48: 0 | K48: 0 | L48: 0 | M48: 0 | N48: 0 | O48: 0 | P48: 0 | Q48: 0 | R48: 0 | S48: 0 | T48: 0 | U48: 0 | V48: 0 | W48: 0 | X48: 0 | Y48: 0 | Z48: 0 | AA48: 0 | AB48: 0
C49: Продукция 2 | D49: тыс. ед. | H49: =H43 -> 0 | I49: 0 | J49: 0 | K49: 0 | L49: 0 | M49: 0 | N49: 0 | O49: 0 | P49: 0 | Q49: 0 | R49: 0 | S49: 0 | T49: 0 | U49: 0 | V49: 0 | W49: 0 | X49: 0 | Y49: 0 | Z49: 0 | AA49: 0 | AB49: 0
C50: … | D50: тыс. ед. | H50: 0 | I50: 0 | J50: 0 | K50: 0 | L50: 0 | M50: 0 | N50: 0 | O50: 0 | P50: 0 | Q50: 0 | R50: 0 | S50: 0 | T50: 0 | U50: 0 | V50: 0 | W50: 0 | X50: 0 | Y50: 0 | Z50: 0 | AA50: 0 | AB50: 0
C51: Итого | D51: тыс. ед. | H51: =SUM(H48:H50) -> 0 | I51: 0 | J51: 0 | K51: 0 | L51: 0 | M51: 0 | N51: 0 | O51: 0 | P51: 0 | Q51: 0 | R51: 0 | S51: 0 | T51: 0 | U51: 0 | V51: =SUM(V48:V50) -> 0 | W51: 0 | X51: 0 | Y51: 0 | Z51: 0 | AA51: 0 | AB51: 0
B53: Изменение объема реализации продукции
C54: Продукция 1 | D54: % | H54: =IFERROR((H48-G48)/G48,"-") -> - | I54: - | J54: - | K54: - | L54: - | M54: - | N54: - | O54: - | P54: - | Q54: - | R54: - | S54: =IFERROR((S48-R48)/R48,"-") -> - | T54: - | U54: - | V54: - | W54: - | X54: - | Y54: - | Z54: - | AA54: - | AB54: -
C55: Продукция 2 | D55: % | H55: =IFERROR((H49-G49)/G49,"-") -> - | I55: - | J55: - | K55: - | L55: - | M55: - | N55: - | O55: - | P55: - | Q55: - | R55: - | S55: =IFERROR((S49-R49)/R49,"-") -> - | T55: - | U55: - | V55: - | W55: - | X55: - | Y55: - | Z55: - | AA55: - | AB55: -
C56: … | D56: %
B58: Максимальная производственная мощность
C59: Продукция 1 | D59: тыс. ед.
C60: Продукция 2 | D60: тыс. ед.
C61: … | D61: тыс. ед.
C62: Итого | D62: тыс. ед. | H62: =SUM(H59:H61) -> 0 | I62: 0 | J62: 0 | K62: 0 | L62: 0 | M62: 0 | N62: 0 | O62: 0 | P62: 0 | Q62: 0 | R62: 0 | S62: 0 | T62: 0 | U62: 0 | V62: =SUM(V59:V61) -> 0 | W62: 0 | X62: 0 | Y62: 0 | Z62: 0 | AA62: 0 | AB62: 0
B64: Загрузка производственных мощностей
C65: Продукция 1 | D65: % | H65: =IFERROR(H42/H59,"-") -> - | I65: - | J65: - | K65: - | L65: - | M65: - | N65: - | O65: - | P65: - | Q65: - | R65: - | S65: - | T65: - | U65: - | V65: - | W65: - | X65: - | Y65: - | Z65: - | AA65: - | AB65: -
C66: Продукция 2 | D66: % | H66: =IFERROR(H43/H60,"-") -> - | I66: - | J66: - | K66: - | L66: - | M66: - | N66: - | O66: - | P66: - | Q66: - | R66: - | S66: - | T66: - | U66: - | V66: - | W66: - | X66: - | Y66: - | Z66: - | AA66: - | AB66: -
C67: … | D67: %
C68: Итого | D68: тыс. ед. | H68: =H45/H62 ->  | I68: =I45/I62 -> 
B70: Предпосылки по расчету себестоимости
B72: Среднегодовые цены удельных расходов (без учета НДС)
B74: Продукция 1
C75: Сырье/материалы 1 | D75: руб./ удел. ед. | H75: =$F75*H30 -> 0 | I75: 0 | J75: 0 | K75: 0 | L75: 0 | M75: 0 | N75: 0 | O75: 0 | P75: 0 | Q75: 0 | R75: 0 | S75: 0 | T75: 0 | U75: 0 | V75: 0 | W75: 0 | X75: 0 | Y75: 0 | Z75: 0 | AA75: 0 | AB75: 0
C76: Сырье/материалы 2 | D76: руб./ удел. ед. | H76: =$F76*H30 -> 0 | I76: 0 | J76: 0 | K76: 0 | L76: 0 | M76: 0 | N76: 0 | O76: 0 | P76: 0 | Q76: 0 | R76: 0 | S76: 0 | T76: 0 | U76: 0 | V76: 0 | W76: 0 | X76: 0 | Y76: 0 | Z76: 0 | AA76: 0 | AB76: 0
C77: …
B79: Продукция 2
C80: Сырье/материалы 1 | D80: руб./ удел. ед. | H80: =$F80*H30 -> 0 | I80: 0 | J80: 0 | K80: 0 | L80: 0 | M80: 0 | N80: 0 | O80: 0 | P80: 0 | Q80: 0 | R80: 0 | S80: 0 | T80: 0 | U80: 0 | V80: 0 | W80: 0 | X80: 0 | Y80: 0 | Z80: 0 | AA80: 0 | AB80: 0
C81: Сырье/материалы 3 | D81: руб./ удел. ед. | H81: =$F81*H30 -> 0 | I81: 0 | J81: 0 | K81: 0 | L81: 0 | M81: 0 | N81: 0 | O81: 0 | P81: 0 | Q81: 0 | R81: 0 | S81: 0 | T81: 0 | U81: 0 | V81: 0 | W81: 0 | X81: 0 | Y81: 0 | Z81: 0 | AA81: 0 | AB81: 0
C82: …
B84: Удельные расходы в расчете на единицу продукции
B86: Продукция 1
C87: Сырье/материалы 1 | D87: удел. ед. / ед. продукции | H87: =$F$87 -> 0 | I87: =$F$87 -> 0 | J87: 0 | K87: 0 | L87: 0 | M87: 0 | N87: 0 | O87: 0 | P87: 0 | Q87: 0 | R87: 0 | S87: 0 | T87: 0 | U87: 0 | V87: 0 | W87: 0 | X87: 0 | Y87: 0 | Z87: 0 | AA87: 0 | AB87: 0
C88: Сырье/материалы 2 | D88: удел. ед. / ед. продукции | H88: =$F$88 -> 0 | I88: =$F$88 -> 0 | J88: 0 | K88: 0 | L88: 0 | M88: 0 | N88: 0 | O88: 0 | P88: 0 | Q88: 0 | R88: 0 | S88: 0 | T88: 0 | U88: 0 | V88: 0 | W88: 0 | X88: 0 | Y88: 0 | Z88: 0 | AA88: 0 | AB88: 0
C89: …
B91: Продукция 2
C92: Сырье/материалы 1 | D92: удел. ед. / ед. продукции | H92: =$F$92 -> 0 | I92: =$F$92 -> 0 | J92: 0 | K92: 0 | L92: 0 | M92: 0 | N92: 0 | O92: 0 | P92: 0 | Q92: 0 | R92: 0 | S92: 0 | T92: 0 | U92: 0 | V92: 0 | W92: 0 | X92: 0 | Y92: 0 | Z92: 0 | AA92: 0 | AB92: 0
C93: Сырье/материалы 3 | D93: удел. ед. / ед. продукции | H93: =$F$93 -> 0 | I93: =$F$93 -> 0 | J93: 0 | K93: 0 | L93: 0 | M93: 0 | N93: 0 | O93: 0 | P93: 0 | Q93: 0 | R93: 0 | S93: 0 | T93: 0 | U93: 0 | V93: 0 | W93: 0 | X93: 0 | Y93: 0 | Z93: 0 | AA93: 0 | AB93: 0
C94: …
B96: Расходы на персонал
B98: Численность рабочих мест в соответствии со штатным расписанием | H98: =SUM(H110,H122) -> 0 | I98: =SUM(I110,I122) -> 0 | J98: 0 | K98: 0 | L98: 0 | M98: 0 | N98: 0 | O98: 0 | P98: 0 | Q98: 0 | R98: 0 | S98: 0 | T98: 0 | U98: 0 | V98: 0 | W98: 0 | X98: 0 | Y98: 0 | Z98: 0 | AA98: 0 | AB98: 0
B100: ="Сотрудники с ФОТ менее " & F264 &" тыс. рублей/год" -> Сотрудники с ФОТ менее 1917 тыс. рублей/год
C101: Производственный персонал | D101: чел. | H101: =SUBTOTAL(9,H102:H103) -> 0 | I101: =SUBTOTAL(9,I102:I103) -> 0 | J101: 0 | K101: 0 | L101: 0 | M101: 0 | N101: 0 | O101: 0 | P101: 0 | Q101: 0 | R101: 0 | S101: 0 | T101: 0 | U101: 0 | V101: 0 | W101: 0 | X101: 0 | Y101: 0 | Z101: 0 | AA101: 0 | AB101: 0
C102: Категория 1 | D102: чел.
C103: … | D103: чел.
C104: Вспомогательный персонал | D104: чел. | H104: =SUBTOTAL(9,H105:H106) -> 0 | I104: =SUBTOTAL(9,I105:I106) -> 0 | J104: 0 | K104: 0 | L104: 0 | M104: 0 | N104: 0 | O104: 0 | P104: 0 | Q104: 0 | R104: 0 | S104: 0 | T104: 0 | U104: 0 | V104: 0 | W104: 0 | X104: 0 | Y104: 0 | Z104: 0 | AA104: 0 | AB104: 0
C105: Категория 1 | D105: чел.
C106: … | D106: чел.
C107: Административный персонал | D107: чел. | H107: =SUBTOTAL(9,H108:H109) -> 0 | I107: =SUBTOTAL(9,I108:I109) -> 0 | J107: 0 | K107: 0 | L107: 0 | M107: 0 | N107: 0 | O107: 0 | P107: 0 | Q107: 0 | R107: 0 | S107: 0 | T107: 0 | U107: 0 | V107: 0 | W107: 0 | X107: 0 | Y107: 0 | Z107: 0 | AA107: 0 | AB107: 0
C108: Категория 1 | D108: чел.
C109: … | D109: чел.
C110: Итого | D110: чел. | H110: =SUBTOTAL(9,H101:H109) -> 0 | I110: =SUBTOTAL(9,I101:I109) -> 0 | J110: 0 | K110: 0 | L110: 0 | M110: 0 | N110: 0 | O110: 0 | P110: 0 | Q110: 0 | R110: 0 | S110: 0 | T110: 0 | U110: 0 | V110: 0 | W110: 0 | X110: 0 | Y110: 0 | Z110: 0 | AA110: 0 | AB110: 0
B112: ="Сотрудники с ФОТ более или равно " & F264 &" тыс. рублей/год (каждый указывается отдельно)" -> Сотрудники с ФОТ более или равно 1917 тыс. рублей/год (каждый указывается отдельно)
C113: Производственный персонал | D113: чел. | H113: =SUBTOTAL(9,H114:H115) -> 0 | I113: =SUBTOTAL(9,I114:I115) -> 0 | J113: 0 | K113: 0 | L113: 0 | M113: 0 | N113: 0 | O113: 0 | P113: 0 | Q113: 0 | R113: 0 | S113: 0 | T113: 0 | U113: 0 | V113: 0 | W113: 0 | X113: 0 | Y113: 0 | Z113: 0 | AA113: 0 | AB113: 0
C114: Сотрудник 1 | D114: чел.
C115: … | D115: чел.
C116: Вспомогательный персонал | D116: чел. | H116: =SUBTOTAL(9,H117:H118) -> 0 | I116: =SUBTOTAL(9,I117:I118) -> 0 | J116: 0 | K116: 0 | L116: 0 | M116: 0 | N116: 0 | O116: 0 | P116: 0 | Q116: 0 | R116: 0 | S116: 0 | T116: 0 | U116: 0 | V116: 0 | W116: 0 | X116: 0 | Y116: 0 | Z116: 0 | AA116: 0 | AB116: 0
C117: Сотрудник 1 | D117: чел.
C118: … | D118: чел.
C119: Административный персонал | D119: чел. | H119: =SUBTOTAL(9,H120:H121) -> 0 | I119: =SUBTOTAL(9,I120:I121) -> 0 | J119: 0 | K119: 0 | L119: 0 | M119: 0 | N119: 0 | O119: 0 | P119: 0 | Q119: 0 | R119: 0 | S119: 0 | T119: 0 | U119: 0 | V119: 0 | W119: 0 | X119: 0 | Y119: 0 | Z119: 0 | AA119: 0 | AB119: 0
C120: Сотрудник 1 | D120: чел.
C121: … | D121: чел.
C122: Итого | D122: чел. | H122: =SUBTOTAL(9,H113:H121) -> 0 | I122: =SUBTOTAL(9,I113:I121) -> 0 | J122: 0 | K122: 0 | L122: 0 | M122: 0 | N122: 0 | O122: 0 | P122: 0 | Q122: 0 | R122: 0 | S122: 0 | T122: 0 | U122: 0 | V122: 0 | W122: 0 | X122: 0 | Y122: 0 | Z122: 0 | AA122: 0 | AB122: 0
B124: Фонд оплаты труда (на 1 сотрудника)
B126: =B100 -> Сотрудники с ФОТ менее 1917 тыс. рублей/год
C127: =C101 -> Производственный персонал | D127: тыс. руб. | H127: =SUBTOTAL(9,H128:H129) -> 0 | I127: =SUBTOTAL(9,I128:I129) -> 0 | J127: 0 | K127: 0 | L127: 0 | M127: 0 | N127: 0 | O127: 0 | P127: 0 | Q127: 0 | R127: 0 | S127: 0 | T127: 0 | U127: 0 | V127: 0 | W127: 0 | X127: 0 | Y127: 0 | Z127: 0 | AA127: 0 | AB127: 0
C128: Категория 1 | D128: тыс. руб.
C129: … | D129: тыс. руб.
C130: Вспомогательный персонал | D130: тыс. руб. | H130: =SUBTOTAL(9,H131:H132) -> 0 | I130: =SUBTOTAL(9,I131:I132) -> 0 | J130: 0 | K130: 0 | L130: 0 | M130: 0 | N130: 0 | O130: 0 | P130: 0 | Q130: 0 | R130: 0 | S130: 0 | T130: 0 | U130: 0 | V130: 0 | W130: 0 | X130: 0 | Y130: 0 | Z130: 0 | AA130: 0 | AB130: 0
C131: Категория 1 | D131: тыс. руб.
C132: … | D132: тыс. руб.
C133: Административный персонал | D133: тыс. руб. | H133: =SUBTOTAL(9,H134:H135) -> 0 | I133: =SUBTOTAL(9,I134:I135) -> 0 | J133: 0 | K133: 0 | L133: 0 | M133: 0 | N133: 0 | O133: 0 | P133: 0 | Q133: 0 | R133: 0 | S133: 0 | T133: 0 | U133: 0 | V133: 0 | W133: 0 | X133: 0 | Y133: 0 | Z133: 0 | AA133: 0 | AB133: 0
C134: Категория 1 | D134: тыс. руб.
C135: … | D135: тыс. руб.
C136: Итого | D136: тыс. руб. | H136: =SUBTOTAL(9,H127:H135) -> 0 | I136: =SUBTOTAL(9,I127:I135) -> 0 | J136: 0 | K136: 0 | L136: 0 | M136: 0 | N136: 0 | O136: 0 | P136: 0 | Q136: 0 | R136: 0 | S136: 0 | T136: 0 | U136: 0 | V136: 0 | W136: 0 | X136: 0 | Y136: 0 | Z136: 0 | AA136: 0 | AB136: 0
B138: =B112 -> Сотрудники с ФОТ более или равно 1917 тыс. рублей/год (каждый указывается отдельно)
C139: =C113 -> Производственный персонал | D139: тыс. руб. | H139: =SUBTOTAL(9,H140:H141) -> 0 | I139: 0 | J139: 0 | K139: 0 | L139: 0 | M139: 0 | N139: 0 | O139: 0 | P139: 0 | Q139: 0 | R139: 0 | S139: 0 | T139: 0 | U139: 0 | V139: =SUBTOTAL(9,V140:V141) -> 0 | W139: 0 | X139: 0 | Y139: 0 | Z139: 0 | AA139: 0 | AB139: 0
C140: Сотрудник 1 | D140: тыс. руб.
C141: … | D141: тыс. руб.
C142: Вспомогательный персонал | D142: тыс. руб. | H142: =SUBTOTAL(9,H143:H144) -> 0 | I142: 0 | J142: 0 | K142: 0 | L142: 0 | M142: 0 | N142: 0 | O142: 0 | P142: 0 | Q142: 0 | R142: 0 | S142: 0 | T142: 0 | U142: 0 | V142: =SUBTOTAL(9,V143:V144) -> 0 | W142: 0 | X142: 0 | Y142: 0 | Z142: 0 | AA142: 0 | AB142: 0
C143: Сотрудник 1 | D143: тыс. руб.
C144: … | D144: тыс. руб.
C145: Административный персонал | D145: тыс. руб. | H145: =SUBTOTAL(9,H146:H147) -> 0 | I145: 0 | J145: 0 | K145: 0 | L145: 0 | M145: 0 | N145: 0 | O145: 0 | P145: 0 | Q145: 0 | R145: 0 | S145: 0 | T145: 0 | U145: 0 | V145: =SUBTOTAL(9,V146:V147) -> 0 | W145: 0 | X145: 0 | Y145: 0 | Z145: 0 | AA145: 0 | AB145: 0
C146: Сотрудник 1 | D146: тыс. руб.
C147: … | D147: тыс. руб.
C148: Итого | D148: тыс. руб. | H148: =SUBTOTAL(9,H139:H147) -> 0 | I148: 0 | J148: 0 | K148: 0 | L148: 0 | M148: 0 | N148: 0 | O148: 0 | P148: 0 | Q148: 0 | R148: 0 | S148: 0 | T148: 0 | U148: 0 | V148: =SUBTOTAL(9,V139:V147) -> 0 | W148: 0 | X148: 0 | Y148: 0 | Z148: 0 | AA148: 0 | AB148: 0
B150: Иные расходы
C152: Ранее понесенные расходы на реализацию проекта (за 12 мес до объявления конкурса по СПИК 2.0 или в календарный год подачи заявки на заключение СПИК 1.0): | D152: тыс. руб.
C153: из них капитальные вложения | D153: тыс. руб.
B155: Капитальные затраты и амортизация
B157: Затраты на создание/модернизацию (без НДС)
C158: Здания и сооружения | D158: тыс. руб.
C159: Машины и оборудование | D159: тыс. руб.
C160: Земля | D160: тыс. руб.
C161: Транспортные средства | D161: тыс. руб.
C162: Нематериальные активы с определенным СПИ | D162: тыс. руб.
C163: Нематериальные активы с неопределенным СПИ (не амортизируются) | D163: тыс. руб.
C164: Итого | D164: тыс. руб. | H164: =SUM(H158:H163) -> 0 | I164: 0 | J164: 0 | K164: 0 | L164: 0 | M164: 0 | N164: 0 | O164: 0 | P164: 0 | Q164: 0 | R164: 0 | S164: 0 | T164: 0 | U164: 0 | V164: 0 | W164: 0 | X164: 0 | Y164: 0 | Z164: 0 | AA164: 0 | AB164: 0
B166: Затраты на поддержание (без НДС)
C167: Здания и сооружения | D167: тыс. руб.
C168: Машины и оборудование | D168: тыс. руб.
C169: Земля | D169: тыс. руб.
C170: Транспортные средства | D170: тыс. руб.
C171: Нематериальные активы с определенным СПИ | D171: тыс. руб.
C172: Нематериальные активы с неопределенным СПИ (не амортизируются) | D172: тыс. руб.
C173: Итого | D173: тыс. руб. | H173: =SUM(H167:H172) -> 0 | I173: 0 | J173: 0 | K173: 0 | L173: 0 | M173: 0 | N173: 0 | O173: 0 | P173: 0 | Q173: 0 | R173: 0 | S173: 0 | T173: 0 | U173: 0 | V173: 0 | W173: 0 | X173: 0 | Y173: 0 | Z173: 0 | AA173: 0 | AB173: 0
B175: Принятие к учету объектов капитальных вложений к учету (без НДС)
C176: Здания и сооружения | D176: тыс. руб.
C177: Машины и оборудование | D177: тыс. руб.
C178: Земля | D178: тыс. руб.
C179: Транспортные средства | D179: тыс. руб.
C180: Нематериальные активы с определенным СПИ | D180: тыс. руб.
C181: Нематериальные активы с неопределенным СПИ (не амортизируются) | D181: тыс. руб.
C182: Итого | D182: тыс. руб. | H182: =SUM(H176:H181) -> 0 | I182: 0 | J182: 0 | K182: 0 | L182: 0 | M182: 0 | N182: 0 | O182: 0 | P182: 0 | Q182: 0 | R182: 0 | S182: 0 | T182: 0 | U182: 0 | V182: 0 | W182: 0 | X182: 0 | Y182: 0 | Z182: 0 | AA182: 0 | AB182: 0
B184: Срок полезного использования:
C185: Здания и сооружения | D185: лет | F185: 20
C186: Машины и оборудование | D186: лет | F186: 10
C187: Транспортные средства | D187: лет | F187: 7
C188: Нематериальные активы с определенным СПИ | D188: лет | F188: 20
B190: Норма амортизации
C191: Здания и сооружения | D191: % | F191: =One/F185 -> 0.05
C192: Машины и оборудование | D192: % | F192: =One/F186 -> 0.1
C193: Транспортные средства | D193: % | F193: =One/F187 -> 0.1428571429
C194: Нематериальные активы с определенным СПИ | D194: % | F194: =One/F188 -> 0.05
B196: Оборотный капитал
B198: Период оборачиваемости:
B199: Запасы
B200: Продукция 1
C201: Сырье/материалы 1 | D201: дн. | H201: =$F201 -> 0 | I201: =$F201 -> 0 | J201: 0 | K201: 0 | L201: 0 | M201: 0 | N201: 0 | O201: 0 | P201: 0 | Q201: 0 | R201: 0 | S201: 0 | T201: 0 | U201: 0 | V201: 0 | W201: 0 | X201: 0 | Y201: =$F201 -> 0 | Z201: 0 | AA201: 0 | AB201: =$F201 -> 0
C202: Сырье/материалы 2 | D202: дн. | H202: =$F202 -> 0 | I202: 0 | J202: 0 | K202: 0 | L202: 0 | M202: 0 | N202: 0 | O202: 0 | P202: 0 | Q202: 0 | R202: 0 | S202: 0 | T202: 0 | U202: 0 | V202: 0 | W202: 0 | X202: 0 | Y202: 0 | Z202: 0 | AA202: 0 | AB202: 0
C203: …
B204: Продукция 2
C205: Сырье/материалы 1 | D205: дн. | F205: =F201 -> 0 | H205: =$F$205 -> 0 | I205: =$F$205 -> 0 | J205: 0 | K205: 0 | L205: 0 | M205: 0 | N205: 0 | O205: 0 | P205: 0 | Q205: 0 | R205: 0 | S205: 0 | T205: 0 | U205: 0 | V205: 0 | W205: 0 | X205: 0 | Y205: =$F$205 -> 0 | Z205: 0 | AA205: 0 | AB205: 0
C206: Сырье/материалы 3 | D206: дн. | H206: =$F$205 -> 0 | I206: 0 | J206: 0 | K206: 0 | L206: 0 | M206: 0 | N206: 0 | O206: 0 | P206: 0 | Q206: 0 | R206: 0 | S206: 0 | T206: 0 | U206: 0 | V206: 0 | W206: 0 | X206: 0 | Y206: 0 | Z206: 0 | AA206: 0 | AB206: 0
C207: …
B209: Источники финансирования проекта
B211: Ранее привлечено в проект
C212: Собственные средства | D212: тыс. руб.
C213: Заемное финансирование | D213: тыс. руб.
C214: Процентная ставка для ранее привлеченного финансирования | D214: %
B216: Финансирование в течение срока действия СПИК
C217: Вложение в уставный капитал | D217: тыс. руб. | F217: =SUM(H217:AA217) -> 0
C218: Вложение в добавочный капитал | D218: тыс. руб. | F218: =SUM(H218:AA218) -> 0
C220: Привлечение долгосрочного заёмного финансирования | D220: х
C221: Привлечение краткосрочного заемного финансирования | D221: х
C222: Процентная ставка по займу 1 | D222: % | H222: =$F$222 -> 0 | I222: =$F$222 -> 0 | J222: 0 | K222: 0 | L222: 0 | M222: 0 | N222: 0 | O222: 0 | P222: 0 | Q222: 0 | R222: 0 | S222: 0 | T222: 0 | U222: 0 | V222: 0 | W222: 0 | X222: 0 | Y222: 0 | Z222: 0 | AA222: 0 | AB222: 0
C223: Процентная ставка по займу 2 | D223: % | H223: =$F$223 -> 0 | I223: =$F$223 -> 0 | J223: 0 | K223: 0 | L223: 0 | M223: 0 | N223: 0 | O223: 0 | P223: 0 | Q223: 0 | R223: 0 | S223: 0 | T223: 0 | U223: 0 | V223: 0 | W223: 0 | X223: 0 | Y223: 0 | Z223: 0 | AA223: 0 | AB223: 0
C224: …
C225: Процентная ставка по краткосрочному займу | D225: % | H225: =$F$225 -> 0 | I225: =$F$225 -> 0 | J225: 0 | K225: 0 | L225: 0 | M225: 0 | N225: 0 | O225: 0 | P225: 0 | Q225: 0 | R225: 0 | S225: 0 | T225: 0 | U225: 0 | V225: 0 | W225: 0 | X225: 0 | Y225: 0 | Z225: 0 | AA225: 0 | AB225: 0
C227: Общая сумма займа 1 | D227: тыс. руб. | F227: =Финансирование!F13 -> 0
C228: Общая сумма займа 2 | D228: тыс. руб. | F228: =Финансирование!F28 -> 0
C229: …
B231: Получение государственных субсидий
C233: Получение субсидий, включаемых в налогооблогаемую базу | D233: тыс. руб. | F233: =SUM(H233:AB233) -> 0
C234: Получение субсидий, не включаемых в налогооблагаемую базу | D234: тыс. руб. | F234: =SUM(H234:AB234) -> 0
B236: Предпосылки по налогам и взносам в внебюджетные фонды
B238: Стандартные налоговые ставки
C239: НДС (общая) | D239: % | E239: НК РФ | F239: 0.2
C240: НДС (льготная) - при наличии | D240: % | E240: НК РФ
C242: Налог на прибыль (общая ставка) | D242: % | E242: НК РФ | F242: 0.2
C243: Налог на прибыль в федеральный бюджет | D243: % | E243: НК РФ | H243: =IF(H2<=2030,3%,2%) -> 0.03 | I243: 0.03 | J243: 0.03 | K243: 0.03 | L243: 0.03 | M243: 0.03 | N243: 0.03 | O243: 0.03 | P243: 0.02 | Q243: 0.02 | R243: 0.02 | S243: 0.02 | T243: 0.02 | U243: 0.02 | V243: 0.02 | W243: 0.02 | X243: 0.02 | Y243: 0.02 | Z243: 0.02 | AA243: 0.02 | AB243: 0.02
C244: Налог на прибыль в региональный бюджет | D244: % | E244: НК РФ | H244: =$F$242-H243 -> 0.17 | I244: =$F$242-I243 -> 0.17 | J244: 0.17 | K244: 0.17 | L244: 0.17 | M244: 0.17 | N244: 0.17 | O244: 0.17 | P244: 0.18 | Q244: 0.18 | R244: 0.18 | S244: 0.18 | T244: 0.18 | U244: 0.18 | V244: 0.18 | W244: 0.18 | X244: 0.18 | Y244: 0.18 | Z244: 0.18 | AA244: 0.18 | AB244: 0.18
C245: Налог на имущество организаций | D245: % | E245: НК РФ | F245: 0.022
C246: Транспортный налог | D246: руб. / 1 л.с. | E246: НК РФ
C247: Земельный налог | D247: % | E247: НК РФ | F247: 0.015
C248: НДФЛ | D248: % | E248: НК РФ | F248: 0.13
... 94 more rows

Sheet График инвестирования
E1: ="Лист: " & RIGHT(CELL("filename",A1),LEN(CELL("filename",A1))-SEARCH("]",CELL("filename",A1))) -> Лист: График инвестирования
C2: Наименование расхода | D2: Ед. изм. | E2: Источник | F2: Итоговое значение | H2: =Предпосылки!H2 -> 2023 | I2: =Предпосылки!I2 -> 2024 | J2: =Предпосылки!J2 -> 2025 | K2: =Предпосылки!K2 -> 2026 | L2: =Предпосылки!L2 -> 2027 | M2: =Предпосылки!M2 -> 2028 | N2: =Предпосылки!N2 -> 2029 | O2: =Предпосылки!O2 -> 2030 | P2: =Предпосылки!P2 -> 2031 | Q2: =Предпосылки!Q2 -> 2032 | R2: =Предпосылки!R2 -> 2033 | S2: =Предпосылки!S2 -> 2034 | T2: =Предпосылки!T2 -> 2035 | U2: =Предпосылки!U2 -> 2036 | V2: =Предпосылки!V2 -> 2037 | W2: =Предпосылки!W2 -> 2038 | X2: =Предпосылки!X2 -> 2039 | Y2: =Предпосылки!Y2 -> 2040 | Z2: =Предпосылки!Z2 -> 2041 | AA2: =Предпосылки!AA2 -> 2042 | AB2: =Предпосылки!AB2 -> 2043 | AD2: Итоговое значение
H3: 1 | I3: 2 | J3: 3 | K3: 4 | L3: 5 | M3: 6 | N3: 7 | O3: 8 | P3: 9 | Q3: 10 | R3: 11 | S3: 12 | T3: 13 | U3: 14 | V3: 15 | W3: 16 | X3: 17 | Y3: 18 | Z3: 19 | AA3: 20 | AB3: 21
B5: График инвестирования (расходования)
B7: 1. | C7: Приобретение и (или) долгосрочная аренда земельных участков, предназначенных для создания на них новых производственных мощностей, в том числе: | D7: тыс. руб. | F7: =SUM(H7:AA7) -> 0 | H7: =SUM(H8:H9) -> 0 | I7: =SUM(I8:I9) -> 0 | J7: 0 | K7: 0 | L7: 0 | M7: 0 | N7: 0 | O7: 0 | P7: 0 | Q7: 0 | R7: 0 | S7: 0 | T7: 0 | U7: 0 | V7: 0 | W7: 0 | X7: 0 | Y7: 0 | Z7: 0 | AA7: 0
B8: 1.1. | D8: тыс. руб. | F8: =SUM(H8:AA8) -> 0
B9: … | D9: тыс. руб. | F9: 0
B10: 2. | C10: Строительство и (или) капитальный ремонт, и (или) реконструкция производственных здаий и сооружений, горных выработок, объектов электрической и тепловой энергии, в том числе: | D10: тыс. руб. | F10: 0 | H10: =SUM(H11,H14) -> 0 | I10: =SUM(I11,I14) -> 0 | J10: 0 | K10: 0 | L10: 0 | M10: 0 | N10: 0 | O10: 0 | P10: 0 | Q10: 0 | R10: 0 | S10: 0 | T10: 0 | U10: 0 | V10: 0 | W10: 0 | X10: 0 | Y10: 0 | Z10: 0 | AA10: 0
B11: 2.1. | C11: Cтроительство, и (или) капитальный ремонт, и (или) реконструкция производственных зданий и сооружений горных выработок, объектов электрической и тепловой энергии, в том числе: | D11: тыс. руб. | F11: 0 | H11: =SUM(H12:H13) -> 0 | I11: =SUM(I12:I13) -> 0 | J11: 0 | K11: 0 | L11: 0 | M11: 0 | N11: 0 | O11: 0 | P11: 0 | Q11: 0 | R11: 0 | S11: 0 | T11: 0 | U11: 0 | V11: 0 | W11: 0 | X11: 0 | Y11: 0 | Z11: 0 | AA11: 0
B12: 2.1.1. | D12: тыс. руб. | F12: 0
B13: … | D13: тыс. руб. | F13: 0
B14: 2.2 | C14: Проведение изыскательских работ и разработка проектной документации, в том числе: | D14: тыс. руб. | F14: 0 | H14: =SUM(H15:H16) -> 0 | I14: =SUM(I15:I16) -> 0 | J14: 0 | K14: 0 | L14: 0 | M14: 0 | N14: 0 | O14: 0 | P14: 0 | Q14: 0 | R14: 0 | S14: 0 | T14: 0 | U14: 0 | V14: 0 | W14: 0 | X14: 0 | Y14: 0 | Z14: 0 | AA14: 0
B15: 2.2.1. | D15: тыс. руб. | F15: 0
B16: … | D16: тыс. руб. | F16: 0
B17: 3. | C17: Приобретение, сооружение, изготовление, доставка основных средств, в том числе: | D17: тыс. руб. | F17: 0 | H17: =SUM(H18,H21,H24) -> 0 | I17: =SUM(I18,I21,I24) -> 0 | J17: 0 | K17: 0 | L17: 0 | M17: 0 | N17: 0 | O17: 0 | P17: 0 | Q17: 0 | R17: 0 | S17: 0 | T17: 0 | U17: 0 | V17: 0 | W17: 0 | X17: 0 | Y17: 0 | Z17: 0 | AA17: 0
B18: 3.1. | C18: Приобретение, сооружение, изготовление, доставка основных средств, в том числе: | D18: тыс. руб. | F18: 0 | H18: =SUM(H19:H20) -> 0 | I18: =SUM(I19:I20) -> 0 | J18: 0 | K18: 0 | L18: 0 | M18: 0 | N18: 0 | O18: 0 | P18: 0 | Q18: 0 | R18: 0 | S18: 0 | T18: 0 | U18: 0 | V18: 0 | W18: 0 | X18: 0 | Y18: 0 | Z18: 0 | AA18: 0
B19: 3.1.1. | D19: тыс. руб. | F19: 0
B20: … | D20: тыс. руб. | F20: 0
B21: 3.2 | C21: Таможенные пошлины и таможенные сборы (при наличии), в том числе: | D21: тыс. руб. | F21: 0 | H21: =SUM(H22:H23) -> 0 | I21: =SUM(I22:I23) -> 0 | J21: 0 | K21: 0 | L21: 0 | M21: 0 | N21: 0 | O21: 0 | P21: 0 | Q21: 0 | R21: 0 | S21: 0 | T21: 0 | U21: 0 | V21: 0 | W21: 0 | X21: 0 | Y21: 0 | Z21: 0 | AA21: 0
B22: 3.2.1. | D22: тыс. руб. | F22: 0
B23: … | D23: тыс. руб. | F23: 0
B24: 3.3 | C24: Строительно-монтажные и пусконаладочные работы, в том числе: | D24: тыс. руб. | F24: 0 | H24: =SUM(H25:H26) -> 0 | I24: =SUM(I25:I26) -> 0 | J24: 0 | K24: 0 | L24: 0 | M24: 0 | N24: 0 | O24: 0 | P24: 0 | Q24: 0 | R24: 0 | S24: 0 | T24: 0 | U24: 0 | V24: 0 | W24: 0 | X24: 0 | Y24: 0 | Z24: 0 | AA24: 0
B25: 3.3.1. | D25: тыс. руб. | F25: 0
B26: … | D26: тыс. руб. | F26: 0
B27: 4. | C27: Расконсервация и (или) модернизация основных средств, в том числе: | D27: тыс. руб. | F27: 0 | H27: =SUM(H28:H29) -> 0 | I27: =SUM(I28:I29) -> 0 | J27: 0 | K27: 0 | L27: 0 | M27: 0 | N27: 0 | O27: 0 | P27: 0 | Q27: 0 | R27: 0 | S27: 0 | T27: 0 | U27: 0 | V27: 0 | W27: 0 | X27: 0 | Y27: 0 | Z27: 0 | AA27: 0
B28: 4.1. | D28: тыс. руб. | F28: 0
B29: … | D29: тыс. руб. | F29: 0
B30: 5. | C30: Выполнение научноисследовательских, опытноконструкторских и технологических работ, проведение клинических испытаний либо приобретение исключительных прав на результаты интеллектуальной деятельности и (или) получение прав на использование результатов интеллектуальной деятельности, входящих в состав современной технологии, в том числе: | D30: тыс. руб. | F30: 0 | H30: =SUM(H31:H32) -> 0 | I30: =SUM(I31:I32) -> 0 | J30: 0 | K30: 0 | L30: 0 | M30: 0 | N30: 0 | O30: 0 | P30: 0 | Q30: 0 | R30: 0 | S30: 0 | T30: 0 | U30: 0 | V30: 0 | W30: 0 | X30: 0 | Y30: 0 | Z30: 0 | AA30: 0
B31: 5.1. | D31: тыс. руб. | F31: 0
B32: … | D32: тыс. руб. | F32: 0
B33: 6. | C33: Создание и (или) модернизация, реконструкция промышленной, транспортной, энергетической и социальной инфраструктуры, необходимой для реализации инвестиционного проекта, в том числе: | D33: тыс. руб. | F33: 0 | H33: =SUM(H34:H35) -> 0 | I33: =SUM(I34:I35) -> 0 | J33: 0 | K33: 0 | L33: 0 | M33: 0 | N33: 0 | O33: 0 | P33: 0 | Q33: 0 | R33: 0 | S33: 0 | T33: 0 | U33: 0 | V33: 0 | W33: 0 | X33: 0 | Y33: 0 | Z33: 0 | AA33: 0
B34: 6.1. | D34: тыс. руб. | F34: 0
B35: … | D35: тыс. руб. | F35: 0
B36: 7. | C36: Иные расходы на реализацию инвестиционного проекта, в том числе: | D36: тыс. руб. | F36: 0 | H36: =SUM(H37:H38) -> 0 | I36: =SUM(I37:I38) -> 0 | J36: 0 | K36: 0 | L36: 0 | M36: 0 | N36: 0 | O36: 0 | P36: 0 | Q36: 0 | R36: 0 | S36: 0 | T36: 0 | U36: 0 | V36: 0 | W36: 0 | X36: 0 | Y36: 0 | Z36: 0 | AA36: 0
B37: 7.1. | D37: тыс. руб. | F37: 0
B38: … | D38: тыс. руб. | F38: 0
C39: Итого | D39: тыс. руб. | F39: 0 | H39: =SUM(H7,H10,H17,H27,H30,H33,H36) -> 0 | I39: =SUM(I7,I10,I17,I27,I30,I33,I36) -> 0 | J39: 0 | K39: 0 | L39: 0 | M39: 0 | N39: 0 | O39: 0 | P39: 0 | Q39: 0 | R39: 0 | S39: 0 | T39: 0 | U39: 0 | V39: 0 | W39: 0 | X39: 0 | Y39: 0 | Z39: 0 | AA39: 0

Sheet WACC
A2: Расчет ставки дисконтирования
B4: Категория | C4: Сокращение | D4: Значение | E4: Источник
B5: Безрисковая ставка в рублях | C5: Rf (RUB) | D5: 0.1154 | E5: Кривая бескупонной доходности 15 лет (cbr.ru)
B6: Коэффициент бета без учета структуры капитала | C6: βunlev | D6: =C79 -> 0.96 | E6: Отрасль: Machinery / A. Damodaran: Levered and Unlevered Betas by Industry for Emerging market
B7: Соотношение заемного и собственного капитала инвестиционного проекта | C7: D/E | D7: =IFERROR(SUM(Предпосылки!F213,Предпосылки!F227:F228)/SUM(Предпосылки!F212,Предпосылки!F217:F218),0) -> 0 | E7: Данные инвестиционного проекта
B8: Доля заемного капитала | C8: Wd | D8: =IFERROR(SUM(Предпосылки!F213,Предпосылки!F227:F228)/SUM(Предпосылки!F212,Предпосылки!F217:F218,Предпосылки!F213,Предпосылки!F227:F228),0) -> 0 | E8: D/E / (1 + D/E)
B9: Доля собственного капитала | C9: We | D9: =1-D8 -> 1 | E9: 1 - Wd
B10: Коэффициент бета с учетом структуры капитала | C10: βrelev | D10: =D6*(1+D7) -> 0.96 | E10: βunlev * (1 + D/E)
B11: Премия за риск инвестирования в акции (долларовая ставка) | C11: ERP (USD) | D11: 0.0594 | E11: A. Damodaran: Risk Premiums for Other Markets
B12: Премия за риск инвестирования в акции (рублевая ставка) | C12: ERP (RUB) | D12: =(1+D11)*(1+D16)/(1+D17)-1 -> 0.0790594382 | E12: (1+ERP)*(1+CPI(RUB))/(1+CPI(USD))-1
B13: Премия за размер | C13: SP | D13: 0.03 | E13: Допущение
B14: Премия за специфический риск компании (долларовая ставка) | C14: SRP | D14: 0 | E14: Допущение
B15: Стоимость собственного капитала в долларах США | C15: Ke (RUB) | D15: =D5+D10*D12+D13+D14 -> 0.2212970607 | E15: Rf + βrelev * ERP + SP + SRP
B16: Индекс потребительских цен, Российская Федерация | C16: CPI (RUB) | D16: =G42 -> 0.03790972959 | E16: Прогноз ВЭБ.РФ
B17: Индекс потребительских цен, США | C17: CPI (USD) | D17: =F42 -> 0.019 | E17: Прогноз ВЭБ.РФ
B18: Доналоговая стоимость долга | C18: Kd (RUB) | D18: =IFERROR( (SUMPRODUCT(Предпосылки!F222:F223,Предпосылки!F227:F228)+Предпосылки!F214*Предпосылки!F213) /SUM(Предпосылки!F227:F228,Предпосылки!F213), 0) -> 0 | E18: Долговое финансирование проекта, средневзвешенная ставка
B19: Ставка налога на прибыль | C19: t | D19: 0.2 | E19: Налоговый кодекс РФ
B20: Средневзвешенная стоимость капитала | C20: WACC (RUB) | D20: =D15*D9+(1-D19)*D18*D8 -> 0.2212970607 | E20: Ke (RUB) * We + (1 - t) * Kd (RUB) * Wd
A23: Справочная информация
B25: Коэффициент бета без учеты структуры капитала (unlevered beta) | E25: Премия за размер
B26: Источник: А. Дамодаран: Итоговые беты для отраслей (развивающиеся рынки) - обновление: 05.01.2023 | E26: Источник: Duff and Phelps, 2020 Valuation Handbook
B28: Industry Name | C28: Unlevered beta | E28: Размер компании | F28: Минимальная рыночная капитализация (млн. долл. США) | G28: Максимальная рыночная капитализация (млн. долл. США) | H28: Премия за размер
B29: Advertising | C29: 1.16 | E29: Крупные | F29: 13100 | G29: 1061355 | H29: 0
B30: Aerospace/Defense | C30: 1.02 | E30: Средние | F30: 2686 | G30: 13100 | H30: 0.008
B31: Air Transport | C31: 0.73 | E31: Малые | F31: 516 | G31: 2686 | H31: 0.0142
B32: Apparel | C32: 0.74 | E32: Микро | F32: 2 | G32: 516 | H32: 0.0316
B33: Auto & Truck | C33: 0.95
B34: Auto Parts | C34: 1.22
B35: Bank (Money Center) | C35: 0.32 | E35: Индкес потребительских цен (CPI)
B36: Banks (Regional) | C36: 0.17 | E36: Источник: прогноз ВЭБ.РФ
B37: Beverage (Alcoholic) | C37: 0.99 | K37: млн. руб.
B38: Beverage (Soft) | C38: 0.5 | F38: Индекс потребительских цен США, % дек. г/г | G38: Индекс потребительских цен, % дек/дек
B39: Broadcasting | C39: 0.93 | E39: 2023 | F39: 0.045 | G39: 0.06137113407 | K39: 985725 | L39: 79601625
B40: Brokerage & Investment Banking | C40: 0.36 | E40: 2024 | F40: 0.035 | G40: 0.04228494375 | K40: 201675 | L40: 982500
B41: Building Materials | C41: 0.97 | E41: 2025 | F41: 0.025 | G41: 0.04155975257 | K41: 38700 | L41: 201450
B42: Business & Consumer Services | C42: 0.89 | E42: 2026 | F42: 0.019 | G42: 0.03790972959 | K42: 150 | L42: 38700
B43: Cable TV | C43: 0.87 | E43: 2027 | F43: 0.019 | G43: 0.0377059204
B44: Chemical (Basic) | C44: 0.91 | E44: 2028 | F44: 0.019 | G44: 0.03705058003
B45: Chemical (Diversified) | C45: 0.96 | E45: 2029 | F45: 0.019 | G45: 0.03603635475
B46: Chemical (Specialty) | C46: 0.94 | E46: 2030 | F46: 0.019 | G46: 0.03508097711
B47: Coal & Related Energy | C47: 0.72 | E47: 2031 | F47: 0.019 | G47: 0.03489451402
B48: Computer Services | C48: 0.98 | E48: 2032 | F48: 0.019 | G48: 0.03425236918
B49: Computers/Peripherals | C49: 1.12 | E49: 2033 | F49: 0.019 | G49: 0.03405176695
B50: Construction Supplies | C50: 0.81 | E50: 2034 | F50: 0.019 | G50: 0.03372323542
B51: Diversified | C51: 0.49 | E51: 2035 | F51: 0.019 | G51: 0.03383928625
B52: Drugs (Biotechnology) | C52: 1.39 | E52: среднее значение | F52: =AVERAGE(F39:F51) -> 0.02269230769 | G52: =AVERAGE(G39:G51) -> 0.03844312031
B53: Drugs (Pharmaceutical) | C53: 0.86
B54: Education | C54: 0.7
B55: Electrical Equipment | C55: 0.9
B56: Electronics (Consumer & Office) | C56: 0.77
B57: Electronics (General) | C57: 1.11
B58: Engineering/Construction | C58: 0.51
B59: Entertainment | C59: 1.13
B60: Environmental & Waste Services | C60: 0.71
B61: Farming/Agriculture | C61: 0.58
B62: Financial Svcs. (Non-bank & Insurance) | C62: 0.37
B63: Food Processing | C63: 0.68
B64: Food Wholesalers | C64: 0.46
B65: Furn/Home Furnishings | C65: 0.94
B66: Green & Renewable Energy | C66: 0.7
B67: Healthcare Products | C67: 1.09
B68: Healthcare Support Services | C68: 0.74
B69: Heathcare Information and Technology | C69: 1.44
B70: Homebuilding | C70: 0.6
B71: Hospitals/Healthcare Facilities | C71: 0.59
B72: Hotel/Gaming | C72: 0.6
B73: Household Products | C73: 0.98
B74: Information Services | C74: 1.41
B75: Insurance (General) | C75: 0.4
B76: Insurance (Life) | C76: 0.56
B77: Insurance (Prop/Cas.) | C77: 0.57
B78: Investments & Asset Management | C78: 0.28
B79: Machinery | C79: 0.96
B80: Metals & Mining | C80: 1.04
B81: Office Equipment & Services | C81: 0.88
B82: Oil/Gas (Integrated) | C82: 0.87
B83: Oil/Gas (Production and Exploration) | C83: 1.09
B84: Oil/Gas Distribution | C84: 0.65
B85: Oilfield Svcs/Equip. | C85: 0.72
B86: Packaging & Container | C86: 0.67
B87: Paper/Forest Products | C87: 0.61
B88: Power | C88: 0.42
B89: Precious Metals | C89: 1.17
B90: Publishing & Newspapers | C90: 0.87
B91: R.E.I.T. | C91: 0.4
B92: Real Estate (Development) | C92: 0.4
B93: Real Estate (General/Diversified) | C93: 0.53
B94: Real Estate (Operations & Services) | C94: 0.62
B95: Recreation | C95: 0.75
B96: Reinsurance | C96: 0.81
B97: Restaurant/Dining | C97: 0.9
B98: Retail (Automotive) | C98: 0.58
B99: Retail (Building Supply) | C99: 0.7
B100: Retail (Distributors) | C100: 0.44
B101: Retail (General) | C101: 0.59
B102: Retail (Grocery and Food) | C102: 0.57
B103: Retail (Online) | C103: 1.71
B104: Retail (Special Lines) | C104: 0.86
B105: Rubber& Tires | C105: 0.88
B106: Semiconductor | C106: 1.57
B107: Semiconductor Equip | C107: 1.83
B108: Shipbuilding & Marine | C108: 0.81
B109: Shoe | C109: 0.81
B110: Software (Entertainment) | C110: 1.71
B111: Software (Internet) | C111: 0.98
B112: Software (System & Application) | C112: 1.34
B113: Steel | C113: 0.94
B114: Telecom (Wireless) | C114: 0.61
B115: Telecom. Equipment | C115: 1.11
B116: Telecom. Services | C116: 0.58
B117: Tobacco | C117: 0.56
B118: Transportation | C118: 0.7
B119: Transportation (Railroads) | C119: 0.86
B120: Trucking | C120: 0.69
B121: Utility (General) | C121: 0.53
B122: Utility (Water) | C122: 0.37
B123: Total Market | C123: 0.71
B124: Total Market (without financials) | C124: 0.83

Sheet Капитальные вложения
E1: ="Лист: " & RIGHT(CELL("filename",A1),LEN(CELL("filename",A1))-SEARCH("]",CELL("filename",A1))) -> Лист: Капитальные вложения | J1: Проверка: | L1: =IF(F13=AD43, "Верно", "Имеются некорректные данные") -> Верно
C2: Параметр | D2: Ед. изм. | E2: Источник | F2: Итоговое значение | H2: =Предпосылки!H2 -> 2023 | I2: =Предпосылки!I2 -> 2024 | J2: =Предпосылки!J2 -> 2025 | K2: =Предпосылки!K2 -> 2026 | L2: =Предпосылки!L2 -> 2027 | M2: =Предпосылки!M2 -> 2028 | N2: =Предпосылки!N2 -> 2029 | O2: =Предпосылки!O2 -> 2030 | P2: =Предпосылки!P2 -> 2031 | Q2: =Предпосылки!Q2 -> 2032 | R2: =Предпосылки!R2 -> 2033 | S2: =Предпосылки!S2 -> 2034 | T2: =Предпосылки!T2 -> 2035 | U2: =Предпосылки!U2 -> 2036 | V2: =Предпосылки!V2 -> 2037 | W2: =Предпосылки!W2 -> 2038 | X2: =Предпосылки!X2 -> 2039 | Y2: =Предпосылки!Y2 -> 2040 | Z2: =Предпосылки!Z2 -> 2041 | AA2: =Предпосылки!AA2 -> 2042 | AB2: =Предпосылки!AB2 -> 2043
H3: 1 | I3: 2 | J3: 3 | K3: 4 | L3: 5 | M3: 6 | N3: 7 | O3: 8 | P3: 9 | Q3: 10 | R3: 11 | S3: 12 | T3: 13 | U3: 14 | V3: 15 | W3: 16 | X3: 17 | Y3: 18 | Z3: 19 | AA3: 20 | AB3: 21
B5: Капитальные вложения (без НДС)
C7: Здания и сооружения | D7: тыс. руб. | F7: =SUM(H7:AA7) -> 0 | H7: =SUM(Предпосылки!H158,Предпосылки!H167) -> 0 | I7: =SUM(Предпосылки!I158,Предпосылки!I167) -> 0 | J7: =SUM(Предпосылки!J158,Предпосылки!J167) -> 0 | K7: =SUM(Предпосылки!K158,Предпосылки!K167) -> 0 | L7: =SUM(Предпосылки!L158,Предпосылки!L167) -> 0 | M7: =SUM(Предпосылки!M158,Предпосылки!M167) -> 0 | N7: =SUM(Предпосылки!N158,Предпосылки!N167) -> 0 | O7: =SUM(Предпосылки!O158,Предпосылки!O167) -> 0 | P7: =SUM(Предпосылки!P158,Предпосылки!P167) -> 0 | Q7: =SUM(Предпосылки!Q158,Предпосылки!Q167) -> 0 | R7: =SUM(Предпосылки!R158,Предпосылки!R167) -> 0 | S7: =SUM(Предпосылки!S158,Предпосылки!S167) -> 0 | T7: =SUM(Предпосылки!T158,Предпосылки!T167) -> 0 | U7: =SUM(Предпосылки!U158,Предпосылки!U167) -> 0 | V7: =SUM(Предпосылки!V158,Предпосылки!V167) -> 0 | W7: =SUM(Предпосылки!W158,Предпосылки!W167) -> 0 | X7: =SUM(Предпосылки!X158,Предпосылки!X167) -> 0 | Y7: =SUM(Предпосылки!Y158,Предпосылки!Y167) -> 0 | Z7: =SUM(Предпосылки!Z158,Предпосылки!Z167) -> 0 | AA7: =SUM(Предпосылки!AA158,Предпосылки!AA167) -> 0 | AB7: =SUM(Предпосылки!AB158,Предпосылки!AB167) -> 0
C8: Машины и оборудование | D8: тыс. руб. | F8: 0 | H8: =SUM(Предпосылки!H159,Предпосылки!H168) -> 0 | I8: =SUM(Предпосылки!I159,Предпосылки!I168) -> 0 | J8: =SUM(Предпосылки!J159,Предпосылки!J168) -> 0 | K8: =SUM(Предпосылки!K159,Предпосылки!K168) -> 0 | L8: =SUM(Предпосылки!L159,Предпосылки!L168) -> 0 | M8: =SUM(Предпосылки!M159,Предпосылки!M168) -> 0 | N8: =SUM(Предпосылки!N159,Предпосылки!N168) -> 0 | O8: =SUM(Предпосылки!O159,Предпосылки!O168) -> 0 | P8: =SUM(Предпосылки!P159,Предпосылки!P168) -> 0 | Q8: =SUM(Предпосылки!Q159,Предпосылки!Q168) -> 0 | R8: =SUM(Предпосылки!R159,Предпосылки!R168) -> 0 | S8: =SUM(Предпосылки!S159,Предпосылки!S168) -> 0 | T8: =SUM(Предпосылки!T159,Предпосылки!T168) -> 0 | U8: =SUM(Предпосылки!U159,Предпосылки!U168) -> 0 | V8: =SUM(Предпосылки!V159,Предпосылки!V168) -> 0 | W8: =SUM(Предпосылки!W159,Предпосылки!W168) -> 0 | X8: =SUM(Предпосылки!X159,Предпосылки!X168) -> 0 | Y8: =SUM(Предпосылки!Y159,Предпосылки!Y168) -> 0 | Z8: =SUM(Предпосылки!Z159,Предпосылки!Z168) -> 0 | AA8: =SUM(Предпосылки!AA159,Предпосылки!AA168) -> 0 | AB8: =SUM(Предпосылки!AB159,Предпосылки!AB168) -> 0
C9: Земля | D9: тыс. руб. | F9: 0 | H9: =SUM(Предпосылки!H160,Предпосылки!H169) -> 0 | I9: =SUM(Предпосылки!I160,Предпосылки!I169) -> 0 | J9: =SUM(Предпосылки!J160,Предпосылки!J169) -> 0 | K9: =SUM(Предпосылки!K160,Предпосылки!K169) -> 0 | L9: =SUM(Предпосылки!L160,Предпосылки!L169) -> 0 | M9: =SUM(Предпосылки!M160,Предпосылки!M169) -> 0 | N9: =SUM(Предпосылки!N160,Предпосылки!N169) -> 0 | O9: =SUM(Предпосылки!O160,Предпосылки!O169) -> 0 | P9: =SUM(Предпосылки!P160,Предпосылки!P169) -> 0 | Q9: =SUM(Предпосылки!Q160,Предпосылки!Q169) -> 0 | R9: =SUM(Предпосылки!R160,Предпосылки!R169) -> 0 | S9: =SUM(Предпосылки!S160,Предпосылки!S169) -> 0 | T9: =SUM(Предпосылки!T160,Предпосылки!T169) -> 0 | U9: =SUM(Предпосылки!U160,Предпосылки!U169) -> 0 | V9: =SUM(Предпосылки!V160,Предпосылки!V169) -> 0 | W9: =SUM(Предпосылки!W160,Предпосылки!W169) -> 0 | X9: =SUM(Предпосылки!X160,Предпосылки!X169) -> 0 | Y9: =SUM(Предпосылки!Y160,Предпосылки!Y169) -> 0 | Z9: =SUM(Предпосылки!Z160,Предпосылки!Z169) -> 0 | AA9: =SUM(Предпосылки!AA160,Предпосылки!AA169) -> 0 | AB9: =SUM(Предпосылки!AB160,Предпосылки!AB169) -> 0
C10: Транспортные средства | D10: тыс. руб. | F10: 0 | H10: =SUM(Предпосылки!H161,Предпосылки!H170) -> 0 | I10: =SUM(Предпосылки!I161,Предпосылки!I170) -> 0 | J10: =SUM(Предпосылки!J161,Предпосылки!J170) -> 0 | K10: =SUM(Предпосылки!K161,Предпосылки!K170) -> 0 | L10: =SUM(Предпосылки!L161,Предпосылки!L170) -> 0 | M10: =SUM(Предпосылки!M161,Предпосылки!M170) -> 0 | N10: =SUM(Предпосылки!N161,Предпосылки!N170) -> 0 | O10: =SUM(Предпосылки!O161,Предпосылки!O170) -> 0 | P10: =SUM(Предпосылки!P161,Предпосылки!P170) -> 0 | Q10: =SUM(Предпосылки!Q161,Предпосылки!Q170) -> 0 | R10: =SUM(Предпосылки!R161,Предпосылки!R170) -> 0 | S10: =SUM(Предпосылки!S161,Предпосылки!S170) -> 0 | T10: =SUM(Предпосылки!T161,Предпосылки!T170) -> 0 | U10: =SUM(Предпосылки!U161,Предпосылки!U170) -> 0 | V10: =SUM(Предпосылки!V161,Предпосылки!V170) -> 0 | W10: =SUM(Предпосылки!W161,Предпосылки!W170) -> 0 | X10: =SUM(Предпосылки!X161,Предпосылки!X170) -> 0 | Y10: =SUM(Предпосылки!Y161,Предпосылки!Y170) -> 0 | Z10: =SUM(Предпосылки!Z161,Предпосылки!Z170) -> 0 | AA10: =SUM(Предпосылки!AA161,Предпосылки!AA170) -> 0 | AB10: =SUM(Предпосылки!AB161,Предпосылки!AB170) -> 0
C11: Нематериальные активы с определенным СПИ | D11: тыс. руб. | F11: 0 | H11: =SUM(Предпосылки!H162,Предпосылки!H171) -> 0 | I11: =SUM(Предпосылки!I162,Предпосылки!I171) -> 0 | J11: =SUM(Предпосылки!J162,Предпосылки!J171) -> 0 | K11: =SUM(Предпосылки!K162,Предпосылки!K171) -> 0 | L11: =SUM(Предпосылки!L162,Предпосылки!L171) -> 0 | M11: =SUM(Предпосылки!M162,Предпосылки!M171) -> 0 | N11: =SUM(Предпосылки!N162,Предпосылки!N171) -> 0 | O11: =SUM(Предпосылки!O162,Предпосылки!O171) -> 0 | P11: =SUM(Предпосылки!P162,Предпосылки!P171) -> 0 | Q11: =SUM(Предпосылки!Q162,Предпосылки!Q171) -> 0 | R11: =SUM(Предпосылки!R162,Предпосылки!R171) -> 0 | S11: =SUM(Предпосылки!S162,Предпосылки!S171) -> 0 | T11: =SUM(Предпосылки!T162,Предпосылки!T171) -> 0 | U11: =SUM(Предпосылки!U162,Предпосылки!U171) -> 0 | V11: =SUM(Предпосылки!V162,Предпосылки!V171) -> 0 | W11: =SUM(Предпосылки!W162,Предпосылки!W171) -> 0 | X11: =SUM(Предпосылки!X162,Предпосылки!X171) -> 0 | Y11: =SUM(Предпосылки!Y162,Предпосылки!Y171) -> 0 | Z11: =SUM(Предпосылки!Z162,Предпосылки!Z171) -> 0 | AA11: =SUM(Предпосылки!AA162,Предпосылки!AA171) -> 0 | AB11: =SUM(Предпосылки!AB162,Предпосылки!AB171) -> 0
C12: Нематериальные активы с неопределенным СПИ (не амортизируются) | D12: тыс. руб. | F12: 0 | H12: =SUM(Предпосылки!H163,Предпосылки!H172) -> 0 | I12: =SUM(Предпосылки!I163,Предпосылки!I172) -> 0 | J12: =SUM(Предпосылки!J163,Предпосылки!J172) -> 0 | K12: =SUM(Предпосылки!K163,Предпосылки!K172) -> 0 | L12: =SUM(Предпосылки!L163,Предпосылки!L172) -> 0 | M12: =SUM(Предпосылки!M163,Предпосылки!M172) -> 0 | N12: =SUM(Предпосылки!N163,Предпосылки!N172) -> 0 | O12: =SUM(Предпосылки!O163,Предпосылки!O172) -> 0 | P12: =SUM(Предпосылки!P163,Предпосылки!P172) -> 0 | Q12: =SUM(Предпосылки!Q163,Предпосылки!Q172) -> 0 | R12: =SUM(Предпосылки!R163,Предпосылки!R172) -> 0 | S12: =SUM(Предпосылки!S163,Предпосылки!S172) -> 0 | T12: =SUM(Предпосылки!T163,Предпосылки!T172) -> 0 | U12: =SUM(Предпосылки!U163,Предпосылки!U172) -> 0 | V12: =SUM(Предпосылки!V163,Предпосылки!V172) -> 0 | W12: =SUM(Предпосылки!W163,Предпосылки!W172) -> 0 | X12: =SUM(Предпосылки!X163,Предпосылки!X172) -> 0 | Y12: =SUM(Предпосылки!Y163,Предпосылки!Y172) -> 0 | Z12: =SUM(Предпосылки!Z163,Предпосылки!Z172) -> 0 | AA12: =SUM(Предпосылки!AA163,Предпосылки!AA172) -> 0 | AB12: =SUM(Предпосылки!AB163,Предпосылки!AB172) -> 0
C13: Итого | D13: тыс. руб. | F13: =SUM(F7:F12) -> 0 | H13: =SUM(H7:H12) -> 0 | I13: 0 | J13: 0 | K13: 0 | L13: 0 | M13: 0 | N13: 0 | O13: 0 | P13: 0 | Q13: 0 | R13: 0 | S13: 0 | T13: 0 | U13: 0 | V13: 0 | W13: 0 | X13: 0 | Y13: 0 | Z13: 0 | AA13: 0 | AB13: 0
B15: Капитальные вложения (с НДС)
C17: Здания и сооружения | D17: тыс. руб. | F17: =SUM(H17:AA17) -> 0 | H17: =H7*(One+НДС_общая) -> 0 | I17: 0 | J17: 0 | K17: 0 | L17: 0 | M17: 0 | N17: 0 | O17: 0 | P17: 0 | Q17: 0 | R17: 0 | S17: 0 | T17: 0 | U17: 0 | V17: 0 | W17: 0 | X17: 0 | Y17: 0 | Z17: 0 | AA17: 0 | AB17: 0
C18: Машины и оборудование | D18: тыс. руб. | F18: 0 | H18: =H8*(One+НДС_общая) -> 0 | I18: 0 | J18: 0 | K18: 0 | L18: 0 | M18: 0 | N18: 0 | O18: 0 | P18: 0 | Q18: 0 | R18: 0 | S18: 0 | T18: 0 | U18: 0 | V18: 0 | W18: 0 | X18: 0 | Y18: 0 | Z18: 0 | AA18: 0 | AB18: 0
C19: Земля | D19: тыс. руб. | F19: 0 | H19: =H9*(One+НДС_общая) -> 0 | I19: 0 | J19: 0 | K19: 0 | L19: 0 | M19: 0 | N19: 0 | O19: 0 | P19: 0 | Q19: 0 | R19: 0 | S19: 0 | T19: 0 | U19: 0 | V19: 0 | W19: 0 | X19: 0 | Y19: 0 | Z19: 0 | AA19: 0 | AB19: 0
C20: Транспортные средства | D20: тыс. руб. | F20: 0 | H20: =H10*(One+НДС_общая) -> 0 | I20: 0 | J20: 0 | K20: 0 | L20: 0 | M20: 0 | N20: 0 | O20: 0 | P20: 0 | Q20: 0 | R20: 0 | S20: 0 | T20: 0 | U20: 0 | V20: 0 | W20: 0 | X20: 0 | Y20: 0 | Z20: 0 | AA20: 0 | AB20: 0
C21: Нематериальные активы с определенным СПИ | D21: тыс. руб. | F21: 0 | H21: =H11*(One+НДС_общая) -> 0 | I21: 0 | J21: 0 | K21: 0 | L21: 0 | M21: 0 | N21: 0 | O21: 0 | P21: 0 | Q21: 0 | R21: 0 | S21: 0 | T21: 0 | U21: 0 | V21: 0 | W21: 0 | X21: 0 | Y21: 0 | Z21: 0 | AA21: 0 | AB21: 0
C22: Нематериальные активы с неопределенным СПИ (не амортизируются) | D22: тыс. руб. | F22: 0 | H22: =H12 -> 0 | I22: =I12 -> 0 | J22: 0 | K22: 0 | L22: 0 | M22: 0 | N22: 0 | O22: 0 | P22: 0 | Q22: 0 | R22: 0 | S22: 0 | T22: 0 | U22: 0 | V22: 0 | W22: 0 | X22: 0 | Y22: 0 | Z22: 0 | AA22: 0 | AB22: 0
C23: Итого | D23: тыс. руб. | F23: =SUM(F17:F22) -> 0 | H23: =SUM(H17:H22) -> 0 | I23: 0 | J23: 0 | K23: 0 | L23: 0 | M23: 0 | N23: 0 | O23: 0 | P23: 0 | Q23: 0 | R23: 0 | S23: 0 | T23: 0 | U23: 0 | V23: 0 | W23: 0 | X23: 0 | Y23: 0 | Z23: 0 | AA23: 0 | AB23: 0
B25: Расчеты по капитальным вложениям
C27: Оплата капитальных вложений | D27: тыс. руб. | F27: =SUM(H27:AA27) -> 0 | H27: =H23*Предпосылки!$F$368 -> 0 | I27: =I23*Предпосылки!$F$368 -> 0 | J27: =J23*Предпосылки!$F$368 -> 0 | K27: =K23*Предпосылки!$F$368 -> 0 | L27: =L23*Предпосылки!$F$368 -> 0 | M27: =M23*Предпосылки!$F$368 -> 0 | N27: =N23*Предпосылки!$F$368 -> 0 | O27: =O23*Предпосылки!$F$368 -> 0 | P27: =P23*Предпосылки!$F$368 -> 0 | Q27: =Q23*Предпосылки!$F$368 -> 0 | R27: =R23*Предпосылки!$F$368 -> 0 | S27: =S23*Предпосылки!$F$368 -> 0 | T27: =T23*Предпосылки!$F$368 -> 0 | U27: =U23*Предпосылки!$F$368 -> 0 | V27: =V23*Предпосылки!$F$368 -> 0 | W27: =W23*Предпосылки!$F$368 -> 0 | X27: =X23*Предпосылки!$F$368 -> 0 | Y27: =Y23*Предпосылки!$F$368 -> 0 | Z27: =Z23*Предпосылки!$F$368 -> 0 | AA27: =AA23*Предпосылки!$F$368 -> 0 | AB27: =AB23*Предпосылки!$F$368 -> 0
B29: Входящий НДС по капитальным вложениям
C31: Входящий НДС по капитальным вложениям | D31: тыс. руб. | H31: =H23-H13 -> 0 | I31: =I23-I13 -> 0 | J31: 0 | K31: 0 | L31: 0 | M31: 0 | N31: 0 | O31: 0 | P31: 0 | Q31: 0 | R31: 0 | S31: 0 | T31: 0 | U31: 0 | V31: 0 | W31: 0 | X31: 0 | Y31: 0 | Z31: 0 | AA31: 0 | AB31: 0
B33: Расчет амортизации
B35: Принятие объектов капитальных вложений на баланс (без НДС)
C37: Здания и сооружения | D37: тыс. руб. | H37: =Предпосылки!H176 -> 0 | I37: =Предпосылки!I176 -> 0 | J37: =Предпосылки!J176 -> 0 | K37: =Предпосылки!K176 -> 0 | L37: =Предпосылки!L176 -> 0 | M37: =Предпосылки!M176 -> 0 | N37: =Предпосылки!N176 -> 0 | O37: =Предпосылки!O176 -> 0 | P37: =Предпосылки!P176 -> 0 | Q37: =Предпосылки!Q176 -> 0 | R37: =Предпосылки!R176 -> 0 | S37: =Предпосылки!S176 -> 0 | T37: =Предпосылки!T176 -> 0 | U37: =Предпосылки!U176 -> 0 | V37: =Предпосылки!V176 -> 0 | W37: =Предпосылки!W176 -> 0 | X37: =Предпосылки!X176 -> 0 | Y37: =Предпосылки!Y176 -> 0 | Z37: =Предпосылки!Z176 -> 0 | AA37: =Предпосылки!AA176 -> 0 | AB37: =Предпосылки!AB176 -> 0 | AD37: =SUM(H37:AA37) -> 0
C38: Машины и оборудование | D38: тыс. руб. | H38: =Предпосылки!H177 -> 0 | I38: =Предпосылки!I177 -> 0 | J38: =Предпосылки!J177 -> 0 | K38: =Предпосылки!K177 -> 0 | L38: =Предпосылки!L177 -> 0 | M38: =Предпосылки!M177 -> 0 | N38: =Предпосылки!N177 -> 0 | O38: =Предпосылки!O177 -> 0 | P38: =Предпосылки!P177 -> 0 | Q38: =Предпосылки!Q177 -> 0 | R38: =Предпосылки!R177 -> 0 | S38: =Предпосылки!S177 -> 0 | T38: =Предпосылки!T177 -> 0 | U38: =Предпосылки!U177 -> 0 | V38: =Предпосылки!V177 -> 0 | W38: =Предпосылки!W177 -> 0 | X38: =Предпосылки!X177 -> 0 | Y38: =Предпосылки!Y177 -> 0 | Z38: =Предпосылки!Z177 -> 0 | AA38: =Предпосылки!AA177 -> 0 | AB38: =Предпосылки!AB177 -> 0 | AD38: =SUM(H38:AA38) -> 0
C39: Земля | D39: тыс. руб. | H39: =Предпосылки!H178 -> 0 | I39: =Предпосылки!I178 -> 0 | J39: =Предпосылки!J178 -> 0 | K39: =Предпосылки!K178 -> 0 | L39: =Предпосылки!L178 -> 0 | M39: =Предпосылки!M178 -> 0 | N39: =Предпосылки!N178 -> 0 | O39: =Предпосылки!O178 -> 0 | P39: =Предпосылки!P178 -> 0 | Q39: =Предпосылки!Q178 -> 0 | R39: =Предпосылки!R178 -> 0 | S39: =Предпосылки!S178 -> 0 | T39: =Предпосылки!T178 -> 0 | U39: =Предпосылки!U178 -> 0 | V39: =Предпосылки!V178 -> 0 | W39: =Предпосылки!W178 -> 0 | X39: =Предпосылки!X178 -> 0 | Y39: =Предпосылки!Y178 -> 0 | Z39: =Предпосылки!Z178 -> 0 | AA39: =Предпосылки!AA178 -> 0 | AB39: =Предпосылки!AB178 -> 0 | AD39: 0
C40: Транспортные средства | D40: тыс. руб. | H40: =Предпосылки!H179 -> 0 | I40: =Предпосылки!I179 -> 0 | J40: =Предпосылки!J179 -> 0 | K40: =Предпосылки!K179 -> 0 | L40: =Предпосылки!L179 -> 0 | M40: =Предпосылки!M179 -> 0 | N40: =Предпосылки!N179 -> 0 | O40: =Предпосылки!O179 -> 0 | P40: =Предпосылки!P179 -> 0 | Q40: =Предпосылки!Q179 -> 0 | R40: =Предпосылки!R179 -> 0 | S40: =Предпосылки!S179 -> 0 | T40: =Предпосылки!T179 -> 0 | U40: =Предпосылки!U179 -> 0 | V40: =Предпосылки!V179 -> 0 | W40: =Предпосылки!W179 -> 0 | X40: =Предпосылки!X179 -> 0 | Y40: =Предпосылки!Y179 -> 0 | Z40: =Предпосылки!Z179 -> 0 | AA40: =Предпосылки!AA179 -> 0 | AB40: =Предпосылки!AB179 -> 0 | AD40: 0
C41: Нематериальные активы с определенным СПИ | D41: тыс. руб. | H41: =Предпосылки!H180 -> 0 | I41: =Предпосылки!I180 -> 0 | J41: =Предпосылки!J180 -> 0 | K41: =Предпосылки!K180 -> 0 | L41: =Предпосылки!L180 -> 0 | M41: =Предпосылки!M180 -> 0 | N41: =Предпосылки!N180 -> 0 | O41: =Предпосылки!O180 -> 0 | P41: =Предпосылки!P180 -> 0 | Q41: =Предпосылки!Q180 -> 0 | R41: =Предпосылки!R180 -> 0 | S41: =Предпосылки!S180 -> 0 | T41: =Предпосылки!T180 -> 0 | U41: =Предпосылки!U180 -> 0 | V41: =Предпосылки!V180 -> 0 | W41: =Предпосылки!W180 -> 0 | X41: =Предпосылки!X180 -> 0 | Y41: =Предпосылки!Y180 -> 0 | Z41: =Предпосылки!Z180 -> 0 | AA41: =Предпосылки!AA180 -> 0 | AB41: =Предпосылки!AB180 -> 0 | AD41: 0
C42: Нематериальные активы с неопределенным СПИ (не амортизируются) | D42: тыс. руб. | H42: =Предпосылки!H181 -> 0 | I42: =Предпосылки!I181 -> 0 | J42: =Предпосылки!J181 -> 0 | K42: =Предпосылки!K181 -> 0 | L42: =Предпосылки!L181 -> 0 | M42: =Предпосылки!M181 -> 0 | N42: =Предпосылки!N181 -> 0 | O42: =Предпосылки!O181 -> 0 | P42: =Предпосылки!P181 -> 0 | Q42: =Предпосылки!Q181 -> 0 | R42: =Предпосылки!R181 -> 0 | S42: =Предпосылки!S181 -> 0 | T42: =Предпосылки!T181 -> 0 | U42: =Предпосылки!U181 -> 0 | V42: =Предпосылки!V181 -> 0 | W42: =Предпосылки!W181 -> 0 | X42: =Предпосылки!X181 -> 0 | Y42: =Предпосылки!Y181 -> 0 | Z42: =Предпосылки!Z181 -> 0 | AA42: =Предпосылки!AA181 -> 0 | AB42: =Предпосылки!AB181 -> 0 | AD42: 0
C43: Итого | D43: тыс. руб. | H43: =SUM(H37:H42) -> 0 | I43: 0 | J43: 0 | K43: 0 | L43: 0 | M43: 0 | N43: 0 | O43: 0 | P43: 0 | Q43: 0 | R43: 0 | S43: 0 | T43: 0 | U43: 0 | V43: 0 | W43: 0 | X43: 0 | Y43: 0 | Z43: 0 | AA43: 0 | AB43: 0 | AD43: =SUM(AD37:AD42) -> 0
B45: Расчет незавершенного производства
C46: Незавершенное производство на начало периода | D46: тыс. руб. | H46: =G49 -> 0 | I46: =H49 -> 0 | J46: 0 | K46: 0 | L46: 0 | M46: 0 | N46: 0 | O46: 0 | P46: 0 | Q46: 0 | R46: 0 | S46: 0 | T46: 0 | U46: 0 | V46: 0 | W46: 0 | X46: 0 | Y46: 0 | Z46: 0 | AA46: 0 | AB46: 0
C47: Поступление | D47: тыс. руб. | H47: =H13 -> 0 | I47: =I13 -> 0 | J47: 0 | K47: 0 | L47: 0 | M47: 0 | N47: 0 | O47: 0 | P47: 0 | Q47: 0 | R47: 0 | S47: 0 | T47: 0 | U47: 0 | V47: 0 | W47: 0 | X47: 0 | Y47: 0 | Z47: 0 | AA47: 0 | AB47: 0
C48: Перевод в основные средства (-) | D48: тыс. руб. | H48: =-Предпосылки!H182 -> 0 | I48: =-Предпосылки!I182 -> 0 | J48: =-Предпосылки!J182 -> 0 | K48: =-Предпосылки!K182 -> 0 | L48: =-Предпосылки!L182 -> 0 | M48: =-Предпосылки!M182 -> 0 | N48: =-Предпосылки!N182 -> 0 | O48: =-Предпосылки!O182 -> 0 | P48: =-Предпосылки!P182 -> 0 | Q48: =-Предпосылки!Q182 -> 0 | R48: =-Предпосылки!R182 -> 0 | S48: =-Предпосылки!S182 -> 0 | T48: =-Предпосылки!T182 -> 0 | U48: =-Предпосылки!U182 -> 0 | V48: =-Предпосылки!V182 -> 0 | W48: =-Предпосылки!W182 -> 0 | X48: =-Предпосылки!X182 -> 0 | Y48: =-Предпосылки!Y182 -> 0 | Z48: =-Предпосылки!Z182 -> 0 | AA48: =-Предпосылки!AA182 -> 0 | AB48: =-Предпосылки!AB182 -> 0
C49: Незавершенное производство на конец периода | D49: тыс. руб. | H49: =SUM(H46:H48) -> 0 | I49: 0 | J49: 0 | K49: 0 | L49: 0 | M49: 0 | N49: 0 | O49: 0 | P49: 0 | Q49: 0 | R49: 0 | S49: 0 | T49: 0 | U49: 0 | V49: 0 | W49: 0 | X49: 0 | Y49: 0 | Z49: 0 | AA49: 0 | AB49: 0
B51: Итоговая амортизация за период | D51: тыс. руб. | H51: =SUM(H59,H90,H121,H152) -> 0 | I51: =SUM(I59,I90,I121,I152) -> 0 | J51: 0 | K51: 0 | L51: 0 | M51: 0 | N51: 0 | O51: 0 | P51: 0 | Q51: 0 | R51: 0 | S51: 0 | T51: 0 | U51: 0 | V51: 0 | W51: 0 | X51: 0 | Y51: 0 | Z51: 0 | AA51: 0 | AB51: 0
C52: Итоговая амортизация производственных активов | D52: тыс. руб. | H52: =H51 -> 0 | I52: =I51 -> 0 | J52: 0 | K52: 0 | L52: 0 | M52: 0 | N52: 0 | O52: 0 | P52: 0 | Q52: 0 | R52: 0 | S52: 0 | T52: 0 | U52: 0 | V52: 0 | W52: 0 | X52: 0 | Y52: 0 | Z52: 0 | AA52: 0 | AB52: 0
C53: Итоговая амортизация активов, напрямую не участвующих в производстве продукции (амортизация, относимая на сч. 26 "Общехозяйственные расходы") | D53: тыс. руб. | H53: =H51-H52 -> 0 | I53: =I51-I52 -> 0 | J53: 0 | K53: 0 | L53: 0 | M53: 0 | N53: 0 | O53: 0 | P53: 0 | Q53: 0 | R53: 0 | S53: 0 | T53: 0 | U53: 0 | V53: =V51-V52 -> 0 | W53: =W51-W52 -> 0 | X53: 0 | Y53: 0 | Z53: 0 | AA53: 0 | AB53: 0
B55: Здания и сооружения
C57: Ставка амортизации | D57: % | F57: =Предпосылки!F191 -> 0.05
C59: Амортизация | D59: тыс. руб. | H59: =SUM(H60:H79) -> 0 | I59: =SUM(I60:I79) -> 0 | J59: 0 | K59: 0 | L59: 0 | M59: 0 | N59: 0 | O59: 0 | P59: 0 | Q59: 0 | R59: 0 | S59: 0 | T59: 0 | U59: 0 | V59: 0 | W59: 0 | X59: 0 | Y59: 0 | Z59: 0 | AA59: 0 | AB59: 0
C60: =INDEX(H$2:AA$2,,$E60) -> 2023 | D60: тыс. руб. | E60: 1 | F60: =OFFSET($G$37,,E60) -> 0 | H60: =IF($C60>H$2,0,IF($C60=H$2,0.5,1)*MIN($F60*$F$57,$F60-SUM($G60:G60))) -> 0 | I60: =IF($C60>I$2,0,IF($C60=I$2,0.5,1)*MIN($F60*$F$57,$F60-SUM($G60:H60))) -> 0 | J60: =IF($C60>J$2,0,IF($C60=J$2,0.5,1)*MIN($F60*$F$57,$F60-SUM($G60:I60))) -> 0 | K60: =IF($C60>K$2,0,IF($C60=K$2,0.5,1)*MIN($F60*$F$57,$F60-SUM($G60:J60))) -> 0 | L60: =IF($C60>L$2,0,IF($C60=L$2,0.5,1)*MIN($F60*$F$57,$F60-SUM($G60:K60))) -> 0 | M60: =IF($C60>M$2,0,IF($C60=M$2,0.5,1)*MIN($F60*$F$57,$F60-SUM($G60:L60))) -> 0 | N60: =IF($C60>N$2,0,IF($C60=N$2,0.5,1)*MIN($F60*$F$57,$F60-SUM($G60:M60))) -> 0 | O60: =IF($C60>O$2,0,IF($C60=O$2,0.5,1)*MIN($F60*$F$57,$F60-SUM($G60:N60))) -> 0 | P60: =IF($C60>P$2,0,IF($C60=P$2,0.5,1)*MIN($F60*$F$57,$F60-SUM($G60:O60))) -> 0 | Q60: =IF($C60>Q$2,0,IF($C60=Q$2,0.5,1)*MIN($F60*$F$57,$F60-SUM($G60:P60))) -> 0 | R60: =IF($C60>R$2,0,IF($C60=R$2,0.5,1)*MIN($F60*$F$57,$F60-SUM($G60:Q60))) -> 0 | S60: =IF($C60>S$2,0,IF($C60=S$2,0.5,1)*MIN($F60*$F$57,$F60-SUM($G60:R60))) -> 0 | T60: =IF($C60>T$2,0,IF($C60=T$2,0.5,1)*MIN($F60*$F$57,$F60-SUM($G60:S60))) -> 0 | U60: =IF($C60>U$2,0,IF($C60=U$2,0.5,1)*MIN($F60*$F$57,$F60-SUM($G60:T60))) -> 0 | V60: =IF($C60>V$2,0,IF($C60=V$2,0.5,1)*MIN($F60*$F$57,$F60-SUM($G60:U60))) -> 0 | W60: =IF($C60>W$2,0,IF($C60=W$2,0.5,1)*MIN($F60*$F$57,$F60-SUM($G60:V60))) -> 0 | X60: =IF($C60>X$2,0,IF($C60=X$2,0.5,1)*MIN($F60*$F$57,$F60-SUM($G60:W60))) -> 0 | Y60: =IF($C60>Y$2,0,IF($C60=Y$2,0.5,1)*MIN($F60*$F$57,$F60-SUM($G60:X60))) -> 0 | Z60: =IF($C60>Z$2,0,IF($C60=Z$2,0.5,1)*MIN($F60*$F$57,$F60-SUM($G60:Y60))) -> 0 | AA60: =IF($C60>AA$2,0,IF($C60=AA$2,0.5,1)*MIN($F60*$F$57,$F60-SUM($G60:Z60))) -> 0 | AB60: =IF($C60>AB$2,0,IF($C60=AB$2,0.5,1)*MIN($F60*$F$57,$F60-SUM($G60:AA60))) -> 0
C61: =INDEX(H$2:AA$2,,$E61) -> 2024 | D61: тыс. руб. | E61: 2 | F61: =OFFSET($G$37,,E61) -> 0 | H61: =IF($C61>H$2,0,IF($C61=H$2,0.5,1)*MIN($F61*$F$57,$F61-SUM($G61:G61))) -> 0 | I61: =IF($C61>I$2,0,IF($C61=I$2,0.5,1)*MIN($F61*$F$57,$F61-SUM($G61:H61))) -> 0 | J61: =IF($C61>J$2,0,IF($C61=J$2,0.5,1)*MIN($F61*$F$57,$F61-SUM($G61:I61))) -> 0 | K61: =IF($C61>K$2,0,IF($C61=K$2,0.5,1)*MIN($F61*$F$57,$F61-SUM($G61:J61))) -> 0 | L61: =IF($C61>L$2,0,IF($C61=L$2,0.5,1)*MIN($F61*$F$57,$F61-SUM($G61:K61))) -> 0 | M61: =IF($C61>M$2,0,IF($C61=M$2,0.5,1)*MIN($F61*$F$57,$F61-SUM($G61:L61))) -> 0 | N61: =IF($C61>N$2,0,IF($C61=N$2,0.5,1)*MIN($F61*$F$57,$F61-SUM($G61:M61))) -> 0 | O61: =IF($C61>O$2,0,IF($C61=O$2,0.5,1)*MIN($F61*$F$57,$F61-SUM($G61:N61))) -> 0 | P61: =IF($C61>P$2,0,IF($C61=P$2,0.5,1)*MIN($F61*$F$57,$F61-SUM($G61:O61))) -> 0 | Q61: =IF($C61>Q$2,0,IF($C61=Q$2,0.5,1)*MIN($F61*$F$57,$F61-SUM($G61:P61))) -> 0 | R61: =IF($C61>R$2,0,IF($C61=R$2,0.5,1)*MIN($F61*$F$57,$F61-SUM($G61:Q61))) -> 0 | S61: =IF($C61>S$2,0,IF($C61=S$2,0.5,1)*MIN($F61*$F$57,$F61-SUM($G61:R61))) -> 0 | T61: =IF($C61>T$2,0,IF($C61=T$2,0.5,1)*MIN($F61*$F$57,$F61-SUM($G61:S61))) -> 0 | U61: =IF($C61>U$2,0,IF($C61=U$2,0.5,1)*MIN($F61*$F$57,$F61-SUM($G61:T61))) -> 0 | V61: =IF($C61>V$2,0,IF($C61=V$2,0.5,1)*MIN($F61*$F$57,$F61-SUM($G61:U61))) -> 0 | W61: =IF($C61>W$2,0,IF($C61=W$2,0.5,1)*MIN($F61*$F$57,$F61-SUM($G61:V61))) -> 0 | X61: =IF($C61>X$2,0,IF($C61=X$2,0.5,1)*MIN($F61*$F$57,$F61-SUM($G61:W61))) -> 0 | Y61: =IF($C61>Y$2,0,IF($C61=Y$2,0.5,1)*MIN($F61*$F$57,$F61-SUM($G61:X61))) -> 0 | Z61: =IF($C61>Z$2,0,IF($C61=Z$2,0.5,1)*MIN($F61*$F$57,$F61-SUM($G61:Y61))) -> 0 | AA61: =IF($C61>AA$2,0,IF($C61=AA$2,0.5,1)*MIN($F61*$F$57,$F61-SUM($G61:Z61))) -> 0 | AB61: =IF($C61>AB$2,0,IF($C61=AB$2,0.5,1)*MIN($F61*$F$57,$F61-SUM($G61:AA61))) -> 0
C62: 2025 | D62: тыс. руб. | E62: 3 | F62: 0 | H62: =IF($C62>H$2,0,IF($C62=H$2,0.5,1)*MIN($F62*$F$57,$F62-SUM($G62:G62))) -> 0 | I62: =IF($C62>I$2,0,IF($C62=I$2,0.5,1)*MIN($F62*$F$57,$F62-SUM($G62:H62))) -> 0 | J62: =IF($C62>J$2,0,IF($C62=J$2,0.5,1)*MIN($F62*$F$57,$F62-SUM($G62:I62))) -> 0 | K62: =IF($C62>K$2,0,IF($C62=K$2,0.5,1)*MIN($F62*$F$57,$F62-SUM($G62:J62))) -> 0 | L62: =IF($C62>L$2,0,IF($C62=L$2,0.5,1)*MIN($F62*$F$57,$F62-SUM($G62:K62))) -> 0 | M62: =IF($C62>M$2,0,IF($C62=M$2,0.5,1)*MIN($F62*$F$57,$F62-SUM($G62:L62))) -> 0 | N62: =IF($C62>N$2,0,IF($C62=N$2,0.5,1)*MIN($F62*$F$57,$F62-SUM($G62:M62))) -> 0 | O62: =IF($C62>O$2,0,IF($C62=O$2,0.5,1)*MIN($F62*$F$57,$F62-SUM($G62:N62))) -> 0 | P62: =IF($C62>P$2,0,IF($C62=P$2,0.5,1)*MIN($F62*$F$57,$F62-SUM($G62:O62))) -> 0 | Q62: =IF($C62>Q$2,0,IF($C62=Q$2,0.5,1)*MIN($F62*$F$57,$F62-SUM($G62:P62))) -> 0 | R62: =IF($C62>R$2,0,IF($C62=R$2,0.5,1)*MIN($F62*$F$57,$F62-SUM($G62:Q62))) -> 0 | S62: =IF($C62>S$2,0,IF($C62=S$2,0.5,1)*MIN($F62*$F$57,$F62-SUM($G62:R62))) -> 0 | T62: =IF($C62>T$2,0,IF($C62=T$2,0.5,1)*MIN($F62*$F$57,$F62-SUM($G62:S62))) -> 0 | U62: =IF($C62>U$2,0,IF($C62=U$2,0.5,1)*MIN($F62*$F$57,$F62-SUM($G62:T62))) -> 0 | V62: =IF($C62>V$2,0,IF($C62=V$2,0.5,1)*MIN($F62*$F$57,$F62-SUM($G62:U62))) -> 0 | W62: =IF($C62>W$2,0,IF($C62=W$2,0.5,1)*MIN($F62*$F$57,$F62-SUM($G62:V62))) -> 0 | X62: =IF($C62>X$2,0,IF($C62=X$2,0.5,1)*MIN($F62*$F$57,$F62-SUM($G62:W62))) -> 0 | Y62: =IF($C62>Y$2,0,IF($C62=Y$2,0.5,1)*MIN($F62*$F$57,$F62-SUM($G62:X62))) -> 0 | Z62: =IF($C62>Z$2,0,IF($C62=Z$2,0.5,1)*MIN($F62*$F$57,$F62-SUM($G62:Y62))) -> 0 | AA62: =IF($C62>AA$2,0,IF($C62=AA$2,0.5,1)*MIN($F62*$F$57,$F62-SUM($G62:Z62))) -> 0 | AB62: =IF($C62>AB$2,0,IF($C62=AB$2,0.5,1)*MIN($F62*$F$57,$F62-SUM($G62:AA62))) -> 0
C63: 2026 | D63: тыс. руб. | E63: 4 | F63: 0 | H63: =IF($C63>H$2,0,IF($C63=H$2,0.5,1)*MIN($F63*$F$57,$F63-SUM($G63:G63))) -> 0 | I63: =IF($C63>I$2,0,IF($C63=I$2,0.5,1)*MIN($F63*$F$57,$F63-SUM($G63:H63))) -> 0 | J63: =IF($C63>J$2,0,IF($C63=J$2,0.5,1)*MIN($F63*$F$57,$F63-SUM($G63:I63))) -> 0 | K63: =IF($C63>K$2,0,IF($C63=K$2,0.5,1)*MIN($F63*$F$57,$F63-SUM($G63:J63))) -> 0 | L63: =IF($C63>L$2,0,IF($C63=L$2,0.5,1)*MIN($F63*$F$57,$F63-SUM($G63:K63))) -> 0 | M63: =IF($C63>M$2,0,IF($C63=M$2,0.5,1)*MIN($F63*$F$57,$F63-SUM($G63:L63))) -> 0 | N63: =IF($C63>N$2,0,IF($C63=N$2,0.5,1)*MIN($F63*$F$57,$F63-SUM($G63:M63))) -> 0 | O63: =IF($C63>O$2,0,IF($C63=O$2,0.5,1)*MIN($F63*$F$57,$F63-SUM($G63:N63))) -> 0 | P63: =IF($C63>P$2,0,IF($C63=P$2,0.5,1)*MIN($F63*$F$57,$F63-SUM($G63:O63))) -> 0 | Q63: =IF($C63>Q$2,0,IF($C63=Q$2,0.5,1)*MIN($F63*$F$57,$F63-SUM($G63:P63))) -> 0 | R63: =IF($C63>R$2,0,IF($C63=R$2,0.5,1)*MIN($F63*$F$57,$F63-SUM($G63:Q63))) -> 0 | S63: =IF($C63>S$2,0,IF($C63=S$2,0.5,1)*MIN($F63*$F$57,$F63-SUM($G63:R63))) -> 0 | T63: =IF($C63>T$2,0,IF($C63=T$2,0.5,1)*MIN($F63*$F$57,$F63-SUM($G63:S63))) -> 0 | U63: =IF($C63>U$2,0,IF($C63=U$2,0.5,1)*MIN($F63*$F$57,$F63-SUM($G63:T63))) -> 0 | V63: =IF($C63>V$2,0,IF($C63=V$2,0.5,1)*MIN($F63*$F$57,$F63-SUM($G63:U63))) -> 0 | W63: =IF($C63>W$2,0,IF($C63=W$2,0.5,1)*MIN($F63*$F$57,$F63-SUM($G63:V63))) -> 0 | X63: =IF($C63>X$2,0,IF($C63=X$2,0.5,1)*MIN($F63*$F$57,$F63-SUM($G63:W63))) -> 0 | Y63: =IF($C63>Y$2,0,IF($C63=Y$2,0.5,1)*MIN($F63*$F$57,$F63-SUM($G63:X63))) -> 0 | Z63: =IF($C63>Z$2,0,IF($C63=Z$2,0.5,1)*MIN($F63*$F$57,$F63-SUM($G63:Y63))) -> 0 | AA63: =IF($C63>AA$2,0,IF($C63=AA$2,0.5,1)*MIN($F63*$F$57,$F63-SUM($G63:Z63))) -> 0 | AB63: =IF($C63>AB$2,0,IF($C63=AB$2,0.5,1)*MIN($F63*$F$57,$F63-SUM($G63:AA63))) -> 0
C64: 2027 | D64: тыс. руб. | E64: 5 | F64: 0 | H64: =IF($C64>H$2,0,IF($C64=H$2,0.5,1)*MIN($F64*$F$57,$F64-SUM($G64:G64))) -> 0 | I64: =IF($C64>I$2,0,IF($C64=I$2,0.5,1)*MIN($F64*$F$57,$F64-SUM($G64:H64))) -> 0 | J64: =IF($C64>J$2,0,IF($C64=J$2,0.5,1)*MIN($F64*$F$57,$F64-SUM($G64:I64))) -> 0 | K64: =IF($C64>K$2,0,IF($C64=K$2,0.5,1)*MIN($F64*$F$57,$F64-SUM($G64:J64))) -> 0 | L64: =IF($C64>L$2,0,IF($C64=L$2,0.5,1)*MIN($F64*$F$57,$F64-SUM($G64:K64))) -> 0 | M64: =IF($C64>M$2,0,IF($C64=M$2,0.5,1)*MIN($F64*$F$57,$F64-SUM($G64:L64))) -> 0 | N64: =IF($C64>N$2,0,IF($C64=N$2,0.5,1)*MIN($F64*$F$57,$F64-SUM($G64:M64))) -> 0 | O64: =IF($C64>O$2,0,IF($C64=O$2,0.5,1)*MIN($F64*$F$57,$F64-SUM($G64:N64))) -> 0 | P64: =IF($C64>P$2,0,IF($C64=P$2,0.5,1)*MIN($F64*$F$57,$F64-SUM($G64:O64))) -> 0 | Q64: =IF($C64>Q$2,0,IF($C64=Q$2,0.5,1)*MIN($F64*$F$57,$F64-SUM($G64:P64))) -> 0 | R64: =IF($C64>R$2,0,IF($C64=R$2,0.5,1)*MIN($F64*$F$57,$F64-SUM($G64:Q64))) -> 0 | S64: =IF($C64>S$2,0,IF($C64=S$2,0.5,1)*MIN($F64*$F$57,$F64-SUM($G64:R64))) -> 0 | T64: =IF($C64>T$2,0,IF($C64=T$2,0.5,1)*MIN($F64*$F$57,$F64-SUM($G64:S64))) -> 0 | U64: =IF($C64>U$2,0,IF($C64=U$2,0.5,1)*MIN($F64*$F$57,$F64-SUM($G64:T64))) -> 0 | V64: =IF($C64>V$2,0,IF($C64=V$2,0.5,1)*MIN($F64*$F$57,$F64-SUM($G64:U64))) -> 0 | W64: =IF($C64>W$2,0,IF($C64=W$2,0.5,1)*MIN($F64*$F$57,$F64-SUM($G64:V64))) -> 0 | X64: =IF($C64>X$2,0,IF($C64=X$2,0.5,1)*MIN($F64*$F$57,$F64-SUM($G64:W64))) -> 0 | Y64: =IF($C64>Y$2,0,IF($C64=Y$2,0.5,1)*MIN($F64*$F$57,$F64-SUM($G64:X64))) -> 0 | Z64: =IF($C64>Z$2,0,IF($C64=Z$2,0.5,1)*MIN($F64*$F$57,$F64-SUM($G64:Y64))) -> 0 | AA64: =IF($C64>AA$2,0,IF($C64=AA$2,0.5,1)*MIN($F64*$F$57,$F64-SUM($G64:Z64))) -> 0 | AB64: =IF($C64>AB$2,0,IF($C64=AB$2,0.5,1)*MIN($F64*$F$57,$F64-SUM($G64:AA64))) -> 0
C65: 2028 | D65: тыс. руб. | E65: 6 | F65: 0 | H65: =IF($C65>H$2,0,IF($C65=H$2,0.5,1)*MIN($F65*$F$57,$F65-SUM($G65:G65))) -> 0 | I65: =IF($C65>I$2,0,IF($C65=I$2,0.5,1)*MIN($F65*$F$57,$F65-SUM($G65:H65))) -> 0 | J65: =IF($C65>J$2,0,IF($C65=J$2,0.5,1)*MIN($F65*$F$57,$F65-SUM($G65:I65))) -> 0 | K65: =IF($C65>K$2,0,IF($C65=K$2,0.5,1)*MIN($F65*$F$57,$F65-SUM($G65:J65))) -> 0 | L65: =IF($C65>L$2,0,IF($C65=L$2,0.5,1)*MIN($F65*$F$57,$F65-SUM($G65:K65))) -> 0 | M65: =IF($C65>M$2,0,IF($C65=M$2,0.5,1)*MIN($F65*$F$57,$F65-SUM($G65:L65))) -> 0 | N65: =IF($C65>N$2,0,IF($C65=N$2,0.5,1)*MIN($F65*$F$57,$F65-SUM($G65:M65))) -> 0 | O65: =IF($C65>O$2,0,IF($C65=O$2,0.5,1)*MIN($F65*$F$57,$F65-SUM($G65:N65))) -> 0 | P65: =IF($C65>P$2,0,IF($C65=P$2,0.5,1)*MIN($F65*$F$57,$F65-SUM($G65:O65))) -> 0 | Q65: =IF($C65>Q$2,0,IF($C65=Q$2,0.5,1)*MIN($F65*$F$57,$F65-SUM($G65:P65))) -> 0 | R65: =IF($C65>R$2,0,IF($C65=R$2,0.5,1)*MIN($F65*$F$57,$F65-SUM($G65:Q65))) -> 0 | S65: =IF($C65>S$2,0,IF($C65=S$2,0.5,1)*MIN($F65*$F$57,$F65-SUM($G65:R65))) -> 0 | T65: =IF($C65>T$2,0,IF($C65=T$2,0.5,1)*MIN($F65*$F$57,$F65-SUM($G65:S65))) -> 0 | U65: =IF($C65>U$2,0,IF($C65=U$2,0.5,1)*MIN($F65*$F$57,$F65-SUM($G65:T65))) -> 0 | V65: =IF($C65>V$2,0,IF($C65=V$2,0.5,1)*MIN($F65*$F$57,$F65-SUM($G65:U65))) -> 0 | W65: =IF($C65>W$2,0,IF($C65=W$2,0.5,1)*MIN($F65*$F$57,$F65-SUM($G65:V65))) -> 0 | X65: =IF($C65>X$2,0,IF($C65=X$2,0.5,1)*MIN($F65*$F$57,$F65-SUM($G65:W65))) -> 0 | Y65: =IF($C65>Y$2,0,IF($C65=Y$2,0.5,1)*MIN($F65*$F$57,$F65-SUM($G65:X65))) -> 0 | Z65: =IF($C65>Z$2,0,IF($C65=Z$2,0.5,1)*MIN($F65*$F$57,$F65-SUM($G65:Y65))) -> 0 | AA65: =IF($C65>AA$2,0,IF($C65=AA$2,0.5,1)*MIN($F65*$F$57,$F65-SUM($G65:Z65))) -> 0 | AB65: =IF($C65>AB$2,0,IF($C65=AB$2,0.5,1)*MIN($F65*$F$57,$F65-SUM($G65:AA65))) -> 0
C66: 2029 | D66: тыс. руб. | E66: 7 | F66: 0 | H66: =IF($C66>H$2,0,IF($C66=H$2,0.5,1)*MIN($F66*$F$57,$F66-SUM($G66:G66))) -> 0 | I66: =IF($C66>I$2,0,IF($C66=I$2,0.5,1)*MIN($F66*$F$57,$F66-SUM($G66:H66))) -> 0 | J66: =IF($C66>J$2,0,IF($C66=J$2,0.5,1)*MIN($F66*$F$57,$F66-SUM($G66:I66))) -> 0 | K66: =IF($C66>K$2,0,IF($C66=K$2,0.5,1)*MIN($F66*$F$57,$F66-SUM($G66:J66))) -> 0 | L66: =IF($C66>L$2,0,IF($C66=L$2,0.5,1)*MIN($F66*$F$57,$F66-SUM($G66:K66))) -> 0 | M66: =IF($C66>M$2,0,IF($C66=M$2,0.5,1)*MIN($F66*$F$57,$F66-SUM($G66:L66))) -> 0 | N66: =IF($C66>N$2,0,IF($C66=N$2,0.5,1)*MIN($F66*$F$57,$F66-SUM($G66:M66))) -> 0 | O66: =IF($C66>O$2,0,IF($C66=O$2,0.5,1)*MIN($F66*$F$57,$F66-SUM($G66:N66))) -> 0 | P66: =IF($C66>P$2,0,IF($C66=P$2,0.5,1)*MIN($F66*$F$57,$F66-SUM($G66:O66))) -> 0 | Q66: =IF($C66>Q$2,0,IF($C66=Q$2,0.5,1)*MIN($F66*$F$57,$F66-SUM($G66:P66))) -> 0 | R66: =IF($C66>R$2,0,IF($C66=R$2,0.5,1)*MIN($F66*$F$57,$F66-SUM($G66:Q66))) -> 0 | S66: =IF($C66>S$2,0,IF($C66=S$2,0.5,1)*MIN($F66*$F$57,$F66-SUM($G66:R66))) -> 0 | T66: =IF($C66>T$2,0,IF($C66=T$2,0.5,1)*MIN($F66*$F$57,$F66-SUM($G66:S66))) -> 0 | U66: =IF($C66>U$2,0,IF($C66=U$2,0.5,1)*MIN($F66*$F$57,$F66-SUM($G66:T66))) -> 0 | V66: =IF($C66>V$2,0,IF($C66=V$2,0.5,1)*MIN($F66*$F$57,$F66-SUM($G66:U66))) -> 0 | W66: =IF($C66>W$2,0,IF($C66=W$2,0.5,1)*MIN($F66*$F$57,$F66-SUM($G66:V66))) -> 0 | X66: =IF($C66>X$2,0,IF($C66=X$2,0.5,1)*MIN($F66*$F$57,$F66-SUM($G66:W66))) -> 0 | Y66: =IF($C66>Y$2,0,IF($C66=Y$2,0.5,1)*MIN($F66*$F$57,$F66-SUM($G66:X66))) -> 0 | Z66: =IF($C66>Z$2,0,IF($C66=Z$2,0.5,1)*MIN($F66*$F$57,$F66-SUM($G66:Y66))) -> 0 | AA66: =IF($C66>AA$2,0,IF($C66=AA$2,0.5,1)*MIN($F66*$F$57,$F66-SUM($G66:Z66))) -> 0 | AB66: =IF($C66>AB$2,0,IF($C66=AB$2,0.5,1)*MIN($F66*$F$57,$F66-SUM($G66:AA66))) -> 0
C67: 2030 | D67: тыс. руб. | E67: 8 | F67: 0 | H67: =IF($C67>H$2,0,IF($C67=H$2,0.5,1)*MIN($F67*$F$57,$F67-SUM($G67:G67))) -> 0 | I67: =IF($C67>I$2,0,IF($C67=I$2,0.5,1)*MIN($F67*$F$57,$F67-SUM($G67:H67))) -> 0 | J67: =IF($C67>J$2,0,IF($C67=J$2,0.5,1)*MIN($F67*$F$57,$F67-SUM($G67:I67))) -> 0 | K67: =IF($C67>K$2,0,IF($C67=K$2,0.5,1)*MIN($F67*$F$57,$F67-SUM($G67:J67))) -> 0 | L67: =IF($C67>L$2,0,IF($C67=L$2,0.5,1)*MIN($F67*$F$57,$F67-SUM($G67:K67))) -> 0 | M67: =IF($C67>M$2,0,IF($C67=M$2,0.5,1)*MIN($F67*$F$57,$F67-SUM($G67:L67))) -> 0 | N67: =IF($C67>N$2,0,IF($C67=N$2,0.5,1)*MIN($F67*$F$57,$F67-SUM($G67:M67))) -> 0 | O67: =IF($C67>O$2,0,IF($C67=O$2,0.5,1)*MIN($F67*$F$57,$F67-SUM($G67:N67))) -> 0 | P67: =IF($C67>P$2,0,IF($C67=P$2,0.5,1)*MIN($F67*$F$57,$F67-SUM($G67:O67))) -> 0 | Q67: =IF($C67>Q$2,0,IF($C67=Q$2,0.5,1)*MIN($F67*$F$57,$F67-SUM($G67:P67))) -> 0 | R67: =IF($C67>R$2,0,IF($C67=R$2,0.5,1)*MIN($F67*$F$57,$F67-SUM($G67:Q67))) -> 0 | S67: =IF($C67>S$2,0,IF($C67=S$2,0.5,1)*MIN($F67*$F$57,$F67-SUM($G67:R67))) -> 0 | T67: =IF($C67>T$2,0,IF($C67=T$2,0.5,1)*MIN($F67*$F$57,$F67-SUM($G67:S67))) -> 0 | U67: =IF($C67>U$2,0,IF($C67=U$2,0.5,1)*MIN($F67*$F$57,$F67-SUM($G67:T67))) -> 0 | V67: =IF($C67>V$2,0,IF($C67=V$2,0.5,1)*MIN($F67*$F$57,$F67-SUM($G67:U67))) -> 0 | W67: =IF($C67>W$2,0,IF($C67=W$2,0.5,1)*MIN($F67*$F$57,$F67-SUM($G67:V67))) -> 0 | X67: =IF($C67>X$2,0,IF($C67=X$2,0.5,1)*MIN($F67*$F$57,$F67-SUM($G67:W67))) -> 0 | Y67: =IF($C67>Y$2,0,IF($C67=Y$2,0.5,1)*MIN($F67*$F$57,$F67-SUM($G67:X67))) -> 0 | Z67: =IF($C67>Z$2,0,IF($C67=Z$2,0.5,1)*MIN($F67*$F$57,$F67-SUM($G67:Y67))) -> 0 | AA67: =IF($C67>AA$2,0,IF($C67=AA$2,0.5,1)*MIN($F67*$F$57,$F67-SUM($G67:Z67))) -> 0 | AB67: =IF($C67>AB$2,0,IF($C67=AB$2,0.5,1)*MIN($F67*$F$57,$F67-SUM($G67:AA67))) -> 0
C68: 2031 | D68: тыс. руб. | E68: 9 | F68: 0 | H68: =IF($C68>H$2,0,IF($C68=H$2,0.5,1)*MIN($F68*$F$57,$F68-SUM($G68:G68))) -> 0 | I68: =IF($C68>I$2,0,IF($C68=I$2,0.5,1)*MIN($F68*$F$57,$F68-SUM($G68:H68))) -> 0 | J68: =IF($C68>J$2,0,IF($C68=J$2,0.5,1)*MIN($F68*$F$57,$F68-SUM($G68:I68))) -> 0 | K68: =IF($C68>K$2,0,IF($C68=K$2,0.5,1)*MIN($F68*$F$57,$F68-SUM($G68:J68))) -> 0 | L68: =IF($C68>L$2,0,IF($C68=L$2,0.5,1)*MIN($F68*$F$57,$F68-SUM($G68:K68))) -> 0 | M68: =IF($C68>M$2,0,IF($C68=M$2,0.5,1)*MIN($F68*$F$57,$F68-SUM($G68:L68))) -> 0 | N68: =IF($C68>N$2,0,IF($C68=N$2,0.5,1)*MIN($F68*$F$57,$F68-SUM($G68:M68))) -> 0 | O68: =IF($C68>O$2,0,IF($C68=O$2,0.5,1)*MIN($F68*$F$57,$F68-SUM($G68:N68))) -> 0 | P68: =IF($C68>P$2,0,IF($C68=P$2,0.5,1)*MIN($F68*$F$57,$F68-SUM($G68:O68))) -> 0 | Q68: =IF($C68>Q$2,0,IF($C68=Q$2,0.5,1)*MIN($F68*$F$57,$F68-SUM($G68:P68))) -> 0 | R68: =IF($C68>R$2,0,IF($C68=R$2,0.5,1)*MIN($F68*$F$57,$F68-SUM($G68:Q68))) -> 0 | S68: =IF($C68>S$2,0,IF($C68=S$2,0.5,1)*MIN($F68*$F$57,$F68-SUM($G68:R68))) -> 0 | T68: =IF($C68>T$2,0,IF($C68=T$2,0.5,1)*MIN($F68*$F$57,$F68-SUM($G68:S68))) -> 0 | U68: =IF($C68>U$2,0,IF($C68=U$2,0.5,1)*MIN($F68*$F$57,$F68-SUM($G68:T68))) -> 0 | V68: =IF($C68>V$2,0,IF($C68=V$2,0.5,1)*MIN($F68*$F$57,$F68-SUM($G68:U68))) -> 0 | W68: =IF($C68>W$2,0,IF($C68=W$2,0.5,1)*MIN($F68*$F$57,$F68-SUM($G68:V68))) -> 0 | X68: =IF($C68>X$2,0,IF($C68=X$2,0.5,1)*MIN($F68*$F$57,$F68-SUM($G68:W68))) -> 0 | Y68: =IF($C68>Y$2,0,IF($C68=Y$2,0.5,1)*MIN($F68*$F$57,$F68-SUM($G68:X68))) -> 0 | Z68: =IF($C68>Z$2,0,IF($C68=Z$2,0.5,1)*MIN($F68*$F$57,$F68-SUM($G68:Y68))) -> 0 | AA68: =IF($C68>AA$2,0,IF($C68=AA$2,0.5,1)*MIN($F68*$F$57,$F68-SUM($G68:Z68))) -> 0 | AB68: =IF($C68>AB$2,0,IF($C68=AB$2,0.5,1)*MIN($F68*$F$57,$F68-SUM($G68:AA68))) -> 0
C69: 2032 | D69: тыс. руб. | E69: 10 | F69: 0 | H69: =IF($C69>H$2,0,IF($C69=H$2,0.5,1)*MIN($F69*$F$57,$F69-SUM($G69:G69))) -> 0 | I69: =IF($C69>I$2,0,IF($C69=I$2,0.5,1)*MIN($F69*$F$57,$F69-SUM($G69:H69))) -> 0 | J69: =IF($C69>J$2,0,IF($C69=J$2,0.5,1)*MIN($F69*$F$57,$F69-SUM($G69:I69))) -> 0 | K69: =IF($C69>K$2,0,IF($C69=K$2,0.5,1)*MIN($F69*$F$57,$F69-SUM($G69:J69))) -> 0 | L69: =IF($C69>L$2,0,IF($C69=L$2,0.5,1)*MIN($F69*$F$57,$F69-SUM($G69:K69))) -> 0 | M69: =IF($C69>M$2,0,IF($C69=M$2,0.5,1)*MIN($F69*$F$57,$F69-SUM($G69:L69))) -> 0 | N69: =IF($C69>N$2,0,IF($C69=N$2,0.5,1)*MIN($F69*$F$57,$F69-SUM($G69:M69))) -> 0 | O69: =IF($C69>O$2,0,IF($C69=O$2,0.5,1)*MIN($F69*$F$57,$F69-SUM($G69:N69))) -> 0 | P69: =IF($C69>P$2,0,IF($C69=P$2,0.5,1)*MIN($F69*$F$57,$F69-SUM($G69:O69))) -> 0 | Q69: =IF($C69>Q$2,0,IF($C69=Q$2,0.5,1)*MIN($F69*$F$57,$F69-SUM($G69:P69))) -> 0 | R69: =IF($C69>R$2,0,IF($C69=R$2,0.5,1)*MIN($F69*$F$57,$F69-SUM($G69:Q69))) -> 0 | S69: =IF($C69>S$2,0,IF($C69=S$2,0.5,1)*MIN($F69*$F$57,$F69-SUM($G69:R69))) -> 0 | T69: =IF($C69>T$2,0,IF($C69=T$2,0.5,1)*MIN($F69*$F$57,$F69-SUM($G69:S69))) -> 0 | U69: =IF($C69>U$2,0,IF($C69=U$2,0.5,1)*MIN($F69*$F$57,$F69-SUM($G69:T69))) -> 0 | V69: =IF($C69>V$2,0,IF($C69=V$2,0.5,1)*MIN($F69*$F$57,$F69-SUM($G69:U69))) -> 0 | W69: =IF($C69>W$2,0,IF($C69=W$2,0.5,1)*MIN($F69*$F$57,$F69-SUM($G69:V69))) -> 0 | X69: =IF($C69>X$2,0,IF($C69=X$2,0.5,1)*MIN($F69*$F$57,$F69-SUM($G69:W69))) -> 0 | Y69: =IF($C69>Y$2,0,IF($C69=Y$2,0.5,1)*MIN($F69*$F$57,$F69-SUM($G69:X69))) -> 0 | Z69: =IF($C69>Z$2,0,IF($C69=Z$2,0.5,1)*MIN($F69*$F$57,$F69-SUM($G69:Y69))) -> 0 | AA69: =IF($C69>AA$2,0,IF($C69=AA$2,0.5,1)*MIN($F69*$F$57,$F69-SUM($G69:Z69))) -> 0 | AB69: =IF($C69>AB$2,0,IF($C69=AB$2,0.5,1)*MIN($F69*$F$57,$F69-SUM($G69:AA69))) -> 0
C70: 2033 | D70: тыс. руб. | E70: 11 | F70: 0 | H70: =IF($C70>H$2,0,IF($C70=H$2,0.5,1)*MIN($F70*$F$57,$F70-SUM($G70:G70))) -> 0 | I70: =IF($C70>I$2,0,IF($C70=I$2,0.5,1)*MIN($F70*$F$57,$F70-SUM($G70:H70))) -> 0 | J70: =IF($C70>J$2,0,IF($C70=J$2,0.5,1)*MIN($F70*$F$57,$F70-SUM($G70:I70))) -> 0 | K70: =IF($C70>K$2,0,IF($C70=K$2,0.5,1)*MIN($F70*$F$57,$F70-SUM($G70:J70))) -> 0 | L70: =IF($C70>L$2,0,IF($C70=L$2,0.5,1)*MIN($F70*$F$57,$F70-SUM($G70:K70))) -> 0 | M70: =IF($C70>M$2,0,IF($C70=M$2,0.5,1)*MIN($F70*$F$57,$F70-SUM($G70:L70))) -> 0 | N70: =IF($C70>N$2,0,IF($C70=N$2,0.5,1)*MIN($F70*$F$57,$F70-SUM($G70:M70))) -> 0 | O70: =IF($C70>O$2,0,IF($C70=O$2,0.5,1)*MIN($F70*$F$57,$F70-SUM($G70:N70))) -> 0 | P70: =IF($C70>P$2,0,IF($C70=P$2,0.5,1)*MIN($F70*$F$57,$F70-SUM($G70:O70))) -> 0 | Q70: =IF($C70>Q$2,0,IF($C70=Q$2,0.5,1)*MIN($F70*$F$57,$F70-SUM($G70:P70))) -> 0 | R70: =IF($C70>R$2,0,IF($C70=R$2,0.5,1)*MIN($F70*$F$57,$F70-SUM($G70:Q70))) -> 0 | S70: =IF($C70>S$2,0,IF($C70=S$2,0.5,1)*MIN($F70*$F$57,$F70-SUM($G70:R70))) -> 0 | T70: =IF($C70>T$2,0,IF($C70=T$2,0.5,1)*MIN($F70*$F$57,$F70-SUM($G70:S70))) -> 0 | U70: =IF($C70>U$2,0,IF($C70=U$2,0.5,1)*MIN($F70*$F$57,$F70-SUM($G70:T70))) -> 0 | V70: =IF($C70>V$2,0,IF($C70=V$2,0.5,1)*MIN($F70*$F$57,$F70-SUM($G70:U70))) -> 0 | W70: =IF($C70>W$2,0,IF($C70=W$2,0.5,1)*MIN($F70*$F$57,$F70-SUM($G70:V70))) -> 0 | X70: =IF($C70>X$2,0,IF($C70=X$2,0.5,1)*MIN($F70*$F$57,$F70-SUM($G70:W70))) -> 0 | Y70: =IF($C70>Y$2,0,IF($C70=Y$2,0.5,1)*MIN($F70*$F$57,$F70-SUM($G70:X70))) -> 0 | Z70: =IF($C70>Z$2,0,IF($C70=Z$2,0.5,1)*MIN($F70*$F$57,$F70-SUM($G70:Y70))) -> 0 | AA70: =IF($C70>AA$2,0,IF($C70=AA$2,0.5,1)*MIN($F70*$F$57,$F70-SUM($G70:Z70))) -> 0 | AB70: =IF($C70>AB$2,0,IF($C70=AB$2,0.5,1)*MIN($F70*$F$57,$F70-SUM($G70:AA70))) -> 0
C71: 2034 | D71: тыс. руб. | E71: 12 | F71: 0 | H71: =IF($C71>H$2,0,IF($C71=H$2,0.5,1)*MIN($F71*$F$57,$F71-SUM($G71:G71))) -> 0 | I71: =IF($C71>I$2,0,IF($C71=I$2,0.5,1)*MIN($F71*$F$57,$F71-SUM($G71:H71))) -> 0 | J71: =IF($C71>J$2,0,IF($C71=J$2,0.5,1)*MIN($F71*$F$57,$F71-SUM($G71:I71))) -> 0 | K71: =IF($C71>K$2,0,IF($C71=K$2,0.5,1)*MIN($F71*$F$57,$F71-SUM($G71:J71))) -> 0 | L71: =IF($C71>L$2,0,IF($C71=L$2,0.5,1)*MIN($F71*$F$57,$F71-SUM($G71:K71))) -> 0 | M71: =IF($C71>M$2,0,IF($C71=M$2,0.5,1)*MIN($F71*$F$57,$F71-SUM($G71:L71))) -> 0 | N71: =IF($C71>N$2,0,IF($C71=N$2,0.5,1)*MIN($F71*$F$57,$F71-SUM($G71:M71))) -> 0 | O71: =IF($C71>O$2,0,IF($C71=O$2,0.5,1)*MIN($F71*$F$57,$F71-SUM($G71:N71))) -> 0 | P71: =IF($C71>P$2,0,IF($C71=P$2,0.5,1)*MIN($F71*$F$57,$F71-SUM($G71:O71))) -> 0 | Q71: =IF($C71>Q$2,0,IF($C71=Q$2,0.5,1)*MIN($F71*$F$57,$F71-SUM($G71:P71))) -> 0 | R71: =IF($C71>R$2,0,IF($C71=R$2,0.5,1)*MIN($F71*$F$57,$F71-SUM($G71:Q71))) -> 0 | S71: =IF($C71>S$2,0,IF($C71=S$2,0.5,1)*MIN($F71*$F$57,$F71-SUM($G71:R71))) -> 0 | T71: =IF($C71>T$2,0,IF($C71=T$2,0.5,1)*MIN($F71*$F$57,$F71-SUM($G71:S71))) -> 0 | U71: =IF($C71>U$2,0,IF($C71=U$2,0.5,1)*MIN($F71*$F$57,$F71-SUM($G71:T71))) -> 0 | V71: =IF($C71>V$2,0,IF($C71=V$2,0.5,1)*MIN($F71*$F$57,$F71-SUM($G71:U71))) -> 0 | W71: =IF($C71>W$2,0,IF($C71=W$2,0.5,1)*MIN($F71*$F$57,$F71-SUM($G71:V71))) -> 0 | X71: =IF($C71>X$2,0,IF($C71=X$2,0.5,1)*MIN($F71*$F$57,$F71-SUM($G71:W71))) -> 0 | Y71: =IF($C71>Y$2,0,IF($C71=Y$2,0.5,1)*MIN($F71*$F$57,$F71-SUM($G71:X71))) -> 0 | Z71: =IF($C71>Z$2,0,IF($C71=Z$2,0.5,1)*MIN($F71*$F$57,$F71-SUM($G71:Y71))) -> 0 | AA71: =IF($C71>AA$2,0,IF($C71=AA$2,0.5,1)*MIN($F71*$F$57,$F71-SUM($G71:Z71))) -> 0 | AB71: =IF($C71>AB$2,0,IF($C71=AB$2,0.5,1)*MIN($F71*$F$57,$F71-SUM($G71:AA71))) -> 0
C72: 2035 | D72: тыс. руб. | E72: 13 | F72: 0 | H72: =IF($C72>H$2,0,IF($C72=H$2,0.5,1)*MIN($F72*$F$57,$F72-SUM($G72:G72))) -> 0 | I72: =IF($C72>I$2,0,IF($C72=I$2,0.5,1)*MIN($F72*$F$57,$F72-SUM($G72:H72))) -> 0 | J72: =IF($C72>J$2,0,IF($C72=J$2,0.5,1)*MIN($F72*$F$57,$F72-SUM($G72:I72))) -> 0 | K72: =IF($C72>K$2,0,IF($C72=K$2,0.5,1)*MIN($F72*$F$57,$F72-SUM($G72:J72))) -> 0 | L72: =IF($C72>L$2,0,IF($C72=L$2,0.5,1)*MIN($F72*$F$57,$F72-SUM($G72:K72))) -> 0 | M72: =IF($C72>M$2,0,IF($C72=M$2,0.5,1)*MIN($F72*$F$57,$F72-SUM($G72:L72))) -> 0 | N72: =IF($C72>N$2,0,IF($C72=N$2,0.5,1)*MIN($F72*$F$57,$F72-SUM($G72:M72))) -> 0 | O72: =IF($C72>O$2,0,IF($C72=O$2,0.5,1)*MIN($F72*$F$57,$F72-SUM($G72:N72))) -> 0 | P72: =IF($C72>P$2,0,IF($C72=P$2,0.5,1)*MIN($F72*$F$57,$F72-SUM($G72:O72))) -> 0 | Q72: =IF($C72>Q$2,0,IF($C72=Q$2,0.5,1)*MIN($F72*$F$57,$F72-SUM($G72:P72))) -> 0 | R72: =IF($C72>R$2,0,IF($C72=R$2,0.5,1)*MIN($F72*$F$57,$F72-SUM($G72:Q72))) -> 0 | S72: =IF($C72>S$2,0,IF($C72=S$2,0.5,1)*MIN($F72*$F$57,$F72-SUM($G72:R72))) -> 0 | T72: =IF($C72>T$2,0,IF($C72=T$2,0.5,1)*MIN($F72*$F$57,$F72-SUM($G72:S72))) -> 0 | U72: =IF($C72>U$2,0,IF($C72=U$2,0.5,1)*MIN($F72*$F$57,$F72-SUM($G72:T72))) -> 0 | V72: =IF($C72>V$2,0,IF($C72=V$2,0.5,1)*MIN($F72*$F$57,$F72-SUM($G72:U72))) -> 0 | W72: =IF($C72>W$2,0,IF($C72=W$2,0.5,1)*MIN($F72*$F$57,$F72-SUM($G72:V72))) -> 0 | X72: =IF($C72>X$2,0,IF($C72=X$2,0.5,1)*MIN($F72*$F$57,$F72-SUM($G72:W72))) -> 0 | Y72: =IF($C72>Y$2,0,IF($C72=Y$2,0.5,1)*MIN($F72*$F$57,$F72-SUM($G72:X72))) -> 0 | Z72: =IF($C72>Z$2,0,IF($C72=Z$2,0.5,1)*MIN($F72*$F$57,$F72-SUM($G72:Y72))) -> 0 | AA72: =IF($C72>AA$2,0,IF($C72=AA$2,0.5,1)*MIN($F72*$F$57,$F72-SUM($G72:Z72))) -> 0 | AB72: =IF($C72>AB$2,0,IF($C72=AB$2,0.5,1)*MIN($F72*$F$57,$F72-SUM($G72:AA72))) -> 0
C73: 2036 | D73: тыс. руб. | E73: 14 | F73: 0 | H73: =IF($C73>H$2,0,IF($C73=H$2,0.5,1)*MIN($F73*$F$57,$F73-SUM($G73:G73))) -> 0 | I73: =IF($C73>I$2,0,IF($C73=I$2,0.5,1)*MIN($F73*$F$57,$F73-SUM($G73:H73))) -> 0 | J73: =IF($C73>J$2,0,IF($C73=J$2,0.5,1)*MIN($F73*$F$57,$F73-SUM($G73:I73))) -> 0 | K73: =IF($C73>K$2,0,IF($C73=K$2,0.5,1)*MIN($F73*$F$57,$F73-SUM($G73:J73))) -> 0 | L73: =IF($C73>L$2,0,IF($C73=L$2,0.5,1)*MIN($F73*$F$57,$F73-SUM($G73:K73))) -> 0 | M73: =IF($C73>M$2,0,IF($C73=M$2,0.5,1)*MIN($F73*$F$57,$F73-SUM($G73:L73))) -> 0 | N73: =IF($C73>N$2,0,IF($C73=N$2,0.5,1)*MIN($F73*$F$57,$F73-SUM($G73:M73))) -> 0 | O73: =IF($C73>O$2,0,IF($C73=O$2,0.5,1)*MIN($F73*$F$57,$F73-SUM($G73:N73))) -> 0 | P73: =IF($C73>P$2,0,IF($C73=P$2,0.5,1)*MIN($F73*$F$57,$F73-SUM($G73:O73))) -> 0 | Q73: =IF($C73>Q$2,0,IF($C73=Q$2,0.5,1)*MIN($F73*$F$57,$F73-SUM($G73:P73))) -> 0 | R73: =IF($C73>R$2,0,IF($C73=R$2,0.5,1)*MIN($F73*$F$57,$F73-SUM($G73:Q73))) -> 0 | S73: =IF($C73>S$2,0,IF($C73=S$2,0.5,1)*MIN($F73*$F$57,$F73-SUM($G73:R73))) -> 0 | T73: =IF($C73>T$2,0,IF($C73=T$2,0.5,1)*MIN($F73*$F$57,$F73-SUM($G73:S73))) -> 0 | U73: =IF($C73>U$2,0,IF($C73=U$2,0.5,1)*MIN($F73*$F$57,$F73-SUM($G73:T73))) -> 0 | V73: =IF($C73>V$2,0,IF($C73=V$2,0.5,1)*MIN($F73*$F$57,$F73-SUM($G73:U73))) -> 0 | W73: =IF($C73>W$2,0,IF($C73=W$2,0.5,1)*MIN($F73*$F$57,$F73-SUM($G73:V73))) -> 0 | X73: =IF($C73>X$2,0,IF($C73=X$2,0.5,1)*MIN($F73*$F$57,$F73-SUM($G73:W73))) -> 0 | Y73: =IF($C73>Y$2,0,IF($C73=Y$2,0.5,1)*MIN($F73*$F$57,$F73-SUM($G73:X73))) -> 0 | Z73: =IF($C73>Z$2,0,IF($C73=Z$2,0.5,1)*MIN($F73*$F$57,$F73-SUM($G73:Y73))) -> 0 | AA73: =IF($C73>AA$2,0,IF($C73=AA$2,0.5,1)*MIN($F73*$F$57,$F73-SUM($G73:Z73))) -> 0 | AB73: =IF($C73>AB$2,0,IF($C73=AB$2,0.5,1)*MIN($F73*$F$57,$F73-SUM($G73:AA73))) -> 0
C74: 2037 | D74: тыс. руб. | E74: 15 | F74: 0 | H74: =IF($C74>H$2,0,IF($C74=H$2,0.5,1)*MIN($F74*$F$57,$F74-SUM($G74:G74))) -> 0 | I74: =IF($C74>I$2,0,IF($C74=I$2,0.5,1)*MIN($F74*$F$57,$F74-SUM($G74:H74))) -> 0 | J74: =IF($C74>J$2,0,IF($C74=J$2,0.5,1)*MIN($F74*$F$57,$F74-SUM($G74:I74))) -> 0 | K74: =IF($C74>K$2,0,IF($C74=K$2,0.5,1)*MIN($F74*$F$57,$F74-SUM($G74:J74))) -> 0 | L74: =IF($C74>L$2,0,IF($C74=L$2,0.5,1)*MIN($F74*$F$57,$F74-SUM($G74:K74))) -> 0 | M74: =IF($C74>M$2,0,IF($C74=M$2,0.5,1)*MIN($F74*$F$57,$F74-SUM($G74:L74))) -> 0 | N74: =IF($C74>N$2,0,IF($C74=N$2,0.5,1)*MIN($F74*$F$57,$F74-SUM($G74:M74))) -> 0 | O74: =IF($C74>O$2,0,IF($C74=O$2,0.5,1)*MIN($F74*$F$57,$F74-SUM($G74:N74))) -> 0 | P74: =IF($C74>P$2,0,IF($C74=P$2,0.5,1)*MIN($F74*$F$57,$F74-SUM($G74:O74))) -> 0 | Q74: =IF($C74>Q$2,0,IF($C74=Q$2,0.5,1)*MIN($F74*$F$57,$F74-SUM($G74:P74))) -> 0 | R74: =IF($C74>R$2,0,IF($C74=R$2,0.5,1)*MIN($F74*$F$57,$F74-SUM($G74:Q74))) -> 0 | S74: =IF($C74>S$2,0,IF($C74=S$2,0.5,1)*MIN($F74*$F$57,$F74-SUM($G74:R74))) -> 0 | T74: =IF($C74>T$2,0,IF($C74=T$2,0.5,1)*MIN($F74*$F$57,$F74-SUM($G74:S74))) -> 0 | U74: =IF($C74>U$2,0,IF($C74=U$2,0.5,1)*MIN($F74*$F$57,$F74-SUM($G74:T74))) -> 0 | V74: =IF($C74>V$2,0,IF($C74=V$2,0.5,1)*MIN($F74*$F$57,$F74-SUM($G74:U74))) -> 0 | W74: =IF($C74>W$2,0,IF($C74=W$2,0.5,1)*MIN($F74*$F$57,$F74-SUM($G74:V74))) -> 0 | X74: =IF($C74>X$2,0,IF($C74=X$2,0.5,1)*MIN($F74*$F$57,$F74-SUM($G74:W74))) -> 0 | Y74: =IF($C74>Y$2,0,IF($C74=Y$2,0.5,1)*MIN($F74*$F$57,$F74-SUM($G74:X74))) -> 0 | Z74: =IF($C74>Z$2,0,IF($C74=Z$2,0.5,1)*MIN($F74*$F$57,$F74-SUM($G74:Y74))) -> 0 | AA74: =IF($C74>AA$2,0,IF($C74=AA$2,0.5,1)*MIN($F74*$F$57,$F74-SUM($G74:Z74))) -> 0 | AB74: =IF($C74>AB$2,0,IF($C74=AB$2,0.5,1)*MIN($F74*$F$57,$F74-SUM($G74:AA74))) -> 0
C75: 2038 | D75: тыс. руб. | E75: 16 | F75: 0 | H75: =IF($C75>H$2,0,IF($C75=H$2,0.5,1)*MIN($F75*$F$57,$F75-SUM($G75:G75))) -> 0 | I75: =IF($C75>I$2,0,IF($C75=I$2,0.5,1)*MIN($F75*$F$57,$F75-SUM($G75:H75))) -> 0 | J75: =IF($C75>J$2,0,IF($C75=J$2,0.5,1)*MIN($F75*$F$57,$F75-SUM($G75:I75))) -> 0 | K75: =IF($C75>K$2,0,IF($C75=K$2,0.5,1)*MIN($F75*$F$57,$F75-SUM($G75:J75))) -> 0 | L75: =IF($C75>L$2,0,IF($C75=L$2,0.5,1)*MIN($F75*$F$57,$F75-SUM($G75:K75))) -> 0 | M75: =IF($C75>M$2,0,IF($C75=M$2,0.5,1)*MIN($F75*$F$57,$F75-SUM($G75:L75))) -> 0 | N75: =IF($C75>N$2,0,IF($C75=N$2,0.5,1)*MIN($F75*$F$57,$F75-SUM($G75:M75))) -> 0 | O75: =IF($C75>O$2,0,IF($C75=O$2,0.5,1)*MIN($F75*$F$57,$F75-SUM($G75:N75))) -> 0 | P75: =IF($C75>P$2,0,IF($C75=P$2,0.5,1)*MIN($F75*$F$57,$F75-SUM($G75:O75))) -> 0 | Q75: =IF($C75>Q$2,0,IF($C75=Q$2,0.5,1)*MIN($F75*$F$57,$F75-SUM($G75:P75))) -> 0 | R75: =IF($C75>R$2,0,IF($C75=R$2,0.5,1)*MIN($F75*$F$57,$F75-SUM($G75:Q75))) -> 0 | S75: =IF($C75>S$2,0,IF($C75=S$2,0.5,1)*MIN($F75*$F$57,$F75-SUM($G75:R75))) -> 0 | T75: =IF($C75>T$2,0,IF($C75=T$2,0.5,1)*MIN($F75*$F$57,$F75-SUM($G75:S75))) -> 0 | U75: =IF($C75>U$2,0,IF($C75=U$2,0.5,1)*MIN($F75*$F$57,$F75-SUM($G75:T75))) -> 0 | V75: =IF($C75>V$2,0,IF($C75=V$2,0.5,1)*MIN($F75*$F$57,$F75-SUM($G75:U75))) -> 0 | W75: =IF($C75>W$2,0,IF($C75=W$2,0.5,1)*MIN($F75*$F$57,$F75-SUM($G75:V75))) -> 0 | X75: =IF($C75>X$2,0,IF($C75=X$2,0.5,1)*MIN($F75*$F$57,$F75-SUM($G75:W75))) -> 0 | Y75: =IF($C75>Y$2,0,IF($C75=Y$2,0.5,1)*MIN($F75*$F$57,$F75-SUM($G75:X75))) -> 0 | Z75: =IF($C75>Z$2,0,IF($C75=Z$2,0.5,1)*MIN($F75*$F$57,$F75-SUM($G75:Y75))) -> 0 | AA75: =IF($C75>AA$2,0,IF($C75=AA$2,0.5,1)*MIN($F75*$F$57,$F75-SUM($G75:Z75))) -> 0 | AB75: =IF($C75>AB$2,0,IF($C75=AB$2,0.5,1)*MIN($F75*$F$57,$F75-SUM($G75:AA75))) -> 0
C76: 2039 | D76: тыс. руб. | E76: 17 | F76: 0 | H76: =IF($C76>H$2,0,IF($C76=H$2,0.5,1)*MIN($F76*$F$57,$F76-SUM($G76:G76))) -> 0 | I76: =IF($C76>I$2,0,IF($C76=I$2,0.5,1)*MIN($F76*$F$57,$F76-SUM($G76:H76))) -> 0 | J76: =IF($C76>J$2,0,IF($C76=J$2,0.5,1)*MIN($F76*$F$57,$F76-SUM($G76:I76))) -> 0 | K76: =IF($C76>K$2,0,IF($C76=K$2,0.5,1)*MIN($F76*$F$57,$F76-SUM($G76:J76))) -> 0 | L76: =IF($C76>L$2,0,IF($C76=L$2,0.5,1)*MIN($F76*$F$57,$F76-SUM($G76:K76))) -> 0 | M76: =IF($C76>M$2,0,IF($C76=M$2,0.5,1)*MIN($F76*$F$57,$F76-SUM($G76:L76))) -> 0 | N76: =IF($C76>N$2,0,IF($C76=N$2,0.5,1)*MIN($F76*$F$57,$F76-SUM($G76:M76))) -> 0 | O76: =IF($C76>O$2,0,IF($C76=O$2,0.5,1)*MIN($F76*$F$57,$F76-SUM($G76:N76))) -> 0 | P76: =IF($C76>P$2,0,IF($C76=P$2,0.5,1)*MIN($F76*$F$57,$F76-SUM($G76:O76))) -> 0 | Q76: =IF($C76>Q$2,0,IF($C76=Q$2,0.5,1)*MIN($F76*$F$57,$F76-SUM($G76:P76))) -> 0 | R76: =IF($C76>R$2,0,IF($C76=R$2,0.5,1)*MIN($F76*$F$57,$F76-SUM($G76:Q76))) -> 0 | S76: =IF($C76>S$2,0,IF($C76=S$2,0.5,1)*MIN($F76*$F$57,$F76-SUM($G76:R76))) -> 0 | T76: =IF($C76>T$2,0,IF($C76=T$2,0.5,1)*MIN($F76*$F$57,$F76-SUM($G76:S76))) -> 0 | U76: =IF($C76>U$2,0,IF($C76=U$2,0.5,1)*MIN($F76*$F$57,$F76-SUM($G76:T76))) -> 0 | V76: =IF($C76>V$2,0,IF($C76=V$2,0.5,1)*MIN($F76*$F$57,$F76-SUM($G76:U76))) -> 0 | W76: =IF($C76>W$2,0,IF($C76=W$2,0.5,1)*MIN($F76*$F$57,$F76-SUM($G76:V76))) -> 0 | X76: =IF($C76>X$2,0,IF($C76=X$2,0.5,1)*MIN($F76*$F$57,$F76-SUM($G76:W76))) -> 0 | Y76: =IF($C76>Y$2,0,IF($C76=Y$2,0.5,1)*MIN($F76*$F$57,$F76-SUM($G76:X76))) -> 0 | Z76: =IF($C76>Z$2,0,IF($C76=Z$2,0.5,1)*MIN($F76*$F$57,$F76-SUM($G76:Y76))) -> 0 | AA76: =IF($C76>AA$2,0,IF($C76=AA$2,0.5,1)*MIN($F76*$F$57,$F76-SUM($G76:Z76))) -> 0 | AB76: =IF($C76>AB$2,0,IF($C76=AB$2,0.5,1)*MIN($F76*$F$57,$F76-SUM($G76:AA76))) -> 0
C77: 2040 | D77: тыс. руб. | E77: 18 | F77: 0 | H77: =IF($C77>H$2,0,IF($C77=H$2,0.5,1)*MIN($F77*$F$57,$F77-SUM($G77:G77))) -> 0 | I77: =IF($C77>I$2,0,IF($C77=I$2,0.5,1)*MIN($F77*$F$57,$F77-SUM($G77:H77))) -> 0 | J77: =IF($C77>J$2,0,IF($C77=J$2,0.5,1)*MIN($F77*$F$57,$F77-SUM($G77:I77))) -> 0 | K77: =IF($C77>K$2,0,IF($C77=K$2,0.5,1)*MIN($F77*$F$57,$F77-SUM($G77:J77))) -> 0 | L77: =IF($C77>L$2,0,IF($C77=L$2,0.5,1)*MIN($F77*$F$57,$F77-SUM($G77:K77))) -> 0 | M77: =IF($C77>M$2,0,IF($C77=M$2,0.5,1)*MIN($F77*$F$57,$F77-SUM($G77:L77))) -> 0 | N77: =IF($C77>N$2,0,IF($C77=N$2,0.5,1)*MIN($F77*$F$57,$F77-SUM($G77:M77))) -> 0 | O77: =IF($C77>O$2,0,IF($C77=O$2,0.5,1)*MIN($F77*$F$57,$F77-SUM($G77:N77))) -> 0 | P77: =IF($C77>P$2,0,IF($C77=P$2,0.5,1)*MIN($F77*$F$57,$F77-SUM($G77:O77))) -> 0 | Q77: =IF($C77>Q$2,0,IF($C77=Q$2,0.5,1)*MIN($F77*$F$57,$F77-SUM($G77:P77))) -> 0 | R77: =IF($C77>R$2,0,IF($C77=R$2,0.5,1)*MIN($F77*$F$57,$F77-SUM($G77:Q77))) -> 0 | S77: =IF($C77>S$2,0,IF($C77=S$2,0.5,1)*MIN($F77*$F$57,$F77-SUM($G77:R77))) -> 0 | T77: =IF($C77>T$2,0,IF($C77=T$2,0.5,1)*MIN($F77*$F$57,$F77-SUM($G77:S77))) -> 0 | U77: =IF($C77>U$2,0,IF($C77=U$2,0.5,1)*MIN($F77*$F$57,$F77-SUM($G77:T77))) -> 0 | V77: =IF($C77>V$2,0,IF($C77=V$2,0.5,1)*MIN($F77*$F$57,$F77-SUM($G77:U77))) -> 0 | W77: =IF($C77>W$2,0,IF($C77=W$2,0.5,1)*MIN($F77*$F$57,$F77-SUM($G77:V77))) -> 0 | X77: =IF($C77>X$2,0,IF($C77=X$2,0.5,1)*MIN($F77*$F$57,$F77-SUM($G77:W77))) -> 0 | Y77: =IF($C77>Y$2,0,IF($C77=Y$2,0.5,1)*MIN($F77*$F$57,$F77-SUM($G77:X77))) -> 0 | Z77: =IF($C77>Z$2,0,IF($C77=Z$2,0.5,1)*MIN($F77*$F$57,$F77-SUM($G77:Y77))) -> 0 | AA77: =IF($C77>AA$2,0,IF($C77=AA$2,0.5,1)*MIN($F77*$F$57,$F77-SUM($G77:Z77))) -> 0 | AB77: =IF($C77>AB$2,0,IF($C77=AB$2,0.5,1)*MIN($F77*$F$57,$F77-SUM($G77:AA77))) -> 0
C78: 2041 | D78: тыс. руб. | E78: 19 | F78: 0 | H78: =IF($C78>H$2,0,IF($C78=H$2,0.5,1)*MIN($F78*$F$57,$F78-SUM($G78:G78))) -> 0 | I78: =IF($C78>I$2,0,IF($C78=I$2,0.5,1)*MIN($F78*$F$57,$F78-SUM($G78:H78))) -> 0 | J78: =IF($C78>J$2,0,IF($C78=J$2,0.5,1)*MIN($F78*$F$57,$F78-SUM($G78:I78))) -> 0 | K78: =IF($C78>K$2,0,IF($C78=K$2,0.5,1)*MIN($F78*$F$57,$F78-SUM($G78:J78))) -> 0 | L78: =IF($C78>L$2,0,IF($C78=L$2,0.5,1)*MIN($F78*$F$57,$F78-SUM($G78:K78))) -> 0 | M78: =IF($C78>M$2,0,IF($C78=M$2,0.5,1)*MIN($F78*$F$57,$F78-SUM($G78:L78))) -> 0 | N78: =IF($C78>N$2,0,IF($C78=N$2,0.5,1)*MIN($F78*$F$57,$F78-SUM($G78:M78))) -> 0 | O78: =IF($C78>O$2,0,IF($C78=O$2,0.5,1)*MIN($F78*$F$57,$F78-SUM($G78:N78))) -> 0 | P78: =IF($C78>P$2,0,IF($C78=P$2,0.5,1)*MIN($F78*$F$57,$F78-SUM($G78:O78))) -> 0 | Q78: =IF($C78>Q$2,0,IF($C78=Q$2,0.5,1)*MIN($F78*$F$57,$F78-SUM($G78:P78))) -> 0 | R78: =IF($C78>R$2,0,IF($C78=R$2,0.5,1)*MIN($F78*$F$57,$F78-SUM($G78:Q78))) -> 0 | S78: =IF($C78>S$2,0,IF($C78=S$2,0.5,1)*MIN($F78*$F$57,$F78-SUM($G78:R78))) -> 0 | T78: =IF($C78>T$2,0,IF($C78=T$2,0.5,1)*MIN($F78*$F$57,$F78-SUM($G78:S78))) -> 0 | U78: =IF($C78>U$2,0,IF($C78=U$2,0.5,1)*MIN($F78*$F$57,$F78-SUM($G78:T78))) -> 0 | V78: =IF($C78>V$2,0,IF($C78=V$2,0.5,1)*MIN($F78*$F$57,$F78-SUM($G78:U78))) -> 0 | W78: =IF($C78>W$2,0,IF($C78=W$2,0.5,1)*MIN($F78*$F$57,$F78-SUM($G78:V78))) -> 0 | X78: =IF($C78>X$2,0,IF($C78=X$2,0.5,1)*MIN($F78*$F$57,$F78-SUM($G78:W78))) -> 0 | Y78: =IF($C78>Y$2,0,IF($C78=Y$2,0.5,1)*MIN($F78*$F$57,$F78-SUM($G78:X78))) -> 0 | Z78: =IF($C78>Z$2,0,IF($C78=Z$2,0.5,1)*MIN($F78*$F$57,$F78-SUM($G78:Y78))) -> 0 | AA78: =IF($C78>AA$2,0,IF($C78=AA$2,0.5,1)*MIN($F78*$F$57,$F78-SUM($G78:Z78))) -> 0 | AB78: =IF($C78>AB$2,0,IF($C78=AB$2,0.5,1)*MIN($F78*$F$57,$F78-SUM($G78:AA78))) -> 0
C79: 2042 | D79: тыс. руб. | E79: 20 | F79: 0 | H79: =IF($C79>H$2,0,IF($C79=H$2,0.5,1)*MIN($F79*$F$57,$F79-SUM($G79:G79))) -> 0 | I79: =IF($C79>I$2,0,IF($C79=I$2,0.5,1)*MIN($F79*$F$57,$F79-SUM($G79:H79))) -> 0 | J79: =IF($C79>J$2,0,IF($C79=J$2,0.5,1)*MIN($F79*$F$57,$F79-SUM($G79:I79))) -> 0 | K79: =IF($C79>K$2,0,IF($C79=K$2,0.5,1)*MIN($F79*$F$57,$F79-SUM($G79:J79))) -> 0 | L79: =IF($C79>L$2,0,IF($C79=L$2,0.5,1)*MIN($F79*$F$57,$F79-SUM($G79:K79))) -> 0 | M79: =IF($C79>M$2,0,IF($C79=M$2,0.5,1)*MIN($F79*$F$57,$F79-SUM($G79:L79))) -> 0 | N79: =IF($C79>N$2,0,IF($C79=N$2,0.5,1)*MIN($F79*$F$57,$F79-SUM($G79:M79))) -> 0 | O79: =IF($C79>O$2,0,IF($C79=O$2,0.5,1)*MIN($F79*$F$57,$F79-SUM($G79:N79))) -> 0 | P79: =IF($C79>P$2,0,IF($C79=P$2,0.5,1)*MIN($F79*$F$57,$F79-SUM($G79:O79))) -> 0 | Q79: =IF($C79>Q$2,0,IF($C79=Q$2,0.5,1)*MIN($F79*$F$57,$F79-SUM($G79:P79))) -> 0 | R79: =IF($C79>R$2,0,IF($C79=R$2,0.5,1)*MIN($F79*$F$57,$F79-SUM($G79:Q79))) -> 0 | S79: =IF($C79>S$2,0,IF($C79=S$2,0.5,1)*MIN($F79*$F$57,$F79-SUM($G79:R79))) -> 0 | T79: =IF($C79>T$2,0,IF($C79=T$2,0.5,1)*MIN($F79*$F$57,$F79-SUM($G79:S79))) -> 0 | U79: =IF($C79>U$2,0,IF($C79=U$2,0.5,1)*MIN($F79*$F$57,$F79-SUM($G79:T79))) -> 0 | V79: =IF($C79>V$2,0,IF($C79=V$2,0.5,1)*MIN($F79*$F$57,$F79-SUM($G79:U79))) -> 0 | W79: =IF($C79>W$2,0,IF($C79=W$2,0.5,1)*MIN($F79*$F$57,$F79-SUM($G79:V79))) -> 0 | X79: =IF($C79>X$2,0,IF($C79=X$2,0.5,1)*MIN($F79*$F$57,$F79-SUM($G79:W79))) -> 0 | Y79: =IF($C79>Y$2,0,IF($C79=Y$2,0.5,1)*MIN($F79*$F$57,$F79-SUM($G79:X79))) -> 0 | Z79: =IF($C79>Z$2,0,IF($C79=Z$2,0.5,1)*MIN($F79*$F$57,$F79-SUM($G79:Y79))) -> 0 | AA79: =IF($C79>AA$2,0,IF($C79=AA$2,0.5,1)*MIN($F79*$F$57,$F79-SUM($G79:Z79))) -> 0 | AB79: =IF($C79>AB$2,0,IF($C79=AB$2,0.5,1)*MIN($F79*$F$57,$F79-SUM($G79:AA79))) -> 0
C81: Первоначальная стоимость активов | D81: тыс. руб. | H81: =G81+H37 -> 0 | I81: 0 | J81: 0 | K81: 0 | L81: 0 | M81: 0 | N81: 0 | O81: 0 | P81: 0 | Q81: 0 | R81: 0 | S81: 0 | T81: 0 | U81: 0 | V81: 0 | W81: 0 | X81: 0 | Y81: 0 | Z81: 0 | AA81: 0 | AB81: 0
C82: Амортизация за период | D82: тыс. руб. | H82: =H59 -> 0 | I82: =I59 -> 0 | J82: 0 | K82: 0 | L82: 0 | M82: 0 | N82: 0 | O82: 0 | P82: 0 | Q82: 0 | R82: 0 | S82: 0 | T82: 0 | U82: 0 | V82: 0 | W82: 0 | X82: 0 | Y82: 0 | Z82: 0 | AA82: 0 | AB82: 0
C83: Накопленная амортизация | D83: тыс. руб. | H83: =G83+H82 -> 0 | I83: =H83+I82 -> 0 | J83: 0 | K83: 0 | L83: 0 | M83: 0 | N83: 0 | O83: 0 | P83: 0 | Q83: 0 | R83: 0 | S83: 0 | T83: 0 | U83: 0 | V83: 0 | W83: =V83+W82 -> 0 | X83: 0 | Y83: 0 | Z83: 0 | AA83: 0 | AB83: 0
C84: Остаточная стоимость активов | D84: тыс. руб. | H84: =H81-H83 -> 0 | I84: =I81-I83 -> 0 | J84: 0 | K84: 0 | L84: 0 | M84: 0 | N84: 0 | O84: 0 | P84: 0 | Q84: 0 | R84: 0 | S84: 0 | T84: 0 | U84: 0 | V84: 0 | W84: 0 | X84: 0 | Y84: 0 | Z84: 0 | AA84: 0 | AB84: 0
B86: Машины и оборудование
C88: Ставка амортизации | D88: % | F88: =Предпосылки!F192 -> 0.1
C90: Амортизация | D90: тыс. руб. | H90: =SUM(H91:H110) -> 0 | I90: =SUM(I91:I110) -> 0 | J90: 0 | K90: 0 | L90: 0 | M90: 0 | N90: 0 | O90: 0 | P90: 0 | Q90: 0 | R90: 0 | S90: 0 | T90: 0 | U90: 0 | V90: 0 | W90: 0 | X90: 0 | Y90: 0 | Z90: 0 | AA90: 0 | AB90: 0
C91: =INDEX(H$2:AA$2,,$E91) -> 2023 | D91: тыс. руб. | E91: 1 | F91: =OFFSET($G$38,,E91) -> 0 | H91: =IF($C91>H$2,0,IF($C91=H$2,0.5,1)*MIN($F91*$F$88,$F91-SUM($G91:G91))) -> 0 | I91: =IF($C91>I$2,0,IF($C91=I$2,0.5,1)*MIN($F91*$F$88,$F91-SUM($G91:H91))) -> 0 | J91: =IF($C91>J$2,0,IF($C91=J$2,0.5,1)*MIN($F91*$F$88,$F91-SUM($G91:I91))) -> 0 | K91: =IF($C91>K$2,0,IF($C91=K$2,0.5,1)*MIN($F91*$F$88,$F91-SUM($G91:J91))) -> 0 | L91: =IF($C91>L$2,0,IF($C91=L$2,0.5,1)*MIN($F91*$F$88,$F91-SUM($G91:K91))) -> 0 | M91: =IF($C91>M$2,0,IF($C91=M$2,0.5,1)*MIN($F91*$F$88,$F91-SUM($G91:L91))) -> 0 | N91: =IF($C91>N$2,0,IF($C91=N$2,0.5,1)*MIN($F91*$F$88,$F91-SUM($G91:M91))) -> 0 | O91: =IF($C91>O$2,0,IF($C91=O$2,0.5,1)*MIN($F91*$F$88,$F91-SUM($G91:N91))) -> 0 | P91: =IF($C91>P$2,0,IF($C91=P$2,0.5,1)*MIN($F91*$F$88,$F91-SUM($G91:O91))) -> 0 | Q91: =IF($C91>Q$2,0,IF($C91=Q$2,0.5,1)*MIN($F91*$F$88,$F91-SUM($G91:P91))) -> 0 | R91: =IF($C91>R$2,0,IF($C91=R$2,0.5,1)*MIN($F91*$F$88,$F91-SUM($G91:Q91))) -> 0 | S91: =IF($C91>S$2,0,IF($C91=S$2,0.5,1)*MIN($F91*$F$88,$F91-SUM($G91:R91))) -> 0 | T91: =IF($C91>T$2,0,IF($C91=T$2,0.5,1)*MIN($F91*$F$88,$F91-SUM($G91:S91))) -> 0 | U91: =IF($C91>U$2,0,IF($C91=U$2,0.5,1)*MIN($F91*$F$88,$F91-SUM($G91:T91))) -> 0 | V91: =IF($C91>V$2,0,IF($C91=V$2,0.5,1)*MIN($F91*$F$88,$F91-SUM($G91:U91))) -> 0 | W91: =IF($C91>W$2,0,IF($C91=W$2,0.5,1)*MIN($F91*$F$88,$F91-SUM($G91:V91))) -> 0 | X91: =IF($C91>X$2,0,IF($C91=X$2,0.5,1)*MIN($F91*$F$88,$F91-SUM($G91:W91))) -> 0 | Y91: =IF($C91>Y$2,0,IF($C91=Y$2,0.5,1)*MIN($F91*$F$88,$F91-SUM($G91:X91))) -> 0 | Z91: =IF($C91>Z$2,0,IF($C91=Z$2,0.5,1)*MIN($F91*$F$88,$F91-SUM($G91:Y91))) -> 0 | AA91: =IF($C91>AA$2,0,IF($C91=AA$2,0.5,1)*MIN($F91*$F$88,$F91-SUM($G91:Z91))) -> 0 | AB91: =IF($C91>AB$2,0,IF($C91=AB$2,0.5,1)*MIN($F91*$F$88,$F91-SUM($G91:AA91))) -> 0
C92: =INDEX(H$2:AA$2,,$E92) -> 2024 | D92: тыс. руб. | E92: 2 | F92: =OFFSET($G$38,,E92) -> 0 | H92: =IF($C92>H$2,0,IF($C92=H$2,0.5,1)*MIN($F92*$F$88,$F92-SUM($G92:G92))) -> 0 | I92: =IF($C92>I$2,0,IF($C92=I$2,0.5,1)*MIN($F92*$F$88,$F92-SUM($G92:H92))) -> 0 | J92: =IF($C92>J$2,0,IF($C92=J$2,0.5,1)*MIN($F92*$F$88,$F92-SUM($G92:I92))) -> 0 | K92: =IF($C92>K$2,0,IF($C92=K$2,0.5,1)*MIN($F92*$F$88,$F92-SUM($G92:J92))) -> 0 | L92: =IF($C92>L$2,0,IF($C92=L$2,0.5,1)*MIN($F92*$F$88,$F92-SUM($G92:K92))) -> 0 | M92: =IF($C92>M$2,0,IF($C92=M$2,0.5,1)*MIN($F92*$F$88,$F92-SUM($G92:L92))) -> 0 | N92: =IF($C92>N$2,0,IF($C92=N$2,0.5,1)*MIN($F92*$F$88,$F92-SUM($G92:M92))) -> 0 | O92: =IF($C92>O$2,0,IF($C92=O$2,0.5,1)*MIN($F92*$F$88,$F92-SUM($G92:N92))) -> 0 | P92: =IF($C92>P$2,0,IF($C92=P$2,0.5,1)*MIN($F92*$F$88,$F92-SUM($G92:O92))) -> 0 | Q92: =IF($C92>Q$2,0,IF($C92=Q$2,0.5,1)*MIN($F92*$F$88,$F92-SUM($G92:P92))) -> 0 | R92: =IF($C92>R$2,0,IF($C92=R$2,0.5,1)*MIN($F92*$F$88,$F92-SUM($G92:Q92))) -> 0 | S92: =IF($C92>S$2,0,IF($C92=S$2,0.5,1)*MIN($F92*$F$88,$F92-SUM($G92:R92))) -> 0 | T92: =IF($C92>T$2,0,IF($C92=T$2,0.5,1)*MIN($F92*$F$88,$F92-SUM($G92:S92))) -> 0 | U92: =IF($C92>U$2,0,IF($C92=U$2,0.5,1)*MIN($F92*$F$88,$F92-SUM($G92:T92))) -> 0 | V92: =IF($C92>V$2,0,IF($C92=V$2,0.5,1)*MIN($F92*$F$88,$F92-SUM($G92:U92))) -> 0 | W92: =IF($C92>W$2,0,IF($C92=W$2,0.5,1)*MIN($F92*$F$88,$F92-SUM($G92:V92))) -> 0 | X92: =IF($C92>X$2,0,IF($C92=X$2,0.5,1)*MIN($F92*$F$88,$F92-SUM($G92:W92))) -> 0 | Y92: =IF($C92>Y$2,0,IF($C92=Y$2,0.5,1)*MIN($F92*$F$88,$F92-SUM($G92:X92))) -> 0 | Z92: =IF($C92>Z$2,0,IF($C92=Z$2,0.5,1)*MIN($F92*$F$88,$F92-SUM($G92:Y92))) -> 0 | AA92: =IF($C92>AA$2,0,IF($C92=AA$2,0.5,1)*MIN($F92*$F$88,$F92-SUM($G92:Z92))) -> 0 | AB92: =IF($C92>AB$2,0,IF($C92=AB$2,0.5,1)*MIN($F92*$F$88,$F92-SUM($G92:AA92))) -> 0
C93: 2025 | D93: тыс. руб. | E93: 3 | F93: 0 | H93: =IF($C93>H$2,0,IF($C93=H$2,0.5,1)*MIN($F93*$F$88,$F93-SUM($G93:G93))) -> 0 | I93: =IF($C93>I$2,0,IF($C93=I$2,0.5,1)*MIN($F93*$F$88,$F93-SUM($G93:H93))) -> 0 | J93: =IF($C93>J$2,0,IF($C93=J$2,0.5,1)*MIN($F93*$F$88,$F93-SUM($G93:I93))) -> 0 | K93: =IF($C93>K$2,0,IF($C93=K$2,0.5,1)*MIN($F93*$F$88,$F93-SUM($G93:J93))) -> 0 | L93: =IF($C93>L$2,0,IF($C93=L$2,0.5,1)*MIN($F93*$F$88,$F93-SUM($G93:K93))) -> 0 | M93: =IF($C93>M$2,0,IF($C93=M$2,0.5,1)*MIN($F93*$F$88,$F93-SUM($G93:L93))) -> 0 | N93: =IF($C93>N$2,0,IF($C93=N$2,0.5,1)*MIN($F93*$F$88,$F93-SUM($G93:M93))) -> 0 | O93: =IF($C93>O$2,0,IF($C93=O$2,0.5,1)*MIN($F93*$F$88,$F93-SUM($G93:N93))) -> 0 | P93: =IF($C93>P$2,0,IF($C93=P$2,0.5,1)*MIN($F93*$F$88,$F93-SUM($G93:O93))) -> 0 | Q93: =IF($C93>Q$2,0,IF($C93=Q$2,0.5,1)*MIN($F93*$F$88,$F93-SUM($G93:P93))) -> 0 | R93: =IF($C93>R$2,0,IF($C93=R$2,0.5,1)*MIN($F93*$F$88,$F93-SUM($G93:Q93))) -> 0 | S93: =IF($C93>S$2,0,IF($C93=S$2,0.5,1)*MIN($F93*$F$88,$F93-SUM($G93:R93))) -> 0 | T93: =IF($C93>T$2,0,IF($C93=T$2,0.5,1)*MIN($F93*$F$88,$F93-SUM($G93:S93))) -> 0 | U93: =IF($C93>U$2,0,IF($C93=U$2,0.5,1)*MIN($F93*$F$88,$F93-SUM($G93:T93))) -> 0 | V93: =IF($C93>V$2,0,IF($C93=V$2,0.5,1)*MIN($F93*$F$88,$F93-SUM($G93:U93))) -> 0 | W93: =IF($C93>W$2,0,IF($C93=W$2,0.5,1)*MIN($F93*$F$88,$F93-SUM($G93:V93))) -> 0 | X93: =IF($C93>X$2,0,IF($C93=X$2,0.5,1)*MIN($F93*$F$88,$F93-SUM($G93:W93))) -> 0 | Y93: =IF($C93>Y$2,0,IF($C93=Y$2,0.5,1)*MIN($F93*$F$88,$F93-SUM($G93:X93))) -> 0 | Z93: =IF($C93>Z$2,0,IF($C93=Z$2,0.5,1)*MIN($F93*$F$88,$F93-SUM($G93:Y93))) -> 0 | AA93: =IF($C93>AA$2,0,IF($C93=AA$2,0.5,1)*MIN($F93*$F$88,$F93-SUM($G93:Z93))) -> 0 | AB93: =IF($C93>AB$2,0,IF($C93=AB$2,0.5,1)*MIN($F93*$F$88,$F93-SUM($G93:AA93))) -> 0
C94: 2026 | D94: тыс. руб. | E94: 4 | F94: 0 | H94: =IF($C94>H$2,0,IF($C94=H$2,0.5,1)*MIN($F94*$F$88,$F94-SUM($G94:G94))) -> 0 | I94: =IF($C94>I$2,0,IF($C94=I$2,0.5,1)*MIN($F94*$F$88,$F94-SUM($G94:H94))) -> 0 | J94: =IF($C94>J$2,0,IF($C94=J$2,0.5,1)*MIN($F94*$F$88,$F94-SUM($G94:I94))) -> 0 | K94: =IF($C94>K$2,0,IF($C94=K$2,0.5,1)*MIN($F94*$F$88,$F94-SUM($G94:J94))) -> 0 | L94: =IF($C94>L$2,0,IF($C94=L$2,0.5,1)*MIN($F94*$F$88,$F94-SUM($G94:K94))) -> 0 | M94: =IF($C94>M$2,0,IF($C94=M$2,0.5,1)*MIN($F94*$F$88,$F94-SUM($G94:L94))) -> 0 | N94: =IF($C94>N$2,0,IF($C94=N$2,0.5,1)*MIN($F94*$F$88,$F94-SUM($G94:M94))) -> 0 | O94: =IF($C94>O$2,0,IF($C94=O$2,0.5,1)*MIN($F94*$F$88,$F94-SUM($G94:N94))) -> 0 | P94: =IF($C94>P$2,0,IF($C94=P$2,0.5,1)*MIN($F94*$F$88,$F94-SUM($G94:O94))) -> 0 | Q94: =IF($C94>Q$2,0,IF($C94=Q$2,0.5,1)*MIN($F94*$F$88,$F94-SUM($G94:P94))) -> 0 | R94: =IF($C94>R$2,0,IF($C94=R$2,0.5,1)*MIN($F94*$F$88,$F94-SUM($G94:Q94))) -> 0 | S94: =IF($C94>S$2,0,IF($C94=S$2,0.5,1)*MIN($F94*$F$88,$F94-SUM($G94:R94))) -> 0 | T94: =IF($C94>T$2,0,IF($C94=T$2,0.5,1)*MIN($F94*$F$88,$F94-SUM($G94:S94))) -> 0 | U94: =IF($C94>U$2,0,IF($C94=U$2,0.5,1)*MIN($F94*$F$88,$F94-SUM($G94:T94))) -> 0 | V94: =IF($C94>V$2,0,IF($C94=V$2,0.5,1)*MIN($F94*$F$88,$F94-SUM($G94:U94))) -> 0 | W94: =IF($C94>W$2,0,IF($C94=W$2,0.5,1)*MIN($F94*$F$88,$F94-SUM($G94:V94))) -> 0 | X94: =IF($C94>X$2,0,IF($C94=X$2,0.5,1)*MIN($F94*$F$88,$F94-SUM($G94:W94))) -> 0 | Y94: =IF($C94>Y$2,0,IF($C94=Y$2,0.5,1)*MIN($F94*$F$88,$F94-SUM($G94:X94))) -> 0 | Z94: =IF($C94>Z$2,0,IF($C94=Z$2,0.5,1)*MIN($F94*$F$88,$F94-SUM($G94:Y94))) -> 0 | AA94: =IF($C94>AA$2,0,IF($C94=AA$2,0.5,1)*MIN($F94*$F$88,$F94-SUM($G94:Z94))) -> 0 | AB94: =IF($C94>AB$2,0,IF($C94=AB$2,0.5,1)*MIN($F94*$F$88,$F94-SUM($G94:AA94))) -> 0
C95: 2027 | D95: тыс. руб. | E95: 5 | F95: 0 | H95: =IF($C95>H$2,0,IF($C95=H$2,0.5,1)*MIN($F95*$F$88,$F95-SUM($G95:G95))) -> 0 | I95: =IF($C95>I$2,0,IF($C95=I$2,0.5,1)*MIN($F95*$F$88,$F95-SUM($G95:H95))) -> 0 | J95: =IF($C95>J$2,0,IF($C95=J$2,0.5,1)*MIN($F95*$F$88,$F95-SUM($G95:I95))) -> 0 | K95: =IF($C95>K$2,0,IF($C95=K$2,0.5,1)*MIN($F95*$F$88,$F95-SUM($G95:J95))) -> 0 | L95: =IF($C95>L$2,0,IF($C95=L$2,0.5,1)*MIN($F95*$F$88,$F95-SUM($G95:K95))) -> 0 | M95: =IF($C95>M$2,0,IF($C95=M$2,0.5,1)*MIN($F95*$F$88,$F95-SUM($G95:L95))) -> 0 | N95: =IF($C95>N$2,0,IF($C95=N$2,0.5,1)*MIN($F95*$F$88,$F95-SUM($G95:M95))) -> 0 | O95: =IF($C95>O$2,0,IF($C95=O$2,0.5,1)*MIN($F95*$F$88,$F95-SUM($G95:N95))) -> 0 | P95: =IF($C95>P$2,0,IF($C95=P$2,0.5,1)*MIN($F95*$F$88,$F95-SUM($G95:O95))) -> 0 | Q95: =IF($C95>Q$2,0,IF($C95=Q$2,0.5,1)*MIN($F95*$F$88,$F95-SUM($G95:P95))) -> 0 | R95: =IF($C95>R$2,0,IF($C95=R$2,0.5,1)*MIN($F95*$F$88,$F95-SUM($G95:Q95))) -> 0 | S95: =IF($C95>S$2,0,IF($C95=S$2,0.5,1)*MIN($F95*$F$88,$F95-SUM($G95:R95))) -> 0 | T95: =IF($C95>T$2,0,IF($C95=T$2,0.5,1)*MIN($F95*$F$88,$F95-SUM($G95:S95))) -> 0 | U95: =IF($C95>U$2,0,IF($C95=U$2,0.5,1)*MIN($F95*$F$88,$F95-SUM($G95:T95))) -> 0 | V95: =IF($C95>V$2,0,IF($C95=V$2,0.5,1)*MIN($F95*$F$88,$F95-SUM($G95:U95))) -> 0 | W95: =IF($C95>W$2,0,IF($C95=W$2,0.5,1)*MIN($F95*$F$88,$F95-SUM($G95:V95))) -> 0 | X95: =IF($C95>X$2,0,IF($C95=X$2,0.5,1)*MIN($F95*$F$88,$F95-SUM($G95:W95))) -> 0 | Y95: =IF($C95>Y$2,0,IF($C95=Y$2,0.5,1)*MIN($F95*$F$88,$F95-SUM($G95:X95))) -> 0 | Z95: =IF($C95>Z$2,0,IF($C95=Z$2,0.5,1)*MIN($F95*$F$88,$F95-SUM($G95:Y95))) -> 0 | AA95: =IF($C95>AA$2,0,IF($C95=AA$2,0.5,1)*MIN($F95*$F$88,$F95-SUM($G95:Z95))) -> 0 | AB95: =IF($C95>AB$2,0,IF($C95=AB$2,0.5,1)*MIN($F95*$F$88,$F95-SUM($G95:AA95))) -> 0
C96: 2028 | D96: тыс. руб. | E96: 6 | F96: 0 | H96: =IF($C96>H$2,0,IF($C96=H$2,0.5,1)*MIN($F96*$F$88,$F96-SUM($G96:G96))) -> 0 | I96: =IF($C96>I$2,0,IF($C96=I$2,0.5,1)*MIN($F96*$F$88,$F96-SUM($G96:H96))) -> 0 | J96: =IF($C96>J$2,0,IF($C96=J$2,0.5,1)*MIN($F96*$F$88,$F96-SUM($G96:I96))) -> 0 | K96: =IF($C96>K$2,0,IF($C96=K$2,0.5,1)*MIN($F96*$F$88,$F96-SUM($G96:J96))) -> 0 | L96: =IF($C96>L$2,0,IF($C96=L$2,0.5,1)*MIN($F96*$F$88,$F96-SUM($G96:K96))) -> 0 | M96: =IF($C96>M$2,0,IF($C96=M$2,0.5,1)*MIN($F96*$F$88,$F96-SUM($G96:L96))) -> 0 | N96: =IF($C96>N$2,0,IF($C96=N$2,0.5,1)*MIN($F96*$F$88,$F96-SUM($G96:M96))) -> 0 | O96: =IF($C96>O$2,0,IF($C96=O$2,0.5,1)*MIN($F96*$F$88,$F96-SUM($G96:N96))) -> 0 | P96: =IF($C96>P$2,0,IF($C96=P$2,0.5,1)*MIN($F96*$F$88,$F96-SUM($G96:O96))) -> 0 | Q96: =IF($C96>Q$2,0,IF($C96=Q$2,0.5,1)*MIN($F96*$F$88,$F96-SUM($G96:P96))) -> 0 | R96: =IF($C96>R$2,0,IF($C96=R$2,0.5,1)*MIN($F96*$F$88,$F96-SUM($G96:Q96))) -> 0 | S96: =IF($C96>S$2,0,IF($C96=S$2,0.5,1)*MIN($F96*$F$88,$F96-SUM($G96:R96))) -> 0 | T96: =IF($C96>T$2,0,IF($C96=T$2,0.5,1)*MIN($F96*$F$88,$F96-SUM($G96:S96))) -> 0 | U96: =IF($C96>U$2,0,IF($C96=U$2,0.5,1)*MIN($F96*$F$88,$F96-SUM($G96:T96))) -> 0 | V96: =IF($C96>V$2,0,IF($C96=V$2,0.5,1)*MIN($F96*$F$88,$F96-SUM($G96:U96))) -> 0 | W96: =IF($C96>W$2,0,IF($C96=W$2,0.5,1)*MIN($F96*$F$88,$F96-SUM($G96:V96))) -> 0 | X96: =IF($C96>X$2,0,IF($C96=X$2,0.5,1)*MIN($F96*$F$88,$F96-SUM($G96:W96))) -> 0 | Y96: =IF($C96>Y$2,0,IF($C96=Y$2,0.5,1)*MIN($F96*$F$88,$F96-SUM($G96:X96))) -> 0 | Z96: =IF($C96>Z$2,0,IF($C96=Z$2,0.5,1)*MIN($F96*$F$88,$F96-SUM($G96:Y96))) -> 0 | AA96: =IF($C96>AA$2,0,IF($C96=AA$2,0.5,1)*MIN($F96*$F$88,$F96-SUM($G96:Z96))) -> 0 | AB96: =IF($C96>AB$2,0,IF($C96=AB$2,0.5,1)*MIN($F96*$F$88,$F96-SUM($G96:AA96))) -> 0
C97: 2029 | D97: тыс. руб. | E97: 7 | F97: 0 | H97: =IF($C97>H$2,0,IF($C97=H$2,0.5,1)*MIN($F97*$F$88,$F97-SUM($G97:G97))) -> 0 | I97: =IF($C97>I$2,0,IF($C97=I$2,0.5,1)*MIN($F97*$F$88,$F97-SUM($G97:H97))) -> 0 | J97: =IF($C97>J$2,0,IF($C97=J$2,0.5,1)*MIN($F97*$F$88,$F97-SUM($G97:I97))) -> 0 | K97: =IF($C97>K$2,0,IF($C97=K$2,0.5,1)*MIN($F97*$F$88,$F97-SUM($G97:J97))) -> 0 | L97: =IF($C97>L$2,0,IF($C97=L$2,0.5,1)*MIN($F97*$F$88,$F97-SUM($G97:K97))) -> 0 | M97: =IF($C97>M$2,0,IF($C97=M$2,0.5,1)*MIN($F97*$F$88,$F97-SUM($G97:L97))) -> 0 | N97: =IF($C97>N$2,0,IF($C97=N$2,0.5,1)*MIN($F97*$F$88,$F97-SUM($G97:M97))) -> 0 | O97: =IF($C97>O$2,0,IF($C97=O$2,0.5,1)*MIN($F97*$F$88,$F97-SUM($G97:N97))) -> 0 | P97: =IF($C97>P$2,0,IF($C97=P$2,0.5,1)*MIN($F97*$F$88,$F97-SUM($G97:O97))) -> 0 | Q97: =IF($C97>Q$2,0,IF($C97=Q$2,0.5,1)*MIN($F97*$F$88,$F97-SUM($G97:P97))) -> 0 | R97: =IF($C97>R$2,0,IF($C97=R$2,0.5,1)*MIN($F97*$F$88,$F97-SUM($G97:Q97))) -> 0 | S97: =IF($C97>S$2,0,IF($C97=S$2,0.5,1)*MIN($F97*$F$88,$F97-SUM($G97:R97))) -> 0 | T97: =IF($C97>T$2,0,IF($C97=T$2,0.5,1)*MIN($F97*$F$88,$F97-SUM($G97:S97))) -> 0 | U97: =IF($C97>U$2,0,IF($C97=U$2,0.5,1)*MIN($F97*$F$88,$F97-SUM($G97:T97))) -> 0 | V97: =IF($C97>V$2,0,IF($C97=V$2,0.5,1)*MIN($F97*$F$88,$F97-SUM($G97:U97))) -> 0 | W97: =IF($C97>W$2,0,IF($C97=W$2,0.5,1)*MIN($F97*$F$88,$F97-SUM($G97:V97))) -> 0 | X97: =IF($C97>X$2,0,IF($C97=X$2,0.5,1)*MIN($F97*$F$88,$F97-SUM($G97:W97))) -> 0 | Y97: =IF($C97>Y$2,0,IF($C97=Y$2,0.5,1)*MIN($F97*$F$88,$F97-SUM($G97:X97))) -> 0 | Z97: =IF($C97>Z$2,0,IF($C97=Z$2,0.5,1)*MIN($F97*$F$88,$F97-SUM($G97:Y97))) -> 0 | AA97: =IF($C97>AA$2,0,IF($C97=AA$2,0.5,1)*MIN($F97*$F$88,$F97-SUM($G97:Z97))) -> 0 | AB97: =IF($C97>AB$2,0,IF($C97=AB$2,0.5,1)*MIN($F97*$F$88,$F97-SUM($G97:AA97))) -> 0
C98: 2030 | D98: тыс. руб. | E98: 8 | F98: 0 | H98: =IF($C98>H$2,0,IF($C98=H$2,0.5,1)*MIN($F98*$F$88,$F98-SUM($G98:G98))) -> 0 | I98: =IF($C98>I$2,0,IF($C98=I$2,0.5,1)*MIN($F98*$F$88,$F98-SUM($G98:H98))) -> 0 | J98: =IF($C98>J$2,0,IF($C98=J$2,0.5,1)*MIN($F98*$F$88,$F98-SUM($G98:I98))) -> 0 | K98: =IF($C98>K$2,0,IF($C98=K$2,0.5,1)*MIN($F98*$F$88,$F98-SUM($G98:J98))) -> 0 | L98: =IF($C98>L$2,0,IF($C98=L$2,0.5,1)*MIN($F98*$F$88,$F98-SUM($G98:K98))) -> 0 | M98: =IF($C98>M$2,0,IF($C98=M$2,0.5,1)*MIN($F98*$F$88,$F98-SUM($G98:L98))) -> 0 | N98: =IF($C98>N$2,0,IF($C98=N$2,0.5,1)*MIN($F98*$F$88,$F98-SUM($G98:M98))) -> 0 | O98: =IF($C98>O$2,0,IF($C98=O$2,0.5,1)*MIN($F98*$F$88,$F98-SUM($G98:N98))) -> 0 | P98: =IF($C98>P$2,0,IF($C98=P$2,0.5,1)*MIN($F98*$F$88,$F98-SUM($G98:O98))) -> 0 | Q98: =IF($C98>Q$2,0,IF($C98=Q$2,0.5,1)*MIN($F98*$F$88,$F98-SUM($G98:P98))) -> 0 | R98: =IF($C98>R$2,0,IF($C98=R$2,0.5,1)*MIN($F98*$F$88,$F98-SUM($G98:Q98))) -> 0 | S98: =IF($C98>S$2,0,IF($C98=S$2,0.5,1)*MIN($F98*$F$88,$F98-SUM($G98:R98))) -> 0 | T98: =IF($C98>T$2,0,IF($C98=T$2,0.5,1)*MIN($F98*$F$88,$F98-SUM($G98:S98))) -> 0 | U98: =IF($C98>U$2,0,IF($C98=U$2,0.5,1)*MIN($F98*$F$88,$F98-SUM($G98:T98))) -> 0 | V98: =IF($C98>V$2,0,IF($C98=V$2,0.5,1)*MIN($F98*$F$88,$F98-SUM($G98:U98))) -> 0 | W98: =IF($C98>W$2,0,IF($C98=W$2,0.5,1)*MIN($F98*$F$88,$F98-SUM($G98:V98))) -> 0 | X98: =IF($C98>X$2,0,IF($C98=X$2,0.5,1)*MIN($F98*$F$88,$F98-SUM($G98:W98))) -> 0 | Y98: =IF($C98>Y$2,0,IF($C98=Y$2,0.5,1)*MIN($F98*$F$88,$F98-SUM($G98:X98))) -> 0 | Z98: =IF($C98>Z$2,0,IF($C98=Z$2,0.5,1)*MIN($F98*$F$88,$F98-SUM($G98:Y98))) -> 0 | AA98: =IF($C98>AA$2,0,IF($C98=AA$2,0.5,1)*MIN($F98*$F$88,$F98-SUM($G98:Z98))) -> 0 | AB98: =IF($C98>AB$2,0,IF($C98=AB$2,0.5,1)*MIN($F98*$F$88,$F98-SUM($G98:AA98))) -> 0
C99: 2031 | D99: тыс. руб. | E99: 9 | F99: 0 | H99: =IF($C99>H$2,0,IF($C99=H$2,0.5,1)*MIN($F99*$F$88,$F99-SUM($G99:G99))) -> 0 | I99: =IF($C99>I$2,0,IF($C99=I$2,0.5,1)*MIN($F99*$F$88,$F99-SUM($G99:H99))) -> 0 | J99: =IF($C99>J$2,0,IF($C99=J$2,0.5,1)*MIN($F99*$F$88,$F99-SUM($G99:I99))) -> 0 | K99: =IF($C99>K$2,0,IF($C99=K$2,0.5,1)*MIN($F99*$F$88,$F99-SUM($G99:J99))) -> 0 | L99: =IF($C99>L$2,0,IF($C99=L$2,0.5,1)*MIN($F99*$F$88,$F99-SUM($G99:K99))) -> 0 | M99: =IF($C99>M$2,0,IF($C99=M$2,0.5,1)*MIN($F99*$F$88,$F99-SUM($G99:L99))) -> 0 | N99: =IF($C99>N$2,0,IF($C99=N$2,0.5,1)*MIN($F99*$F$88,$F99-SUM($G99:M99))) -> 0 | O99: =IF($C99>O$2,0,IF($C99=O$2,0.5,1)*MIN($F99*$F$88,$F99-SUM($G99:N99))) -> 0 | P99: =IF($C99>P$2,0,IF($C99=P$2,0.5,1)*MIN($F99*$F$88,$F99-SUM($G99:O99))) -> 0 | Q99: =IF($C99>Q$2,0,IF($C99=Q$2,0.5,1)*MIN($F99*$F$88,$F99-SUM($G99:P99))) -> 0 | R99: =IF($C99>R$2,0,IF($C99=R$2,0.5,1)*MIN($F99*$F$88,$F99-SUM($G99:Q99))) -> 0 | S99: =IF($C99>S$2,0,IF($C99=S$2,0.5,1)*MIN($F99*$F$88,$F99-SUM($G99:R99))) -> 0 | T99: =IF($C99>T$2,0,IF($C99=T$2,0.5,1)*MIN($F99*$F$88,$F99-SUM($G99:S99))) -> 0 | U99: =IF($C99>U$2,0,IF($C99=U$2,0.5,1)*MIN($F99*$F$88,$F99-SUM($G99:T99))) -> 0 | V99: =IF($C99>V$2,0,IF($C99=V$2,0.5,1)*MIN($F99*$F$88,$F99-SUM($G99:U99))) -> 0 | W99: =IF($C99>W$2,0,IF($C99=W$2,0.5,1)*MIN($F99*$F$88,$F99-SUM($G99:V99))) -> 0 | X99: =IF($C99>X$2,0,IF($C99=X$2,0.5,1)*MIN($F99*$F$88,$F99-SUM($G99:W99))) -> 0 | Y99: =IF($C99>Y$2,0,IF($C99=Y$2,0.5,1)*MIN($F99*$F$88,$F99-SUM($G99:X99))) -> 0 | Z99: =IF($C99>Z$2,0,IF($C99=Z$2,0.5,1)*MIN($F99*$F$88,$F99-SUM($G99:Y99))) -> 0 | AA99: =IF($C99>AA$2,0,IF($C99=AA$2,0.5,1)*MIN($F99*$F$88,$F99-SUM($G99:Z99))) -> 0 | AB99: =IF($C99>AB$2,0,IF($C99=AB$2,0.5,1)*MIN($F99*$F$88,$F99-SUM($G99:AA99))) -> 0
C100: 2032 | D100: тыс. руб. | E100: 10 | F100: 0 | H100: =IF($C100>H$2,0,IF($C100=H$2,0.5,1)*MIN($F100*$F$88,$F100-SUM($G100:G100))) -> 0 | I100: =IF($C100>I$2,0,IF($C100=I$2,0.5,1)*MIN($F100*$F$88,$F100-SUM($G100:H100))) -> 0 | J100: =IF($C100>J$2,0,IF($C100=J$2,0.5,1)*MIN($F100*$F$88,$F100-SUM($G100:I100))) -> 0 | K100: =IF($C100>K$2,0,IF($C100=K$2,0.5,1)*MIN($F100*$F$88,$F100-SUM($G100:J100))) -> 0 | L100: =IF($C100>L$2,0,IF($C100=L$2,0.5,1)*MIN($F100*$F$88,$F100-SUM($G100:K100))) -> 0 | M100: =IF($C100>M$2,0,IF($C100=M$2,0.5,1)*MIN($F100*$F$88,$F100-SUM($G100:L100))) -> 0 | N100: =IF($C100>N$2,0,IF($C100=N$2,0.5,1)*MIN($F100*$F$88,$F100-SUM($G100:M100))) -> 0 | O100: =IF($C100>O$2,0,IF($C100=O$2,0.5,1)*MIN($F100*$F$88,$F100-SUM($G100:N100))) -> 0 | P100: =IF($C100>P$2,0,IF($C100=P$2,0.5,1)*MIN($F100*$F$88,$F100-SUM($G100:O100))) -> 0 | Q100: =IF($C100>Q$2,0,IF($C100=Q$2,0.5,1)*MIN($F100*$F$88,$F100-SUM($G100:P100))) -> 0 | R100: =IF($C100>R$2,0,IF($C100=R$2,0.5,1)*MIN($F100*$F$88,$F100-SUM($G100:Q100))) -> 0 | S100: =IF($C100>S$2,0,IF($C100=S$2,0.5,1)*MIN($F100*$F$88,$F100-SUM($G100:R100))) -> 0 | T100: =IF($C100>T$2,0,IF($C100=T$2,0.5,1)*MIN($F100*$F$88,$F100-SUM($G100:S100))) -> 0 | U100: =IF($C100>U$2,0,IF($C100=U$2,0.5,1)*MIN($F100*$F$88,$F100-SUM($G100:T100))) -> 0 | V100: =IF($C100>V$2,0,IF($C100=V$2,0.5,1)*MIN($F100*$F$88,$F100-SUM($G100:U100))) -> 0 | W100: =IF($C100>W$2,0,IF($C100=W$2,0.5,1)*MIN($F100*$F$88,$F100-SUM($G100:V100))) -> 0 | X100: =IF($C100>X$2,0,IF($C100=X$2,0.5,1)*MIN($F100*$F$88,$F100-SUM($G100:W100))) -> 0 | Y100: =IF($C100>Y$2,0,IF($C100=Y$2,0.5,1)*MIN($F100*$F$88,$F100-SUM($G100:X100))) -> 0 | Z100: =IF($C100>Z$2,0,IF($C100=Z$2,0.5,1)*MIN($F100*$F$88,$F100-SUM($G100:Y100))) -> 0 | AA100: =IF($C100>AA$2,0,IF($C100=AA$2,0.5,1)*MIN($F100*$F$88,$F100-SUM($G100:Z100))) -> 0 | AB100: =IF($C100>AB$2,0,IF($C100=AB$2,0.5,1)*MIN($F100*$F$88,$F100-SUM($G100:AA100))) -> 0
C101: 2033 | D101: тыс. руб. | E101: 11 | F101: 0 | H101: =IF($C101>H$2,0,IF($C101=H$2,0.5,1)*MIN($F101*$F$88,$F101-SUM($G101:G101))) -> 0 | I101: =IF($C101>I$2,0,IF($C101=I$2,0.5,1)*MIN($F101*$F$88,$F101-SUM($G101:H101))) -> 0 | J101: =IF($C101>J$2,0,IF($C101=J$2,0.5,1)*MIN($F101*$F$88,$F101-SUM($G101:I101))) -> 0 | K101: =IF($C101>K$2,0,IF($C101=K$2,0.5,1)*MIN($F101*$F$88,$F101-SUM($G101:J101))) -> 0 | L101: =IF($C101>L$2,0,IF($C101=L$2,0.5,1)*MIN($F101*$F$88,$F101-SUM($G101:K101))) -> 0 | M101: =IF($C101>M$2,0,IF($C101=M$2,0.5,1)*MIN($F101*$F$88,$F101-SUM($G101:L101))) -> 0 | N101: =IF($C101>N$2,0,IF($C101=N$2,0.5,1)*MIN($F101*$F$88,$F101-SUM($G101:M101))) -> 0 | O101: =IF($C101>O$2,0,IF($C101=O$2,0.5,1)*MIN($F101*$F$88,$F101-SUM($G101:N101))) -> 0 | P101: =IF($C101>P$2,0,IF($C101=P$2,0.5,1)*MIN($F101*$F$88,$F101-SUM($G101:O101))) -> 0 | Q101: =IF($C101>Q$2,0,IF($C101=Q$2,0.5,1)*MIN($F101*$F$88,$F101-SUM($G101:P101))) -> 0 | R101: =IF($C101>R$2,0,IF($C101=R$2,0.5,1)*MIN($F101*$F$88,$F101-SUM($G101:Q101))) -> 0 | S101: =IF($C101>S$2,0,IF($C101=S$2,0.5,1)*MIN($F101*$F$88,$F101-SUM($G101:R101))) -> 0 | T101: =IF($C101>T$2,0,IF($C101=T$2,0.5,1)*MIN($F101*$F$88,$F101-SUM($G101:S101))) -> 0 | U101: =IF($C101>U$2,0,IF($C101=U$2,0.5,1)*MIN($F101*$F$88,$F101-SUM($G101:T101))) -> 0 | V101: =IF($C101>V$2,0,IF($C101=V$2,0.5,1)*MIN($F101*$F$88,$F101-SUM($G101:U101))) -> 0 | W101: =IF($C101>W$2,0,IF($C101=W$2,0.5,1)*MIN($F101*$F$88,$F101-SUM($G101:V101))) -> 0 | X101: =IF($C101>X$2,0,IF($C101=X$2,0.5,1)*MIN($F101*$F$88,$F101-SUM($G101:W101))) -> 0 | Y101: =IF($C101>Y$2,0,IF($C101=Y$2,0.5,1)*MIN($F101*$F$88,$F101-SUM($G101:X101))) -> 0 | Z101: =IF($C101>Z$2,0,IF($C101=Z$2,0.5,1)*MIN($F101*$F$88,$F101-SUM($G101:Y101))) -> 0 | AA101: =IF($C101>AA$2,0,IF($C101=AA$2,0.5,1)*MIN($F101*$F$88,$F101-SUM($G101:Z101))) -> 0 | AB101: =IF($C101>AB$2,0,IF($C101=AB$2,0.5,1)*MIN($F101*$F$88,$F101-SUM($G101:AA101))) -> 0
C102: 2034 | D102: тыс. руб. | E102: 12 | F102: 0 | H102: =IF($C102>H$2,0,IF($C102=H$2,0.5,1)*MIN($F102*$F$88,$F102-SUM($G102:G102))) -> 0 | I102: =IF($C102>I$2,0,IF($C102=I$2,0.5,1)*MIN($F102*$F$88,$F102-SUM($G102:H102))) -> 0 | J102: =IF($C102>J$2,0,IF($C102=J$2,0.5,1)*MIN($F102*$F$88,$F102-SUM($G102:I102))) -> 0 | K102: =IF($C102>K$2,0,IF($C102=K$2,0.5,1)*MIN($F102*$F$88,$F102-SUM($G102:J102))) -> 0 | L102: =IF($C102>L$2,0,IF($C102=L$2,0.5,1)*MIN($F102*$F$88,$F102-SUM($G102:K102))) -> 0 | M102: =IF($C102>M$2,0,IF($C102=M$2,0.5,1)*MIN($F102*$F$88,$F102-SUM($G102:L102))) -> 0 | N102: =IF($C102>N$2,0,IF($C102=N$2,0.5,1)*MIN($F102*$F$88,$F102-SUM($G102:M102))) -> 0 | O102: =IF($C102>O$2,0,IF($C102=O$2,0.5,1)*MIN($F102*$F$88,$F102-SUM($G102:N102))) -> 0 | P102: =IF($C102>P$2,0,IF($C102=P$2,0.5,1)*MIN($F102*$F$88,$F102-SUM($G102:O102))) -> 0 | Q102: =IF($C102>Q$2,0,IF($C102=Q$2,0.5,1)*MIN($F102*$F$88,$F102-SUM($G102:P102))) -> 0 | R102: =IF($C102>R$2,0,IF($C102=R$2,0.5,1)*MIN($F102*$F$88,$F102-SUM($G102:Q102))) -> 0 | S102: =IF($C102>S$2,0,IF($C102=S$2,0.5,1)*MIN($F102*$F$88,$F102-SUM($G102:R102))) -> 0 | T102: =IF($C102>T$2,0,IF($C102=T$2,0.5,1)*MIN($F102*$F$88,$F102-SUM($G102:S102))) -> 0 | U102: =IF($C102>U$2,0,IF($C102=U$2,0.5,1)*MIN($F102*$F$88,$F102-SUM($G102:T102))) -> 0 | V102: =IF($C102>V$2,0,IF($C102=V$2,0.5,1)*MIN($F102*$F$88,$F102-SUM($G102:U102))) -> 0 | W102: =IF($C102>W$2,0,IF($C102=W$2,0.5,1)*MIN($F102*$F$88,$F102-SUM($G102:V102))) -> 0 | X102: =IF($C102>X$2,0,IF($C102=X$2,0.5,1)*MIN($F102*$F$88,$F102-SUM($G102:W102))) -> 0 | Y102: =IF($C102>Y$2,0,IF($C102=Y$2,0.5,1)*MIN($F102*$F$88,$F102-SUM($G102:X102))) -> 0 | Z102: =IF($C102>Z$2,0,IF($C102=Z$2,0.5,1)*MIN($F102*$F$88,$F102-SUM($G102:Y102))) -> 0 | AA102: =IF($C102>AA$2,0,IF($C102=AA$2,0.5,1)*MIN($F102*$F$88,$F102-SUM($G102:Z102))) -> 0 | AB102: =IF($C102>AB$2,0,IF($C102=AB$2,0.5,1)*MIN($F102*$F$88,$F102-SUM($G102:AA102))) -> 0
C103: 2035 | D103: тыс. руб. | E103: 13 | F103: 0 | H103: =IF($C103>H$2,0,IF($C103=H$2,0.5,1)*MIN($F103*$F$88,$F103-SUM($G103:G103))) -> 0 | I103: =IF($C103>I$2,0,IF($C103=I$2,0.5,1)*MIN($F103*$F$88,$F103-SUM($G103:H103))) -> 0 | J103: =IF($C103>J$2,0,IF($C103=J$2,0.5,1)*MIN($F103*$F$88,$F103-SUM($G103:I103))) -> 0 | K103: =IF($C103>K$2,0,IF($C103=K$2,0.5,1)*MIN($F103*$F$88,$F103-SUM($G103:J103))) -> 0 | L103: =IF($C103>L$2,0,IF($C103=L$2,0.5,1)*MIN($F103*$F$88,$F103-SUM($G103:K103))) -> 0 | M103: =IF($C103>M$2,0,IF($C103=M$2,0.5,1)*MIN($F103*$F$88,$F103-SUM($G103:L103))) -> 0 | N103: =IF($C103>N$2,0,IF($C103=N$2,0.5,1)*MIN($F103*$F$88,$F103-SUM($G103:M103))) -> 0 | O103: =IF($C103>O$2,0,IF($C103=O$2,0.5,1)*MIN($F103*$F$88,$F103-SUM($G103:N103))) -> 0 | P103: =IF($C103>P$2,0,IF($C103=P$2,0.5,1)*MIN($F103*$F$88,$F103-SUM($G103:O103))) -> 0 | Q103: =IF($C103>Q$2,0,IF($C103=Q$2,0.5,1)*MIN($F103*$F$88,$F103-SUM($G103:P103))) -> 0 | R103: =IF($C103>R$2,0,IF($C103=R$2,0.5,1)*MIN($F103*$F$88,$F103-SUM($G103:Q103))) -> 0 | S103: =IF($C103>S$2,0,IF($C103=S$2,0.5,1)*MIN($F103*$F$88,$F103-SUM($G103:R103))) -> 0 | T103: =IF($C103>T$2,0,IF($C103=T$2,0.5,1)*MIN($F103*$F$88,$F103-SUM($G103:S103))) -> 0 | U103: =IF($C103>U$2,0,IF($C103=U$2,0.5,1)*MIN($F103*$F$88,$F103-SUM($G103:T103))) -> 0 | V103: =IF($C103>V$2,0,IF($C103=V$2,0.5,1)*MIN($F103*$F$88,$F103-SUM($G103:U103))) -> 0 | W103: =IF($C103>W$2,0,IF($C103=W$2,0.5,1)*MIN($F103*$F$88,$F103-SUM($G103:V103))) -> 0 | X103: =IF($C103>X$2,0,IF($C103=X$2,0.5,1)*MIN($F103*$F$88,$F103-SUM($G103:W103))) -> 0 | Y103: =IF($C103>Y$2,0,IF($C103=Y$2,0.5,1)*MIN($F103*$F$88,$F103-SUM($G103:X103))) -> 0 | Z103: =IF($C103>Z$2,0,IF($C103=Z$2,0.5,1)*MIN($F103*$F$88,$F103-SUM($G103:Y103))) -> 0 | AA103: =IF($C103>AA$2,0,IF($C103=AA$2,0.5,1)*MIN($F103*$F$88,$F103-SUM($G103:Z103))) -> 0 | AB103: =IF($C103>AB$2,0,IF($C103=AB$2,0.5,1)*MIN($F103*$F$88,$F103-SUM($G103:AA103))) -> 0
C104: 2036 | D104: тыс. руб. | E104: 14 | F104: 0 | H104: =IF($C104>H$2,0,IF($C104=H$2,0.5,1)*MIN($F104*$F$88,$F104-SUM($G104:G104))) -> 0 | I104: =IF($C104>I$2,0,IF($C104=I$2,0.5,1)*MIN($F104*$F$88,$F104-SUM($G104:H104))) -> 0 | J104: =IF($C104>J$2,0,IF($C104=J$2,0.5,1)*MIN($F104*$F$88,$F104-SUM($G104:I104))) -> 0 | K104: =IF($C104>K$2,0,IF($C104=K$2,0.5,1)*MIN($F104*$F$88,$F104-SUM($G104:J104))) -> 0 | L104: =IF($C104>L$2,0,IF($C104=L$2,0.5,1)*MIN($F104*$F$88,$F104-SUM($G104:K104))) -> 0 | M104: =IF($C104>M$2,0,IF($C104=M$2,0.5,1)*MIN($F104*$F$88,$F104-SUM($G104:L104))) -> 0 | N104: =IF($C104>N$2,0,IF($C104=N$2,0.5,1)*MIN($F104*$F$88,$F104-SUM($G104:M104))) -> 0 | O104: =IF($C104>O$2,0,IF($C104=O$2,0.5,1)*MIN($F104*$F$88,$F104-SUM($G104:N104))) -> 0 | P104: =IF($C104>P$2,0,IF($C104=P$2,0.5,1)*MIN($F104*$F$88,$F104-SUM($G104:O104))) -> 0 | Q104: =IF($C104>Q$2,0,IF($C104=Q$2,0.5,1)*MIN($F104*$F$88,$F104-SUM($G104:P104))) -> 0 | R104: =IF($C104>R$2,0,IF($C104=R$2,0.5,1)*MIN($F104*$F$88,$F104-SUM($G104:Q104))) -> 0 | S104: =IF($C104>S$2,0,IF($C104=S$2,0.5,1)*MIN($F104*$F$88,$F104-SUM($G104:R104))) -> 0 | T104: =IF($C104>T$2,0,IF($C104=T$2,0.5,1)*MIN($F104*$F$88,$F104-SUM($G104:S104))) -> 0 | U104: =IF($C104>U$2,0,IF($C104=U$2,0.5,1)*MIN($F104*$F$88,$F104-SUM($G104:T104))) -> 0 | V104: =IF($C104>V$2,0,IF($C104=V$2,0.5,1)*MIN($F104*$F$88,$F104-SUM($G104:U104))) -> 0 | W104: =IF($C104>W$2,0,IF($C104=W$2,0.5,1)*MIN($F104*$F$88,$F104-SUM($G104:V104))) -> 0 | X104: =IF($C104>X$2,0,IF($C104=X$2,0.5,1)*MIN($F104*$F$88,$F104-SUM($G104:W104))) -> 0 | Y104: =IF($C104>Y$2,0,IF($C104=Y$2,0.5,1)*MIN($F104*$F$88,$F104-SUM($G104:X104))) -> 0 | Z104: =IF($C104>Z$2,0,IF($C104=Z$2,0.5,1)*MIN($F104*$F$88,$F104-SUM($G104:Y104))) -> 0 | AA104: =IF($C104>AA$2,0,IF($C104=AA$2,0.5,1)*MIN($F104*$F$88,$F104-SUM($G104:Z104))) -> 0 | AB104: =IF($C104>AB$2,0,IF($C104=AB$2,0.5,1)*MIN($F104*$F$88,$F104-SUM($G104:AA104))) -> 0
C105: 2037 | D105: тыс. руб. | E105: 15 | F105: 0 | H105: =IF($C105>H$2,0,IF($C105=H$2,0.5,1)*MIN($F105*$F$88,$F105-SUM($G105:G105))) -> 0 | I105: =IF($C105>I$2,0,IF($C105=I$2,0.5,1)*MIN($F105*$F$88,$F105-SUM($G105:H105))) -> 0 | J105: =IF($C105>J$2,0,IF($C105=J$2,0.5,1)*MIN($F105*$F$88,$F105-SUM($G105:I105))) -> 0 | K105: =IF($C105>K$2,0,IF($C105=K$2,0.5,1)*MIN($F105*$F$88,$F105-SUM($G105:J105))) -> 0 | L105: =IF($C105>L$2,0,IF($C105=L$2,0.5,1)*MIN($F105*$F$88,$F105-SUM($G105:K105))) -> 0 | M105: =IF($C105>M$2,0,IF($C105=M$2,0.5,1)*MIN($F105*$F$88,$F105-SUM($G105:L105))) -> 0 | N105: =IF($C105>N$2,0,IF($C105=N$2,0.5,1)*MIN($F105*$F$88,$F105-SUM($G105:M105))) -> 0 | O105: =IF($C105>O$2,0,IF($C105=O$2,0.5,1)*MIN($F105*$F$88,$F105-SUM($G105:N105))) -> 0 | P105: =IF($C105>P$2,0,IF($C105=P$2,0.5,1)*MIN($F105*$F$88,$F105-SUM($G105:O105))) -> 0 | Q105: =IF($C105>Q$2,0,IF($C105=Q$2,0.5,1)*MIN($F105*$F$88,$F105-SUM($G105:P105))) -> 0 | R105: =IF($C105>R$2,0,IF($C105=R$2,0.5,1)*MIN($F105*$F$88,$F105-SUM($G105:Q105))) -> 0 | S105: =IF($C105>S$2,0,IF($C105=S$2,0.5,1)*MIN($F105*$F$88,$F105-SUM($G105:R105))) -> 0 | T105: =IF($C105>T$2,0,IF($C105=T$2,0.5,1)*MIN($F105*$F$88,$F105-SUM($G105:S105))) -> 0 | U105: =IF($C105>U$2,0,IF($C105=U$2,0.5,1)*MIN($F105*$F$88,$F105-SUM($G105:T105))) -> 0 | V105: =IF($C105>V$2,0,IF($C105=V$2,0.5,1)*MIN($F105*$F$88,$F105-SUM($G105:U105))) -> 0 | W105: =IF($C105>W$2,0,IF($C105=W$2,0.5,1)*MIN($F105*$F$88,$F105-SUM($G105:V105))) -> 0 | X105: =IF($C105>X$2,0,IF($C105=X$2,0.5,1)*MIN($F105*$F$88,$F105-SUM($G105:W105))) -> 0 | Y105: =IF($C105>Y$2,0,IF($C105=Y$2,0.5,1)*MIN($F105*$F$88,$F105-SUM($G105:X105))) -> 0 | Z105: =IF($C105>Z$2,0,IF($C105=Z$2,0.5,1)*MIN($F105*$F$88,$F105-SUM($G105:Y105))) -> 0 | AA105: =IF($C105>AA$2,0,IF($C105=AA$2,0.5,1)*MIN($F105*$F$88,$F105-SUM($G105:Z105))) -> 0 | AB105: =IF($C105>AB$2,0,IF($C105=AB$2,0.5,1)*MIN($F105*$F$88,$F105-SUM($G105:AA105))) -> 0
C106: 2038 | D106: тыс. руб. | E106: 16 | F106: 0 | H106: =IF($C106>H$2,0,IF($C106=H$2,0.5,1)*MIN($F106*$F$88,$F106-SUM($G106:G106))) -> 0 | I106: =IF($C106>I$2,0,IF($C106=I$2,0.5,1)*MIN($F106*$F$88,$F106-SUM($G106:H106))) -> 0 | J106: =IF($C106>J$2,0,IF($C106=J$2,0.5,1)*MIN($F106*$F$88,$F106-SUM($G106:I106))) -> 0 | K106: =IF($C106>K$2,0,IF($C106=K$2,0.5,1)*MIN($F106*$F$88,$F106-SUM($G106:J106))) -> 0 | L106: =IF($C106>L$2,0,IF($C106=L$2,0.5,1)*MIN($F106*$F$88,$F106-SUM($G106:K106))) -> 0 | M106: =IF($C106>M$2,0,IF($C106=M$2,0.5,1)*MIN($F106*$F$88,$F106-SUM($G106:L106))) -> 0 | N106: =IF($C106>N$2,0,IF($C106=N$2,0.5,1)*MIN($F106*$F$88,$F106-SUM($G106:M106))) -> 0 | O106: =IF($C106>O$2,0,IF($C106=O$2,0.5,1)*MIN($F106*$F$88,$F106-SUM($G106:N106))) -> 0 | P106: =IF($C106>P$2,0,IF($C106=P$2,0.5,1)*MIN($F106*$F$88,$F106-SUM($G106:O106))) -> 0 | Q106: =IF($C106>Q$2,0,IF($C106=Q$2,0.5,1)*MIN($F106*$F$88,$F106-SUM($G106:P106))) -> 0 | R106: =IF($C106>R$2,0,IF($C106=R$2,0.5,1)*MIN($F106*$F$88,$F106-SUM($G106:Q106))) -> 0 | S106: =IF($C106>S$2,0,IF($C106=S$2,0.5,1)*MIN($F106*$F$88,$F106-SUM($G106:R106))) -> 0 | T106: =IF($C106>T$2,0,IF($C106=T$2,0.5,1)*MIN($F106*$F$88,$F106-SUM($G106:S106))) -> 0 | U106: =IF($C106>U$2,0,IF($C106=U$2,0.5,1)*MIN($F106*$F$88,$F106-SUM($G106:T106))) -> 0 | V106: =IF($C106>V$2,0,IF($C106=V$2,0.5,1)*MIN($F106*$F$88,$F106-SUM($G106:U106))) -> 0 | W106: =IF($C106>W$2,0,IF($C106=W$2,0.5,1)*MIN($F106*$F$88,$F106-SUM($G106:V106))) -> 0 | X106: =IF($C106>X$2,0,IF($C106=X$2,0.5,1)*MIN($F106*$F$88,$F106-SUM($G106:W106))) -> 0 | Y106: =IF($C106>Y$2,0,IF($C106=Y$2,0.5,1)*MIN($F106*$F$88,$F106-SUM($G106:X106))) -> 0 | Z106: =IF($C106>Z$2,0,IF($C106=Z$2,0.5,1)*MIN($F106*$F$88,$F106-SUM($G106:Y106))) -> 0 | AA106: =IF($C106>AA$2,0,IF($C106=AA$2,0.5,1)*MIN($F106*$F$88,$F106-SUM($G106:Z106))) -> 0 | AB106: =IF($C106>AB$2,0,IF($C106=AB$2,0.5,1)*MIN($F106*$F$88,$F106-SUM($G106:AA106))) -> 0
C107: 2039 | D107: тыс. руб. | E107: 17 | F107: 0 | H107: =IF($C107>H$2,0,IF($C107=H$2,0.5,1)*MIN($F107*$F$88,$F107-SUM($G107:G107))) -> 0 | I107: =IF($C107>I$2,0,IF($C107=I$2,0.5,1)*MIN($F107*$F$88,$F107-SUM($G107:H107))) -> 0 | J107: =IF($C107>J$2,0,IF($C107=J$2,0.5,1)*MIN($F107*$F$88,$F107-SUM($G107:I107))) -> 0 | K107: =IF($C107>K$2,0,IF($C107=K$2,0.5,1)*MIN($F107*$F$88,$F107-SUM($G107:J107))) -> 0 | L107: =IF($C107>L$2,0,IF($C107=L$2,0.5,1)*MIN($F107*$F$88,$F107-SUM($G107:K107))) -> 0 | M107: =IF($C107>M$2,0,IF($C107=M$2,0.5,1)*MIN($F107*$F$88,$F107-SUM($G107:L107))) -> 0 | N107: =IF($C107>N$2,0,IF($C107=N$2,0.5,1)*MIN($F107*$F$88,$F107-SUM($G107:M107))) -> 0 | O107: =IF($C107>O$2,0,IF($C107=O$2,0.5,1)*MIN($F107*$F$88,$F107-SUM($G107:N107))) -> 0 | P107: =IF($C107>P$2,0,IF($C107=P$2,0.5,1)*MIN($F107*$F$88,$F107-SUM($G107:O107))) -> 0 | Q107: =IF($C107>Q$2,0,IF($C107=Q$2,0.5,1)*MIN($F107*$F$88,$F107-SUM($G107:P107))) -> 0 | R107: =IF($C107>R$2,0,IF($C107=R$2,0.5,1)*MIN($F107*$F$88,$F107-SUM($G107:Q107))) -> 0 | S107: =IF($C107>S$2,0,IF($C107=S$2,0.5,1)*MIN($F107*$F$88,$F107-SUM($G107:R107))) -> 0 | T107: =IF($C107>T$2,0,IF($C107=T$2,0.5,1)*MIN($F107*$F$88,$F107-SUM($G107:S107))) -> 0 | U107: =IF($C107>U$2,0,IF($C107=U$2,0.5,1)*MIN($F107*$F$88,$F107-SUM($G107:T107))) -> 0 | V107: =IF($C107>V$2,0,IF($C107=V$2,0.5,1)*MIN($F107*$F$88,$F107-SUM($G107:U107))) -> 0 | W107: =IF($C107>W$2,0,IF($C107=W$2,0.5,1)*MIN($F107*$F$88,$F107-SUM($G107:V107))) -> 0 | X107: =IF($C107>X$2,0,IF($C107=X$2,0.5,1)*MIN($F107*$F$88,$F107-SUM($G107:W107))) -> 0 | Y107: =IF($C107>Y$2,0,IF($C107=Y$2,0.5,1)*MIN($F107*$F$88,$F107-SUM($G107:X107))) -> 0 | Z107: =IF($C107>Z$2,0,IF($C107=Z$2,0.5,1)*MIN($F107*$F$88,$F107-SUM($G107:Y107))) -> 0 | AA107: =IF($C107>AA$2,0,IF($C107=AA$2,0.5,1)*MIN($F107*$F$88,$F107-SUM($G107:Z107))) -> 0 | AB107: =IF($C107>AB$2,0,IF($C107=AB$2,0.5,1)*MIN($F107*$F$88,$F107-SUM($G107:AA107))) -> 0
C108: 2040 | D108: тыс. руб. | E108: 18 | F108: 0 | H108: =IF($C108>H$2,0,IF($C108=H$2,0.5,1)*MIN($F108*$F$88,$F108-SUM($G108:G108))) -> 0 | I108: =IF($C108>I$2,0,IF($C108=I$2,0.5,1)*MIN($F108*$F$88,$F108-SUM($G108:H108))) -> 0 | J108: =IF($C108>J$2,0,IF($C108=J$2,0.5,1)*MIN($F108*$F$88,$F108-SUM($G108:I108))) -> 0 | K108: =IF($C108>K$2,0,IF($C108=K$2,0.5,1)*MIN($F108*$F$88,$F108-SUM($G108:J108))) -> 0 | L108: =IF($C108>L$2,0,IF($C108=L$2,0.5,1)*MIN($F108*$F$88,$F108-SUM($G108:K108))) -> 0 | M108: =IF($C108>M$2,0,IF($C108=M$2,0.5,1)*MIN($F108*$F$88,$F108-SUM($G108:L108))) -> 0 | N108: =IF($C108>N$2,0,IF($C108=N$2,0.5,1)*MIN($F108*$F$88,$F108-SUM($G108:M108))) -> 0 | O108: =IF($C108>O$2,0,IF($C108=O$2,0.5,1)*MIN($F108*$F$88,$F108-SUM($G108:N108))) -> 0 | P108: =IF($C108>P$2,0,IF($C108=P$2,0.5,1)*MIN($F108*$F$88,$F108-SUM($G108:O108))) -> 0 | Q108: =IF($C108>Q$2,0,IF($C108=Q$2,0.5,1)*MIN($F108*$F$88,$F108-SUM($G108:P108))) -> 0 | R108: =IF($C108>R$2,0,IF($C108=R$2,0.5,1)*MIN($F108*$F$88,$F108-SUM($G108:Q108))) -> 0 | S108: =IF($C108>S$2,0,IF($C108=S$2,0.5,1)*MIN($F108*$F$88,$F108-SUM($G108:R108))) -> 0 | T108: =IF($C108>T$2,0,IF($C108=T$2,0.5,1)*MIN($F108*$F$88,$F108-SUM($G108:S108))) -> 0 | U108: =IF($C108>U$2,0,IF($C108=U$2,0.5,1)*MIN($F108*$F$88,$F108-SUM($G108:T108))) -> 0 | V108: =IF($C108>V$2,0,IF($C108=V$2,0.5,1)*MIN($F108*$F$88,$F108-SUM($G108:U108))) -> 0 | W108: =IF($C108>W$2,0,IF($C108=W$2,0.5,1)*MIN($F108*$F$88,$F108-SUM($G108:V108))) -> 0 | X108: =IF($C108>X$2,0,IF($C108=X$2,0.5,1)*MIN($F108*$F$88,$F108-SUM($G108:W108))) -> 0 | Y108: =IF($C108>Y$2,0,IF($C108=Y$2,0.5,1)*MIN($F108*$F$88,$F108-SUM($G108:X108))) -> 0 | Z108: =IF($C108>Z$2,0,IF($C108=Z$2,0.5,1)*MIN($F108*$F$88,$F108-SUM($G108:Y108))) -> 0 | AA108: =IF($C108>AA$2,0,IF($C108=AA$2,0.5,1)*MIN($F108*$F$88,$F108-SUM($G108:Z108))) -> 0 | AB108: =IF($C108>AB$2,0,IF($C108=AB$2,0.5,1)*MIN($F108*$F$88,$F108-SUM($G108:AA108))) -> 0
C109: 2041 | D109: тыс. руб. | E109: 19 | F109: 0 | H109: =IF($C109>H$2,0,IF($C109=H$2,0.5,1)*MIN($F109*$F$88,$F109-SUM($G109:G109))) -> 0 | I109: =IF($C109>I$2,0,IF($C109=I$2,0.5,1)*MIN($F109*$F$88,$F109-SUM($G109:H109))) -> 0 | J109: =IF($C109>J$2,0,IF($C109=J$2,0.5,1)*MIN($F109*$F$88,$F109-SUM($G109:I109))) -> 0 | K109: =IF($C109>K$2,0,IF($C109=K$2,0.5,1)*MIN($F109*$F$88,$F109-SUM($G109:J109))) -> 0 | L109: =IF($C109>L$2,0,IF($C109=L$2,0.5,1)*MIN($F109*$F$88,$F109-SUM($G109:K109))) -> 0 | M109: =IF($C109>M$2,0,IF($C109=M$2,0.5,1)*MIN($F109*$F$88,$F109-SUM($G109:L109))) -> 0 | N109: =IF($C109>N$2,0,IF($C109=N$2,0.5,1)*MIN($F109*$F$88,$F109-SUM($G109:M109))) -> 0 | O109: =IF($C109>O$2,0,IF($C109=O$2,0.5,1)*MIN($F109*$F$88,$F109-SUM($G109:N109))) -> 0 | P109: =IF($C109>P$2,0,IF($C109=P$2,0.5,1)*MIN($F109*$F$88,$F109-SUM($G109:O109))) -> 0 | Q109: =IF($C109>Q$2,0,IF($C109=Q$2,0.5,1)*MIN($F109*$F$88,$F109-SUM($G109:P109))) -> 0 | R109: =IF($C109>R$2,0,IF($C109=R$2,0.5,1)*MIN($F109*$F$88,$F109-SUM($G109:Q109))) -> 0 | S109: =IF($C109>S$2,0,IF($C109=S$2,0.5,1)*MIN($F109*$F$88,$F109-SUM($G109:R109))) -> 0 | T109: =IF($C109>T$2,0,IF($C109=T$2,0.5,1)*MIN($F109*$F$88,$F109-SUM($G109:S109))) -> 0 | U109: =IF($C109>U$2,0,IF($C109=U$2,0.5,1)*MIN($F109*$F$88,$F109-SUM($G109:T109))) -> 0 | V109: =IF($C109>V$2,0,IF($C109=V$2,0.5,1)*MIN($F109*$F$88,$F109-SUM($G109:U109))) -> 0 | W109: =IF($C109>W$2,0,IF($C109=W$2,0.5,1)*MIN($F109*$F$88,$F109-SUM($G109:V109))) -> 0 | X109: =IF($C109>X$2,0,IF($C109=X$2,0.5,1)*MIN($F109*$F$88,$F109-SUM($G109:W109))) -> 0 | Y109: =IF($C109>Y$2,0,IF($C109=Y$2,0.5,1)*MIN($F109*$F$88,$F109-SUM($G109:X109))) -> 0 | Z109: =IF($C109>Z$2,0,IF($C109=Z$2,0.5,1)*MIN($F109*$F$88,$F109-SUM($G109:Y109))) -> 0 | AA109: =IF($C109>AA$2,0,IF($C109=AA$2,0.5,1)*MIN($F109*$F$88,$F109-SUM($G109:Z109))) -> 0 | AB109: =IF($C109>AB$2,0,IF($C109=AB$2,0.5,1)*MIN($F109*$F$88,$F109-SUM($G109:AA109))) -> 0
C110: 2042 | D110: тыс. руб. | E110: 20 | F110: 0 | H110: =IF($C110>H$2,0,IF($C110=H$2,0.5,1)*MIN($F110*$F$88,$F110-SUM($G110:G110))) -> 0 | I110: =IF($C110>I$2,0,IF($C110=I$2,0.5,1)*MIN($F110*$F$88,$F110-SUM($G110:H110))) -> 0 | J110: =IF($C110>J$2,0,IF($C110=J$2,0.5,1)*MIN($F110*$F$88,$F110-SUM($G110:I110))) -> 0 | K110: =IF($C110>K$2,0,IF($C110=K$2,0.5,1)*MIN($F110*$F$88,$F110-SUM($G110:J110))) -> 0 | L110: =IF($C110>L$2,0,IF($C110=L$2,0.5,1)*MIN($F110*$F$88,$F110-SUM($G110:K110))) -> 0 | M110: =IF($C110>M$2,0,IF($C110=M$2,0.5,1)*MIN($F110*$F$88,$F110-SUM($G110:L110))) -> 0 | N110: =IF($C110>N$2,0,IF($C110=N$2,0.5,1)*MIN($F110*$F$88,$F110-SUM($G110:M110))) -> 0 | O110: =IF($C110>O$2,0,IF($C110=O$2,0.5,1)*MIN($F110*$F$88,$F110-SUM($G110:N110))) -> 0 | P110: =IF($C110>P$2,0,IF($C110=P$2,0.5,1)*MIN($F110*$F$88,$F110-SUM($G110:O110))) -> 0 | Q110: =IF($C110>Q$2,0,IF($C110=Q$2,0.5,1)*MIN($F110*$F$88,$F110-SUM($G110:P110))) -> 0 | R110: =IF($C110>R$2,0,IF($C110=R$2,0.5,1)*MIN($F110*$F$88,$F110-SUM($G110:Q110))) -> 0 | S110: =IF($C110>S$2,0,IF($C110=S$2,0.5,1)*MIN($F110*$F$88,$F110-SUM($G110:R110))) -> 0 | T110: =IF($C110>T$2,0,IF($C110=T$2,0.5,1)*MIN($F110*$F$88,$F110-SUM($G110:S110))) -> 0 | U110: =IF($C110>U$2,0,IF($C110=U$2,0.5,1)*MIN($F110*$F$88,$F110-SUM($G110:T110))) -> 0 | V110: =IF($C110>V$2,0,IF($C110=V$2,0.5,1)*MIN($F110*$F$88,$F110-SUM($G110:U110))) -> 0 | W110: =IF($C110>W$2,0,IF($C110=W$2,0.5,1)*MIN($F110*$F$88,$F110-SUM($G110:V110))) -> 0 | X110: =IF($C110>X$2,0,IF($C110=X$2,0.5,1)*MIN($F110*$F$88,$F110-SUM($G110:W110))) -> 0 | Y110: =IF($C110>Y$2,0,IF($C110=Y$2,0.5,1)*MIN($F110*$F$88,$F110-SUM($G110:X110))) -> 0 | Z110: =IF($C110>Z$2,0,IF($C110=Z$2,0.5,1)*MIN($F110*$F$88,$F110-SUM($G110:Y110))) -> 0 | AA110: =IF($C110>AA$2,0,IF($C110=AA$2,0.5,1)*MIN($F110*$F$88,$F110-SUM($G110:Z110))) -> 0 | AB110: =IF($C110>AB$2,0,IF($C110=AB$2,0.5,1)*MIN($F110*$F$88,$F110-SUM($G110:AA110))) -> 0
C112: Первоначальная стоимость активов | D112: тыс. руб. | H112: =G112+H38 -> 0 | I112: 0 | J112: 0 | K112: 0 | L112: 0 | M112: 0 | N112: 0 | O112: 0 | P112: 0 | Q112: 0 | R112: 0 | S112: 0 | T112: 0 | U112: 0 | V112: 0 | W112: 0 | X112: 0 | Y112: 0 | Z112: 0 | AA112: 0 | AB112: 0
C113: Амортизация за период | D113: тыс. руб. | H113: =H90 -> 0 | I113: 0 | J113: 0 | K113: 0 | L113: 0 | M113: 0 | N113: 0 | O113: 0 | P113: 0 | Q113: 0 | R113: 0 | S113: 0 | T113: 0 | U113: 0 | V113: 0 | W113: 0 | X113: 0 | Y113: 0 | Z113: 0 | AA113: 0 | AB113: 0
C114: Накопленная амортизация | D114: тыс. руб. | H114: =G114+H113 -> 0 | I114: 0 | J114: 0 | K114: 0 | L114: 0 | M114: 0 | N114: 0 | O114: 0 | P114: 0 | Q114: 0 | R114: 0 | S114: 0 | T114: 0 | U114: 0 | V114: 0 | W114: 0 | X114: 0 | Y114: 0 | Z114: 0 | AA114: 0 | AB114: 0
C115: Остаточная стоимость активов | D115: тыс. руб. | H115: =H112-H114 -> 0 | I115: 0 | J115: 0 | K115: 0 | L115: 0 | M115: 0 | N115: 0 | O115: 0 | P115: 0 | Q115: 0 | R115: 0 | S115: 0 | T115: 0 | U115: 0 | V115: =V112-V114 -> 0 | W115: 0 | X115: 0 | Y115: 0 | Z115: 0 | AA115: 0 | AB115: 0
B117: Транспортные средства
C119: Ставка амортизации | D119: % | F119: =Предпосылки!F193 -> 0.1428571429
C121: Амортизация | D121: тыс. руб. | H121: =SUM(H122:H141) -> 0 | I121: =SUM(I122:I141) -> 0 | J121: 0 | K121: 0 | L121: 0 | M121: 0 | N121: 0 | O121: 0 | P121: 0 | Q121: 0 | R121: 0 | S121: 0 | T121: 0 | U121: 0 | V121: 0 | W121: 0 | X121: 0 | Y121: 0 | Z121: 0 | AA121: 0 | AB121: 0
C122: =INDEX(H$2:AA$2,,$E122) -> 2023 | D122: тыс. руб. | E122: 1 | F122: =OFFSET($G$40,,E122) -> 0 | H122: =IF($C122>H$2,0,IF($C122=H$2,0.5,1)*MIN($F122*$F$119,$F122-SUM($G122:G122))) -> 0 | I122: =IF($C122>I$2,0,IF($C122=I$2,0.5,1)*MIN($F122*$F$119,$F122-SUM($G122:H122))) -> 0 | J122: =IF($C122>J$2,0,IF($C122=J$2,0.5,1)*MIN($F122*$F$119,$F122-SUM($G122:I122))) -> 0 | K122: =IF($C122>K$2,0,IF($C122=K$2,0.5,1)*MIN($F122*$F$119,$F122-SUM($G122:J122))) -> 0 | L122: =IF($C122>L$2,0,IF($C122=L$2,0.5,1)*MIN($F122*$F$119,$F122-SUM($G122:K122))) -> 0 | M122: =IF($C122>M$2,0,IF($C122=M$2,0.5,1)*MIN($F122*$F$119,$F122-SUM($G122:L122))) -> 0 | N122: =IF($C122>N$2,0,IF($C122=N$2,0.5,1)*MIN($F122*$F$119,$F122-SUM($G122:M122))) -> 0 | O122: =IF($C122>O$2,0,IF($C122=O$2,0.5,1)*MIN($F122*$F$119,$F122-SUM($G122:N122))) -> 0 | P122: =IF($C122>P$2,0,IF($C122=P$2,0.5,1)*MIN($F122*$F$119,$F122-SUM($G122:O122))) -> 0 | Q122: =IF($C122>Q$2,0,IF($C122=Q$2,0.5,1)*MIN($F122*$F$119,$F122-SUM($G122:P122))) -> 0 | R122: =IF($C122>R$2,0,IF($C122=R$2,0.5,1)*MIN($F122*$F$119,$F122-SUM($G122:Q122))) -> 0 | S122: =IF($C122>S$2,0,IF($C122=S$2,0.5,1)*MIN($F122*$F$119,$F122-SUM($G122:R122))) -> 0 | T122: =IF($C122>T$2,0,IF($C122=T$2,0.5,1)*MIN($F122*$F$119,$F122-SUM($G122:S122))) -> 0 | U122: =IF($C122>U$2,0,IF($C122=U$2,0.5,1)*MIN($F122*$F$119,$F122-SUM($G122:T122))) -> 0 | V122: =IF($C122>V$2,0,IF($C122=V$2,0.5,1)*MIN($F122*$F$119,$F122-SUM($G122:U122))) -> 0 | W122: =IF($C122>W$2,0,IF($C122=W$2,0.5,1)*MIN($F122*$F$119,$F122-SUM($G122:V122))) -> 0 | X122: =IF($C122>X$2,0,IF($C122=X$2,0.5,1)*MIN($F122*$F$119,$F122-SUM($G122:W122))) -> 0 | Y122: =IF($C122>Y$2,0,IF($C122=Y$2,0.5,1)*MIN($F122*$F$119,$F122-SUM($G122:X122))) -> 0 | Z122: =IF($C122>Z$2,0,IF($C122=Z$2,0.5,1)*MIN($F122*$F$119,$F122-SUM($G122:Y122))) -> 0 | AA122: =IF($C122>AA$2,0,IF($C122=AA$2,0.5,1)*MIN($F122*$F$119,$F122-SUM($G122:Z122))) -> 0 | AB122: =IF($C122>AB$2,0,IF($C122=AB$2,0.5,1)*MIN($F122*$F$119,$F122-SUM($G122:AA122))) -> 0
C123: =INDEX(H$2:AA$2,,$E123) -> 2024 | D123: тыс. руб. | E123: 2 | F123: =OFFSET($G$40,,E123) -> 0 | H123: =IF($C123>H$2,0,IF($C123=H$2,0.5,1)*MIN($F123*$F$119,$F123-SUM($G123:G123))) -> 0 | I123: =IF($C123>I$2,0,IF($C123=I$2,0.5,1)*MIN($F123*$F$119,$F123-SUM($G123:H123))) -> 0 | J123: =IF($C123>J$2,0,IF($C123=J$2,0.5,1)*MIN($F123*$F$119,$F123-SUM($G123:I123))) -> 0 | K123: =IF($C123>K$2,0,IF($C123=K$2,0.5,1)*MIN($F123*$F$119,$F123-SUM($G123:J123))) -> 0 | L123: =IF($C123>L$2,0,IF($C123=L$2,0.5,1)*MIN($F123*$F$119,$F123-SUM($G123:K123))) -> 0 | M123: =IF($C123>M$2,0,IF($C123=M$2,0.5,1)*MIN($F123*$F$119,$F123-SUM($G123:L123))) -> 0 | N123: =IF($C123>N$2,0,IF($C123=N$2,0.5,1)*MIN($F123*$F$119,$F123-SUM($G123:M123))) -> 0 | O123: =IF($C123>O$2,0,IF($C123=O$2,0.5,1)*MIN($F123*$F$119,$F123-SUM($G123:N123))) -> 0 | P123: =IF($C123>P$2,0,IF($C123=P$2,0.5,1)*MIN($F123*$F$119,$F123-SUM($G123:O123))) -> 0 | Q123: =IF($C123>Q$2,0,IF($C123=Q$2,0.5,1)*MIN($F123*$F$119,$F123-SUM($G123:P123))) -> 0 | R123: =IF($C123>R$2,0,IF($C123=R$2,0.5,1)*MIN($F123*$F$119,$F123-SUM($G123:Q123))) -> 0 | S123: =IF($C123>S$2,0,IF($C123=S$2,0.5,1)*MIN($F123*$F$119,$F123-SUM($G123:R123))) -> 0 | T123: =IF($C123>T$2,0,IF($C123=T$2,0.5,1)*MIN($F123*$F$119,$F123-SUM($G123:S123))) -> 0 | U123: =IF($C123>U$2,0,IF($C123=U$2,0.5,1)*MIN($F123*$F$119,$F123-SUM($G123:T123))) -> 0 | V123: =IF($C123>V$2,0,IF($C123=V$2,0.5,1)*MIN($F123*$F$119,$F123-SUM($G123:U123))) -> 0 | W123: =IF($C123>W$2,0,IF($C123=W$2,0.5,1)*MIN($F123*$F$119,$F123-SUM($G123:V123))) -> 0 | X123: =IF($C123>X$2,0,IF($C123=X$2,0.5,1)*MIN($F123*$F$119,$F123-SUM($G123:W123))) -> 0 | Y123: =IF($C123>Y$2,0,IF($C123=Y$2,0.5,1)*MIN($F123*$F$119,$F123-SUM($G123:X123))) -> 0 | Z123: =IF($C123>Z$2,0,IF($C123=Z$2,0.5,1)*MIN($F123*$F$119,$F123-SUM($G123:Y123))) -> 0 | AA123: =IF($C123>AA$2,0,IF($C123=AA$2,0.5,1)*MIN($F123*$F$119,$F123-SUM($G123:Z123))) -> 0 | AB123: =IF($C123>AB$2,0,IF($C123=AB$2,0.5,1)*MIN($F123*$F$119,$F123-SUM($G123:AA123))) -> 0
C124: 2025 | D124: тыс. руб. | E124: 3 | F124: 0 | H124: =IF($C124>H$2,0,IF($C124=H$2,0.5,1)*MIN($F124*$F$119,$F124-SUM($G124:G124))) -> 0 | I124: =IF($C124>I$2,0,IF($C124=I$2,0.5,1)*MIN($F124*$F$119,$F124-SUM($G124:H124))) -> 0 | J124: =IF($C124>J$2,0,IF($C124=J$2,0.5,1)*MIN($F124*$F$119,$F124-SUM($G124:I124))) -> 0 | K124: =IF($C124>K$2,0,IF($C124=K$2,0.5,1)*MIN($F124*$F$119,$F124-SUM($G124:J124))) -> 0 | L124: =IF($C124>L$2,0,IF($C124=L$2,0.5,1)*MIN($F124*$F$119,$F124-SUM($G124:K124))) -> 0 | M124: =IF($C124>M$2,0,IF($C124=M$2,0.5,1)*MIN($F124*$F$119,$F124-SUM($G124:L124))) -> 0 | N124: =IF($C124>N$2,0,IF($C124=N$2,0.5,1)*MIN($F124*$F$119,$F124-SUM($G124:M124))) -> 0 | O124: =IF($C124>O$2,0,IF($C124=O$2,0.5,1)*MIN($F124*$F$119,$F124-SUM($G124:N124))) -> 0 | P124: =IF($C124>P$2,0,IF($C124=P$2,0.5,1)*MIN($F124*$F$119,$F124-SUM($G124:O124))) -> 0 | Q124: =IF($C124>Q$2,0,IF($C124=Q$2,0.5,1)*MIN($F124*$F$119,$F124-SUM($G124:P124))) -> 0 | R124: =IF($C124>R$2,0,IF($C124=R$2,0.5,1)*MIN($F124*$F$119,$F124-SUM($G124:Q124))) -> 0 | S124: =IF($C124>S$2,0,IF($C124=S$2,0.5,1)*MIN($F124*$F$119,$F124-SUM($G124:R124))) -> 0 | T124: =IF($C124>T$2,0,IF($C124=T$2,0.5,1)*MIN($F124*$F$119,$F124-SUM($G124:S124))) -> 0 | U124: =IF($C124>U$2,0,IF($C124=U$2,0.5,1)*MIN($F124*$F$119,$F124-SUM($G124:T124))) -> 0 | V124: =IF($C124>V$2,0,IF($C124=V$2,0.5,1)*MIN($F124*$F$119,$F124-SUM($G124:U124))) -> 0 | W124: =IF($C124>W$2,0,IF($C124=W$2,0.5,1)*MIN($F124*$F$119,$F124-SUM($G124:V124))) -> 0 | X124: =IF($C124>X$2,0,IF($C124=X$2,0.5,1)*MIN($F124*$F$119,$F124-SUM($G124:W124))) -> 0 | Y124: =IF($C124>Y$2,0,IF($C124=Y$2,0.5,1)*MIN($F124*$F$119,$F124-SUM($G124:X124))) -> 0 | Z124: =IF($C124>Z$2,0,IF($C124=Z$2,0.5,1)*MIN($F124*$F$119,$F124-SUM($G124:Y124))) -> 0 | AA124: =IF($C124>AA$2,0,IF($C124=AA$2,0.5,1)*MIN($F124*$F$119,$F124-SUM($G124:Z124))) -> 0 | AB124: =IF($C124>AB$2,0,IF($C124=AB$2,0.5,1)*MIN($F124*$F$119,$F124-SUM($G124:AA124))) -> 0
C125: 2026 | D125: тыс. руб. | E125: 4 | F125: 0 | H125: =IF($C125>H$2,0,IF($C125=H$2,0.5,1)*MIN($F125*$F$119,$F125-SUM($G125:G125))) -> 0 | I125: =IF($C125>I$2,0,IF($C125=I$2,0.5,1)*MIN($F125*$F$119,$F125-SUM($G125:H125))) -> 0 | J125: =IF($C125>J$2,0,IF($C125=J$2,0.5,1)*MIN($F125*$F$119,$F125-SUM($G125:I125))) -> 0 | K125: =IF($C125>K$2,0,IF($C125=K$2,0.5,1)*MIN($F125*$F$119,$F125-SUM($G125:J125))) -> 0 | L125: =IF($C125>L$2,0,IF($C125=L$2,0.5,1)*MIN($F125*$F$119,$F125-SUM($G125:K125))) -> 0 | M125: =IF($C125>M$2,0,IF($C125=M$2,0.5,1)*MIN($F125*$F$119,$F125-SUM($G125:L125))) -> 0 | N125: =IF($C125>N$2,0,IF($C125=N$2,0.5,1)*MIN($F125*$F$119,$F125-SUM($G125:M125))) -> 0 | O125: =IF($C125>O$2,0,IF($C125=O$2,0.5,1)*MIN($F125*$F$119,$F125-SUM($G125:N125))) -> 0 | P125: =IF($C125>P$2,0,IF($C125=P$2,0.5,1)*MIN($F125*$F$119,$F125-SUM($G125:O125))) -> 0 | Q125: =IF($C125>Q$2,0,IF($C125=Q$2,0.5,1)*MIN($F125*$F$119,$F125-SUM($G125:P125))) -> 0 | R125: =IF($C125>R$2,0,IF($C125=R$2,0.5,1)*MIN($F125*$F$119,$F125-SUM($G125:Q125))) -> 0 | S125: =IF($C125>S$2,0,IF($C125=S$2,0.5,1)*MIN($F125*$F$119,$F125-SUM($G125:R125))) -> 0 | T125: =IF($C125>T$2,0,IF($C125=T$2,0.5,1)*MIN($F125*$F$119,$F125-SUM($G125:S125))) -> 0 | U125: =IF($C125>U$2,0,IF($C125=U$2,0.5,1)*MIN($F125*$F$119,$F125-SUM($G125:T125))) -> 0 | V125: =IF($C125>V$2,0,IF($C125=V$2,0.5,1)*MIN($F125*$F$119,$F125-SUM($G125:U125))) -> 0 | W125: =IF($C125>W$2,0,IF($C125=W$2,0.5,1)*MIN($F125*$F$119,$F125-SUM($G125:V125))) -> 0 | X125: =IF($C125>X$2,0,IF($C125=X$2,0.5,1)*MIN($F125*$F$119,$F125-SUM($G125:W125))) -> 0 | Y125: =IF($C125>Y$2,0,IF($C125=Y$2,0.5,1)*MIN($F125*$F$119,$F125-SUM($G125:X125))) -> 0 | Z125: =IF($C125>Z$2,0,IF($C125=Z$2,0.5,1)*MIN($F125*$F$119,$F125-SUM($G125:Y125))) -> 0 | AA125: =IF($C125>AA$2,0,IF($C125=AA$2,0.5,1)*MIN($F125*$F$119,$F125-SUM($G125:Z125))) -> 0 | AB125: =IF($C125>AB$2,0,IF($C125=AB$2,0.5,1)*MIN($F125*$F$119,$F125-SUM($G125:AA125))) -> 0
C126: 2027 | D126: тыс. руб. | E126: 5 | F126: 0 | H126: =IF($C126>H$2,0,IF($C126=H$2,0.5,1)*MIN($F126*$F$119,$F126-SUM($G126:G126))) -> 0 | I126: =IF($C126>I$2,0,IF($C126=I$2,0.5,1)*MIN($F126*$F$119,$F126-SUM($G126:H126))) -> 0 | J126: =IF($C126>J$2,0,IF($C126=J$2,0.5,1)*MIN($F126*$F$119,$F126-SUM($G126:I126))) -> 0 | K126: =IF($C126>K$2,0,IF($C126=K$2,0.5,1)*MIN($F126*$F$119,$F126-SUM($G126:J126))) -> 0 | L126: =IF($C126>L$2,0,IF($C126=L$2,0.5,1)*MIN($F126*$F$119,$F126-SUM($G126:K126))) -> 0 | M126: =IF($C126>M$2,0,IF($C126=M$2,0.5,1)*MIN($F126*$F$119,$F126-SUM($G126:L126))) -> 0 | N126: =IF($C126>N$2,0,IF($C126=N$2,0.5,1)*MIN($F126*$F$119,$F126-SUM($G126:M126))) -> 0 | O126: =IF($C126>O$2,0,IF($C126=O$2,0.5,1)*MIN($F126*$F$119,$F126-SUM($G126:N126))) -> 0 | P126: =IF($C126>P$2,0,IF($C126=P$2,0.5,1)*MIN($F126*$F$119,$F126-SUM($G126:O126))) -> 0 | Q126: =IF($C126>Q$2,0,IF($C126=Q$2,0.5,1)*MIN($F126*$F$119,$F126-SUM($G126:P126))) -> 0 | R126: =IF($C126>R$2,0,IF($C126=R$2,0.5,1)*MIN($F126*$F$119,$F126-SUM($G126:Q126))) -> 0 | S126: =IF($C126>S$2,0,IF($C126=S$2,0.5,1)*MIN($F126*$F$119,$F126-SUM($G126:R126))) -> 0 | T126: =IF($C126>T$2,0,IF($C126=T$2,0.5,1)*MIN($F126*$F$119,$F126-SUM($G126:S126))) -> 0 | U126: =IF($C126>U$2,0,IF($C126=U$2,0.5,1)*MIN($F126*$F$119,$F126-SUM($G126:T126))) -> 0 | V126: =IF($C126>V$2,0,IF($C126=V$2,0.5,1)*MIN($F126*$F$119,$F126-SUM($G126:U126))) -> 0 | W126: =IF($C126>W$2,0,IF($C126=W$2,0.5,1)*MIN($F126*$F$119,$F126-SUM($G126:V126))) -> 0 | X126: =IF($C126>X$2,0,IF($C126=X$2,0.5,1)*MIN($F126*$F$119,$F126-SUM($G126:W126))) -> 0 | Y126: =IF($C126>Y$2,0,IF($C126=Y$2,0.5,1)*MIN($F126*$F$119,$F126-SUM($G126:X126))) -> 0 | Z126: =IF($C126>Z$2,0,IF($C126=Z$2,0.5,1)*MIN($F126*$F$119,$F126-SUM($G126:Y126))) -> 0 | AA126: =IF($C126>AA$2,0,IF($C126=AA$2,0.5,1)*MIN($F126*$F$119,$F126-SUM($G126:Z126))) -> 0 | AB126: =IF($C126>AB$2,0,IF($C126=AB$2,0.5,1)*MIN($F126*$F$119,$F126-SUM($G126:AA126))) -> 0
C127: 2028 | D127: тыс. руб. | E127: 6 | F127: 0 | H127: =IF($C127>H$2,0,IF($C127=H$2,0.5,1)*MIN($F127*$F$119,$F127-SUM($G127:G127))) -> 0 | I127: =IF($C127>I$2,0,IF($C127=I$2,0.5,1)*MIN($F127*$F$119,$F127-SUM($G127:H127))) -> 0 | J127: =IF($C127>J$2,0,IF($C127=J$2,0.5,1)*MIN($F127*$F$119,$F127-SUM($G127:I127))) -> 0 | K127: =IF($C127>K$2,0,IF($C127=K$2,0.5,1)*MIN($F127*$F$119,$F127-SUM($G127:J127))) -> 0 | L127: =IF($C127>L$2,0,IF($C127=L$2,0.5,1)*MIN($F127*$F$119,$F127-SUM($G127:K127))) -> 0 | M127: =IF($C127>M$2,0,IF($C127=M$2,0.5,1)*MIN($F127*$F$119,$F127-SUM($G127:L127))) -> 0 | N127: =IF($C127>N$2,0,IF($C127=N$2,0.5,1)*MIN($F127*$F$119,$F127-SUM($G127:M127))) -> 0 | O127: =IF($C127>O$2,0,IF($C127=O$2,0.5,1)*MIN($F127*$F$119,$F127-SUM($G127:N127))) -> 0 | P127: =IF($C127>P$2,0,IF($C127=P$2,0.5,1)*MIN($F127*$F$119,$F127-SUM($G127:O127))) -> 0 | Q127: =IF($C127>Q$2,0,IF($C127=Q$2,0.5,1)*MIN($F127*$F$119,$F127-SUM($G127:P127))) -> 0 | R127: =IF($C127>R$2,0,IF($C127=R$2,0.5,1)*MIN($F127*$F$119,$F127-SUM($G127:Q127))) -> 0 | S127: =IF($C127>S$2,0,IF($C127=S$2,0.5,1)*MIN($F127*$F$119,$F127-SUM($G127:R127))) -> 0 | T127: =IF($C127>T$2,0,IF($C127=T$2,0.5,1)*MIN($F127*$F$119,$F127-SUM($G127:S127))) -> 0 | U127: =IF($C127>U$2,0,IF($C127=U$2,0.5,1)*MIN($F127*$F$119,$F127-SUM($G127:T127))) -> 0 | V127: =IF($C127>V$2,0,IF($C127=V$2,0.5,1)*MIN($F127*$F$119,$F127-SUM($G127:U127))) -> 0 | W127: =IF($C127>W$2,0,IF($C127=W$2,0.5,1)*MIN($F127*$F$119,$F127-SUM($G127:V127))) -> 0 | X127: =IF($C127>X$2,0,IF($C127=X$2,0.5,1)*MIN($F127*$F$119,$F127-SUM($G127:W127))) -> 0 | Y127: =IF($C127>Y$2,0,IF($C127=Y$2,0.5,1)*MIN($F127*$F$119,$F127-SUM($G127:X127))) -> 0 | Z127: =IF($C127>Z$2,0,IF($C127=Z$2,0.5,1)*MIN($F127*$F$119,$F127-SUM($G127:Y127))) -> 0 | AA127: =IF($C127>AA$2,0,IF($C127=AA$2,0.5,1)*MIN($F127*$F$119,$F127-SUM($G127:Z127))) -> 0 | AB127: =IF($C127>AB$2,0,IF($C127=AB$2,0.5,1)*MIN($F127*$F$119,$F127-SUM($G127:AA127))) -> 0
C128: 2029 | D128: тыс. руб. | E128: 7 | F128: 0 | H128: =IF($C128>H$2,0,IF($C128=H$2,0.5,1)*MIN($F128*$F$119,$F128-SUM($G128:G128))) -> 0 | I128: =IF($C128>I$2,0,IF($C128=I$2,0.5,1)*MIN($F128*$F$119,$F128-SUM($G128:H128))) -> 0 | J128: =IF($C128>J$2,0,IF($C128=J$2,0.5,1)*MIN($F128*$F$119,$F128-SUM($G128:I128))) -> 0 | K128: =IF($C128>K$2,0,IF($C128=K$2,0.5,1)*MIN($F128*$F$119,$F128-SUM($G128:J128))) -> 0 | L128: =IF($C128>L$2,0,IF($C128=L$2,0.5,1)*MIN($F128*$F$119,$F128-SUM($G128:K128))) -> 0 | M128: =IF($C128>M$2,0,IF($C128=M$2,0.5,1)*MIN($F128*$F$119,$F128-SUM($G128:L128))) -> 0 | N128: =IF($C128>N$2,0,IF($C128=N$2,0.5,1)*MIN($F128*$F$119,$F128-SUM($G128:M128))) -> 0 | O128: =IF($C128>O$2,0,IF($C128=O$2,0.5,1)*MIN($F128*$F$119,$F128-SUM($G128:N128))) -> 0 | P128: =IF($C128>P$2,0,IF($C128=P$2,0.5,1)*MIN($F128*$F$119,$F128-SUM($G128:O128))) -> 0 | Q128: =IF($C128>Q$2,0,IF($C128=Q$2,0.5,1)*MIN($F128*$F$119,$F128-SUM($G128:P128))) -> 0 | R128: =IF($C128>R$2,0,IF($C128=R$2,0.5,1)*MIN($F128*$F$119,$F128-SUM($G128:Q128))) -> 0 | S128: =IF($C128>S$2,0,IF($C128=S$2,0.5,1)*MIN($F128*$F$119,$F128-SUM($G128:R128))) -> 0 | T128: =IF($C128>T$2,0,IF($C128=T$2,0.5,1)*MIN($F128*$F$119,$F128-SUM($G128:S128))) -> 0 | U128: =IF($C128>U$2,0,IF($C128=U$2,0.5,1)*MIN($F128*$F$119,$F128-SUM($G128:T128))) -> 0 | V128: =IF($C128>V$2,0,IF($C128=V$2,0.5,1)*MIN($F128*$F$119,$F128-SUM($G128:U128))) -> 0 | W128: =IF($C128>W$2,0,IF($C128=W$2,0.5,1)*MIN($F128*$F$119,$F128-SUM($G128:V128))) -> 0 | X128: =IF($C128>X$2,0,IF($C128=X$2,0.5,1)*MIN($F128*$F$119,$F128-SUM($G128:W128))) -> 0 | Y128: =IF($C128>Y$2,0,IF($C128=Y$2,0.5,1)*MIN($F128*$F$119,$F128-SUM($G128:X128))) -> 0 | Z128: =IF($C128>Z$2,0,IF($C128=Z$2,0.5,1)*MIN($F128*$F$119,$F128-SUM($G128:Y128))) -> 0 | AA128: =IF($C128>AA$2,0,IF($C128=AA$2,0.5,1)*MIN($F128*$F$119,$F128-SUM($G128:Z128))) -> 0 | AB128: =IF($C128>AB$2,0,IF($C128=AB$2,0.5,1)*MIN($F128*$F$119,$F128-SUM($G128:AA128))) -> 0
C129: 2030 | D129: тыс. руб. | E129: 8 | F129: 0 | H129: =IF($C129>H$2,0,IF($C129=H$2,0.5,1)*MIN($F129*$F$119,$F129-SUM($G129:G129))) -> 0 | I129: =IF($C129>I$2,0,IF($C129=I$2,0.5,1)*MIN($F129*$F$119,$F129-SUM($G129:H129))) -> 0 | J129: =IF($C129>J$2,0,IF($C129=J$2,0.5,1)*MIN($F129*$F$119,$F129-SUM($G129:I129))) -> 0 | K129: =IF($C129>K$2,0,IF($C129=K$2,0.5,1)*MIN($F129*$F$119,$F129-SUM($G129:J129))) -> 0 | L129: =IF($C129>L$2,0,IF($C129=L$2,0.5,1)*MIN($F129*$F$119,$F129-SUM($G129:K129))) -> 0 | M129: =IF($C129>M$2,0,IF($C129=M$2,0.5,1)*MIN($F129*$F$119,$F129-SUM($G129:L129))) -> 0 | N129: =IF($C129>N$2,0,IF($C129=N$2,0.5,1)*MIN($F129*$F$119,$F129-SUM($G129:M129))) -> 0 | O129: =IF($C129>O$2,0,IF($C129=O$2,0.5,1)*MIN($F129*$F$119,$F129-SUM($G129:N129))) -> 0 | P129: =IF($C129>P$2,0,IF($C129=P$2,0.5,1)*MIN($F129*$F$119,$F129-SUM($G129:O129))) -> 0 | Q129: =IF($C129>Q$2,0,IF($C129=Q$2,0.5,1)*MIN($F129*$F$119,$F129-SUM($G129:P129))) -> 0 | R129: =IF($C129>R$2,0,IF($C129=R$2,0.5,1)*MIN($F129*$F$119,$F129-SUM($G129:Q129))) -> 0 | S129: =IF($C129>S$2,0,IF($C129=S$2,0.5,1)*MIN($F129*$F$119,$F129-SUM($G129:R129))) -> 0 | T129: =IF($C129>T$2,0,IF($C129=T$2,0.5,1)*MIN($F129*$F$119,$F129-SUM($G129:S129))) -> 0 | U129: =IF($C129>U$2,0,IF($C129=U$2,0.5,1)*MIN($F129*$F$119,$F129-SUM($G129:T129))) -> 0 | V129: =IF($C129>V$2,0,IF($C129=V$2,0.5,1)*MIN($F129*$F$119,$F129-SUM($G129:U129))) -> 0 | W129: =IF($C129>W$2,0,IF($C129=W$2,0.5,1)*MIN($F129*$F$119,$F129-SUM($G129:V129))) -> 0 | X129: =IF($C129>X$2,0,IF($C129=X$2,0.5,1)*MIN($F129*$F$119,$F129-SUM($G129:W129))) -> 0 | Y129: =IF($C129>Y$2,0,IF($C129=Y$2,0.5,1)*MIN($F129*$F$119,$F129-SUM($G129:X129))) -> 0 | Z129: =IF($C129>Z$2,0,IF($C129=Z$2,0.5,1)*MIN($F129*$F$119,$F129-SUM($G129:Y129))) -> 0 | AA129: =IF($C129>AA$2,0,IF($C129=AA$2,0.5,1)*MIN($F129*$F$119,$F129-SUM($G129:Z129))) -> 0 | AB129: =IF($C129>AB$2,0,IF($C129=AB$2,0.5,1)*MIN($F129*$F$119,$F129-SUM($G129:AA129))) -> 0
C130: 2031 | D130: тыс. руб. | E130: 9 | F130: 0 | H130: =IF($C130>H$2,0,IF($C130=H$2,0.5,1)*MIN($F130*$F$119,$F130-SUM($G130:G130))) -> 0 | I130: =IF($C130>I$2,0,IF($C130=I$2,0.5,1)*MIN($F130*$F$119,$F130-SUM($G130:H130))) -> 0 | J130: =IF($C130>J$2,0,IF($C130=J$2,0.5,1)*MIN($F130*$F$119,$F130-SUM($G130:I130))) -> 0 | K130: =IF($C130>K$2,0,IF($C130=K$2,0.5,1)*MIN($F130*$F$119,$F130-SUM($G130:J130))) -> 0 | L130: =IF($C130>L$2,0,IF($C130=L$2,0.5,1)*MIN($F130*$F$119,$F130-SUM($G130:K130))) -> 0 | M130: =IF($C130>M$2,0,IF($C130=M$2,0.5,1)*MIN($F130*$F$119,$F130-SUM($G130:L130))) -> 0 | N130: =IF($C130>N$2,0,IF($C130=N$2,0.5,1)*MIN($F130*$F$119,$F130-SUM($G130:M130))) -> 0 | O130: =IF($C130>O$2,0,IF($C130=O$2,0.5,1)*MIN($F130*$F$119,$F130-SUM($G130:N130))) -> 0 | P130: =IF($C130>P$2,0,IF($C130=P$2,0.5,1)*MIN($F130*$F$119,$F130-SUM($G130:O130))) -> 0 | Q130: =IF($C130>Q$2,0,IF($C130=Q$2,0.5,1)*MIN($F130*$F$119,$F130-SUM($G130:P130))) -> 0 | R130: =IF($C130>R$2,0,IF($C130=R$2,0.5,1)*MIN($F130*$F$119,$F130-SUM($G130:Q130))) -> 0 | S130: =IF($C130>S$2,0,IF($C130=S$2,0.5,1)*MIN($F130*$F$119,$F130-SUM($G130:R130))) -> 0 | T130: =IF($C130>T$2,0,IF($C130=T$2,0.5,1)*MIN($F130*$F$119,$F130-SUM($G130:S130))) -> 0 | U130: =IF($C130>U$2,0,IF($C130=U$2,0.5,1)*MIN($F130*$F$119,$F130-SUM($G130:T130))) -> 0 | V130: =IF($C130>V$2,0,IF($C130=V$2,0.5,1)*MIN($F130*$F$119,$F130-SUM($G130:U130))) -> 0 | W130: =IF($C130>W$2,0,IF($C130=W$2,0.5,1)*MIN($F130*$F$119,$F130-SUM($G130:V130))) -> 0 | X130: =IF($C130>X$2,0,IF($C130=X$2,0.5,1)*MIN($F130*$F$119,$F130-SUM($G130:W130))) -> 0 | Y130: =IF($C130>Y$2,0,IF($C130=Y$2,0.5,1)*MIN($F130*$F$119,$F130-SUM($G130:X130))) -> 0 | Z130: =IF($C130>Z$2,0,IF($C130=Z$2,0.5,1)*MIN($F130*$F$119,$F130-SUM($G130:Y130))) -> 0 | AA130: =IF($C130>AA$2,0,IF($C130=AA$2,0.5,1)*MIN($F130*$F$119,$F130-SUM($G130:Z130))) -> 0 | AB130: =IF($C130>AB$2,0,IF($C130=AB$2,0.5,1)*MIN($F130*$F$119,$F130-SUM($G130:AA130))) -> 0
C131: 2032 | D131: тыс. руб. | E131: 10 | F131: 0 | H131: =IF($C131>H$2,0,IF($C131=H$2,0.5,1)*MIN($F131*$F$119,$F131-SUM($G131:G131))) -> 0 | I131: =IF($C131>I$2,0,IF($C131=I$2,0.5,1)*MIN($F131*$F$119,$F131-SUM($G131:H131))) -> 0 | J131: =IF($C131>J$2,0,IF($C131=J$2,0.5,1)*MIN($F131*$F$119,$F131-SUM($G131:I131))) -> 0 | K131: =IF($C131>K$2,0,IF($C131=K$2,0.5,1)*MIN($F131*$F$119,$F131-SUM($G131:J131))) -> 0 | L131: =IF($C131>L$2,0,IF($C131=L$2,0.5,1)*MIN($F131*$F$119,$F131-SUM($G131:K131))) -> 0 | M131: =IF($C131>M$2,0,IF($C131=M$2,0.5,1)*MIN($F131*$F$119,$F131-SUM($G131:L131))) -> 0 | N131: =IF($C131>N$2,0,IF($C131=N$2,0.5,1)*MIN($F131*$F$119,$F131-SUM($G131:M131))) -> 0 | O131: =IF($C131>O$2,0,IF($C131=O$2,0.5,1)*MIN($F131*$F$119,$F131-SUM($G131:N131))) -> 0 | P131: =IF($C131>P$2,0,IF($C131=P$2,0.5,1)*MIN($F131*$F$119,$F131-SUM($G131:O131))) -> 0 | Q131: =IF($C131>Q$2,0,IF($C131=Q$2,0.5,1)*MIN($F131*$F$119,$F131-SUM($G131:P131))) -> 0 | R131: =IF($C131>R$2,0,IF($C131=R$2,0.5,1)*MIN($F131*$F$119,$F131-SUM($G131:Q131))) -> 0 | S131: =IF($C131>S$2,0,IF($C131=S$2,0.5,1)*MIN($F131*$F$119,$F131-SUM($G131:R131))) -> 0 | T131: =IF($C131>T$2,0,IF($C131=T$2,0.5,1)*MIN($F131*$F$119,$F131-SUM($G131:S131))) -> 0 | U131: =IF($C131>U$2,0,IF($C131=U$2,0.5,1)*MIN($F131*$F$119,$F131-SUM($G131:T131))) -> 0 | V131: =IF($C131>V$2,0,IF($C131=V$2,0.5,1)*MIN($F131*$F$119,$F131-SUM($G131:U131))) -> 0 | W131: =IF($C131>W$2,0,IF($C131=W$2,0.5,1)*MIN($F131*$F$119,$F131-SUM($G131:V131))) -> 0 | X131: =IF($C131>X$2,0,IF($C131=X$2,0.5,1)*MIN($F131*$F$119,$F131-SUM($G131:W131))) -> 0 | Y131: =IF($C131>Y$2,0,IF($C131=Y$2,0.5,1)*MIN($F131*$F$119,$F131-SUM($G131:X131))) -> 0 | Z131: =IF($C131>Z$2,0,IF($C131=Z$2,0.5,1)*MIN($F131*$F$119,$F131-SUM($G131:Y131))) -> 0 | AA131: =IF($C131>AA$2,0,IF($C131=AA$2,0.5,1)*MIN($F131*$F$119,$F131-SUM($G131:Z131))) -> 0 | AB131: =IF($C131>AB$2,0,IF($C131=AB$2,0.5,1)*MIN($F131*$F$119,$F131-SUM($G131:AA131))) -> 0
C132: 2033 | D132: тыс. руб. | E132: 11 | F132: 0 | H132: =IF($C132>H$2,0,IF($C132=H$2,0.5,1)*MIN($F132*$F$119,$F132-SUM($G132:G132))) -> 0 | I132: =IF($C132>I$2,0,IF($C132=I$2,0.5,1)*MIN($F132*$F$119,$F132-SUM($G132:H132))) -> 0 | J132: =IF($C132>J$2,0,IF($C132=J$2,0.5,1)*MIN($F132*$F$119,$F132-SUM($G132:I132))) -> 0 | K132: =IF($C132>K$2,0,IF($C132=K$2,0.5,1)*MIN($F132*$F$119,$F132-SUM($G132:J132))) -> 0 | L132: =IF($C132>L$2,0,IF($C132=L$2,0.5,1)*MIN($F132*$F$119,$F132-SUM($G132:K132))) -> 0 | M132: =IF($C132>M$2,0,IF($C132=M$2,0.5,1)*MIN($F132*$F$119,$F132-SUM($G132:L132))) -> 0 | N132: =IF($C132>N$2,0,IF($C132=N$2,0.5,1)*MIN($F132*$F$119,$F132-SUM($G132:M132))) -> 0 | O132: =IF($C132>O$2,0,IF($C132=O$2,0.5,1)*MIN($F132*$F$119,$F132-SUM($G132:N132))) -> 0 | P132: =IF($C132>P$2,0,IF($C132=P$2,0.5,1)*MIN($F132*$F$119,$F132-SUM($G132:O132))) -> 0 | Q132: =IF($C132>Q$2,0,IF($C132=Q$2,0.5,1)*MIN($F132*$F$119,$F132-SUM($G132:P132))) -> 0 | R132: =IF($C132>R$2,0,IF($C132=R$2,0.5,1)*MIN($F132*$F$119,$F132-SUM($G132:Q132))) -> 0 | S132: =IF($C132>S$2,0,IF($C132=S$2,0.5,1)*MIN($F132*$F$119,$F132-SUM($G132:R132))) -> 0 | T132: =IF($C132>T$2,0,IF($C132=T$2,0.5,1)*MIN($F132*$F$119,$F132-SUM($G132:S132))) -> 0 | U132: =IF($C132>U$2,0,IF($C132=U$2,0.5,1)*MIN($F132*$F$119,$F132-SUM($G132:T132))) -> 0 | V132: =IF($C132>V$2,0,IF($C132=V$2,0.5,1)*MIN($F132*$F$119,$F132-SUM($G132:U132))) -> 0 | W132: =IF($C132>W$2,0,IF($C132=W$2,0.5,1)*MIN($F132*$F$119,$F132-SUM($G132:V132))) -> 0 | X132: =IF($C132>X$2,0,IF($C132=X$2,0.5,1)*MIN($F132*$F$119,$F132-SUM($G132:W132))) -> 0 | Y132: =IF($C132>Y$2,0,IF($C132=Y$2,0.5,1)*MIN($F132*$F$119,$F132-SUM($G132:X132))) -> 0 | Z132: =IF($C132>Z$2,0,IF($C132=Z$2,0.5,1)*MIN($F132*$F$119,$F132-SUM($G132:Y132))) -> 0 | AA132: =IF($C132>AA$2,0,IF($C132=AA$2,0.5,1)*MIN($F132*$F$119,$F132-SUM($G132:Z132))) -> 0 | AB132: =IF($C132>AB$2,0,IF($C132=AB$2,0.5,1)*MIN($F132*$F$119,$F132-SUM($G132:AA132))) -> 0
C133: 2034 | D133: тыс. руб. | E133: 12 | F133: 0 | H133: =IF($C133>H$2,0,IF($C133=H$2,0.5,1)*MIN($F133*$F$119,$F133-SUM($G133:G133))) -> 0 | I133: =IF($C133>I$2,0,IF($C133=I$2,0.5,1)*MIN($F133*$F$119,$F133-SUM($G133:H133))) -> 0 | J133: =IF($C133>J$2,0,IF($C133=J$2,0.5,1)*MIN($F133*$F$119,$F133-SUM($G133:I133))) -> 0 | K133: =IF($C133>K$2,0,IF($C133=K$2,0.5,1)*MIN($F133*$F$119,$F133-SUM($G133:J133))) -> 0 | L133: =IF($C133>L$2,0,IF($C133=L$2,0.5,1)*MIN($F133*$F$119,$F133-SUM($G133:K133))) -> 0 | M133: =IF($C133>M$2,0,IF($C133=M$2,0.5,1)*MIN($F133*$F$119,$F133-SUM($G133:L133))) -> 0 | N133: =IF($C133>N$2,0,IF($C133=N$2,0.5,1)*MIN($F133*$F$119,$F133-SUM($G133:M133))) -> 0 | O133: =IF($C133>O$2,0,IF($C133=O$2,0.5,1)*MIN($F133*$F$119,$F133-SUM($G133:N133))) -> 0 | P133: =IF($C133>P$2,0,IF($C133=P$2,0.5,1)*MIN($F133*$F$119,$F133-SUM($G133:O133))) -> 0 | Q133: =IF($C133>Q$2,0,IF($C133=Q$2,0.5,1)*MIN($F133*$F$119,$F133-SUM($G133:P133))) -> 0 | R133: =IF($C133>R$2,0,IF($C133=R$2,0.5,1)*MIN($F133*$F$119,$F133-SUM($G133:Q133))) -> 0 | S133: =IF($C133>S$2,0,IF($C133=S$2,0.5,1)*MIN($F133*$F$119,$F133-SUM($G133:R133))) -> 0 | T133: =IF($C133>T$2,0,IF($C133=T$2,0.5,1)*MIN($F133*$F$119,$F133-SUM($G133:S133))) -> 0 | U133: =IF($C133>U$2,0,IF($C133=U$2,0.5,1)*MIN($F133*$F$119,$F133-SUM($G133:T133))) -> 0 | V133: =IF($C133>V$2,0,IF($C133=V$2,0.5,1)*MIN($F133*$F$119,$F133-SUM($G133:U133))) -> 0 | W133: =IF($C133>W$2,0,IF($C133=W$2,0.5,1)*MIN($F133*$F$119,$F133-SUM($G133:V133))) -> 0 | X133: =IF($C133>X$2,0,IF($C133=X$2,0.5,1)*MIN($F133*$F$119,$F133-SUM($G133:W133))) -> 0 | Y133: =IF($C133>Y$2,0,IF($C133=Y$2,0.5,1)*MIN($F133*$F$119,$F133-SUM($G133:X133))) -> 0 | Z133: =IF($C133>Z$2,0,IF($C133=Z$2,0.5,1)*MIN($F133*$F$119,$F133-SUM($G133:Y133))) -> 0 | AA133: =IF($C133>AA$2,0,IF($C133=AA$2,0.5,1)*MIN($F133*$F$119,$F133-SUM($G133:Z133))) -> 0 | AB133: =IF($C133>AB$2,0,IF($C133=AB$2,0.5,1)*MIN($F133*$F$119,$F133-SUM($G133:AA133))) -> 0
C134: 2035 | D134: тыс. руб. | E134: 13 | F134: 0 | H134: =IF($C134>H$2,0,IF($C134=H$2,0.5,1)*MIN($F134*$F$119,$F134-SUM($G134:G134))) -> 0 | I134: =IF($C134>I$2,0,IF($C134=I$2,0.5,1)*MIN($F134*$F$119,$F134-SUM($G134:H134))) -> 0 | J134: =IF($C134>J$2,0,IF($C134=J$2,0.5,1)*MIN($F134*$F$119,$F134-SUM($G134:I134))) -> 0 | K134: =IF($C134>K$2,0,IF($C134=K$2,0.5,1)*MIN($F134*$F$119,$F134-SUM($G134:J134))) -> 0 | L134: =IF($C134>L$2,0,IF($C134=L$2,0.5,1)*MIN($F134*$F$119,$F134-SUM($G134:K134))) -> 0 | M134: =IF($C134>M$2,0,IF($C134=M$2,0.5,1)*MIN($F134*$F$119,$F134-SUM($G134:L134))) -> 0 | N134: =IF($C134>N$2,0,IF($C134=N$2,0.5,1)*MIN($F134*$F$119,$F134-SUM($G134:M134))) -> 0 | O134: =IF($C134>O$2,0,IF($C134=O$2,0.5,1)*MIN($F134*$F$119,$F134-SUM($G134:N134))) -> 0 | P134: =IF($C134>P$2,0,IF($C134=P$2,0.5,1)*MIN($F134*$F$119,$F134-SUM($G134:O134))) -> 0 | Q134: =IF($C134>Q$2,0,IF($C134=Q$2,0.5,1)*MIN($F134*$F$119,$F134-SUM($G134:P134))) -> 0 | R134: =IF($C134>R$2,0,IF($C134=R$2,0.5,1)*MIN($F134*$F$119,$F134-SUM($G134:Q134))) -> 0 | S134: =IF($C134>S$2,0,IF($C134=S$2,0.5,1)*MIN($F134*$F$119,$F134-SUM($G134:R134))) -> 0 | T134: =IF($C134>T$2,0,IF($C134=T$2,0.5,1)*MIN($F134*$F$119,$F134-SUM($G134:S134))) -> 0 | U134: =IF($C134>U$2,0,IF($C134=U$2,0.5,1)*MIN($F134*$F$119,$F134-SUM($G134:T134))) -> 0 | V134: =IF($C134>V$2,0,IF($C134=V$2,0.5,1)*MIN($F134*$F$119,$F134-SUM($G134:U134))) -> 0 | W134: =IF($C134>W$2,0,IF($C134=W$2,0.5,1)*MIN($F134*$F$119,$F134-SUM($G134:V134))) -> 0 | X134: =IF($C134>X$2,0,IF($C134=X$2,0.5,1)*MIN($F134*$F$119,$F134-SUM($G134:W134))) -> 0 | Y134: =IF($C134>Y$2,0,IF($C134=Y$2,0.5,1)*MIN($F134*$F$119,$F134-SUM($G134:X134))) -> 0 | Z134: =IF($C134>Z$2,0,IF($C134=Z$2,0.5,1)*MIN($F134*$F$119,$F134-SUM($G134:Y134))) -> 0 | AA134: =IF($C134>AA$2,0,IF($C134=AA$2,0.5,1)*MIN($F134*$F$119,$F134-SUM($G134:Z134))) -> 0 | AB134: =IF($C134>AB$2,0,IF($C134=AB$2,0.5,1)*MIN($F134*$F$119,$F134-SUM($G134:AA134))) -> 0
C135: 2036 | D135: тыс. руб. | E135: 14 | F135: 0 | H135: =IF($C135>H$2,0,IF($C135=H$2,0.5,1)*MIN($F135*$F$119,$F135-SUM($G135:G135))) -> 0 | I135: =IF($C135>I$2,0,IF($C135=I$2,0.5,1)*MIN($F135*$F$119,$F135-SUM($G135:H135))) -> 0 | J135: =IF($C135>J$2,0,IF($C135=J$2,0.5,1)*MIN($F135*$F$119,$F135-SUM($G135:I135))) -> 0 | K135: =IF($C135>K$2,0,IF($C135=K$2,0.5,1)*MIN($F135*$F$119,$F135-SUM($G135:J135))) -> 0 | L135: =IF($C135>L$2,0,IF($C135=L$2,0.5,1)*MIN($F135*$F$119,$F135-SUM($G135:K135))) -> 0 | M135: =IF($C135>M$2,0,IF($C135=M$2,0.5,1)*MIN($F135*$F$119,$F135-SUM($G135:L135))) -> 0 | N135: =IF($C135>N$2,0,IF($C135=N$2,0.5,1)*MIN($F135*$F$119,$F135-SUM($G135:M135))) -> 0 | O135: =IF($C135>O$2,0,IF($C135=O$2,0.5,1)*MIN($F135*$F$119,$F135-SUM($G135:N135))) -> 0 | P135: =IF($C135>P$2,0,IF($C135=P$2,0.5,1)*MIN($F135*$F$119,$F135-SUM($G135:O135))) -> 0 | Q135: =IF($C135>Q$2,0,IF($C135=Q$2,0.5,1)*MIN($F135*$F$119,$F135-SUM($G135:P135))) -> 0 | R135: =IF($C135>R$2,0,IF($C135=R$2,0.5,1)*MIN($F135*$F$119,$F135-SUM($G135:Q135))) -> 0 | S135: =IF($C135>S$2,0,IF($C135=S$2,0.5,1)*MIN($F135*$F$119,$F135-SUM($G135:R135))) -> 0 | T135: =IF($C135>T$2,0,IF($C135=T$2,0.5,1)*MIN($F135*$F$119,$F135-SUM($G135:S135))) -> 0 | U135: =IF($C135>U$2,0,IF($C135=U$2,0.5,1)*MIN($F135*$F$119,$F135-SUM($G135:T135))) -> 0 | V135: =IF($C135>V$2,0,IF($C135=V$2,0.5,1)*MIN($F135*$F$119,$F135-SUM($G135:U135))) -> 0 | W135: =IF($C135>W$2,0,IF($C135=W$2,0.5,1)*MIN($F135*$F$119,$F135-SUM($G135:V135))) -> 0 | X135: =IF($C135>X$2,0,IF($C135=X$2,0.5,1)*MIN($F135*$F$119,$F135-SUM($G135:W135))) -> 0 | Y135: =IF($C135>Y$2,0,IF($C135=Y$2,0.5,1)*MIN($F135*$F$119,$F135-SUM($G135:X135))) -> 0 | Z135: =IF($C135>Z$2,0,IF($C135=Z$2,0.5,1)*MIN($F135*$F$119,$F135-SUM($G135:Y135))) -> 0 | AA135: =IF($C135>AA$2,0,IF($C135=AA$2,0.5,1)*MIN($F135*$F$119,$F135-SUM($G135:Z135))) -> 0 | AB135: =IF($C135>AB$2,0,IF($C135=AB$2,0.5,1)*MIN($F135*$F$119,$F135-SUM($G135:AA135))) -> 0
C136: 2037 | D136: тыс. руб. | E136: 15 | F136: 0 | H136: =IF($C136>H$2,0,IF($C136=H$2,0.5,1)*MIN($F136*$F$119,$F136-SUM($G136:G136))) -> 0 | I136: =IF($C136>I$2,0,IF($C136=I$2,0.5,1)*MIN($F136*$F$119,$F136-SUM($G136:H136))) -> 0 | J136: =IF($C136>J$2,0,IF($C136=J$2,0.5,1)*MIN($F136*$F$119,$F136-SUM($G136:I136))) -> 0 | K136: =IF($C136>K$2,0,IF($C136=K$2,0.5,1)*MIN($F136*$F$119,$F136-SUM($G136:J136))) -> 0 | L136: =IF($C136>L$2,0,IF($C136=L$2,0.5,1)*MIN($F136*$F$119,$F136-SUM($G136:K136))) -> 0 | M136: =IF($C136>M$2,0,IF($C136=M$2,0.5,1)*MIN($F136*$F$119,$F136-SUM($G136:L136))) -> 0 | N136: =IF($C136>N$2,0,IF($C136=N$2,0.5,1)*MIN($F136*$F$119,$F136-SUM($G136:M136))) -> 0 | O136: =IF($C136>O$2,0,IF($C136=O$2,0.5,1)*MIN($F136*$F$119,$F136-SUM($G136:N136))) -> 0 | P136: =IF($C136>P$2,0,IF($C136=P$2,0.5,1)*MIN($F136*$F$119,$F136-SUM($G136:O136))) -> 0 | Q136: =IF($C136>Q$2,0,IF($C136=Q$2,0.5,1)*MIN($F136*$F$119,$F136-SUM($G136:P136))) -> 0 | R136: =IF($C136>R$2,0,IF($C136=R$2,0.5,1)*MIN($F136*$F$119,$F136-SUM($G136:Q136))) -> 0 | S136: =IF($C136>S$2,0,IF($C136=S$2,0.5,1)*MIN($F136*$F$119,$F136-SUM($G136:R136))) -> 0 | T136: =IF($C136>T$2,0,IF($C136=T$2,0.5,1)*MIN($F136*$F$119,$F136-SUM($G136:S136))) -> 0 | U136: =IF($C136>U$2,0,IF($C136=U$2,0.5,1)*MIN($F136*$F$119,$F136-SUM($G136:T136))) -> 0 | V136: =IF($C136>V$2,0,IF($C136=V$2,0.5,1)*MIN($F136*$F$119,$F136-SUM($G136:U136))) -> 0 | W136: =IF($C136>W$2,0,IF($C136=W$2,0.5,1)*MIN($F136*$F$119,$F136-SUM($G136:V136))) -> 0 | X136: =IF($C136>X$2,0,IF($C136=X$2,0.5,1)*MIN($F136*$F$119,$F136-SUM($G136:W136))) -> 0 | Y136: =IF($C136>Y$2,0,IF($C136=Y$2,0.5,1)*MIN($F136*$F$119,$F136-SUM($G136:X136))) -> 0 | Z136: =IF($C136>Z$2,0,IF($C136=Z$2,0.5,1)*MIN($F136*$F$119,$F136-SUM($G136:Y136))) -> 0 | AA136: =IF($C136>AA$2,0,IF($C136=AA$2,0.5,1)*MIN($F136*$F$119,$F136-SUM($G136:Z136))) -> 0 | AB136: =IF($C136>AB$2,0,IF($C136=AB$2,0.5,1)*MIN($F136*$F$119,$F136-SUM($G136:AA136))) -> 0
C137: 2038 | D137: тыс. руб. | E137: 16 | F137: 0 | H137: =IF($C137>H$2,0,IF($C137=H$2,0.5,1)*MIN($F137*$F$119,$F137-SUM($G137:G137))) -> 0 | I137: =IF($C137>I$2,0,IF($C137=I$2,0.5,1)*MIN($F137*$F$119,$F137-SUM($G137:H137))) -> 0 | J137: =IF($C137>J$2,0,IF($C137=J$2,0.5,1)*MIN($F137*$F$119,$F137-SUM($G137:I137))) -> 0 | K137: =IF($C137>K$2,0,IF($C137=K$2,0.5,1)*MIN($F137*$F$119,$F137-SUM($G137:J137))) -> 0 | L137: =IF($C137>L$2,0,IF($C137=L$2,0.5,1)*MIN($F137*$F$119,$F137-SUM($G137:K137))) -> 0 | M137: =IF($C137>M$2,0,IF($C137=M$2,0.5,1)*MIN($F137*$F$119,$F137-SUM($G137:L137))) -> 0 | N137: =IF($C137>N$2,0,IF($C137=N$2,0.5,1)*MIN($F137*$F$119,$F137-SUM($G137:M137))) -> 0 | O137: =IF($C137>O$2,0,IF($C137=O$2,0.5,1)*MIN($F137*$F$119,$F137-SUM($G137:N137))) -> 0 | P137: =IF($C137>P$2,0,IF($C137=P$2,0.5,1)*MIN($F137*$F$119,$F137-SUM($G137:O137))) -> 0 | Q137: =IF($C137>Q$2,0,IF($C137=Q$2,0.5,1)*MIN($F137*$F$119,$F137-SUM($G137:P137))) -> 0 | R137: =IF($C137>R$2,0,IF($C137=R$2,0.5,1)*MIN($F137*$F$119,$F137-SUM($G137:Q137))) -> 0 | S137: =IF($C137>S$2,0,IF($C137=S$2,0.5,1)*MIN($F137*$F$119,$F137-SUM($G137:R137))) -> 0 | T137: =IF($C137>T$2,0,IF($C137=T$2,0.5,1)*MIN($F137*$F$119,$F137-SUM($G137:S137))) -> 0 | U137: =IF($C137>U$2,0,IF($C137=U$2,0.5,1)*MIN($F137*$F$119,$F137-SUM($G137:T137))) -> 0 | V137: =IF($C137>V$2,0,IF($C137=V$2,0.5,1)*MIN($F137*$F$119,$F137-SUM($G137:U137))) -> 0 | W137: =IF($C137>W$2,0,IF($C137=W$2,0.5,1)*MIN($F137*$F$119,$F137-SUM($G137:V137))) -> 0 | X137: =IF($C137>X$2,0,IF($C137=X$2,0.5,1)*MIN($F137*$F$119,$F137-SUM($G137:W137))) -> 0 | Y137: =IF($C137>Y$2,0,IF($C137=Y$2,0.5,1)*MIN($F137*$F$119,$F137-SUM($G137:X137))) -> 0 | Z137: =IF($C137>Z$2,0,IF($C137=Z$2,0.5,1)*MIN($F137*$F$119,$F137-SUM($G137:Y137))) -> 0 | AA137: =IF($C137>AA$2,0,IF($C137=AA$2,0.5,1)*MIN($F137*$F$119,$F137-SUM($G137:Z137))) -> 0 | AB137: =IF($C137>AB$2,0,IF($C137=AB$2,0.5,1)*MIN($F137*$F$119,$F137-SUM($G137:AA137))) -> 0
C138: 2039 | D138: тыс. руб. | E138: 17 | F138: 0 | H138: =IF($C138>H$2,0,IF($C138=H$2,0.5,1)*MIN($F138*$F$119,$F138-SUM($G138:G138))) -> 0 | I138: =IF($C138>I$2,0,IF($C138=I$2,0.5,1)*MIN($F138*$F$119,$F138-SUM($G138:H138))) -> 0 | J138: =IF($C138>J$2,0,IF($C138=J$2,0.5,1)*MIN($F138*$F$119,$F138-SUM($G138:I138))) -> 0 | K138: =IF($C138>K$2,0,IF($C138=K$2,0.5,1)*MIN($F138*$F$119,$F138-SUM($G138:J138))) -> 0 | L138: =IF($C138>L$2,0,IF($C138=L$2,0.5,1)*MIN($F138*$F$119,$F138-SUM($G138:K138))) -> 0 | M138: =IF($C138>M$2,0,IF($C138=M$2,0.5,1)*MIN($F138*$F$119,$F138-SUM($G138:L138))) -> 0 | N138: =IF($C138>N$2,0,IF($C138=N$2,0.5,1)*MIN($F138*$F$119,$F138-SUM($G138:M138))) -> 0 | O138: =IF($C138>O$2,0,IF($C138=O$2,0.5,1)*MIN($F138*$F$119,$F138-SUM($G138:N138))) -> 0 | P138: =IF($C138>P$2,0,IF($C138=P$2,0.5,1)*MIN($F138*$F$119,$F138-SUM($G138:O138))) -> 0 | Q138: =IF($C138>Q$2,0,IF($C138=Q$2,0.5,1)*MIN($F138*$F$119,$F138-SUM($G138:P138))) -> 0 | R138: =IF($C138>R$2,0,IF($C138=R$2,0.5,1)*MIN($F138*$F$119,$F138-SUM($G138:Q138))) -> 0 | S138: =IF($C138>S$2,0,IF($C138=S$2,0.5,1)*MIN($F138*$F$119,$F138-SUM($G138:R138))) -> 0 | T138: =IF($C138>T$2,0,IF($C138=T$2,0.5,1)*MIN($F138*$F$119,$F138-SUM($G138:S138))) -> 0 | U138: =IF($C138>U$2,0,IF($C138=U$2,0.5,1)*MIN($F138*$F$119,$F138-SUM($G138:T138))) -> 0 | V138: =IF($C138>V$2,0,IF($C138=V$2,0.5,1)*MIN($F138*$F$119,$F138-SUM($G138:U138))) -> 0 | W138: =IF($C138>W$2,0,IF($C138=W$2,0.5,1)*MIN($F138*$F$119,$F138-SUM($G138:V138))) -> 0 | X138: =IF($C138>X$2,0,IF($C138=X$2,0.5,1)*MIN($F138*$F$119,$F138-SUM($G138:W138))) -> 0 | Y138: =IF($C138>Y$2,0,IF($C138=Y$2,0.5,1)*MIN($F138*$F$119,$F138-SUM($G138:X138))) -> 0 | Z138: =IF($C138>Z$2,0,IF($C138=Z$2,0.5,1)*MIN($F138*$F$119,$F138-SUM($G138:Y138))) -> 0 | AA138: =IF($C138>AA$2,0,IF($C138=AA$2,0.5,1)*MIN($F138*$F$119,$F138-SUM($G138:Z138))) -> 0 | AB138: =IF($C138>AB$2,0,IF($C138=AB$2,0.5,1)*MIN($F138*$F$119,$F138-SUM($G138:AA138))) -> 0
C139: 2040 | D139: тыс. руб. | E139: 18 | F139: 0 | H139: =IF($C139>H$2,0,IF($C139=H$2,0.5,1)*MIN($F139*$F$119,$F139-SUM($G139:G139))) -> 0 | I139: =IF($C139>I$2,0,IF($C139=I$2,0.5,1)*MIN($F139*$F$119,$F139-SUM($G139:H139))) -> 0 | J139: =IF($C139>J$2,0,IF($C139=J$2,0.5,1)*MIN($F139*$F$119,$F139-SUM($G139:I139))) -> 0 | K139: =IF($C139>K$2,0,IF($C139=K$2,0.5,1)*MIN($F139*$F$119,$F139-SUM($G139:J139))) -> 0 | L139: =IF($C139>L$2,0,IF($C139=L$2,0.5,1)*MIN($F139*$F$119,$F139-SUM($G139:K139))) -> 0 | M139: =IF($C139>M$2,0,IF($C139=M$2,0.5,1)*MIN($F139*$F$119,$F139-SUM($G139:L139))) -> 0 | N139: =IF($C139>N$2,0,IF($C139=N$2,0.5,1)*MIN($F139*$F$119,$F139-SUM($G139:M139))) -> 0 | O139: =IF($C139>O$2,0,IF($C139=O$2,0.5,1)*MIN($F139*$F$119,$F139-SUM($G139:N139))) -> 0 | P139: =IF($C139>P$2,0,IF($C139=P$2,0.5,1)*MIN($F139*$F$119,$F139-SUM($G139:O139))) -> 0 | Q139: =IF($C139>Q$2,0,IF($C139=Q$2,0.5,1)*MIN($F139*$F$119,$F139-SUM($G139:P139))) -> 0 | R139: =IF($C139>R$2,0,IF($C139=R$2,0.5,1)*MIN($F139*$F$119,$F139-SUM($G139:Q139))) -> 0 | S139: =IF($C139>S$2,0,IF($C139=S$2,0.5,1)*MIN($F139*$F$119,$F139-SUM($G139:R139))) -> 0 | T139: =IF($C139>T$2,0,IF($C139=T$2,0.5,1)*MIN($F139*$F$119,$F139-SUM($G139:S139))) -> 0 | U139: =IF($C139>U$2,0,IF($C139=U$2,0.5,1)*MIN($F139*$F$119,$F139-SUM($G139:T139))) -> 0 | V139: =IF($C139>V$2,0,IF($C139=V$2,0.5,1)*MIN($F139*$F$119,$F139-SUM($G139:U139))) -> 0 | W139: =IF($C139>W$2,0,IF($C139=W$2,0.5,1)*MIN($F139*$F$119,$F139-SUM($G139:V139))) -> 0 | X139: =IF($C139>X$2,0,IF($C139=X$2,0.5,1)*MIN($F139*$F$119,$F139-SUM($G139:W139))) -> 0 | Y139: =IF($C139>Y$2,0,IF($C139=Y$2,0.5,1)*MIN($F139*$F$119,$F139-SUM($G139:X139))) -> 0 | Z139: =IF($C139>Z$2,0,IF($C139=Z$2,0.5,1)*MIN($F139*$F$119,$F139-SUM($G139:Y139))) -> 0 | AA139: =IF($C139>AA$2,0,IF($C139=AA$2,0.5,1)*MIN($F139*$F$119,$F139-SUM($G139:Z139))) -> 0 | AB139: =IF($C139>AB$2,0,IF($C139=AB$2,0.5,1)*MIN($F139*$F$119,$F139-SUM($G139:AA139))) -> 0
C140: 2041 | D140: тыс. руб. | E140: 19 | F140: 0 | H140: =IF($C140>H$2,0,IF($C140=H$2,0.5,1)*MIN($F140*$F$119,$F140-SUM($G140:G140))) -> 0 | I140: =IF($C140>I$2,0,IF($C140=I$2,0.5,1)*MIN($F140*$F$119,$F140-SUM($G140:H140))) -> 0 | J140: =IF($C140>J$2,0,IF($C140=J$2,0.5,1)*MIN($F140*$F$119,$F140-SUM($G140:I140))) -> 0 | K140: =IF($C140>K$2,0,IF($C140=K$2,0.5,1)*MIN($F140*$F$119,$F140-SUM($G140:J140))) -> 0 | L140: =IF($C140>L$2,0,IF($C140=L$2,0.5,1)*MIN($F140*$F$119,$F140-SUM($G140:K140))) -> 0 | M140: =IF($C140>M$2,0,IF($C140=M$2,0.5,1)*MIN($F140*$F$119,$F140-SUM($G140:L140))) -> 0 | N140: =IF($C140>N$2,0,IF($C140=N$2,0.5,1)*MIN($F140*$F$119,$F140-SUM($G140:M140))) -> 0 | O140: =IF($C140>O$2,0,IF($C140=O$2,0.5,1)*MIN($F140*$F$119,$F140-SUM($G140:N140))) -> 0 | P140: =IF($C140>P$2,0,IF($C140=P$2,0.5,1)*MIN($F140*$F$119,$F140-SUM($G140:O140))) -> 0 | Q140: =IF($C140>Q$2,0,IF($C140=Q$2,0.5,1)*MIN($F140*$F$119,$F140-SUM($G140:P140))) -> 0 | R140: =IF($C140>R$2,0,IF($C140=R$2,0.5,1)*MIN($F140*$F$119,$F140-SUM($G140:Q140))) -> 0 | S140: =IF($C140>S$2,0,IF($C140=S$2,0.5,1)*MIN($F140*$F$119,$F140-SUM($G140:R140))) -> 0 | T140: =IF($C140>T$2,0,IF($C140=T$2,0.5,1)*MIN($F140*$F$119,$F140-SUM($G140:S140))) -> 0 | U140: =IF($C140>U$2,0,IF($C140=U$2,0.5,1)*MIN($F140*$F$119,$F140-SUM($G140:T140))) -> 0 | V140: =IF($C140>V$2,0,IF($C140=V$2,0.5,1)*MIN($F140*$F$119,$F140-SUM($G140:U140))) -> 0 | W140: =IF($C140>W$2,0,IF($C140=W$2,0.5,1)*MIN($F140*$F$119,$F140-SUM($G140:V140))) -> 0 | X140: =IF($C140>X$2,0,IF($C140=X$2,0.5,1)*MIN($F140*$F$119,$F140-SUM($G140:W140))) -> 0 | Y140: =IF($C140>Y$2,0,IF($C140=Y$2,0.5,1)*MIN($F140*$F$119,$F140-SUM($G140:X140))) -> 0 | Z140: =IF($C140>Z$2,0,IF($C140=Z$2,0.5,1)*MIN($F140*$F$119,$F140-SUM($G140:Y140))) -> 0 | AA140: =IF($C140>AA$2,0,IF($C140=AA$2,0.5,1)*MIN($F140*$F$119,$F140-SUM($G140:Z140))) -> 0 | AB140: =IF($C140>AB$2,0,IF($C140=AB$2,0.5,1)*MIN($F140*$F$119,$F140-SUM($G140:AA140))) -> 0
C141: 2042 | D141: тыс. руб. | E141: 20 | F141: 0 | H141: =IF($C141>H$2,0,IF($C141=H$2,0.5,1)*MIN($F141*$F$119,$F141-SUM($G141:G141))) -> 0 | I141: =IF($C141>I$2,0,IF($C141=I$2,0.5,1)*MIN($F141*$F$119,$F141-SUM($G141:H141))) -> 0 | J141: =IF($C141>J$2,0,IF($C141=J$2,0.5,1)*MIN($F141*$F$119,$F141-SUM($G141:I141))) -> 0 | K141: =IF($C141>K$2,0,IF($C141=K$2,0.5,1)*MIN($F141*$F$119,$F141-SUM($G141:J141))) -> 0 | L141: =IF($C141>L$2,0,IF($C141=L$2,0.5,1)*MIN($F141*$F$119,$F141-SUM($G141:K141))) -> 0 | M141: =IF($C141>M$2,0,IF($C141=M$2,0.5,1)*MIN($F141*$F$119,$F141-SUM($G141:L141))) -> 0 | N141: =IF($C141>N$2,0,IF($C141=N$2,0.5,1)*MIN($F141*$F$119,$F141-SUM($G141:M141))) -> 0 | O141: =IF($C141>O$2,0,IF($C141=O$2,0.5,1)*MIN($F141*$F$119,$F141-SUM($G141:N141))) -> 0 | P141: =IF($C141>P$2,0,IF($C141=P$2,0.5,1)*MIN($F141*$F$119,$F141-SUM($G141:O141))) -> 0 | Q141: =IF($C141>Q$2,0,IF($C141=Q$2,0.5,1)*MIN($F141*$F$119,$F141-SUM($G141:P141))) -> 0 | R141: =IF($C141>R$2,0,IF($C141=R$2,0.5,1)*MIN($F141*$F$119,$F141-SUM($G141:Q141))) -> 0 | S141: =IF($C141>S$2,0,IF($C141=S$2,0.5,1)*MIN($F141*$F$119,$F141-SUM($G141:R141))) -> 0 | T141: =IF($C141>T$2,0,IF($C141=T$2,0.5,1)*MIN($F141*$F$119,$F141-SUM($G141:S141))) -> 0 | U141: =IF($C141>U$2,0,IF($C141=U$2,0.5,1)*MIN($F141*$F$119,$F141-SUM($G141:T141))) -> 0 | V141: =IF($C141>V$2,0,IF($C141=V$2,0.5,1)*MIN($F141*$F$119,$F141-SUM($G141:U141))) -> 0 | W141: =IF($C141>W$2,0,IF($C141=W$2,0.5,1)*MIN($F141*$F$119,$F141-SUM($G141:V141))) -> 0 | X141: =IF($C141>X$2,0,IF($C141=X$2,0.5,1)*MIN($F141*$F$119,$F141-SUM($G141:W141))) -> 0 | Y141: =IF($C141>Y$2,0,IF($C141=Y$2,0.5,1)*MIN($F141*$F$119,$F141-SUM($G141:X141))) -> 0 | Z141: =IF($C141>Z$2,0,IF($C141=Z$2,0.5,1)*MIN($F141*$F$119,$F141-SUM($G141:Y141))) -> 0 | AA141: =IF($C141>AA$2,0,IF($C141=AA$2,0.5,1)*MIN($F141*$F$119,$F141-SUM($G141:Z141))) -> 0 | AB141: =IF($C141>AB$2,0,IF($C141=AB$2,0.5,1)*MIN($F141*$F$119,$F141-SUM($G141:AA141))) -> 0
C143: Первоначальная стоимость активов | D143: тыс. руб. | H143: =G143+H40 -> 0 | I143: 0 | J143: 0 | K143: 0 | L143: 0 | M143: 0 | N143: 0 | O143: 0 | P143: 0 | Q143: 0 | R143: 0 | S143: 0 | T143: 0 | U143: 0 | V143: 0 | W143: 0 | X143: 0 | Y143: 0 | Z143: 0 | AA143: 0 | AB143: 0
C144: Амортизация за период | D144: тыс. руб. | H144: =H121 -> 0 | I144: 0 | J144: 0 | K144: 0 | L144: 0 | M144: 0 | N144: 0 | O144: 0 | P144: 0 | Q144: 0 | R144: 0 | S144: 0 | T144: 0 | U144: 0 | V144: 0 | W144: 0 | X144: 0 | Y144: 0 | Z144: 0 | AA144: 0 | AB144: 0
C145: Накопленная амортизация | D145: тыс. руб. | H145: =G145+H144 -> 0 | I145: 0 | J145: 0 | K145: 0 | L145: 0 | M145: 0 | N145: 0 | O145: 0 | P145: 0 | Q145: 0 | R145: 0 | S145: 0 | T145: 0 | U145: 0 | V145: 0 | W145: 0 | X145: 0 | Y145: 0 | Z145: 0 | AA145: 0 | AB145: 0
C146: Остаточная стоимость активов | D146: тыс. руб. | H146: =H143-H145 -> 0 | I146: 0 | J146: 0 | K146: 0 | L146: 0 | M146: 0 | N146: 0 | O146: 0 | P146: 0 | Q146: 0 | R146: 0 | S146: 0 | T146: 0 | U146: 0 | V146: =V143-V145 -> 0 | W146: 0 | X146: 0 | Y146: 0 | Z146: 0 | AA146: 0 | AB146: 0
B148: Нематериальные активы с определенным сроком полезного использования
C150: Ставка амортизации | D150: % | F150: =Предпосылки!F194 -> 0.05
C152: Амортизация | D152: тыс. руб. | H152: =SUM(H153:H172) -> 0 | I152: =SUM(I153:I172) -> 0 | J152: 0 | K152: 0 | L152: 0 | M152: 0 | N152: 0 | O152: 0 | P152: 0 | Q152: 0 | R152: 0 | S152: 0 | T152: 0 | U152: 0 | V152: 0 | W152: 0 | X152: 0 | Y152: 0 | Z152: 0 | AA152: 0 | AB152: 0
C153: =INDEX(H$2:AA$2,,$E153) -> 2023 | D153: тыс. руб. | E153: 1 | F153: =OFFSET($G$41,,E153) -> 0 | H153: =IF($C153>H$2,0,IF($C153=H$2,0.5,1)*MIN($F153*$F$150,$F153-SUM($G153:G153))) -> 0 | I153: =IF($C153>I$2,0,IF($C153=I$2,0.5,1)*MIN($F153*$F$150,$F153-SUM($G153:H153))) -> 0 | J153: =IF($C153>J$2,0,IF($C153=J$2,0.5,1)*MIN($F153*$F$150,$F153-SUM($G153:I153))) -> 0 | K153: =IF($C153>K$2,0,IF($C153=K$2,0.5,1)*MIN($F153*$F$150,$F153-SUM($G153:J153))) -> 0 | L153: =IF($C153>L$2,0,IF($C153=L$2,0.5,1)*MIN($F153*$F$150,$F153-SUM($G153:K153))) -> 0 | M153: =IF($C153>M$2,0,IF($C153=M$2,0.5,1)*MIN($F153*$F$150,$F153-SUM($G153:L153))) -> 0 | N153: =IF($C153>N$2,0,IF($C153=N$2,0.5,1)*MIN($F153*$F$150,$F153-SUM($G153:M153))) -> 0 | O153: =IF($C153>O$2,0,IF($C153=O$2,0.5,1)*MIN($F153*$F$150,$F153-SUM($G153:N153))) -> 0 | P153: =IF($C153>P$2,0,IF($C153=P$2,0.5,1)*MIN($F153*$F$150,$F153-SUM($G153:O153))) -> 0 | Q153: =IF($C153>Q$2,0,IF($C153=Q$2,0.5,1)*MIN($F153*$F$150,$F153-SUM($G153:P153))) -> 0 | R153: =IF($C153>R$2,0,IF($C153=R$2,0.5,1)*MIN($F153*$F$150,$F153-SUM($G153:Q153))) -> 0 | S153: =IF($C153>S$2,0,IF($C153=S$2,0.5,1)*MIN($F153*$F$150,$F153-SUM($G153:R153))) -> 0 | T153: =IF($C153>T$2,0,IF($C153=T$2,0.5,1)*MIN($F153*$F$150,$F153-SUM($G153:S153))) -> 0 | U153: =IF($C153>U$2,0,IF($C153=U$2,0.5,1)*MIN($F153*$F$150,$F153-SUM($G153:T153))) -> 0 | V153: =IF($C153>V$2,0,IF($C153=V$2,0.5,1)*MIN($F153*$F$150,$F153-SUM($G153:U153))) -> 0 | W153: =IF($C153>W$2,0,IF($C153=W$2,0.5,1)*MIN($F153*$F$150,$F153-SUM($G153:V153))) -> 0 | X153: =IF($C153>X$2,0,IF($C153=X$2,0.5,1)*MIN($F153*$F$150,$F153-SUM($G153:W153))) -> 0 | Y153: =IF($C153>Y$2,0,IF($C153=Y$2,0.5,1)*MIN($F153*$F$150,$F153-SUM($G153:X153))) -> 0 | Z153: =IF($C153>Z$2,0,IF($C153=Z$2,0.5,1)*MIN($F153*$F$150,$F153-SUM($G153:Y153))) -> 0 | AA153: =IF($C153>AA$2,0,IF($C153=AA$2,0.5,1)*MIN($F153*$F$150,$F153-SUM($G153:Z153))) -> 0 | AB153: =IF($C153>AB$2,0,IF($C153=AB$2,0.5,1)*MIN($F153*$F$150,$F153-SUM($G153:AA153))) -> 0
C154: =INDEX(H$2:AA$2,,$E154) -> 2024 | D154: тыс. руб. | E154: 2 | F154: =OFFSET($G$41,,E154) -> 0 | H154: =IF($C154>H$2,0,IF($C154=H$2,0.5,1)*MIN($F154*$F$150,$F154-SUM($G154:G154))) -> 0 | I154: =IF($C154>I$2,0,IF($C154=I$2,0.5,1)*MIN($F154*$F$150,$F154-SUM($G154:H154))) -> 0 | J154: =IF($C154>J$2,0,IF($C154=J$2,0.5,1)*MIN($F154*$F$150,$F154-SUM($G154:I154))) -> 0 | K154: =IF($C154>K$2,0,IF($C154=K$2,0.5,1)*MIN($F154*$F$150,$F154-SUM($G154:J154))) -> 0 | L154: =IF($C154>L$2,0,IF($C154=L$2,0.5,1)*MIN($F154*$F$150,$F154-SUM($G154:K154))) -> 0 | M154: =IF($C154>M$2,0,IF($C154=M$2,0.5,1)*MIN($F154*$F$150,$F154-SUM($G154:L154))) -> 0 | N154: =IF($C154>N$2,0,IF($C154=N$2,0.5,1)*MIN($F154*$F$150,$F154-SUM($G154:M154))) -> 0 | O154: =IF($C154>O$2,0,IF($C154=O$2,0.5,1)*MIN($F154*$F$150,$F154-SUM($G154:N154))) -> 0 | P154: =IF($C154>P$2,0,IF($C154=P$2,0.5,1)*MIN($F154*$F$150,$F154-SUM($G154:O154))) -> 0 | Q154: =IF($C154>Q$2,0,IF($C154=Q$2,0.5,1)*MIN($F154*$F$150,$F154-SUM($G154:P154))) -> 0 | R154: =IF($C154>R$2,0,IF($C154=R$2,0.5,1)*MIN($F154*$F$150,$F154-SUM($G154:Q154))) -> 0 | S154: =IF($C154>S$2,0,IF($C154=S$2,0.5,1)*MIN($F154*$F$150,$F154-SUM($G154:R154))) -> 0 | T154: =IF($C154>T$2,0,IF($C154=T$2,0.5,1)*MIN($F154*$F$150,$F154-SUM($G154:S154))) -> 0 | U154: =IF($C154>U$2,0,IF($C154=U$2,0.5,1)*MIN($F154*$F$150,$F154-SUM($G154:T154))) -> 0 | V154: =IF($C154>V$2,0,IF($C154=V$2,0.5,1)*MIN($F154*$F$150,$F154-SUM($G154:U154))) -> 0 | W154: =IF($C154>W$2,0,IF($C154=W$2,0.5,1)*MIN($F154*$F$150,$F154-SUM($G154:V154))) -> 0 | X154: =IF($C154>X$2,0,IF($C154=X$2,0.5,1)*MIN($F154*$F$150,$F154-SUM($G154:W154))) -> 0 | Y154: =IF($C154>Y$2,0,IF($C154=Y$2,0.5,1)*MIN($F154*$F$150,$F154-SUM($G154:X154))) -> 0 | Z154: =IF($C154>Z$2,0,IF($C154=Z$2,0.5,1)*MIN($F154*$F$150,$F154-SUM($G154:Y154))) -> 0 | AA154: =IF($C154>AA$2,0,IF($C154=AA$2,0.5,1)*MIN($F154*$F$150,$F154-SUM($G154:Z154))) -> 0 | AB154: =IF($C154>AB$2,0,IF($C154=AB$2,0.5,1)*MIN($F154*$F$150,$F154-SUM($G154:AA154))) -> 0
C155: 2025 | D155: тыс. руб. | E155: 3 | F155: 0 | H155: =IF($C155>H$2,0,IF($C155=H$2,0.5,1)*MIN($F155*$F$150,$F155-SUM($G155:G155))) -> 0 | I155: =IF($C155>I$2,0,IF($C155=I$2,0.5,1)*MIN($F155*$F$150,$F155-SUM($G155:H155))) -> 0 | J155: =IF($C155>J$2,0,IF($C155=J$2,0.5,1)*MIN($F155*$F$150,$F155-SUM($G155:I155))) -> 0 | K155: =IF($C155>K$2,0,IF($C155=K$2,0.5,1)*MIN($F155*$F$150,$F155-SUM($G155:J155))) -> 0 | L155: =IF($C155>L$2,0,IF($C155=L$2,0.5,1)*MIN($F155*$F$150,$F155-SUM($G155:K155))) -> 0 | M155: =IF($C155>M$2,0,IF($C155=M$2,0.5,1)*MIN($F155*$F$150,$F155-SUM($G155:L155))) -> 0 | N155: =IF($C155>N$2,0,IF($C155=N$2,0.5,1)*MIN($F155*$F$150,$F155-SUM($G155:M155))) -> 0 | O155: =IF($C155>O$2,0,IF($C155=O$2,0.5,1)*MIN($F155*$F$150,$F155-SUM($G155:N155))) -> 0 | P155: =IF($C155>P$2,0,IF($C155=P$2,0.5,1)*MIN($F155*$F$150,$F155-SUM($G155:O155))) -> 0 | Q155: =IF($C155>Q$2,0,IF($C155=Q$2,0.5,1)*MIN($F155*$F$150,$F155-SUM($G155:P155))) -> 0 | R155: =IF($C155>R$2,0,IF($C155=R$2,0.5,1)*MIN($F155*$F$150,$F155-SUM($G155:Q155))) -> 0 | S155: =IF($C155>S$2,0,IF($C155=S$2,0.5,1)*MIN($F155*$F$150,$F155-SUM($G155:R155))) -> 0 | T155: =IF($C155>T$2,0,IF($C155=T$2,0.5,1)*MIN($F155*$F$150,$F155-SUM($G155:S155))) -> 0 | U155: =IF($C155>U$2,0,IF($C155=U$2,0.5,1)*MIN($F155*$F$150,$F155-SUM($G155:T155))) -> 0 | V155: =IF($C155>V$2,0,IF($C155=V$2,0.5,1)*MIN($F155*$F$150,$F155-SUM($G155:U155))) -> 0 | W155: =IF($C155>W$2,0,IF($C155=W$2,0.5,1)*MIN($F155*$F$150,$F155-SUM($G155:V155))) -> 0 | X155: =IF($C155>X$2,0,IF($C155=X$2,0.5,1)*MIN($F155*$F$150,$F155-SUM($G155:W155))) -> 0 | Y155: =IF($C155>Y$2,0,IF($C155=Y$2,0.5,1)*MIN($F155*$F$150,$F155-SUM($G155:X155))) -> 0 | Z155: =IF($C155>Z$2,0,IF($C155=Z$2,0.5,1)*MIN($F155*$F$150,$F155-SUM($G155:Y155))) -> 0 | AA155: =IF($C155>AA$2,0,IF($C155=AA$2,0.5,1)*MIN($F155*$F$150,$F155-SUM($G155:Z155))) -> 0 | AB155: =IF($C155>AB$2,0,IF($C155=AB$2,0.5,1)*MIN($F155*$F$150,$F155-SUM($G155:AA155))) -> 0
C156: 2026 | D156: тыс. руб. | E156: 4 | F156: 0 | H156: =IF($C156>H$2,0,IF($C156=H$2,0.5,1)*MIN($F156*$F$150,$F156-SUM($G156:G156))) -> 0 | I156: =IF($C156>I$2,0,IF($C156=I$2,0.5,1)*MIN($F156*$F$150,$F156-SUM($G156:H156))) -> 0 | J156: =IF($C156>J$2,0,IF($C156=J$2,0.5,1)*MIN($F156*$F$150,$F156-SUM($G156:I156))) -> 0 | K156: =IF($C156>K$2,0,IF($C156=K$2,0.5,1)*MIN($F156*$F$150,$F156-SUM($G156:J156))) -> 0 | L156: =IF($C156>L$2,0,IF($C156=L$2,0.5,1)*MIN($F156*$F$150,$F156-SUM($G156:K156))) -> 0 | M156: =IF($C156>M$2,0,IF($C156=M$2,0.5,1)*MIN($F156*$F$150,$F156-SUM($G156:L156))) -> 0 | N156: =IF($C156>N$2,0,IF($C156=N$2,0.5,1)*MIN($F156*$F$150,$F156-SUM($G156:M156))) -> 0 | O156: =IF($C156>O$2,0,IF($C156=O$2,0.5,1)*MIN($F156*$F$150,$F156-SUM($G156:N156))) -> 0 | P156: =IF($C156>P$2,0,IF($C156=P$2,0.5,1)*MIN($F156*$F$150,$F156-SUM($G156:O156))) -> 0 | Q156: =IF($C156>Q$2,0,IF($C156=Q$2,0.5,1)*MIN($F156*$F$150,$F156-SUM($G156:P156))) -> 0 | R156: =IF($C156>R$2,0,IF($C156=R$2,0.5,1)*MIN($F156*$F$150,$F156-SUM($G156:Q156))) -> 0 | S156: =IF($C156>S$2,0,IF($C156=S$2,0.5,1)*MIN($F156*$F$150,$F156-SUM($G156:R156))) -> 0 | T156: =IF($C156>T$2,0,IF($C156=T$2,0.5,1)*MIN($F156*$F$150,$F156-SUM($G156:S156))) -> 0 | U156: =IF($C156>U$2,0,IF($C156=U$2,0.5,1)*MIN($F156*$F$150,$F156-SUM($G156:T156))) -> 0 | V156: =IF($C156>V$2,0,IF($C156=V$2,0.5,1)*MIN($F156*$F$150,$F156-SUM($G156:U156))) -> 0 | W156: =IF($C156>W$2,0,IF($C156=W$2,0.5,1)*MIN($F156*$F$150,$F156-SUM($G156:V156))) -> 0 | X156: =IF($C156>X$2,0,IF($C156=X$2,0.5,1)*MIN($F156*$F$150,$F156-SUM($G156:W156))) -> 0 | Y156: =IF($C156>Y$2,0,IF($C156=Y$2,0.5,1)*MIN($F156*$F$150,$F156-SUM($G156:X156))) -> 0 | Z156: =IF($C156>Z$2,0,IF($C156=Z$2,0.5,1)*MIN($F156*$F$150,$F156-SUM($G156:Y156))) -> 0 | AA156: =IF($C156>AA$2,0,IF($C156=AA$2,0.5,1)*MIN($F156*$F$150,$F156-SUM($G156:Z156))) -> 0 | AB156: =IF($C156>AB$2,0,IF($C156=AB$2,0.5,1)*MIN($F156*$F$150,$F156-SUM($G156:AA156))) -> 0
C157: 2027 | D157: тыс. руб. | E157: 5 | F157: 0 | H157: =IF($C157>H$2,0,IF($C157=H$2,0.5,1)*MIN($F157*$F$150,$F157-SUM($G157:G157))) -> 0 | I157: =IF($C157>I$2,0,IF($C157=I$2,0.5,1)*MIN($F157*$F$150,$F157-SUM($G157:H157))) -> 0 | J157: =IF($C157>J$2,0,IF($C157=J$2,0.5,1)*MIN($F157*$F$150,$F157-SUM($G157:I157))) -> 0 | K157: =IF($C157>K$2,0,IF($C157=K$2,0.5,1)*MIN($F157*$F$150,$F157-SUM($G157:J157))) -> 0 | L157: =IF($C157>L$2,0,IF($C157=L$2,0.5,1)*MIN($F157*$F$150,$F157-SUM($G157:K157))) -> 0 | M157: =IF($C157>M$2,0,IF($C157=M$2,0.5,1)*MIN($F157*$F$150,$F157-SUM($G157:L157))) -> 0 | N157: =IF($C157>N$2,0,IF($C157=N$2,0.5,1)*MIN($F157*$F$150,$F157-SUM($G157:M157))) -> 0 | O157: =IF($C157>O$2,0,IF($C157=O$2,0.5,1)*MIN($F157*$F$150,$F157-SUM($G157:N157))) -> 0 | P157: =IF($C157>P$2,0,IF($C157=P$2,0.5,1)*MIN($F157*$F$150,$F157-SUM($G157:O157))) -> 0 | Q157: =IF($C157>Q$2,0,IF($C157=Q$2,0.5,1)*MIN($F157*$F$150,$F157-SUM($G157:P157))) -> 0 | R157: =IF($C157>R$2,0,IF($C157=R$2,0.5,1)*MIN($F157*$F$150,$F157-SUM($G157:Q157))) -> 0 | S157: =IF($C157>S$2,0,IF($C157=S$2,0.5,1)*MIN($F157*$F$150,$F157-SUM($G157:R157))) -> 0 | T157: =IF($C157>T$2,0,IF($C157=T$2,0.5,1)*MIN($F157*$F$150,$F157-SUM($G157:S157))) -> 0 | U157: =IF($C157>U$2,0,IF($C157=U$2,0.5,1)*MIN($F157*$F$150,$F157-SUM($G157:T157))) -> 0 | V157: =IF($C157>V$2,0,IF($C157=V$2,0.5,1)*MIN($F157*$F$150,$F157-SUM($G157:U157))) -> 0 | W157: =IF($C157>W$2,0,IF($C157=W$2,0.5,1)*MIN($F157*$F$150,$F157-SUM($G157:V157))) -> 0 | X157: =IF($C157>X$2,0,IF($C157=X$2,0.5,1)*MIN($F157*$F$150,$F157-SUM($G157:W157))) -> 0 | Y157: =IF($C157>Y$2,0,IF($C157=Y$2,0.5,1)*MIN($F157*$F$150,$F157-SUM($G157:X157))) -> 0 | Z157: =IF($C157>Z$2,0,IF($C157=Z$2,0.5,1)*MIN($F157*$F$150,$F157-SUM($G157:Y157))) -> 0 | AA157: =IF($C157>AA$2,0,IF($C157=AA$2,0.5,1)*MIN($F157*$F$150,$F157-SUM($G157:Z157))) -> 0 | AB157: =IF($C157>AB$2,0,IF($C157=AB$2,0.5,1)*MIN($F157*$F$150,$F157-SUM($G157:AA157))) -> 0
C158: 2028 | D158: тыс. руб. | E158: 6 | F158: 0 | H158: =IF($C158>H$2,0,IF($C158=H$2,0.5,1)*MIN($F158*$F$150,$F158-SUM($G158:G158))) -> 0 | I158: =IF($C158>I$2,0,IF($C158=I$2,0.5,1)*MIN($F158*$F$150,$F158-SUM($G158:H158))) -> 0 | J158: =IF($C158>J$2,0,IF($C158=J$2,0.5,1)*MIN($F158*$F$150,$F158-SUM($G158:I158))) -> 0 | K158: =IF($C158>K$2,0,IF($C158=K$2,0.5,1)*MIN($F158*$F$150,$F158-SUM($G158:J158))) -> 0 | L158: =IF($C158>L$2,0,IF($C158=L$2,0.5,1)*MIN($F158*$F$150,$F158-SUM($G158:K158))) -> 0 | M158: =IF($C158>M$2,0,IF($C158=M$2,0.5,1)*MIN($F158*$F$150,$F158-SUM($G158:L158))) -> 0 | N158: =IF($C158>N$2,0,IF($C158=N$2,0.5,1)*MIN($F158*$F$150,$F158-SUM($G158:M158))) -> 0 | O158: =IF($C158>O$2,0,IF($C158=O$2,0.5,1)*MIN($F158*$F$150,$F158-SUM($G158:N158))) -> 0 | P158: =IF($C158>P$2,0,IF($C158=P$2,0.5,1)*MIN($F158*$F$150,$F158-SUM($G158:O158))) -> 0 | Q158: =IF($C158>Q$2,0,IF($C158=Q$2,0.5,1)*MIN($F158*$F$150,$F158-SUM($G158:P158))) -> 0 | R158: =IF($C158>R$2,0,IF($C158=R$2,0.5,1)*MIN($F158*$F$150,$F158-SUM($G158:Q158))) -> 0 | S158: =IF($C158>S$2,0,IF($C158=S$2,0.5,1)*MIN($F158*$F$150,$F158-SUM($G158:R158))) -> 0 | T158: =IF($C158>T$2,0,IF($C158=T$2,0.5,1)*MIN($F158*$F$150,$F158-SUM($G158:S158))) -> 0 | U158: =IF($C158>U$2,0,IF($C158=U$2,0.5,1)*MIN($F158*$F$150,$F158-SUM($G158:T158))) -> 0 | V158: =IF($C158>V$2,0,IF($C158=V$2,0.5,1)*MIN($F158*$F$150,$F158-SUM($G158:U158))) -> 0 | W158: =IF($C158>W$2,0,IF($C158=W$2,0.5,1)*MIN($F158*$F$150,$F158-SUM($G158:V158))) -> 0 | X158: =IF($C158>X$2,0,IF($C158=X$2,0.5,1)*MIN($F158*$F$150,$F158-SUM($G158:W158))) -> 0 | Y158: =IF($C158>Y$2,0,IF($C158=Y$2,0.5,1)*MIN($F158*$F$150,$F158-SUM($G158:X158))) -> 0 | Z158: =IF($C158>Z$2,0,IF($C158=Z$2,0.5,1)*MIN($F158*$F$150,$F158-SUM($G158:Y158))) -> 0 | AA158: =IF($C158>AA$2,0,IF($C158=AA$2,0.5,1)*MIN($F158*$F$150,$F158-SUM($G158:Z158))) -> 0 | AB158: =IF($C158>AB$2,0,IF($C158=AB$2,0.5,1)*MIN($F158*$F$150,$F158-SUM($G158:AA158))) -> 0
C159: 2029 | D159: тыс. руб. | E159: 7 | F159: 0 | H159: =IF($C159>H$2,0,IF($C159=H$2,0.5,1)*MIN($F159*$F$150,$F159-SUM($G159:G159))) -> 0 | I159: =IF($C159>I$2,0,IF($C159=I$2,0.5,1)*MIN($F159*$F$150,$F159-SUM($G159:H159))) -> 0 | J159: =IF($C159>J$2,0,IF($C159=J$2,0.5,1)*MIN($F159*$F$150,$F159-SUM($G159:I159))) -> 0 | K159: =IF($C159>K$2,0,IF($C159=K$2,0.5,1)*MIN($F159*$F$150,$F159-SUM($G159:J159))) -> 0 | L159: =IF($C159>L$2,0,IF($C159=L$2,0.5,1)*MIN($F159*$F$150,$F159-SUM($G159:K159))) -> 0 | M159: =IF($C159>M$2,0,IF($C159=M$2,0.5,1)*MIN($F159*$F$150,$F159-SUM($G159:L159))) -> 0 | N159: =IF($C159>N$2,0,IF($C159=N$2,0.5,1)*MIN($F159*$F$150,$F159-SUM($G159:M159))) -> 0 | O159: =IF($C159>O$2,0,IF($C159=O$2,0.5,1)*MIN($F159*$F$150,$F159-SUM($G159:N159))) -> 0 | P159: =IF($C159>P$2,0,IF($C159=P$2,0.5,1)*MIN($F159*$F$150,$F159-SUM($G159:O159))) -> 0 | Q159: =IF($C159>Q$2,0,IF($C159=Q$2,0.5,1)*MIN($F159*$F$150,$F159-SUM($G159:P159))) -> 0 | R159: =IF($C159>R$2,0,IF($C159=R$2,0.5,1)*MIN($F159*$F$150,$F159-SUM($G159:Q159))) -> 0 | S159: =IF($C159>S$2,0,IF($C159=S$2,0.5,1)*MIN($F159*$F$150,$F159-SUM($G159:R159))) -> 0 | T159: =IF($C159>T$2,0,IF($C159=T$2,0.5,1)*MIN($F159*$F$150,$F159-SUM($G159:S159))) -> 0 | U159: =IF($C159>U$2,0,IF($C159=U$2,0.5,1)*MIN($F159*$F$150,$F159-SUM($G159:T159))) -> 0 | V159: =IF($C159>V$2,0,IF($C159=V$2,0.5,1)*MIN($F159*$F$150,$F159-SUM($G159:U159))) -> 0 | W159: =IF($C159>W$2,0,IF($C159=W$2,0.5,1)*MIN($F159*$F$150,$F159-SUM($G159:V159))) -> 0 | X159: =IF($C159>X$2,0,IF($C159=X$2,0.5,1)*MIN($F159*$F$150,$F159-SUM($G159:W159))) -> 0 | Y159: =IF($C159>Y$2,0,IF($C159=Y$2,0.5,1)*MIN($F159*$F$150,$F159-SUM($G159:X159))) -> 0 | Z159: =IF($C159>Z$2,0,IF($C159=Z$2,0.5,1)*MIN($F159*$F$150,$F159-SUM($G159:Y159))) -> 0 | AA159: =IF($C159>AA$2,0,IF($C159=AA$2,0.5,1)*MIN($F159*$F$150,$F159-SUM($G159:Z159))) -> 0 | AB159: =IF($C159>AB$2,0,IF($C159=AB$2,0.5,1)*MIN($F159*$F$150,$F159-SUM($G159:AA159))) -> 0
C160: 2030 | D160: тыс. руб. | E160: 8 | F160: 0 | H160: =IF($C160>H$2,0,IF($C160=H$2,0.5,1)*MIN($F160*$F$150,$F160-SUM($G160:G160))) -> 0 | I160: =IF($C160>I$2,0,IF($C160=I$2,0.5,1)*MIN($F160*$F$150,$F160-SUM($G160:H160))) -> 0 | J160: =IF($C160>J$2,0,IF($C160=J$2,0.5,1)*MIN($F160*$F$150,$F160-SUM($G160:I160))) -> 0 | K160: =IF($C160>K$2,0,IF($C160=K$2,0.5,1)*MIN($F160*$F$150,$F160-SUM($G160:J160))) -> 0 | L160: =IF($C160>L$2,0,IF($C160=L$2,0.5,1)*MIN($F160*$F$150,$F160-SUM($G160:K160))) -> 0 | M160: =IF($C160>M$2,0,IF($C160=M$2,0.5,1)*MIN($F160*$F$150,$F160-SUM($G160:L160))) -> 0 | N160: =IF($C160>N$2,0,IF($C160=N$2,0.5,1)*MIN($F160*$F$150,$F160-SUM($G160:M160))) -> 0 | O160: =IF($C160>O$2,0,IF($C160=O$2,0.5,1)*MIN($F160*$F$150,$F160-SUM($G160:N160))) -> 0 | P160: =IF($C160>P$2,0,IF($C160=P$2,0.5,1)*MIN($F160*$F$150,$F160-SUM($G160:O160))) -> 0 | Q160: =IF($C160>Q$2,0,IF($C160=Q$2,0.5,1)*MIN($F160*$F$150,$F160-SUM($G160:P160))) -> 0 | R160: =IF($C160>R$2,0,IF($C160=R$2,0.5,1)*MIN($F160*$F$150,$F160-SUM($G160:Q160))) -> 0 | S160: =IF($C160>S$2,0,IF($C160=S$2,0.5,1)*MIN($F160*$F$150,$F160-SUM($G160:R160))) -> 0 | T160: =IF($C160>T$2,0,IF($C160=T$2,0.5,1)*MIN($F160*$F$150,$F160-SUM($G160:S160))) -> 0 | U160: =IF($C160>U$2,0,IF($C160=U$2,0.5,1)*MIN($F160*$F$150,$F160-SUM($G160:T160))) -> 0 | V160: =IF($C160>V$2,0,IF($C160=V$2,0.5,1)*MIN($F160*$F$150,$F160-SUM($G160:U160))) -> 0 | W160: =IF($C160>W$2,0,IF($C160=W$2,0.5,1)*MIN($F160*$F$150,$F160-SUM($G160:V160))) -> 0 | X160: =IF($C160>X$2,0,IF($C160=X$2,0.5,1)*MIN($F160*$F$150,$F160-SUM($G160:W160))) -> 0 | Y160: =IF($C160>Y$2,0,IF($C160=Y$2,0.5,1)*MIN($F160*$F$150,$F160-SUM($G160:X160))) -> 0 | Z160: =IF($C160>Z$2,0,IF($C160=Z$2,0.5,1)*MIN($F160*$F$150,$F160-SUM($G160:Y160))) -> 0 | AA160: =IF($C160>AA$2,0,IF($C160=AA$2,0.5,1)*MIN($F160*$F$150,$F160-SUM($G160:Z160))) -> 0 | AB160: =IF($C160>AB$2,0,IF($C160=AB$2,0.5,1)*MIN($F160*$F$150,$F160-SUM($G160:AA160))) -> 0
C161: 2031 | D161: тыс. руб. | E161: 9 | F161: 0 | H161: =IF($C161>H$2,0,IF($C161=H$2,0.5,1)*MIN($F161*$F$150,$F161-SUM($G161:G161))) -> 0 | I161: =IF($C161>I$2,0,IF($C161=I$2,0.5,1)*MIN($F161*$F$150,$F161-SUM($G161:H161))) -> 0 | J161: =IF($C161>J$2,0,IF($C161=J$2,0.5,1)*MIN($F161*$F$150,$F161-SUM($G161:I161))) -> 0 | K161: =IF($C161>K$2,0,IF($C161=K$2,0.5,1)*MIN($F161*$F$150,$F161-SUM($G161:J161))) -> 0 | L161: =IF($C161>L$2,0,IF($C161=L$2,0.5,1)*MIN($F161*$F$150,$F161-SUM($G161:K161))) -> 0 | M161: =IF($C161>M$2,0,IF($C161=M$2,0.5,1)*MIN($F161*$F$150,$F161-SUM($G161:L161))) -> 0 | N161: =IF($C161>N$2,0,IF($C161=N$2,0.5,1)*MIN($F161*$F$150,$F161-SUM($G161:M161))) -> 0 | O161: =IF($C161>O$2,0,IF($C161=O$2,0.5,1)*MIN($F161*$F$150,$F161-SUM($G161:N161))) -> 0 | P161: =IF($C161>P$2,0,IF($C161=P$2,0.5,1)*MIN($F161*$F$150,$F161-SUM($G161:O161))) -> 0 | Q161: =IF($C161>Q$2,0,IF($C161=Q$2,0.5,1)*MIN($F161*$F$150,$F161-SUM($G161:P161))) -> 0 | R161: =IF($C161>R$2,0,IF($C161=R$2,0.5,1)*MIN($F161*$F$150,$F161-SUM($G161:Q161))) -> 0 | S161: =IF($C161>S$2,0,IF($C161=S$2,0.5,1)*MIN($F161*$F$150,$F161-SUM($G161:R161))) -> 0 | T161: =IF($C161>T$2,0,IF($C161=T$2,0.5,1)*MIN($F161*$F$150,$F161-SUM($G161:S161))) -> 0 | U161: =IF($C161>U$2,0,IF($C161=U$2,0.5,1)*MIN($F161*$F$150,$F161-SUM($G161:T161))) -> 0 | V161: =IF($C161>V$2,0,IF($C161=V$2,0.5,1)*MIN($F161*$F$150,$F161-SUM($G161:U161))) -> 0 | W161: =IF($C161>W$2,0,IF($C161=W$2,0.5,1)*MIN($F161*$F$150,$F161-SUM($G161:V161))) -> 0 | X161: =IF($C161>X$2,0,IF($C161=X$2,0.5,1)*MIN($F161*$F$150,$F161-SUM($G161:W161))) -> 0 | Y161: =IF($C161>Y$2,0,IF($C161=Y$2,0.5,1)*MIN($F161*$F$150,$F161-SUM($G161:X161))) -> 0 | Z161: =IF($C161>Z$2,0,IF($C161=Z$2,0.5,1)*MIN($F161*$F$150,$F161-SUM($G161:Y161))) -> 0 | AA161: =IF($C161>AA$2,0,IF($C161=AA$2,0.5,1)*MIN($F161*$F$150,$F161-SUM($G161:Z161))) -> 0 | AB161: =IF($C161>AB$2,0,IF($C161=AB$2,0.5,1)*MIN($F161*$F$150,$F161-SUM($G161:AA161))) -> 0
C162: 2032 | D162: тыс. руб. | E162: 10 | F162: 0 | H162: =IF($C162>H$2,0,IF($C162=H$2,0.5,1)*MIN($F162*$F$150,$F162-SUM($G162:G162))) -> 0 | I162: =IF($C162>I$2,0,IF($C162=I$2,0.5,1)*MIN($F162*$F$150,$F162-SUM($G162:H162))) -> 0 | J162: =IF($C162>J$2,0,IF($C162=J$2,0.5,1)*MIN($F162*$F$150,$F162-SUM($G162:I162))) -> 0 | K162: =IF($C162>K$2,0,IF($C162=K$2,0.5,1)*MIN($F162*$F$150,$F162-SUM($G162:J162))) -> 0 | L162: =IF($C162>L$2,0,IF($C162=L$2,0.5,1)*MIN($F162*$F$150,$F162-SUM($G162:K162))) -> 0 | M162: =IF($C162>M$2,0,IF($C162=M$2,0.5,1)*MIN($F162*$F$150,$F162-SUM($G162:L162))) -> 0 | N162: =IF($C162>N$2,0,IF($C162=N$2,0.5,1)*MIN($F162*$F$150,$F162-SUM($G162:M162))) -> 0 | O162: =IF($C162>O$2,0,IF($C162=O$2,0.5,1)*MIN($F162*$F$150,$F162-SUM($G162:N162))) -> 0 | P162: =IF($C162>P$2,0,IF($C162=P$2,0.5,1)*MIN($F162*$F$150,$F162-SUM($G162:O162))) -> 0 | Q162: =IF($C162>Q$2,0,IF($C162=Q$2,0.5,1)*MIN($F162*$F$150,$F162-SUM($G162:P162))) -> 0 | R162: =IF($C162>R$2,0,IF($C162=R$2,0.5,1)*MIN($F162*$F$150,$F162-SUM($G162:Q162))) -> 0 | S162: =IF($C162>S$2,0,IF($C162=S$2,0.5,1)*MIN($F162*$F$150,$F162-SUM($G162:R162))) -> 0 | T162: =IF($C162>T$2,0,IF($C162=T$2,0.5,1)*MIN($F162*$F$150,$F162-SUM($G162:S162))) -> 0 | U162: =IF($C162>U$2,0,IF($C162=U$2,0.5,1)*MIN($F162*$F$150,$F162-SUM($G162:T162))) -> 0 | V162: =IF($C162>V$2,0,IF($C162=V$2,0.5,1)*MIN($F162*$F$150,$F162-SUM($G162:U162))) -> 0 | W162: =IF($C162>W$2,0,IF($C162=W$2,0.5,1)*MIN($F162*$F$150,$F162-SUM($G162:V162))) -> 0 | X162: =IF($C162>X$2,0,IF($C162=X$2,0.5,1)*MIN($F162*$F$150,$F162-SUM($G162:W162))) -> 0 | Y162: =IF($C162>Y$2,0,IF($C162=Y$2,0.5,1)*MIN($F162*$F$150,$F162-SUM($G162:X162))) -> 0 | Z162: =IF($C162>Z$2,0,IF($C162=Z$2,0.5,1)*MIN($F162*$F$150,$F162-SUM($G162:Y162))) -> 0 | AA162: =IF($C162>AA$2,0,IF($C162=AA$2,0.5,1)*MIN($F162*$F$150,$F162-SUM($G162:Z162))) -> 0 | AB162: =IF($C162>AB$2,0,IF($C162=AB$2,0.5,1)*MIN($F162*$F$150,$F162-SUM($G162:AA162))) -> 0
C163: 2033 | D163: тыс. руб. | E163: 11 | F163: 0 | H163: =IF($C163>H$2,0,IF($C163=H$2,0.5,1)*MIN($F163*$F$150,$F163-SUM($G163:G163))) -> 0 | I163: =IF($C163>I$2,0,IF($C163=I$2,0.5,1)*MIN($F163*$F$150,$F163-SUM($G163:H163))) -> 0 | J163: =IF($C163>J$2,0,IF($C163=J$2,0.5,1)*MIN($F163*$F$150,$F163-SUM($G163:I163))) -> 0 | K163: =IF($C163>K$2,0,IF($C163=K$2,0.5,1)*MIN($F163*$F$150,$F163-SUM($G163:J163))) -> 0 | L163: =IF($C163>L$2,0,IF($C163=L$2,0.5,1)*MIN($F163*$F$150,$F163-SUM($G163:K163))) -> 0 | M163: =IF($C163>M$2,0,IF($C163=M$2,0.5,1)*MIN($F163*$F$150,$F163-SUM($G163:L163))) -> 0 | N163: =IF($C163>N$2,0,IF($C163=N$2,0.5,1)*MIN($F163*$F$150,$F163-SUM($G163:M163))) -> 0 | O163: =IF($C163>O$2,0,IF($C163=O$2,0.5,1)*MIN($F163*$F$150,$F163-SUM($G163:N163))) -> 0 | P163: =IF($C163>P$2,0,IF($C163=P$2,0.5,1)*MIN($F163*$F$150,$F163-SUM($G163:O163))) -> 0 | Q163: =IF($C163>Q$2,0,IF($C163=Q$2,0.5,1)*MIN($F163*$F$150,$F163-SUM($G163:P163))) -> 0 | R163: =IF($C163>R$2,0,IF($C163=R$2,0.5,1)*MIN($F163*$F$150,$F163-SUM($G163:Q163))) -> 0 | S163: =IF($C163>S$2,0,IF($C163=S$2,0.5,1)*MIN($F163*$F$150,$F163-SUM($G163:R163))) -> 0 | T163: =IF($C163>T$2,0,IF($C163=T$2,0.5,1)*MIN($F163*$F$150,$F163-SUM($G163:S163))) -> 0 | U163: =IF($C163>U$2,0,IF($C163=U$2,0.5,1)*MIN($F163*$F$150,$F163-SUM($G163:T163))) -> 0 | V163: =IF($C163>V$2,0,IF($C163=V$2,0.5,1)*MIN($F163*$F$150,$F163-SUM($G163:U163))) -> 0 | W163: =IF($C163>W$2,0,IF($C163=W$2,0.5,1)*MIN($F163*$F$150,$F163-SUM($G163:V163))) -> 0 | X163: =IF($C163>X$2,0,IF($C163=X$2,0.5,1)*MIN($F163*$F$150,$F163-SUM($G163:W163))) -> 0 | Y163: =IF($C163>Y$2,0,IF($C163=Y$2,0.5,1)*MIN($F163*$F$150,$F163-SUM($G163:X163))) -> 0 | Z163: =IF($C163>Z$2,0,IF($C163=Z$2,0.5,1)*MIN($F163*$F$150,$F163-SUM($G163:Y163))) -> 0 | AA163: =IF($C163>AA$2,0,IF($C163=AA$2,0.5,1)*MIN($F163*$F$150,$F163-SUM($G163:Z163))) -> 0 | AB163: =IF($C163>AB$2,0,IF($C163=AB$2,0.5,1)*MIN($F163*$F$150,$F163-SUM($G163:AA163))) -> 0
C164: 2034 | D164: тыс. руб. | E164: 12 | F164: 0 | H164: =IF($C164>H$2,0,IF($C164=H$2,0.5,1)*MIN($F164*$F$150,$F164-SUM($G164:G164))) -> 0 | I164: =IF($C164>I$2,0,IF($C164=I$2,0.5,1)*MIN($F164*$F$150,$F164-SUM($G164:H164))) -> 0 | J164: =IF($C164>J$2,0,IF($C164=J$2,0.5,1)*MIN($F164*$F$150,$F164-SUM($G164:I164))) -> 0 | K164: =IF($C164>K$2,0,IF($C164=K$2,0.5,1)*MIN($F164*$F$150,$F164-SUM($G164:J164))) -> 0 | L164: =IF($C164>L$2,0,IF($C164=L$2,0.5,1)*MIN($F164*$F$150,$F164-SUM($G164:K164))) -> 0 | M164: =IF($C164>M$2,0,IF($C164=M$2,0.5,1)*MIN($F164*$F$150,$F164-SUM($G164:L164))) -> 0 | N164: =IF($C164>N$2,0,IF($C164=N$2,0.5,1)*MIN($F164*$F$150,$F164-SUM($G164:M164))) -> 0 | O164: =IF($C164>O$2,0,IF($C164=O$2,0.5,1)*MIN($F164*$F$150,$F164-SUM($G164:N164))) -> 0 | P164: =IF($C164>P$2,0,IF($C164=P$2,0.5,1)*MIN($F164*$F$150,$F164-SUM($G164:O164))) -> 0 | Q164: =IF($C164>Q$2,0,IF($C164=Q$2,0.5,1)*MIN($F164*$F$150,$F164-SUM($G164:P164))) -> 0 | R164: =IF($C164>R$2,0,IF($C164=R$2,0.5,1)*MIN($F164*$F$150,$F164-SUM($G164:Q164))) -> 0 | S164: =IF($C164>S$2,0,IF($C164=S$2,0.5,1)*MIN($F164*$F$150,$F164-SUM($G164:R164))) -> 0 | T164: =IF($C164>T$2,0,IF($C164=T$2,0.5,1)*MIN($F164*$F$150,$F164-SUM($G164:S164))) -> 0 | U164: =IF($C164>U$2,0,IF($C164=U$2,0.5,1)*MIN($F164*$F$150,$F164-SUM($G164:T164))) -> 0 | V164: =IF($C164>V$2,0,IF($C164=V$2,0.5,1)*MIN($F164*$F$150,$F164-SUM($G164:U164))) -> 0 | W164: =IF($C164>W$2,0,IF($C164=W$2,0.5,1)*MIN($F164*$F$150,$F164-SUM($G164:V164))) -> 0 | X164: =IF($C164>X$2,0,IF($C164=X$2,0.5,1)*MIN($F164*$F$150,$F164-SUM($G164:W164))) -> 0 | Y164: =IF($C164>Y$2,0,IF($C164=Y$2,0.5,1)*MIN($F164*$F$150,$F164-SUM($G164:X164))) -> 0 | Z164: =IF($C164>Z$2,0,IF($C164=Z$2,0.5,1)*MIN($F164*$F$150,$F164-SUM($G164:Y164))) -> 0 | AA164: =IF($C164>AA$2,0,IF($C164=AA$2,0.5,1)*MIN($F164*$F$150,$F164-SUM($G164:Z164))) -> 0 | AB164: =IF($C164>AB$2,0,IF($C164=AB$2,0.5,1)*MIN($F164*$F$150,$F164-SUM($G164:AA164))) -> 0
C165: 2035 | D165: тыс. руб. | E165: 13 | F165: 0 | H165: =IF($C165>H$2,0,IF($C165=H$2,0.5,1)*MIN($F165*$F$150,$F165-SUM($G165:G165))) -> 0 | I165: =IF($C165>I$2,0,IF($C165=I$2,0.5,1)*MIN($F165*$F$150,$F165-SUM($G165:H165))) -> 0 | J165: =IF($C165>J$2,0,IF($C165=J$2,0.5,1)*MIN($F165*$F$150,$F165-SUM($G165:I165))) -> 0 | K165: =IF($C165>K$2,0,IF($C165=K$2,0.5,1)*MIN($F165*$F$150,$F165-SUM($G165:J165))) -> 0 | L165: =IF($C165>L$2,0,IF($C165=L$2,0.5,1)*MIN($F165*$F$150,$F165-SUM($G165:K165))) -> 0 | M165: =IF($C165>M$2,0,IF($C165=M$2,0.5,1)*MIN($F165*$F$150,$F165-SUM($G165:L165))) -> 0 | N165: =IF($C165>N$2,0,IF($C165=N$2,0.5,1)*MIN($F165*$F$150,$F165-SUM($G165:M165))) -> 0 | O165: =IF($C165>O$2,0,IF($C165=O$2,0.5,1)*MIN($F165*$F$150,$F165-SUM($G165:N165))) -> 0 | P165: =IF($C165>P$2,0,IF($C165=P$2,0.5,1)*MIN($F165*$F$150,$F165-SUM($G165:O165))) -> 0 | Q165: =IF($C165>Q$2,0,IF($C165=Q$2,0.5,1)*MIN($F165*$F$150,$F165-SUM($G165:P165))) -> 0 | R165: =IF($C165>R$2,0,IF($C165=R$2,0.5,1)*MIN($F165*$F$150,$F165-SUM($G165:Q165))) -> 0 | S165: =IF($C165>S$2,0,IF($C165=S$2,0.5,1)*MIN($F165*$F$150,$F165-SUM($G165:R165))) -> 0 | T165: =IF($C165>T$2,0,IF($C165=T$2,0.5,1)*MIN($F165*$F$150,$F165-SUM($G165:S165))) -> 0 | U165: =IF($C165>U$2,0,IF($C165=U$2,0.5,1)*MIN($F165*$F$150,$F165-SUM($G165:T165))) -> 0 | V165: =IF($C165>V$2,0,IF($C165=V$2,0.5,1)*MIN($F165*$F$150,$F165-SUM($G165:U165))) -> 0 | W165: =IF($C165>W$2,0,IF($C165=W$2,0.5,1)*MIN($F165*$F$150,$F165-SUM($G165:V165))) -> 0 | X165: =IF($C165>X$2,0,IF($C165=X$2,0.5,1)*MIN($F165*$F$150,$F165-SUM($G165:W165))) -> 0 | Y165: =IF($C165>Y$2,0,IF($C165=Y$2,0.5,1)*MIN($F165*$F$150,$F165-SUM($G165:X165))) -> 0 | Z165: =IF($C165>Z$2,0,IF($C165=Z$2,0.5,1)*MIN($F165*$F$150,$F165-SUM($G165:Y165))) -> 0 | AA165: =IF($C165>AA$2,0,IF($C165=AA$2,0.5,1)*MIN($F165*$F$150,$F165-SUM($G165:Z165))) -> 0 | AB165: =IF($C165>AB$2,0,IF($C165=AB$2,0.5,1)*MIN($F165*$F$150,$F165-SUM($G165:AA165))) -> 0
C166: 2036 | D166: тыс. руб. | E166: 14 | F166: 0 | H166: =IF($C166>H$2,0,IF($C166=H$2,0.5,1)*MIN($F166*$F$150,$F166-SUM($G166:G166))) -> 0 | I166: =IF($C166>I$2,0,IF($C166=I$2,0.5,1)*MIN($F166*$F$150,$F166-SUM($G166:H166))) -> 0 | J166: =IF($C166>J$2,0,IF($C166=J$2,0.5,1)*MIN($F166*$F$150,$F166-SUM($G166:I166))) -> 0 | K166: =IF($C166>K$2,0,IF($C166=K$2,0.5,1)*MIN($F166*$F$150,$F166-SUM($G166:J166))) -> 0 | L166: =IF($C166>L$2,0,IF($C166=L$2,0.5,1)*MIN($F166*$F$150,$F166-SUM($G166:K166))) -> 0 | M166: =IF($C166>M$2,0,IF($C166=M$2,0.5,1)*MIN($F166*$F$150,$F166-SUM($G166:L166))) -> 0 | N166: =IF($C166>N$2,0,IF($C166=N$2,0.5,1)*MIN($F166*$F$150,$F166-SUM($G166:M166))) -> 0 | O166: =IF($C166>O$2,0,IF($C166=O$2,0.5,1)*MIN($F166*$F$150,$F166-SUM($G166:N166))) -> 0 | P166: =IF($C166>P$2,0,IF($C166=P$2,0.5,1)*MIN($F166*$F$150,$F166-SUM($G166:O166))) -> 0 | Q166: =IF($C166>Q$2,0,IF($C166=Q$2,0.5,1)*MIN($F166*$F$150,$F166-SUM($G166:P166))) -> 0 | R166: =IF($C166>R$2,0,IF($C166=R$2,0.5,1)*MIN($F166*$F$150,$F166-SUM($G166:Q166))) -> 0 | S166: =IF($C166>S$2,0,IF($C166=S$2,0.5,1)*MIN($F166*$F$150,$F166-SUM($G166:R166))) -> 0 | T166: =IF($C166>T$2,0,IF($C166=T$2,0.5,1)*MIN($F166*$F$150,$F166-SUM($G166:S166))) -> 0 | U166: =IF($C166>U$2,0,IF($C166=U$2,0.5,1)*MIN($F166*$F$150,$F166-SUM($G166:T166))) -> 0 | V166: =IF($C166>V$2,0,IF($C166=V$2,0.5,1)*MIN($F166*$F$150,$F166-SUM($G166:U166))) -> 0 | W166: =IF($C166>W$2,0,IF($C166=W$2,0.5,1)*MIN($F166*$F$150,$F166-SUM($G166:V166))) -> 0 | X166: =IF($C166>X$2,0,IF($C166=X$2,0.5,1)*MIN($F166*$F$150,$F166-SUM($G166:W166))) -> 0 | Y166: =IF($C166>Y$2,0,IF($C166=Y$2,0.5,1)*MIN($F166*$F$150,$F166-SUM($G166:X166))) -> 0 | Z166: =IF($C166>Z$2,0,IF($C166=Z$2,0.5,1)*MIN($F166*$F$150,$F166-SUM($G166:Y166))) -> 0 | AA166: =IF($C166>AA$2,0,IF($C166=AA$2,0.5,1)*MIN($F166*$F$150,$F166-SUM($G166:Z166))) -> 0 | AB166: =IF($C166>AB$2,0,IF($C166=AB$2,0.5,1)*MIN($F166*$F$150,$F166-SUM($G166:AA166))) -> 0
C167: 2037 | D167: тыс. руб. | E167: 15 | F167: 0 | H167: =IF($C167>H$2,0,IF($C167=H$2,0.5,1)*MIN($F167*$F$150,$F167-SUM($G167:G167))) -> 0 | I167: =IF($C167>I$2,0,IF($C167=I$2,0.5,1)*MIN($F167*$F$150,$F167-SUM($G167:H167))) -> 0 | J167: =IF($C167>J$2,0,IF($C167=J$2,0.5,1)*MIN($F167*$F$150,$F167-SUM($G167:I167))) -> 0 | K167: =IF($C167>K$2,0,IF($C167=K$2,0.5,1)*MIN($F167*$F$150,$F167-SUM($G167:J167))) -> 0 | L167: =IF($C167>L$2,0,IF($C167=L$2,0.5,1)*MIN($F167*$F$150,$F167-SUM($G167:K167))) -> 0 | M167: =IF($C167>M$2,0,IF($C167=M$2,0.5,1)*MIN($F167*$F$150,$F167-SUM($G167:L167))) -> 0 | N167: =IF($C167>N$2,0,IF($C167=N$2,0.5,1)*MIN($F167*$F$150,$F167-SUM($G167:M167))) -> 0 | O167: =IF($C167>O$2,0,IF($C167=O$2,0.5,1)*MIN($F167*$F$150,$F167-SUM($G167:N167))) -> 0 | P167: =IF($C167>P$2,0,IF($C167=P$2,0.5,1)*MIN($F167*$F$150,$F167-SUM($G167:O167))) -> 0 | Q167: =IF($C167>Q$2,0,IF($C167=Q$2,0.5,1)*MIN($F167*$F$150,$F167-SUM($G167:P167))) -> 0 | R167: =IF($C167>R$2,0,IF($C167=R$2,0.5,1)*MIN($F167*$F$150,$F167-SUM($G167:Q167))) -> 0 | S167: =IF($C167>S$2,0,IF($C167=S$2,0.5,1)*MIN($F167*$F$150,$F167-SUM($G167:R167))) -> 0 | T167: =IF($C167>T$2,0,IF($C167=T$2,0.5,1)*MIN($F167*$F$150,$F167-SUM($G167:S167))) -> 0 | U167: =IF($C167>U$2,0,IF($C167=U$2,0.5,1)*MIN($F167*$F$150,$F167-SUM($G167:T167))) -> 0 | V167: =IF($C167>V$2,0,IF($C167=V$2,0.5,1)*MIN($F167*$F$150,$F167-SUM($G167:U167))) -> 0 | W167: =IF($C167>W$2,0,IF($C167=W$2,0.5,1)*MIN($F167*$F$150,$F167-SUM($G167:V167))) -> 0 | X167: =IF($C167>X$2,0,IF($C167=X$2,0.5,1)*MIN($F167*$F$150,$F167-SUM($G167:W167))) -> 0 | Y167: =IF($C167>Y$2,0,IF($C167=Y$2,0.5,1)*MIN($F167*$F$150,$F167-SUM($G167:X167))) -> 0 | Z167: =IF($C167>Z$2,0,IF($C167=Z$2,0.5,1)*MIN($F167*$F$150,$F167-SUM($G167:Y167))) -> 0 | AA167: =IF($C167>AA$2,0,IF($C167=AA$2,0.5,1)*MIN($F167*$F$150,$F167-SUM($G167:Z167))) -> 0 | AB167: =IF($C167>AB$2,0,IF($C167=AB$2,0.5,1)*MIN($F167*$F$150,$F167-SUM($G167:AA167))) -> 0
C168: 2038 | D168: тыс. руб. | E168: 16 | F168: 0 | H168: =IF($C168>H$2,0,IF($C168=H$2,0.5,1)*MIN($F168*$F$150,$F168-SUM($G168:G168))) -> 0 | I168: =IF($C168>I$2,0,IF($C168=I$2,0.5,1)*MIN($F168*$F$150,$F168-SUM($G168:H168))) -> 0 | J168: =IF($C168>J$2,0,IF($C168=J$2,0.5,1)*MIN($F168*$F$150,$F168-SUM($G168:I168))) -> 0 | K168: =IF($C168>K$2,0,IF($C168=K$2,0.5,1)*MIN($F168*$F$150,$F168-SUM($G168:J168))) -> 0 | L168: =IF($C168>L$2,0,IF($C168=L$2,0.5,1)*MIN($F168*$F$150,$F168-SUM($G168:K168))) -> 0 | M168: =IF($C168>M$2,0,IF($C168=M$2,0.5,1)*MIN($F168*$F$150,$F168-SUM($G168:L168))) -> 0 | N168: =IF($C168>N$2,0,IF($C168=N$2,0.5,1)*MIN($F168*$F$150,$F168-SUM($G168:M168))) -> 0 | O168: =IF($C168>O$2,0,IF($C168=O$2,0.5,1)*MIN($F168*$F$150,$F168-SUM($G168:N168))) -> 0 | P168: =IF($C168>P$2,0,IF($C168=P$2,0.5,1)*MIN($F168*$F$150,$F168-SUM($G168:O168))) -> 0 | Q168: =IF($C168>Q$2,0,IF($C168=Q$2,0.5,1)*MIN($F168*$F$150,$F168-SUM($G168:P168))) -> 0 | R168: =IF($C168>R$2,0,IF($C168=R$2,0.5,1)*MIN($F168*$F$150,$F168-SUM($G168:Q168))) -> 0 | S168: =IF($C168>S$2,0,IF($C168=S$2,0.5,1)*MIN($F168*$F$150,$F168-SUM($G168:R168))) -> 0 | T168: =IF($C168>T$2,0,IF($C168=T$2,0.5,1)*MIN($F168*$F$150,$F168-SUM($G168:S168))) -> 0 | U168: =IF($C168>U$2,0,IF($C168=U$2,0.5,1)*MIN($F168*$F$150,$F168-SUM($G168:T168))) -> 0 | V168: =IF($C168>V$2,0,IF($C168=V$2,0.5,1)*MIN($F168*$F$150,$F168-SUM($G168:U168))) -> 0 | W168: =IF($C168>W$2,0,IF($C168=W$2,0.5,1)*MIN($F168*$F$150,$F168-SUM($G168:V168))) -> 0 | X168: =IF($C168>X$2,0,IF($C168=X$2,0.5,1)*MIN($F168*$F$150,$F168-SUM($G168:W168))) -> 0 | Y168: =IF($C168>Y$2,0,IF($C168=Y$2,0.5,1)*MIN($F168*$F$150,$F168-SUM($G168:X168))) -> 0 | Z168: =IF($C168>Z$2,0,IF($C168=Z$2,0.5,1)*MIN($F168*$F$150,$F168-SUM($G168:Y168))) -> 0 | AA168: =IF($C168>AA$2,0,IF($C168=AA$2,0.5,1)*MIN($F168*$F$150,$F168-SUM($G168:Z168))) -> 0 | AB168: =IF($C168>AB$2,0,IF($C168=AB$2,0.5,1)*MIN($F168*$F$150,$F168-SUM($G168:AA168))) -> 0
C169: 2039 | D169: тыс. руб. | E169: 17 | F169: 0 | H169: =IF($C169>H$2,0,IF($C169=H$2,0.5,1)*MIN($F169*$F$150,$F169-SUM($G169:G169))) -> 0 | I169: =IF($C169>I$2,0,IF($C169=I$2,0.5,1)*MIN($F169*$F$150,$F169-SUM($G169:H169))) -> 0 | J169: =IF($C169>J$2,0,IF($C169=J$2,0.5,1)*MIN($F169*$F$150,$F169-SUM($G169:I169))) -> 0 | K169: =IF($C169>K$2,0,IF($C169=K$2,0.5,1)*MIN($F169*$F$150,$F169-SUM($G169:J169))) -> 0 | L169: =IF($C169>L$2,0,IF($C169=L$2,0.5,1)*MIN($F169*$F$150,$F169-SUM($G169:K169))) -> 0 | M169: =IF($C169>M$2,0,IF($C169=M$2,0.5,1)*MIN($F169*$F$150,$F169-SUM($G169:L169))) -> 0 | N169: =IF($C169>N$2,0,IF($C169=N$2,0.5,1)*MIN($F169*$F$150,$F169-SUM($G169:M169))) -> 0 | O169: =IF($C169>O$2,0,IF($C169=O$2,0.5,1)*MIN($F169*$F$150,$F169-SUM($G169:N169))) -> 0 | P169: =IF($C169>P$2,0,IF($C169=P$2,0.5,1)*MIN($F169*$F$150,$F169-SUM($G169:O169))) -> 0 | Q169: =IF($C169>Q$2,0,IF($C169=Q$2,0.5,1)*MIN($F169*$F$150,$F169-SUM($G169:P169))) -> 0 | R169: =IF($C169>R$2,0,IF($C169=R$2,0.5,1)*MIN($F169*$F$150,$F169-SUM($G169:Q169))) -> 0 | S169: =IF($C169>S$2,0,IF($C169=S$2,0.5,1)*MIN($F169*$F$150,$F169-SUM($G169:R169))) -> 0 | T169: =IF($C169>T$2,0,IF($C169=T$2,0.5,1)*MIN($F169*$F$150,$F169-SUM($G169:S169))) -> 0 | U169: =IF($C169>U$2,0,IF($C169=U$2,0.5,1)*MIN($F169*$F$150,$F169-SUM($G169:T169))) -> 0 | V169: =IF($C169>V$2,0,IF($C169=V$2,0.5,1)*MIN($F169*$F$150,$F169-SUM($G169:U169))) -> 0 | W169: =IF($C169>W$2,0,IF($C169=W$2,0.5,1)*MIN($F169*$F$150,$F169-SUM($G169:V169))) -> 0 | X169: =IF($C169>X$2,0,IF($C169=X$2,0.5,1)*MIN($F169*$F$150,$F169-SUM($G169:W169))) -> 0 | Y169: =IF($C169>Y$2,0,IF($C169=Y$2,0.5,1)*MIN($F169*$F$150,$F169-SUM($G169:X169))) -> 0 | Z169: =IF($C169>Z$2,0,IF($C169=Z$2,0.5,1)*MIN($F169*$F$150,$F169-SUM($G169:Y169))) -> 0 | AA169: =IF($C169>AA$2,0,IF($C169=AA$2,0.5,1)*MIN($F169*$F$150,$F169-SUM($G169:Z169))) -> 0 | AB169: =IF($C169>AB$2,0,IF($C169=AB$2,0.5,1)*MIN($F169*$F$150,$F169-SUM($G169:AA169))) -> 0
C170: 2040 | D170: тыс. руб. | E170: 18 | F170: 0 | H170: =IF($C170>H$2,0,IF($C170=H$2,0.5,1)*MIN($F170*$F$150,$F170-SUM($G170:G170))) -> 0 | I170: =IF($C170>I$2,0,IF($C170=I$2,0.5,1)*MIN($F170*$F$150,$F170-SUM($G170:H170))) -> 0 | J170: =IF($C170>J$2,0,IF($C170=J$2,0.5,1)*MIN($F170*$F$150,$F170-SUM($G170:I170))) -> 0 | K170: =IF($C170>K$2,0,IF($C170=K$2,0.5,1)*MIN($F170*$F$150,$F170-SUM($G170:J170))) -> 0 | L170: =IF($C170>L$2,0,IF($C170=L$2,0.5,1)*MIN($F170*$F$150,$F170-SUM($G170:K170))) -> 0 | M170: =IF($C170>M$2,0,IF($C170=M$2,0.5,1)*MIN($F170*$F$150,$F170-SUM($G170:L170))) -> 0 | N170: =IF($C170>N$2,0,IF($C170=N$2,0.5,1)*MIN($F170*$F$150,$F170-SUM($G170:M170))) -> 0 | O170: =IF($C170>O$2,0,IF($C170=O$2,0.5,1)*MIN($F170*$F$150,$F170-SUM($G170:N170))) -> 0 | P170: =IF($C170>P$2,0,IF($C170=P$2,0.5,1)*MIN($F170*$F$150,$F170-SUM($G170:O170))) -> 0 | Q170: =IF($C170>Q$2,0,IF($C170=Q$2,0.5,1)*MIN($F170*$F$150,$F170-SUM($G170:P170))) -> 0 | R170: =IF($C170>R$2,0,IF($C170=R$2,0.5,1)*MIN($F170*$F$150,$F170-SUM($G170:Q170))) -> 0 | S170: =IF($C170>S$2,0,IF($C170=S$2,0.5,1)*MIN($F170*$F$150,$F170-SUM($G170:R170))) -> 0 | T170: =IF($C170>T$2,0,IF($C170=T$2,0.5,1)*MIN($F170*$F$150,$F170-SUM($G170:S170))) -> 0 | U170: =IF($C170>U$2,0,IF($C170=U$2,0.5,1)*MIN($F170*$F$150,$F170-SUM($G170:T170))) -> 0 | V170: =IF($C170>V$2,0,IF($C170=V$2,0.5,1)*MIN($F170*$F$150,$F170-SUM($G170:U170))) -> 0 | W170: =IF($C170>W$2,0,IF($C170=W$2,0.5,1)*MIN($F170*$F$150,$F170-SUM($G170:V170))) -> 0 | X170: =IF($C170>X$2,0,IF($C170=X$2,0.5,1)*MIN($F170*$F$150,$F170-SUM($G170:W170))) -> 0 | Y170: =IF($C170>Y$2,0,IF($C170=Y$2,0.5,1)*MIN($F170*$F$150,$F170-SUM($G170:X170))) -> 0 | Z170: =IF($C170>Z$2,0,IF($C170=Z$2,0.5,1)*MIN($F170*$F$150,$F170-SUM($G170:Y170))) -> 0 | AA170: =IF($C170>AA$2,0,IF($C170=AA$2,0.5,1)*MIN($F170*$F$150,$F170-SUM($G170:Z170))) -> 0 | AB170: =IF($C170>AB$2,0,IF($C170=AB$2,0.5,1)*MIN($F170*$F$150,$F170-SUM($G170:AA170))) -> 0
C171: 2041 | D171: тыс. руб. | E171: 19 | F171: 0 | H171: =IF($C171>H$2,0,IF($C171=H$2,0.5,1)*MIN($F171*$F$150,$F171-SUM($G171:G171))) -> 0 | I171: =IF($C171>I$2,0,IF($C171=I$2,0.5,1)*MIN($F171*$F$150,$F171-SUM($G171:H171))) -> 0 | J171: =IF($C171>J$2,0,IF($C171=J$2,0.5,1)*MIN($F171*$F$150,$F171-SUM($G171:I171))) -> 0 | K171: =IF($C171>K$2,0,IF($C171=K$2,0.5,1)*MIN($F171*$F$150,$F171-SUM($G171:J171))) -> 0 | L171: =IF($C171>L$2,0,IF($C171=L$2,0.5,1)*MIN($F171*$F$150,$F171-SUM($G171:K171))) -> 0 | M171: =IF($C171>M$2,0,IF($C171=M$2,0.5,1)*MIN($F171*$F$150,$F171-SUM($G171:L171))) -> 0 | N171: =IF($C171>N$2,0,IF($C171=N$2,0.5,1)*MIN($F171*$F$150,$F171-SUM($G171:M171))) -> 0 | O171: =IF($C171>O$2,0,IF($C171=O$2,0.5,1)*MIN($F171*$F$150,$F171-SUM($G171:N171))) -> 0 | P171: =IF($C171>P$2,0,IF($C171=P$2,0.5,1)*MIN($F171*$F$150,$F171-SUM($G171:O171))) -> 0 | Q171: =IF($C171>Q$2,0,IF($C171=Q$2,0.5,1)*MIN($F171*$F$150,$F171-SUM($G171:P171))) -> 0 | R171: =IF($C171>R$2,0,IF($C171=R$2,0.5,1)*MIN($F171*$F$150,$F171-SUM($G171:Q171))) -> 0 | S171: =IF($C171>S$2,0,IF($C171=S$2,0.5,1)*MIN($F171*$F$150,$F171-SUM($G171:R171))) -> 0 | T171: =IF($C171>T$2,0,IF($C171=T$2,0.5,1)*MIN($F171*$F$150,$F171-SUM($G171:S171))) -> 0 | U171: =IF($C171>U$2,0,IF($C171=U$2,0.5,1)*MIN($F171*$F$150,$F171-SUM($G171:T171))) -> 0 | V171: =IF($C171>V$2,0,IF($C171=V$2,0.5,1)*MIN($F171*$F$150,$F171-SUM($G171:U171))) -> 0 | W171: =IF($C171>W$2,0,IF($C171=W$2,0.5,1)*MIN($F171*$F$150,$F171-SUM($G171:V171))) -> 0 | X171: =IF($C171>X$2,0,IF($C171=X$2,0.5,1)*MIN($F171*$F$150,$F171-SUM($G171:W171))) -> 0 | Y171: =IF($C171>Y$2,0,IF($C171=Y$2,0.5,1)*MIN($F171*$F$150,$F171-SUM($G171:X171))) -> 0 | Z171: =IF($C171>Z$2,0,IF($C171=Z$2,0.5,1)*MIN($F171*$F$150,$F171-SUM($G171:Y171))) -> 0 | AA171: =IF($C171>AA$2,0,IF($C171=AA$2,0.5,1)*MIN($F171*$F$150,$F171-SUM($G171:Z171))) -> 0 | AB171: =IF($C171>AB$2,0,IF($C171=AB$2,0.5,1)*MIN($F171*$F$150,$F171-SUM($G171:AA171))) -> 0
C172: 2042 | D172: тыс. руб. | E172: 20 | F172: 0 | H172: =IF($C172>H$2,0,IF($C172=H$2,0.5,1)*MIN($F172*$F$150,$F172-SUM($G172:G172))) -> 0 | I172: =IF($C172>I$2,0,IF($C172=I$2,0.5,1)*MIN($F172*$F$150,$F172-SUM($G172:H172))) -> 0 | J172: =IF($C172>J$2,0,IF($C172=J$2,0.5,1)*MIN($F172*$F$150,$F172-SUM($G172:I172))) -> 0 | K172: =IF($C172>K$2,0,IF($C172=K$2,0.5,1)*MIN($F172*$F$150,$F172-SUM($G172:J172))) -> 0 | L172: =IF($C172>L$2,0,IF($C172=L$2,0.5,1)*MIN($F172*$F$150,$F172-SUM($G172:K172))) -> 0 | M172: =IF($C172>M$2,0,IF($C172=M$2,0.5,1)*MIN($F172*$F$150,$F172-SUM($G172:L172))) -> 0 | N172: =IF($C172>N$2,0,IF($C172=N$2,0.5,1)*MIN($F172*$F$150,$F172-SUM($G172:M172))) -> 0 | O172: =IF($C172>O$2,0,IF($C172=O$2,0.5,1)*MIN($F172*$F$150,$F172-SUM($G172:N172))) -> 0 | P172: =IF($C172>P$2,0,IF($C172=P$2,0.5,1)*MIN($F172*$F$150,$F172-SUM($G172:O172))) -> 0 | Q172: =IF($C172>Q$2,0,IF($C172=Q$2,0.5,1)*MIN($F172*$F$150,$F172-SUM($G172:P172))) -> 0 | R172: =IF($C172>R$2,0,IF($C172=R$2,0.5,1)*MIN($F172*$F$150,$F172-SUM($G172:Q172))) -> 0 | S172: =IF($C172>S$2,0,IF($C172=S$2,0.5,1)*MIN($F172*$F$150,$F172-SUM($G172:R172))) -> 0 | T172: =IF($C172>T$2,0,IF($C172=T$2,0.5,1)*MIN($F172*$F$150,$F172-SUM($G172:S172))) -> 0 | U172: =IF($C172>U$2,0,IF($C172=U$2,0.5,1)*MIN($F172*$F$150,$F172-SUM($G172:T172))) -> 0 | V172: =IF($C172>V$2,0,IF($C172=V$2,0.5,1)*MIN($F172*$F$150,$F172-SUM($G172:U172))) -> 0 | W172: =IF($C172>W$2,0,IF($C172=W$2,0.5,1)*MIN($F172*$F$150,$F172-SUM($G172:V172))) -> 0 | X172: =IF($C172>X$2,0,IF($C172=X$2,0.5,1)*MIN($F172*$F$150,$F172-SUM($G172:W172))) -> 0 | Y172: =IF($C172>Y$2,0,IF($C172=Y$2,0.5,1)*MIN($F172*$F$150,$F172-SUM($G172:X172))) -> 0 | Z172: =IF($C172>Z$2,0,IF($C172=Z$2,0.5,1)*MIN($F172*$F$150,$F172-SUM($G172:Y172))) -> 0 | AA172: =IF($C172>AA$2,0,IF($C172=AA$2,0.5,1)*MIN($F172*$F$150,$F172-SUM($G172:Z172))) -> 0 | AB172: =IF($C172>AB$2,0,IF($C172=AB$2,0.5,1)*MIN($F172*$F$150,$F172-SUM($G172:AA172))) -> 0
C174: Первоначальная стоимость активов | D174: тыс. руб. | H174: =G174+H41 -> 0 | I174: 0 | J174: 0 | K174: 0 | L174: 0 | M174: 0 | N174: 0 | O174: 0 | P174: 0 | Q174: 0 | R174: 0 | S174: 0 | T174: 0 | U174: 0 | V174: 0 | W174: 0 | X174: 0 | Y174: 0 | Z174: 0 | AA174: 0 | AB174: 0
C175: Амортизация за период | D175: тыс. руб. | H175: =H152 -> 0 | I175: 0 | J175: 0 | K175: 0 | L175: 0 | M175: 0 | N175: 0 | O175: 0 | P175: 0 | Q175: 0 | R175: 0 | S175: 0 | T175: 0 | U175: 0 | V175: 0 | W175: 0 | X175: 0 | Y175: 0 | Z175: 0 | AA175: 0 | AB175: 0
C176: Накопленная амортизация | D176: тыс. руб. | H176: =G176+H175 -> 0 | I176: =H176+I175 -> 0 | J176: =I176+J175 -> 0 | K176: =J176+K175 -> 0 | L176: =K176+L175 -> 0 | M176: =L176+M175 -> 0 | N176: =M176+N175 -> 0 | O176: =N176+O175 -> 0 | P176: =O176+P175 -> 0 | Q176: =P176+Q175 -> 0 | R176: =Q176+R175 -> 0 | S176: =R176+S175 -> 0 | T176: =S176+T175 -> 0 | U176: =T176+U175 -> 0 | V176: =U176+V175 -> 0 | W176: =V176+W175 -> 0 | X176: =W176+X175 -> 0 | Y176: =X176+Y175 -> 0 | Z176: =Y176+Z175 -> 0 | AA176: =Z176+AA175 -> 0 | AB176: =AA176+AB175 -> 0
C177: Остаточная стоимость активов | D177: тыс. руб. | H177: =H174-H176 -> 0 | I177: =I174-I176 -> 0 | J177: 0 | K177: 0 | L177: 0 | M177: 0 | N177: 0 | O177: 0 | P177: 0 | Q177: 0 | R177: 0 | S177: 0 | T177: 0 | U177: 0 | V177: 0 | W177: 0 | X177: 0 | Y177: 0 | Z177: 0 | AA177: 0 | AB177: 0

Sheet Выручка и себестоимость
E1: ="Лист: " & RIGHT(CELL("filename",A1),LEN(CELL("filename",A1))-SEARCH("]",CELL("filename",A1))) -> Лист: Выручка и себестоимость
C2: Параметр | D2: Ед. изм. | E2: Источник | F2: Текущее значение | H2: =Предпосылки!H2 -> 2023 | I2: =Предпосылки!I2 -> 2024 | J2: =Предпосылки!J2 -> 2025 | K2: =Предпосылки!K2 -> 2026 | L2: =Предпосылки!L2 -> 2027 | M2: =Предпосылки!M2 -> 2028 | N2: =Предпосылки!N2 -> 2029 | O2: =Предпосылки!O2 -> 2030 | P2: =Предпосылки!P2 -> 2031 | Q2: =Предпосылки!Q2 -> 2032 | R2: =Предпосылки!R2 -> 2033 | S2: =Предпосылки!S2 -> 2034 | T2: =Предпосылки!T2 -> 2035 | U2: =Предпосылки!U2 -> 2036 | V2: =Предпосылки!V2 -> 2037 | W2: =Предпосылки!W2 -> 2038 | X2: =Предпосылки!X2 -> 2039 | Y2: =Предпосылки!Y2 -> 2040 | Z2: =Предпосылки!Z2 -> 2041 | AA2: =Предпосылки!AA2 -> 2042 | AB2: =Предпосылки!AB2 -> 2043
H3: 1 | I3: 2 | J3: 3 | K3: 4 | L3: 5 | M3: 6 | N3: 7 | O3: 8 | P3: 9 | Q3: 10 | R3: 11 | S3: 12 | T3: 13 | U3: 14 | V3: 15 | W3: 16 | X3: 17 | Y3: 18 | Z3: 19 | AA3: 20 | AB3: 21
B5: Выручка от продаж, без НДС
C7: Продукция 1 | D7: тыс. руб. | H7: =Предпосылки!H36*Предпосылки!H48 -> 0 | I7: =Предпосылки!I36*Предпосылки!I48 -> 0 | J7: =Предпосылки!J36*Предпосылки!J48 -> 0 | K7: =Предпосылки!K36*Предпосылки!K48 -> 0 | L7: =Предпосылки!L36*Предпосылки!L48 -> 0 | M7: =Предпосылки!M36*Предпосылки!M48 -> 0 | N7: =Предпосылки!N36*Предпосылки!N48 -> 0 | O7: =Предпосылки!O36*Предпосылки!O48 -> 0 | P7: =Предпосылки!P36*Предпосылки!P48 -> 0 | Q7: =Предпосылки!Q36*Предпосылки!Q48 -> 0 | R7: =Предпосылки!R36*Предпосылки!R48 -> 0 | S7: =Предпосылки!S36*Предпосылки!S48 -> 0 | T7: =Предпосылки!T36*Предпосылки!T48 -> 0 | U7: =Предпосылки!U36*Предпосылки!U48 -> 0 | V7: =Предпосылки!V36*Предпосылки!V48 -> 0 | W7: =Предпосылки!W36*Предпосылки!W48 -> 0 | X7: =Предпосылки!X36*Предпосылки!X48 -> 0 | Y7: =Предпосылки!Y36*Предпосылки!Y48 -> 0 | Z7: =Предпосылки!Z36*Предпосылки!Z48 -> 0 | AA7: =Предпосылки!AA36*Предпосылки!AA48 -> 0 | AB7: =Предпосылки!AB36*Предпосылки!AB48 -> 0
C8: Продукция 2 | D8: тыс. руб. | H8: =Предпосылки!H37*Предпосылки!H49 -> 0 | I8: =Предпосылки!I37*Предпосылки!I49 -> 0 | J8: =Предпосылки!J37*Предпосылки!J49 -> 0 | K8: =Предпосылки!K37*Предпосылки!K49 -> 0 | L8: =Предпосылки!L37*Предпосылки!L49 -> 0 | M8: =Предпосылки!M37*Предпосылки!M49 -> 0 | N8: =Предпосылки!N37*Предпосылки!N49 -> 0 | O8: =Предпосылки!O37*Предпосылки!O49 -> 0 | P8: =Предпосылки!P37*Предпосылки!P49 -> 0 | Q8: =Предпосылки!Q37*Предпосылки!Q49 -> 0 | R8: =Предпосылки!R37*Предпосылки!R49 -> 0 | S8: =Предпосылки!S37*Предпосылки!S49 -> 0 | T8: =Предпосылки!T37*Предпосылки!T49 -> 0 | U8: =Предпосылки!U37*Предпосылки!U49 -> 0 | V8: =Предпосылки!V37*Предпосылки!V49 -> 0 | W8: =Предпосылки!W37*Предпосылки!W49 -> 0 | X8: =Предпосылки!X37*Предпосылки!X49 -> 0 | Y8: =Предпосылки!Y37*Предпосылки!Y49 -> 0 | Z8: =Предпосылки!Z37*Предпосылки!Z49 -> 0 | AA8: =Предпосылки!AA37*Предпосылки!AA49 -> 0 | AB8: =Предпосылки!AB37*Предпосылки!AB49 -> 0
C9: …
C10: Итого | D10: тыс. руб. | H10: =SUM(H7:H8) -> 0 | I10: =SUM(I7:I8) -> 0 | J10: 0 | K10: 0 | L10: 0 | M10: 0 | N10: 0 | O10: 0 | P10: 0 | Q10: 0 | R10: 0 | S10: 0 | T10: 0 | U10: 0 | V10: 0 | W10: 0 | X10: 0 | Y10: 0 | Z10: 0 | AA10: 0 | AB10: 0
C12: Темп прироста по продукции 1 | D12: % | H12: =IFERROR((H7-G7)/G7,"-") -> - | I12: =IFERROR((I7-H7)/H7,"-") -> - | J12: - | K12: - | L12: - | M12: - | N12: - | O12: - | P12: - | Q12: - | R12: - | S12: - | T12: - | U12: - | V12: - | W12: =IFERROR((W7-V7)/V7,"-") -> - | X12: - | Y12: - | Z12: - | AA12: - | AB12: -
C13: Темп прироста по продукции 2 | D13: % | H13: =IFERROR((H8-G8)/G8,"-") -> - | I13: =IFERROR((I8-H8)/H8,"-") -> - | J13: - | K13: - | L13: - | M13: - | N13: - | O13: - | P13: - | Q13: - | R13: - | S13: - | T13: - | U13: - | V13: - | W13: - | X13: - | Y13: - | Z13: - | AA13: - | AB13: -
C14: …
C15: Темп прироста общей выручки | D15: % | H15: =IFERROR((H10-G10)/G10,"-") -> - | I15: =IFERROR((I10-H10)/H10,"-") -> - | J15: - | K15: - | L15: - | M15: - | N15: - | O15: - | P15: - | Q15: - | R15: - | S15: - | T15: - | U15: - | V15: - | W15: =IFERROR((W10-V10)/V10,"-") -> - | X15: - | Y15: - | Z15: - | AA15: - | AB15: -
B17: Исходящий НДС
C19: Продукция 1 | D19: тыс. руб. | H19: =H7*НДС_общая -> 0 | I19: 0 | J19: 0 | K19: 0 | L19: 0 | M19: 0 | N19: 0 | O19: 0 | P19: 0 | Q19: 0 | R19: 0 | S19: 0 | T19: 0 | U19: 0 | V19: 0 | W19: 0 | X19: 0 | Y19: 0 | Z19: 0 | AA19: 0 | AB19: 0
C20: Продукция 2 | D20: тыс. руб. | H20: =H8*НДС_общая -> 0 | I20: 0 | J20: 0 | K20: 0 | L20: 0 | M20: 0 | N20: 0 | O20: 0 | P20: 0 | Q20: 0 | R20: 0 | S20: 0 | T20: 0 | U20: 0 | V20: 0 | W20: 0 | X20: 0 | Y20: 0 | Z20: 0 | AA20: 0 | AB20: 0
C21: …
C22: Итого | D22: тыс. руб. | H22: =SUM(H19:H20) -> 0 | I22: =SUM(I19:I20) -> 0 | J22: 0 | K22: 0 | L22: 0 | M22: 0 | N22: 0 | O22: 0 | P22: 0 | Q22: 0 | R22: 0 | S22: 0 | T22: 0 | U22: 0 | V22: 0 | W22: 0 | X22: 0 | Y22: 0 | Z22: 0 | AA22: 0 | AB22: 0
B24: Выручка от продаж, с НДС
C26: Продукция 1 | D26: тыс. руб. | H26: =H7+H19 -> 0 | I26: =I7+I19 -> 0 | J26: 0 | K26: 0 | L26: 0 | M26: 0 | N26: 0 | O26: 0 | P26: 0 | Q26: 0 | R26: 0 | S26: 0 | T26: 0 | U26: 0 | V26: 0 | W26: 0 | X26: 0 | Y26: 0 | Z26: 0 | AA26: 0 | AB26: 0
C27: Продукция 2 | D27: тыс. руб. | H27: =H8+H20 -> 0 | I27: =I8+I20 -> 0 | J27: 0 | K27: 0 | L27: 0 | M27: 0 | N27: 0 | O27: 0 | P27: 0 | Q27: 0 | R27: 0 | S27: 0 | T27: 0 | U27: 0 | V27: 0 | W27: 0 | X27: 0 | Y27: 0 | Z27: 0 | AA27: 0 | AB27: 0
C28: …
C29: Итого | D29: тыс. руб. | H29: =SUM(H26:H27) -> 0 | I29: =SUM(I26:I27) -> 0 | J29: 0 | K29: 0 | L29: 0 | M29: 0 | N29: 0 | O29: 0 | P29: 0 | Q29: 0 | R29: 0 | S29: 0 | T29: 0 | U29: 0 | V29: 0 | W29: 0 | X29: 0 | Y29: 0 | Z29: 0 | AA29: 0 | AB29: 0
B31: Себестоимость продаж
B33: Себестоимость продаж в случае применения льготного тарифа страховых взносов с ФОТ для участников СПИК 1.0, являющихся участниками промышленных кластеров
C34: Прямые затраты на производство продукции | D34: тыс. руб. | E34: Лист: Операционные затраты | H34: ='Операционные затраты'!H11+'Операционные затраты'!H17 -> 0 | I34: ='Операционные затраты'!I11+'Операционные затраты'!I17 -> 0 | J34: ='Операционные затраты'!J11+'Операционные затраты'!J17 -> 0 | K34: ='Операционные затраты'!K11+'Операционные затраты'!K17 -> 0 | L34: ='Операционные затраты'!L11+'Операционные затраты'!L17 -> 0 | M34: ='Операционные затраты'!M11+'Операционные затраты'!M17 -> 0 | N34: ='Операционные затраты'!N11+'Операционные затраты'!N17 -> 0 | O34: ='Операционные затраты'!O11+'Операционные затраты'!O17 -> 0 | P34: ='Операционные затраты'!P11+'Операционные затраты'!P17 -> 0 | Q34: ='Операционные затраты'!Q11+'Операционные затраты'!Q17 -> 0 | R34: ='Операционные затраты'!R11+'Операционные затраты'!R17 -> 0 | S34: ='Операционные затраты'!S11+'Операционные затраты'!S17 -> 0 | T34: ='Операционные затраты'!T11+'Операционные затраты'!T17 -> 0 | U34: ='Операционные затраты'!U11+'Операционные затраты'!U17 -> 0 | V34: ='Операционные затраты'!V11+'Операционные затраты'!V17 -> 0 | W34: ='Операционные затраты'!W11+'Операционные затраты'!W17 -> 0 | X34: ='Операционные затраты'!X11+'Операционные затраты'!X17 -> 0 | Y34: ='Операционные затраты'!Y11+'Операционные затраты'!Y17 -> 0 | Z34: ='Операционные затраты'!Z11+'Операционные затраты'!Z17 -> 0 | AA34: ='Операционные затраты'!AA11+'Операционные затраты'!AA17 -> 0 | AB34: ='Операционные затраты'!AB11+'Операционные затраты'!AB17 -> 0
C35: Общехозяйственные (производственные) расходы | D35: тыс. руб. | E35: Лист: Операционные затраты | H35: ='Операционные затраты'!H25 -> 0 | I35: ='Операционные затраты'!I25 -> 0 | J35: ='Операционные затраты'!J25 -> 0 | K35: ='Операционные затраты'!K25 -> 0 | L35: ='Операционные затраты'!L25 -> 0 | M35: ='Операционные затраты'!M25 -> 0 | N35: ='Операционные затраты'!N25 -> 0 | O35: ='Операционные затраты'!O25 -> 0 | P35: ='Операционные затраты'!P25 -> 0 | Q35: ='Операционные затраты'!Q25 -> 0 | R35: ='Операционные затраты'!R25 -> 0 | S35: ='Операционные затраты'!S25 -> 0 | T35: ='Операционные затраты'!T25 -> 0 | U35: ='Операционные затраты'!U25 -> 0 | V35: ='Операционные затраты'!V25 -> 0 | W35: ='Операционные затраты'!W25 -> 0 | X35: ='Операционные затраты'!X25 -> 0 | Y35: ='Операционные затраты'!Y25 -> 0 | Z35: ='Операционные затраты'!Z25 -> 0 | AA35: ='Операционные затраты'!AA25 -> 0 | AB35: ='Операционные затраты'!AB25 -> 0
C36: Расходы на ОТ производственного и вспомогательного персонала | D36: тыс. руб. | E36: Лист: Операционные затраты | H36: =SUM('Операционные затраты'!H105:H106) -> 0 | I36: =SUM('Операционные затраты'!I105:I106) -> 0 | J36: =SUM('Операционные затраты'!J105:J106) -> 0 | K36: =SUM('Операционные затраты'!K105:K106) -> 0 | L36: =SUM('Операционные затраты'!L105:L106) -> 0 | M36: =SUM('Операционные затраты'!M105:M106) -> 0 | N36: =SUM('Операционные затраты'!N105:N106) -> 0 | O36: =SUM('Операционные затраты'!O105:O106) -> 0 | P36: =SUM('Операционные затраты'!P105:P106) -> 0 | Q36: =SUM('Операционные затраты'!Q105:Q106) -> 0 | R36: =SUM('Операционные затраты'!R105:R106) -> 0 | S36: =SUM('Операционные затраты'!S105:S106) -> 0 | T36: =SUM('Операционные затраты'!T105:T106) -> 0 | U36: =SUM('Операционные затраты'!U105:U106) -> 0 | V36: =SUM('Операционные затраты'!V105:V106) -> 0 | W36: =SUM('Операционные затраты'!W105:W106) -> 0 | X36: =SUM('Операционные затраты'!X105:X106) -> 0 | Y36: =SUM('Операционные затраты'!Y105:Y106) -> 0 | Z36: =SUM('Операционные затраты'!Z105:Z106) -> 0 | AA36: =SUM('Операционные затраты'!AA105:AA106) -> 0 | AB36: =SUM('Операционные затраты'!AB105:AB106) -> 0
C37: Амортизация производственных активов | D37: тыс. руб. | E37: Лист: Капитальные вложения | H37: ='Капитальные вложения'!H52 -> 0 | I37: ='Капитальные вложения'!I52 -> 0 | J37: ='Капитальные вложения'!J52 -> 0 | K37: ='Капитальные вложения'!K52 -> 0 | L37: ='Капитальные вложения'!L52 -> 0 | M37: ='Капитальные вложения'!M52 -> 0 | N37: ='Капитальные вложения'!N52 -> 0 | O37: ='Капитальные вложения'!O52 -> 0 | P37: ='Капитальные вложения'!P52 -> 0 | Q37: ='Капитальные вложения'!Q52 -> 0 | R37: ='Капитальные вложения'!R52 -> 0 | S37: ='Капитальные вложения'!S52 -> 0 | T37: ='Капитальные вложения'!T52 -> 0 | U37: ='Капитальные вложения'!U52 -> 0 | V37: ='Капитальные вложения'!V52 -> 0 | W37: ='Капитальные вложения'!W52 -> 0 | X37: ='Капитальные вложения'!X52 -> 0 | Y37: ='Капитальные вложения'!Y52 -> 0 | Z37: ='Капитальные вложения'!Z52 -> 0 | AA37: ='Капитальные вложения'!AA52 -> 0 | AB37: ='Капитальные вложения'!AB52 -> 0
C38: Итого | D38: тыс. руб. | H38: =SUM(H34:H37) -> 0 | I38: =SUM(I34:I37) -> 0 | J38: 0 | K38: 0 | L38: 0 | M38: 0 | N38: 0 | O38: 0 | P38: 0 | Q38: 0 | R38: 0 | S38: 0 | T38: 0 | U38: 0 | V38: 0 | W38: 0 | X38: 0 | Y38: 0 | Z38: 0 | AA38: 0 | AB38: 0
B40: Себестоимость продаж в иных случаях
C41: Прямые затраты на производство продукции | D41: тыс. руб. | E41: Лист: Операционные затраты | H41: ='Операционные затраты'!H11+'Операционные затраты'!H17 -> 0 | I41: ='Операционные затраты'!I11+'Операционные затраты'!I17 -> 0 | J41: ='Операционные затраты'!J11+'Операционные затраты'!J17 -> 0 | K41: ='Операционные затраты'!K11+'Операционные затраты'!K17 -> 0 | L41: ='Операционные затраты'!L11+'Операционные затраты'!L17 -> 0 | M41: ='Операционные затраты'!M11+'Операционные затраты'!M17 -> 0 | N41: ='Операционные затраты'!N11+'Операционные затраты'!N17 -> 0 | O41: ='Операционные затраты'!O11+'Операционные затраты'!O17 -> 0 | P41: ='Операционные затраты'!P11+'Операционные затраты'!P17 -> 0 | Q41: ='Операционные затраты'!Q11+'Операционные затраты'!Q17 -> 0 | R41: ='Операционные затраты'!R11+'Операционные затраты'!R17 -> 0 | S41: ='Операционные затраты'!S11+'Операционные затраты'!S17 -> 0 | T41: ='Операционные затраты'!T11+'Операционные затраты'!T17 -> 0 | U41: ='Операционные затраты'!U11+'Операционные затраты'!U17 -> 0 | V41: ='Операционные затраты'!V11+'Операционные затраты'!V17 -> 0 | W41: ='Операционные затраты'!W11+'Операционные затраты'!W17 -> 0 | X41: ='Операционные затраты'!X11+'Операционные затраты'!X17 -> 0 | Y41: ='Операционные затраты'!Y11+'Операционные затраты'!Y17 -> 0 | Z41: ='Операционные затраты'!Z11+'Операционные затраты'!Z17 -> 0 | AA41: ='Операционные затраты'!AA11+'Операционные затраты'!AA17 -> 0 | AB41: ='Операционные затраты'!AB11+'Операционные затраты'!AB17 -> 0
C42: Общехозяйственные (производственные) расходы | D42: тыс. руб. | E42: Лист: Операционные затраты | H42: ='Операционные затраты'!H25 -> 0 | I42: ='Операционные затраты'!I25 -> 0 | J42: ='Операционные затраты'!J25 -> 0 | K42: ='Операционные затраты'!K25 -> 0 | L42: ='Операционные затраты'!L25 -> 0 | M42: ='Операционные затраты'!M25 -> 0 | N42: ='Операционные затраты'!N25 -> 0 | O42: ='Операционные затраты'!O25 -> 0 | P42: ='Операционные затраты'!P25 -> 0 | Q42: ='Операционные затраты'!Q25 -> 0 | R42: ='Операционные затраты'!R25 -> 0 | S42: ='Операционные затраты'!S25 -> 0 | T42: ='Операционные затраты'!T25 -> 0 | U42: ='Операционные затраты'!U25 -> 0 | V42: ='Операционные затраты'!V25 -> 0 | W42: ='Операционные затраты'!W25 -> 0 | X42: ='Операционные затраты'!X25 -> 0 | Y42: ='Операционные затраты'!Y25 -> 0 | Z42: ='Операционные затраты'!Z25 -> 0 | AA42: ='Операционные затраты'!AA25 -> 0 | AB42: ='Операционные затраты'!AB25 -> 0
C43: Расходы на ОТ производственного и вспомогательного персонала | D43: тыс. руб. | E43: Лист: Операционные затраты | H43: =SUM('Операционные затраты'!H147:H148) -> 0 | I43: =SUM('Операционные затраты'!I147:I148) -> 0 | J43: =SUM('Операционные затраты'!J147:J148) -> 0 | K43: =SUM('Операционные затраты'!K147:K148) -> 0 | L43: =SUM('Операционные затраты'!L147:L148) -> 0 | M43: =SUM('Операционные затраты'!M147:M148) -> 0 | N43: =SUM('Операционные затраты'!N147:N148) -> 0 | O43: =SUM('Операционные затраты'!O147:O148) -> 0 | P43: =SUM('Операционные затраты'!P147:P148) -> 0 | Q43: =SUM('Операционные затраты'!Q147:Q148) -> 0 | R43: =SUM('Операционные затраты'!R147:R148) -> 0 | S43: =SUM('Операционные затраты'!S147:S148) -> 0 | T43: =SUM('Операционные затраты'!T147:T148) -> 0 | U43: =SUM('Операционные затраты'!U147:U148) -> 0 | V43: =SUM('Операционные затраты'!V147:V148) -> 0 | W43: =SUM('Операционные затраты'!W147:W148) -> 0 | X43: =SUM('Операционные затраты'!X147:X148) -> 0 | Y43: =SUM('Операционные затраты'!Y147:Y148) -> 0 | Z43: =SUM('Операционные затраты'!Z147:Z148) -> 0 | AA43: =SUM('Операционные затраты'!AA147:AA148) -> 0 | AB43: =SUM('Операционные затраты'!AB147:AB148) -> 0
C44: Амортизация производственных активов | D44: тыс. руб. | E44: Лист: Капитальные вложения | H44: ='Капитальные вложения'!H52 -> 0 | I44: ='Капитальные вложения'!I52 -> 0 | J44: ='Капитальные вложения'!J52 -> 0 | K44: ='Капитальные вложения'!K52 -> 0 | L44: ='Капитальные вложения'!L52 -> 0 | M44: ='Капитальные вложения'!M52 -> 0 | N44: ='Капитальные вложения'!N52 -> 0 | O44: ='Капитальные вложения'!O52 -> 0 | P44: ='Капитальные вложения'!P52 -> 0 | Q44: ='Капитальные вложения'!Q52 -> 0 | R44: ='Капитальные вложения'!R52 -> 0 | S44: ='Капитальные вложения'!S52 -> 0 | T44: ='Капитальные вложения'!T52 -> 0 | U44: ='Капитальные вложения'!U52 -> 0 | V44: ='Капитальные вложения'!V52 -> 0 | W44: ='Капитальные вложения'!W52 -> 0 | X44: ='Капитальные вложения'!X52 -> 0 | Y44: ='Капитальные вложения'!Y52 -> 0 | Z44: ='Капитальные вложения'!Z52 -> 0 | AA44: ='Капитальные вложения'!AA52 -> 0 | AB44: ='Капитальные вложения'!AB52 -> 0
C45: Итого | D45: тыс. руб. | H45: =SUM(H41:H44) -> 0 | I45: =SUM(I41:I44) -> 0 | J45: 0 | K45: 0 | L45: 0 | M45: 0 | N45: 0 | O45: 0 | P45: 0 | Q45: 0 | R45: 0 | S45: 0 | T45: 0 | U45: 0 | V45: 0 | W45: 0 | X45: 0 | Y45: 0 | Z45: 0 | AA45: 0 | AB45: 0

Sheet Операционные затраты
E1: ="Лист: " & RIGHT(CELL("filename",A1),LEN(CELL("filename",A1))-SEARCH("]",CELL("filename",A1))) -> Лист: Операционные затраты
C2: Параметр | D2: Ед. изм. | E2: Источник | F2: Текущее значение | H2: =Предпосылки!H2 -> 2023 | I2: =Предпосылки!I2 -> 2024 | J2: =Предпосылки!J2 -> 2025 | K2: =Предпосылки!K2 -> 2026 | L2: =Предпосылки!L2 -> 2027 | M2: =Предпосылки!M2 -> 2028 | N2: =Предпосылки!N2 -> 2029 | O2: =Предпосылки!O2 -> 2030 | P2: =Предпосылки!P2 -> 2031 | Q2: =Предпосылки!Q2 -> 2032 | R2: =Предпосылки!R2 -> 2033 | S2: =Предпосылки!S2 -> 2034 | T2: =Предпосылки!T2 -> 2035 | U2: =Предпосылки!U2 -> 2036 | V2: =Предпосылки!V2 -> 2037 | W2: =Предпосылки!W2 -> 2038 | X2: =Предпосылки!X2 -> 2039 | Y2: =Предпосылки!Y2 -> 2040 | Z2: =Предпосылки!Z2 -> 2041 | AA2: =Предпосылки!AA2 -> 2042 | AB2: =Предпосылки!AB2 -> 2043
H3: 1 | I3: 2 | J3: 3 | K3: 4 | L3: 5 | M3: 6 | N3: 7 | O3: 8 | P3: 9 | Q3: 10 | R3: 11 | S3: 12 | T3: 13 | U3: 14 | V3: 15 | W3: 16 | X3: 17 | Y3: 18 | Z3: 19 | AA3: 20 | AB3: 21
B5: Прямые расходы на производство продукции (без НДС)
B7: Продукция 1
C8: Сырье/материалы 1 | D8: тыс. руб. | H8: =Предпосылки!H$42*Предпосылки!H75*Предпосылки!H87 -> 0 | I8: =Предпосылки!I$42*Предпосылки!I75*Предпосылки!I87 -> 0 | J8: =Предпосылки!J$42*Предпосылки!J75*Предпосылки!J87 -> 0 | K8: =Предпосылки!K$42*Предпосылки!K75*Предпосылки!K87 -> 0 | L8: =Предпосылки!L$42*Предпосылки!L75*Предпосылки!L87 -> 0 | M8: =Предпосылки!M$42*Предпосылки!M75*Предпосылки!M87 -> 0 | N8: =Предпосылки!N$42*Предпосылки!N75*Предпосылки!N87 -> 0 | O8: =Предпосылки!O$42*Предпосылки!O75*Предпосылки!O87 -> 0 | P8: =Предпосылки!P$42*Предпосылки!P75*Предпосылки!P87 -> 0 | Q8: =Предпосылки!Q$42*Предпосылки!Q75*Предпосылки!Q87 -> 0 | R8: =Предпосылки!R$42*Предпосылки!R75*Предпосылки!R87 -> 0 | S8: =Предпосылки!S$42*Предпосылки!S75*Предпосылки!S87 -> 0 | T8: =Предпосылки!T$42*Предпосылки!T75*Предпосылки!T87 -> 0 | U8: =Предпосылки!U$42*Предпосылки!U75*Предпосылки!U87 -> 0 | V8: =Предпосылки!V$42*Предпосылки!V75*Предпосылки!V87 -> 0 | W8: =Предпосылки!W$42*Предпосылки!W75*Предпосылки!W87 -> 0 | X8: =Предпосылки!X$42*Предпосылки!X75*Предпосылки!X87 -> 0 | Y8: =Предпосылки!Y$42*Предпосылки!Y75*Предпосылки!Y87 -> 0 | Z8: =Предпосылки!Z$42*Предпосылки!Z75*Предпосылки!Z87 -> 0 | AA8: =Предпосылки!AA$42*Предпосылки!AA75*Предпосылки!AA87 -> 0 | AB8: =Предпосылки!AB$42*Предпосылки!AB75*Предпосылки!AB87 -> 0
C9: Сырье/материалы 2 | D9: тыс. руб. | H9: =Предпосылки!H$42*Предпосылки!H76*Предпосылки!H88 -> 0 | I9: =Предпосылки!I$42*Предпосылки!I76*Предпосылки!I88 -> 0 | J9: =Предпосылки!J$42*Предпосылки!J76*Предпосылки!J88 -> 0 | K9: =Предпосылки!K$42*Предпосылки!K76*Предпосылки!K88 -> 0 | L9: =Предпосылки!L$42*Предпосылки!L76*Предпосылки!L88 -> 0 | M9: =Предпосылки!M$42*Предпосылки!M76*Предпосылки!M88 -> 0 | N9: =Предпосылки!N$42*Предпосылки!N76*Предпосылки!N88 -> 0 | O9: =Предпосылки!O$42*Предпосылки!O76*Предпосылки!O88 -> 0 | P9: =Предпосылки!P$42*Предпосылки!P76*Предпосылки!P88 -> 0 | Q9: =Предпосылки!Q$42*Предпосылки!Q76*Предпосылки!Q88 -> 0 | R9: =Предпосылки!R$42*Предпосылки!R76*Предпосылки!R88 -> 0 | S9: =Предпосылки!S$42*Предпосылки!S76*Предпосылки!S88 -> 0 | T9: =Предпосылки!T$42*Предпосылки!T76*Предпосылки!T88 -> 0 | U9: =Предпосылки!U$42*Предпосылки!U76*Предпосылки!U88 -> 0 | V9: =Предпосылки!V$42*Предпосылки!V76*Предпосылки!V88 -> 0 | W9: =Предпосылки!W$42*Предпосылки!W76*Предпосылки!W88 -> 0 | X9: =Предпосылки!X$42*Предпосылки!X76*Предпосылки!X88 -> 0 | Y9: =Предпосылки!Y$42*Предпосылки!Y76*Предпосылки!Y88 -> 0 | Z9: =Предпосылки!Z$42*Предпосылки!Z76*Предпосылки!Z88 -> 0 | AA9: =Предпосылки!AA$42*Предпосылки!AA76*Предпосылки!AA88 -> 0 | AB9: =Предпосылки!AB$42*Предпосылки!AB76*Предпосылки!AB88 -> 0
C10: …
C11: Итого | D11: тыс. руб. | H11: =SUM(H8:H10) -> 0 | I11: 0 | J11: 0 | K11: 0 | L11: 0 | M11: 0 | N11: 0 | O11: 0 | P11: 0 | Q11: 0 | R11: 0 | S11: 0 | T11: 0 | U11: 0 | V11: 0 | W11: 0 | X11: 0 | Y11: 0 | Z11: 0 | AA11: 0 | AB11: 0
B13: Продукция 2
C14: Сырье/материалы 1 | D14: тыс. руб. | H14: =Предпосылки!H$43*Предпосылки!H80*Предпосылки!H92 -> 0 | I14: =Предпосылки!I$43*Предпосылки!I80*Предпосылки!I92 -> 0 | J14: =Предпосылки!J$43*Предпосылки!J80*Предпосылки!J92 -> 0 | K14: =Предпосылки!K$43*Предпосылки!K80*Предпосылки!K92 -> 0 | L14: =Предпосылки!L$43*Предпосылки!L80*Предпосылки!L92 -> 0 | M14: =Предпосылки!M$43*Предпосылки!M80*Предпосылки!M92 -> 0 | N14: =Предпосылки!N$43*Предпосылки!N80*Предпосылки!N92 -> 0 | O14: =Предпосылки!O$43*Предпосылки!O80*Предпосылки!O92 -> 0 | P14: =Предпосылки!P$43*Предпосылки!P80*Предпосылки!P92 -> 0 | Q14: =Предпосылки!Q$43*Предпосылки!Q80*Предпосылки!Q92 -> 0 | R14: =Предпосылки!R$43*Предпосылки!R80*Предпосылки!R92 -> 0 | S14: =Предпосылки!S$43*Предпосылки!S80*Предпосылки!S92 -> 0 | T14: =Предпосылки!T$43*Предпосылки!T80*Предпосылки!T92 -> 0 | U14: =Предпосылки!U$43*Предпосылки!U80*Предпосылки!U92 -> 0 | V14: =Предпосылки!V$43*Предпосылки!V80*Предпосылки!V92 -> 0 | W14: =Предпосылки!W$43*Предпосылки!W80*Предпосылки!W92 -> 0 | X14: =Предпосылки!X$43*Предпосылки!X80*Предпосылки!X92 -> 0 | Y14: =Предпосылки!Y$43*Предпосылки!Y80*Предпосылки!Y92 -> 0 | Z14: =Предпосылки!Z$43*Предпосылки!Z80*Предпосылки!Z92 -> 0 | AA14: =Предпосылки!AA$43*Предпосылки!AA80*Предпосылки!AA92 -> 0 | AB14: =Предпосылки!AB$43*Предпосылки!AB80*Предпосылки!AB92 -> 0
C15: Сырье/материалы 3 | D15: тыс. руб. | H15: =Предпосылки!H$43*Предпосылки!H81*Предпосылки!H93 -> 0 | I15: =Предпосылки!I$43*Предпосылки!I81*Предпосылки!I93 -> 0 | J15: =Предпосылки!J$43*Предпосылки!J81*Предпосылки!J93 -> 0 | K15: =Предпосылки!K$43*Предпосылки!K81*Предпосылки!K93 -> 0 | L15: =Предпосылки!L$43*Предпосылки!L81*Предпосылки!L93 -> 0 | M15: =Предпосылки!M$43*Предпосылки!M81*Предпосылки!M93 -> 0 | N15: =Предпосылки!N$43*Предпосылки!N81*Предпосылки!N93 -> 0 | O15: =Предпосылки!O$43*Предпосылки!O81*Предпосылки!O93 -> 0 | P15: =Предпосылки!P$43*Предпосылки!P81*Предпосылки!P93 -> 0 | Q15: =Предпосылки!Q$43*Предпосылки!Q81*Предпосылки!Q93 -> 0 | R15: =Предпосылки!R$43*Предпосылки!R81*Предпосылки!R93 -> 0 | S15: =Предпосылки!S$43*Предпосылки!S81*Предпосылки!S93 -> 0 | T15: =Предпосылки!T$43*Предпосылки!T81*Предпосылки!T93 -> 0 | U15: =Предпосылки!U$43*Предпосылки!U81*Предпосылки!U93 -> 0 | V15: =Предпосылки!V$43*Предпосылки!V81*Предпосылки!V93 -> 0 | W15: =Предпосылки!W$43*Предпосылки!W81*Предпосылки!W93 -> 0 | X15: =Предпосылки!X$43*Предпосылки!X81*Предпосылки!X93 -> 0 | Y15: =Предпосылки!Y$43*Предпосылки!Y81*Предпосылки!Y93 -> 0 | Z15: =Предпосылки!Z$43*Предпосылки!Z81*Предпосылки!Z93 -> 0 | AA15: =Предпосылки!AA$43*Предпосылки!AA81*Предпосылки!AA93 -> 0 | AB15: =Предпосылки!AB$43*Предпосылки!AB81*Предпосылки!AB93 -> 0
C16: …
C17: Итого | D17: тыс. руб. | H17: =SUM(H14:H16) -> 0 | I17: 0 | J17: 0 | K17: 0 | L17: 0 | M17: 0 | N17: 0 | O17: 0 | P17: 0 | Q17: 0 | R17: 0 | S17: 0 | T17: 0 | U17: 0 | V17: 0 | W17: 0 | X17: 0 | Y17: 0 | Z17: 0 | AA17: 0 | AB17: 0
B19: Общехозяйственные расходы (без НДС)
B21: Общепроизводственные расходы
C22: Статья расходов 1 | D22: тыс. руб.
C23: Статья расходов 2 | D23: тыс. руб.
C24: … | D24: тыс. руб.
C25: Итого | D25: тыс. руб. | H25: =SUM(H22:H24) -> 0 | I25: 0 | J25: 0 | K25: 0 | L25: 0 | M25: 0 | N25: 0 | O25: 0 | P25: 0 | Q25: 0 | R25: 0 | S25: 0 | T25: 0 | U25: 0 | V25: 0 | W25: 0 | X25: 0 | Y25: 0 | Z25: 0 | AA25: 0 | AB25: 0
B27: Коммерческие расходы
C28: Статья расходов 1 | D28: тыс. руб.
C29: Статья расходов 2 | D29: тыс. руб.
C30: … | D30: тыс. руб.
C31: Итого | D31: тыс. руб. | H31: =SUM(H28:H30) -> 0 | I31: 0 | J31: 0 | K31: 0 | L31: 0 | M31: 0 | N31: 0 | O31: 0 | P31: 0 | Q31: 0 | R31: 0 | S31: 0 | T31: 0 | U31: 0 | V31: 0 | W31: 0 | X31: 0 | Y31: 0 | Z31: 0 | AA31: 0 | AB31: 0
B33: Управленческие расходы
C34: Статья расходов 1 | D34: тыс. руб.
C35: Статья расходов 2 | D35: тыс. руб.
C36: … | D36: тыс. руб.
C37: Итого | D37: тыс. руб. | H37: =SUM(H34:H36) -> 0 | I37: 0 | J37: 0 | K37: 0 | L37: 0 | M37: 0 | N37: 0 | O37: 0 | P37: 0 | Q37: 0 | R37: 0 | S37: 0 | T37: 0 | U37: 0 | V37: 0 | W37: 0 | X37: 0 | Y37: 0 | Z37: 0 | AA37: 0 | AB37: 0
B39: Итого общехозяйственные расходы | D39: тыс. руб. | H39: =SUM(H25,H31,H37) -> 0 | I39: 0 | J39: 0 | K39: 0 | L39: 0 | M39: 0 | N39: 0 | O39: 0 | P39: 0 | Q39: 0 | R39: 0 | S39: 0 | T39: 0 | U39: 0 | V39: 0 | W39: 0 | X39: 0 | Y39: 0 | Z39: 0 | AA39: 0 | AB39: 0
B41: Прочие расходы (без НДС)
C43: Статья расходов 1 | D43: тыс. руб.
C44: Статья расходов 2 | D44: тыс. руб.
C45: … | D45: тыс. руб.
C46: Итого | D46: тыс. руб. | H46: =SUM(H43:H45) -> 0 | I46: 0 | J46: 0 | K46: 0 | L46: 0 | M46: 0 | N46: 0 | O46: 0 | P46: 0 | Q46: 0 | R46: 0 | S46: 0 | T46: 0 | U46: 0 | V46: =SUM(V43:V45) -> 0 | W46: 0 | X46: 0 | Y46: 0 | Z46: 0 | AA46: 0 | AB46: 0
C48: Статьи, подлежащие обложению НДС (1 - да, 0 - нет)
C50: Статья расходов 1 | D50: тыс. руб. | F50: 1
C51: Статья расходов 2 | D51: тыс. руб. | F51: 0
C52: … | D52: тыс. руб. | F52: 0
B54: Расходы на ФОТ
B56: =Предпосылки!B100 -> Сотрудники с ФОТ менее 1917 тыс. рублей/год
C57: =Предпосылки!C101 -> Производственный персонал | D57: тыс. руб. | H57: =SUBTOTAL(9,H58:H59) -> 0 | I57: =SUBTOTAL(9,I58:I59) -> 0 | J57: 0 | K57: 0 | L57: 0 | M57: 0 | N57: 0 | O57: 0 | P57: 0 | Q57: 0 | R57: 0 | S57: 0 | T57: 0 | U57: 0 | V57: 0 | W57: 0 | X57: 0 | Y57: 0 | Z57: 0 | AA57: 0 | AB57: 0
C58: =Предпосылки!C102 -> Категория 1 | D58: тыс. руб. | H58: =Предпосылки!H102*Предпосылки!H128*Предпосылки!H$29 -> 0 | I58: =Предпосылки!I102*Предпосылки!I128*Предпосылки!I$29 -> 0 | J58: =Предпосылки!J102*Предпосылки!J128*Предпосылки!J$29 -> 0 | K58: =Предпосылки!K102*Предпосылки!K128*Предпосылки!K$29 -> 0 | L58: =Предпосылки!L102*Предпосылки!L128*Предпосылки!L$29 -> 0 | M58: =Предпосылки!M102*Предпосылки!M128*Предпосылки!M$29 -> 0 | N58: =Предпосылки!N102*Предпосылки!N128*Предпосылки!N$29 -> 0 | O58: =Предпосылки!O102*Предпосылки!O128*Предпосылки!O$29 -> 0 | P58: =Предпосылки!P102*Предпосылки!P128*Предпосылки!P$29 -> 0 | Q58: =Предпосылки!Q102*Предпосылки!Q128*Предпосылки!Q$29 -> 0 | R58: =Предпосылки!R102*Предпосылки!R128*Предпосылки!R$29 -> 0 | S58: =Предпосылки!S102*Предпосылки!S128*Предпосылки!S$29 -> 0 | T58: =Предпосылки!T102*Предпосылки!T128*Предпосылки!T$29 -> 0 | U58: =Предпосылки!U102*Предпосылки!U128*Предпосылки!U$29 -> 0 | V58: =Предпосылки!V102*Предпосылки!V128*Предпосылки!V$29 -> 0 | W58: =Предпосылки!W102*Предпосылки!W128*Предпосылки!W$29 -> 0 | X58: =Предпосылки!X102*Предпосылки!X128*Предпосылки!X$29 -> 0 | Y58: =Предпосылки!Y102*Предпосылки!Y128*Предпосылки!Y$29 -> 0 | Z58: =Предпосылки!Z102*Предпосылки!Z128*Предпосылки!Z$29 -> 0 | AA58: =Предпосылки!AA102*Предпосылки!AA128*Предпосылки!AA$29 -> 0 | AB58: =Предпосылки!AB102*Предпосылки!AB128*Предпосылки!AB$29 -> 0
C59: =Предпосылки!C103 -> … | D59: тыс. руб.
C60: =Предпосылки!C104 -> Вспомогательный персонал | D60: тыс. руб. | H60: =SUBTOTAL(9,H61:H62) -> 0 | I60: =SUBTOTAL(9,I61:I62) -> 0 | J60: 0 | K60: 0 | L60: 0 | M60: 0 | N60: 0 | O60: 0 | P60: 0 | Q60: 0 | R60: 0 | S60: 0 | T60: 0 | U60: 0 | V60: 0 | W60: 0 | X60: 0 | Y60: 0 | Z60: 0 | AA60: 0 | AB60: 0
C61: =Предпосылки!C105 -> Категория 1 | D61: тыс. руб. | H61: =Предпосылки!H105*Предпосылки!H131*Предпосылки!H$29 -> 0 | I61: =Предпосылки!I105*Предпосылки!I131*Предпосылки!I$29 -> 0 | J61: =Предпосылки!J105*Предпосылки!J131*Предпосылки!J$29 -> 0 | K61: =Предпосылки!K105*Предпосылки!K131*Предпосылки!K$29 -> 0 | L61: =Предпосылки!L105*Предпосылки!L131*Предпосылки!L$29 -> 0 | M61: =Предпосылки!M105*Предпосылки!M131*Предпосылки!M$29 -> 0 | N61: =Предпосылки!N105*Предпосылки!N131*Предпосылки!N$29 -> 0 | O61: =Предпосылки!O105*Предпосылки!O131*Предпосылки!O$29 -> 0 | P61: =Предпосылки!P105*Предпосылки!P131*Предпосылки!P$29 -> 0 | Q61: =Предпосылки!Q105*Предпосылки!Q131*Предпосылки!Q$29 -> 0 | R61: =Предпосылки!R105*Предпосылки!R131*Предпосылки!R$29 -> 0 | S61: =Предпосылки!S105*Предпосылки!S131*Предпосылки!S$29 -> 0 | T61: =Предпосылки!T105*Предпосылки!T131*Предпосылки!T$29 -> 0 | U61: =Предпосылки!U105*Предпосылки!U131*Предпосылки!U$29 -> 0 | V61: =Предпосылки!V105*Предпосылки!V131*Предпосылки!V$29 -> 0 | W61: =Предпосылки!W105*Предпосылки!W131*Предпосылки!W$29 -> 0 | X61: =Предпосылки!X105*Предпосылки!X131*Предпосылки!X$29 -> 0 | Y61: =Предпосылки!Y105*Предпосылки!Y131*Предпосылки!Y$29 -> 0 | Z61: =Предпосылки!Z105*Предпосылки!Z131*Предпосылки!Z$29 -> 0 | AA61: =Предпосылки!AA105*Предпосылки!AA131*Предпосылки!AA$29 -> 0 | AB61: =Предпосылки!AB105*Предпосылки!AB131*Предпосылки!AB$29 -> 0
C62: =Предпосылки!C106 -> … | D62: тыс. руб.
C63: =Предпосылки!C107 -> Административный персонал | D63: тыс. руб. | H63: =SUBTOTAL(9,H64:H65) -> 0 | I63: =SUBTOTAL(9,I64:I65) -> 0 | J63: 0 | K63: 0 | L63: 0 | M63: 0 | N63: 0 | O63: 0 | P63: 0 | Q63: 0 | R63: 0 | S63: 0 | T63: 0 | U63: 0 | V63: 0 | W63: 0 | X63: 0 | Y63: 0 | Z63: 0 | AA63: 0 | AB63: 0
C64: =Предпосылки!C108 -> Категория 1 | D64: тыс. руб. | H64: =Предпосылки!H108*Предпосылки!H134*Предпосылки!H$29 -> 0 | I64: =Предпосылки!I108*Предпосылки!I134*Предпосылки!I$29 -> 0 | J64: =Предпосылки!J108*Предпосылки!J134*Предпосылки!J$29 -> 0 | K64: =Предпосылки!K108*Предпосылки!K134*Предпосылки!K$29 -> 0 | L64: =Предпосылки!L108*Предпосылки!L134*Предпосылки!L$29 -> 0 | M64: =Предпосылки!M108*Предпосылки!M134*Предпосылки!M$29 -> 0 | N64: =Предпосылки!N108*Предпосылки!N134*Предпосылки!N$29 -> 0 | O64: =Предпосылки!O108*Предпосылки!O134*Предпосылки!O$29 -> 0 | P64: =Предпосылки!P108*Предпосылки!P134*Предпосылки!P$29 -> 0 | Q64: =Предпосылки!Q108*Предпосылки!Q134*Предпосылки!Q$29 -> 0 | R64: =Предпосылки!R108*Предпосылки!R134*Предпосылки!R$29 -> 0 | S64: =Предпосылки!S108*Предпосылки!S134*Предпосылки!S$29 -> 0 | T64: =Предпосылки!T108*Предпосылки!T134*Предпосылки!T$29 -> 0 | U64: =Предпосылки!U108*Предпосылки!U134*Предпосылки!U$29 -> 0 | V64: =Предпосылки!V108*Предпосылки!V134*Предпосылки!V$29 -> 0 | W64: =Предпосылки!W108*Предпосылки!W134*Предпосылки!W$29 -> 0 | X64: =Предпосылки!X108*Предпосылки!X134*Предпосылки!X$29 -> 0 | Y64: =Предпосылки!Y108*Предпосылки!Y134*Предпосылки!Y$29 -> 0 | Z64: =Предпосылки!Z108*Предпосылки!Z134*Предпосылки!Z$29 -> 0 | AA64: =Предпосылки!AA108*Предпосылки!AA134*Предпосылки!AA$29 -> 0 | AB64: =Предпосылки!AB108*Предпосылки!AB134*Предпосылки!AB$29 -> 0
C65: =Предпосылки!C109 -> … | D65: тыс. руб.
C66: =Предпосылки!C110 -> Итого | D66: тыс. руб. | H66: =SUBTOTAL(9,H57:H65) -> 0 | I66: =SUBTOTAL(9,I57:I65) -> 0 | J66: 0 | K66: 0 | L66: 0 | M66: 0 | N66: 0 | O66: 0 | P66: 0 | Q66: 0 | R66: 0 | S66: 0 | T66: 0 | U66: 0 | V66: 0 | W66: 0 | X66: 0 | Y66: 0 | Z66: 0 | AA66: 0 | AB66: 0
B68: =Предпосылки!B112 -> Сотрудники с ФОТ более или равно 1917 тыс. рублей/год (каждый указывается отдельно)
C69: =Предпосылки!C113 -> Производственный персонал | D69: тыс. руб. | H69: =SUBTOTAL(9,H70:H71) -> 0 | I69: =SUBTOTAL(9,I70:I71) -> 0 | J69: 0 | K69: 0 | L69: 0 | M69: 0 | N69: 0 | O69: 0 | P69: 0 | Q69: 0 | R69: 0 | S69: 0 | T69: 0 | U69: 0 | V69: 0 | W69: 0 | X69: 0 | Y69: 0 | Z69: 0 | AA69: 0 | AB69: 0
C70: =Предпосылки!C114 -> Сотрудник 1 | D70: тыс. руб. | H70: =Предпосылки!H114*Предпосылки!H140*Предпосылки!H$29 -> 0 | I70: =Предпосылки!I114*Предпосылки!I140*Предпосылки!I$29 -> 0 | J70: =Предпосылки!J114*Предпосылки!J140*Предпосылки!J$29 -> 0 | K70: =Предпосылки!K114*Предпосылки!K140*Предпосылки!K$29 -> 0 | L70: =Предпосылки!L114*Предпосылки!L140*Предпосылки!L$29 -> 0 | M70: =Предпосылки!M114*Предпосылки!M140*Предпосылки!M$29 -> 0 | N70: =Предпосылки!N114*Предпосылки!N140*Предпосылки!N$29 -> 0 | O70: =Предпосылки!O114*Предпосылки!O140*Предпосылки!O$29 -> 0 | P70: =Предпосылки!P114*Предпосылки!P140*Предпосылки!P$29 -> 0 | Q70: =Предпосылки!Q114*Предпосылки!Q140*Предпосылки!Q$29 -> 0 | R70: =Предпосылки!R114*Предпосылки!R140*Предпосылки!R$29 -> 0 | S70: =Предпосылки!S114*Предпосылки!S140*Предпосылки!S$29 -> 0 | T70: =Предпосылки!T114*Предпосылки!T140*Предпосылки!T$29 -> 0 | U70: =Предпосылки!U114*Предпосылки!U140*Предпосылки!U$29 -> 0 | V70: =Предпосылки!V114*Предпосылки!V140*Предпосылки!V$29 -> 0 | W70: =Предпосылки!W114*Предпосылки!W140*Предпосылки!W$29 -> 0 | X70: =Предпосылки!X114*Предпосылки!X140*Предпосылки!X$29 -> 0 | Y70: =Предпосылки!Y114*Предпосылки!Y140*Предпосылки!Y$29 -> 0 | Z70: =Предпосылки!Z114*Предпосылки!Z140*Предпосылки!Z$29 -> 0 | AA70: =Предпосылки!AA114*Предпосылки!AA140*Предпосылки!AA$29 -> 0 | AB70: =Предпосылки!AB114*Предпосылки!AB140*Предпосылки!AB$29 -> 0
C71: =Предпосылки!C115 -> … | D71: тыс. руб.
C72: =Предпосылки!C116 -> Вспомогательный персонал | D72: тыс. руб. | H72: =SUBTOTAL(9,H73:H74) -> 0 | I72: =SUBTOTAL(9,I73:I74) -> 0 | J72: 0 | K72: 0 | L72: 0 | M72: 0 | N72: 0 | O72: 0 | P72: 0 | Q72: 0 | R72: 0 | S72: 0 | T72: 0 | U72: 0 | V72: 0 | W72: 0 | X72: 0 | Y72: 0 | Z72: 0 | AA72: 0 | AB72: 0
C73: =Предпосылки!C117 -> Сотрудник 1 | D73: тыс. руб. | H73: =Предпосылки!H117*Предпосылки!H143*Предпосылки!H$29 -> 0 | I73: =Предпосылки!I117*Предпосылки!I143*Предпосылки!I$29 -> 0 | J73: =Предпосылки!J117*Предпосылки!J143*Предпосылки!J$29 -> 0 | K73: =Предпосылки!K117*Предпосылки!K143*Предпосылки!K$29 -> 0 | L73: =Предпосылки!L117*Предпосылки!L143*Предпосылки!L$29 -> 0 | M73: =Предпосылки!M117*Предпосылки!M143*Предпосылки!M$29 -> 0 | N73: =Предпосылки!N117*Предпосылки!N143*Предпосылки!N$29 -> 0 | O73: =Предпосылки!O117*Предпосылки!O143*Предпосылки!O$29 -> 0 | P73: =Предпосылки!P117*Предпосылки!P143*Предпосылки!P$29 -> 0 | Q73: =Предпосылки!Q117*Предпосылки!Q143*Предпосылки!Q$29 -> 0 | R73: =Предпосылки!R117*Предпосылки!R143*Предпосылки!R$29 -> 0 | S73: =Предпосылки!S117*Предпосылки!S143*Предпосылки!S$29 -> 0 | T73: =Предпосылки!T117*Предпосылки!T143*Предпосылки!T$29 -> 0 | U73: =Предпосылки!U117*Предпосылки!U143*Предпосылки!U$29 -> 0 | V73: =Предпосылки!V117*Предпосылки!V143*Предпосылки!V$29 -> 0 | W73: =Предпосылки!W117*Предпосылки!W143*Предпосылки!W$29 -> 0 | X73: =Предпосылки!X117*Предпосылки!X143*Предпосылки!X$29 -> 0 | Y73: =Предпосылки!Y117*Предпосылки!Y143*Предпосылки!Y$29 -> 0 | Z73: =Предпосылки!Z117*Предпосылки!Z143*Предпосылки!Z$29 -> 0 | AA73: =Предпосылки!AA117*Предпосылки!AA143*Предпосылки!AA$29 -> 0 | AB73: =Предпосылки!AB117*Предпосылки!AB143*Предпосылки!AB$29 -> 0
C74: =Предпосылки!C118 -> … | D74: тыс. руб.
C75: =Предпосылки!C119 -> Административный персонал | D75: тыс. руб. | H75: =SUBTOTAL(9,H76:H77) -> 0 | I75: =SUBTOTAL(9,I76:I77) -> 0 | J75: 0 | K75: 0 | L75: 0 | M75: 0 | N75: 0 | O75: 0 | P75: 0 | Q75: 0 | R75: 0 | S75: 0 | T75: 0 | U75: 0 | V75: 0 | W75: 0 | X75: 0 | Y75: 0 | Z75: 0 | AA75: 0 | AB75: 0
C76: =Предпосылки!C120 -> Сотрудник 1 | D76: тыс. руб. | H76: =Предпосылки!H120*Предпосылки!H146*Предпосылки!H$29 -> 0 | I76: =Предпосылки!I120*Предпосылки!I146*Предпосылки!I$29 -> 0 | J76: =Предпосылки!J120*Предпосылки!J146*Предпосылки!J$29 -> 0 | K76: =Предпосылки!K120*Предпосылки!K146*Предпосылки!K$29 -> 0 | L76: =Предпосылки!L120*Предпосылки!L146*Предпосылки!L$29 -> 0 | M76: =Предпосылки!M120*Предпосылки!M146*Предпосылки!M$29 -> 0 | N76: =Предпосылки!N120*Предпосылки!N146*Предпосылки!N$29 -> 0 | O76: =Предпосылки!O120*Предпосылки!O146*Предпосылки!O$29 -> 0 | P76: =Предпосылки!P120*Предпосылки!P146*Предпосылки!P$29 -> 0 | Q76: =Предпосылки!Q120*Предпосылки!Q146*Предпосылки!Q$29 -> 0 | R76: =Предпосылки!R120*Предпосылки!R146*Предпосылки!R$29 -> 0 | S76: =Предпосылки!S120*Предпосылки!S146*Предпосылки!S$29 -> 0 | T76: =Предпосылки!T120*Предпосылки!T146*Предпосылки!T$29 -> 0 | U76: =Предпосылки!U120*Предпосылки!U146*Предпосылки!U$29 -> 0 | V76: =Предпосылки!V120*Предпосылки!V146*Предпосылки!V$29 -> 0 | W76: =Предпосылки!W120*Предпосылки!W146*Предпосылки!W$29 -> 0 | X76: =Предпосылки!X120*Предпосылки!X146*Предпосылки!X$29 -> 0 | Y76: =Предпосылки!Y120*Предпосылки!Y146*Предпосылки!Y$29 -> 0 | Z76: =Предпосылки!Z120*Предпосылки!Z146*Предпосылки!Z$29 -> 0 | AA76: =Предпосылки!AA120*Предпосылки!AA146*Предпосылки!AA$29 -> 0 | AB76: =Предпосылки!AB120*Предпосылки!AB146*Предпосылки!AB$29 -> 0
C77: =Предпосылки!C121 -> … | D77: тыс. руб.
C78: =Предпосылки!C122 -> Итого | D78: тыс. руб. | H78: =SUBTOTAL(9,H69:H77) -> 0 | I78: =SUBTOTAL(9,I69:I77) -> 0 | J78: 0 | K78: 0 | L78: 0 | M78: 0 | N78: 0 | O78: 0 | P78: 0 | Q78: 0 | R78: 0 | S78: 0 | T78: 0 | U78: 0 | V78: 0 | W78: 0 | X78: 0 | Y78: 0 | Z78: 0 | AA78: 0 | AB78: 0
B81: Совокупный ФОТ | D81: тыс. руб. | H81: =SUM(H66,H78) -> 0 | I81: =SUM(I66,I78) -> 0 | J81: 0 | K81: 0 | L81: 0 | M81: 0 | N81: 0 | O81: 0 | P81: 0 | Q81: 0 | R81: 0 | S81: 0 | T81: 0 | U81: 0 | V81: 0 | W81: 0 | X81: 0 | Y81: 0 | Z81: 0 | AA81: 0 | AB81: 0
B83: Взносы во внебюджетные фонды
B85: Страховые взносы с учетом применения льготного тарифа для участников СПИК 1.0, являющихся участниками промышленных кластеров
B87: Отчисления по единому прониженному тарифу
B89: Производственный персонал
C90: По общей ставке | D90: тыс. руб. | H90: =SUM(H57,Предпосылки!H264*Предпосылки!H113)*Предпосылки!H282 -> 0 | I90: =SUM(I57,Предпосылки!I264*Предпосылки!I113)*Предпосылки!I282 -> 0 | J90: =SUM(J57,Предпосылки!J264*Предпосылки!J113)*Предпосылки!J282 -> 0 | K90: =SUM(K57,Предпосылки!K264*Предпосылки!K113)*Предпосылки!K282 -> 0 | L90: =SUM(L57,Предпосылки!L264*Предпосылки!L113)*Предпосылки!L282 -> 0 | M90: =SUM(M57,Предпосылки!M264*Предпосылки!M113)*Предпосылки!M282 -> 0 | N90: =SUM(N57,Предпосылки!N264*Предпосылки!N113)*Предпосылки!N282 -> 0 | O90: =SUM(O57,Предпосылки!O264*Предпосылки!O113)*Предпосылки!O282 -> 0 | P90: =SUM(P57,Предпосылки!P264*Предпосылки!P113)*Предпосылки!P282 -> 0 | Q90: =SUM(Q57,Предпосылки!Q264*Предпосылки!Q113)*Предпосылки!Q282 -> 0 | R90: =SUM(R57,Предпосылки!R264*Предпосылки!R113)*Предпосылки!R282 -> 0 | S90: =SUM(S57,Предпосылки!S264*Предпосылки!S113)*Предпосылки!S282 -> 0 | T90: =SUM(T57,Предпосылки!T264*Предпосылки!T113)*Предпосылки!T282 -> 0 | U90: =SUM(U57,Предпосылки!U264*Предпосылки!U113)*Предпосылки!U282 -> 0 | V90: =SUM(V57,Предпосылки!V264*Предпосылки!V113)*Предпосылки!V282 -> 0 | W90: =SUM(W57,Предпосылки!W264*Предпосылки!W113)*Предпосылки!W282 -> 0 | X90: =SUM(X57,Предпосылки!X264*Предпосылки!X113)*Предпосылки!X282 -> 0 | Y90: =SUM(Y57,Предпосылки!Y264*Предпосылки!Y113)*Предпосылки!Y282 -> 0 | Z90: =SUM(Z57,Предпосылки!Z264*Предпосылки!Z113)*Предпосылки!Z282 -> 0 | AA90: =SUM(AA57,Предпосылки!AA264*Предпосылки!AA113)*Предпосылки!AA282 -> 0 | AB90: =SUM(AB57,Предпосылки!AB264*Предпосылки!AB113)*Предпосылки!AB282 -> 0
C91: По пониженной ставке | D91: тыс. руб. | H91: =(H69-Предпосылки!H264*Предпосылки!H113)*Предпосылки!H283 -> 0 | I91: =(I69-Предпосылки!I264*Предпосылки!I113)*Предпосылки!I283 -> 0 | J91: =(J69-Предпосылки!J264*Предпосылки!J113)*Предпосылки!J283 -> 0 | K91: =(K69-Предпосылки!K264*Предпосылки!K113)*Предпосылки!K283 -> 0 | L91: =(L69-Предпосылки!L264*Предпосылки!L113)*Предпосылки!L283 -> 0 | M91: =(M69-Предпосылки!M264*Предпосылки!M113)*Предпосылки!M283 -> 0 | N91: =(N69-Предпосылки!N264*Предпосылки!N113)*Предпосылки!N283 -> 0 | O91: =(O69-Предпосылки!O264*Предпосылки!O113)*Предпосылки!O283 -> 0 | P91: =(P69-Предпосылки!P264*Предпосылки!P113)*Предпосылки!P283 -> 0 | Q91: =(Q69-Предпосылки!Q264*Предпосылки!Q113)*Предпосылки!Q283 -> 0 | R91: =(R69-Предпосылки!R264*Предпосылки!R113)*Предпосылки!R283 -> 0 | S91: =(S69-Предпосылки!S264*Предпосылки!S113)*Предпосылки!S283 -> 0 | T91: =(T69-Предпосылки!T264*Предпосылки!T113)*Предпосылки!T283 -> 0 | U91: =(U69-Предпосылки!U264*Предпосылки!U113)*Предпосылки!U283 -> 0 | V91: =(V69-Предпосылки!V264*Предпосылки!V113)*Предпосылки!V283 -> 0 | W91: =(W69-Предпосылки!W264*Предпосылки!W113)*Предпосылки!W283 -> 0 | X91: =(X69-Предпосылки!X264*Предпосылки!X113)*Предпосылки!X283 -> 0 | Y91: =(Y69-Предпосылки!Y264*Предпосылки!Y113)*Предпосылки!Y283 -> 0 | Z91: =(Z69-Предпосылки!Z264*Предпосылки!Z113)*Предпосылки!Z283 -> 0 | AA91: =(AA69-Предпосылки!AA264*Предпосылки!AA113)*Предпосылки!AA283 -> 0 | AB91: =(AB69-Предпосылки!AB264*Предпосылки!AB113)*Предпосылки!AB283 -> 0
C92: На травматизм | D92: тыс. руб. | H92: =SUM(H57,H69)*Предпосылки!$F$274 -> 0 | I92: =SUM(I57,I69)*Предпосылки!$F$274 -> 0 | J92: =SUM(J57,J69)*Предпосылки!$F$274 -> 0 | K92: =SUM(K57,K69)*Предпосылки!$F$274 -> 0 | L92: =SUM(L57,L69)*Предпосылки!$F$274 -> 0 | M92: =SUM(M57,M69)*Предпосылки!$F$274 -> 0 | N92: =SUM(N57,N69)*Предпосылки!$F$274 -> 0 | O92: =SUM(O57,O69)*Предпосылки!$F$274 -> 0 | P92: =SUM(P57,P69)*Предпосылки!$F$274 -> 0 | Q92: =SUM(Q57,Q69)*Предпосылки!$F$274 -> 0 | R92: =SUM(R57,R69)*Предпосылки!$F$274 -> 0 | S92: =SUM(S57,S69)*Предпосылки!$F$274 -> 0 | T92: =SUM(T57,T69)*Предпосылки!$F$274 -> 0 | U92: =SUM(U57,U69)*Предпосылки!$F$274 -> 0 | V92: =SUM(V57,V69)*Предпосылки!$F$274 -> 0 | W92: =SUM(W57,W69)*Предпосылки!$F$274 -> 0 | X92: =SUM(X57,X69)*Предпосылки!$F$274 -> 0 | Y92: =SUM(Y57,Y69)*Предпосылки!$F$274 -> 0 | Z92: =SUM(Z57,Z69)*Предпосылки!$F$274 -> 0 | AA92: =SUM(AA57,AA69)*Предпосылки!$F$274 -> 0 | AB92: =SUM(AB57,AB69)*Предпосылки!$F$274 -> 0
B93: Вспомогательный персонал
C94: По общей ставке | D94: тыс. руб. | H94: =SUM(H60,Предпосылки!H264*Предпосылки!H116)*Предпосылки!H282 -> 0 | I94: =SUM(I60,Предпосылки!I264*Предпосылки!I116)*Предпосылки!I282 -> 0 | J94: =SUM(J60,Предпосылки!J264*Предпосылки!J116)*Предпосылки!J282 -> 0 | K94: =SUM(K60,Предпосылки!K264*Предпосылки!K116)*Предпосылки!K282 -> 0 | L94: =SUM(L60,Предпосылки!L264*Предпосылки!L116)*Предпосылки!L282 -> 0 | M94: =SUM(M60,Предпосылки!M264*Предпосылки!M116)*Предпосылки!M282 -> 0 | N94: =SUM(N60,Предпосылки!N264*Предпосылки!N116)*Предпосылки!N282 -> 0 | O94: =SUM(O60,Предпосылки!O264*Предпосылки!O116)*Предпосылки!O282 -> 0 | P94: =SUM(P60,Предпосылки!P264*Предпосылки!P116)*Предпосылки!P282 -> 0 | Q94: =SUM(Q60,Предпосылки!Q264*Предпосылки!Q116)*Предпосылки!Q282 -> 0 | R94: =SUM(R60,Предпосылки!R264*Предпосылки!R116)*Предпосылки!R282 -> 0 | S94: =SUM(S60,Предпосылки!S264*Предпосылки!S116)*Предпосылки!S282 -> 0 | T94: =SUM(T60,Предпосылки!T264*Предпосылки!T116)*Предпосылки!T282 -> 0 | U94: =SUM(U60,Предпосылки!U264*Предпосылки!U116)*Предпосылки!U282 -> 0 | V94: =SUM(V60,Предпосылки!V264*Предпосылки!V116)*Предпосылки!V282 -> 0 | W94: =SUM(W60,Предпосылки!W264*Предпосылки!W116)*Предпосылки!W282 -> 0 | X94: =SUM(X60,Предпосылки!X264*Предпосылки!X116)*Предпосылки!X282 -> 0 | Y94: =SUM(Y60,Предпосылки!Y264*Предпосылки!Y116)*Предпосылки!Y282 -> 0 | Z94: =SUM(Z60,Предпосылки!Z264*Предпосылки!Z116)*Предпосылки!Z282 -> 0 | AA94: =SUM(AA60,Предпосылки!AA264*Предпосылки!AA116)*Предпосылки!AA282 -> 0 | AB94: =SUM(AB60,Предпосылки!AB264*Предпосылки!AB116)*Предпосылки!AB282 -> 0
C95: По пониженной ставке | D95: тыс. руб. | H95: =(H72-Предпосылки!H264*Предпосылки!H116)*Предпосылки!H283 -> 0 | I95: =(I72-Предпосылки!I264*Предпосылки!I116)*Предпосылки!I283 -> 0 | J95: =(J72-Предпосылки!J264*Предпосылки!J116)*Предпосылки!J283 -> 0 | K95: =(K72-Предпосылки!K264*Предпосылки!K116)*Предпосылки!K283 -> 0 | L95: =(L72-Предпосылки!L264*Предпосылки!L116)*Предпосылки!L283 -> 0 | M95: =(M72-Предпосылки!M264*Предпосылки!M116)*Предпосылки!M283 -> 0 | N95: =(N72-Предпосылки!N264*Предпосылки!N116)*Предпосылки!N283 -> 0 | O95: =(O72-Предпосылки!O264*Предпосылки!O116)*Предпосылки!O283 -> 0 | P95: =(P72-Предпосылки!P264*Предпосылки!P116)*Предпосылки!P283 -> 0 | Q95: =(Q72-Предпосылки!Q264*Предпосылки!Q116)*Предпосылки!Q283 -> 0 | R95: =(R72-Предпосылки!R264*Предпосылки!R116)*Предпосылки!R283 -> 0 | S95: =(S72-Предпосылки!S264*Предпосылки!S116)*Предпосылки!S283 -> 0 | T95: =(T72-Предпосылки!T264*Предпосылки!T116)*Предпосылки!T283 -> 0 | U95: =(U72-Предпосылки!U264*Предпосылки!U116)*Предпосылки!U283 -> 0 | V95: =(V72-Предпосылки!V264*Предпосылки!V116)*Предпосылки!V283 -> 0 | W95: =(W72-Предпосылки!W264*Предпосылки!W116)*Предпосылки!W283 -> 0 | X95: =(X72-Предпосылки!X264*Предпосылки!X116)*Предпосылки!X283 -> 0 | Y95: =(Y72-Предпосылки!Y264*Предпосылки!Y116)*Предпосылки!Y283 -> 0 | Z95: =(Z72-Предпосылки!Z264*Предпосылки!Z116)*Предпосылки!Z283 -> 0 | AA95: =(AA72-Предпосылки!AA264*Предпосылки!AA116)*Предпосылки!AA283 -> 0 | AB95: =(AB72-Предпосылки!AB264*Предпосылки!AB116)*Предпосылки!AB283 -> 0
C96: На травматизм | D96: тыс. руб. | H96: =SUM(H60,H72)*Предпосылки!$F$274 -> 0 | I96: =SUM(I60,I72)*Предпосылки!$F$274 -> 0 | J96: =SUM(J60,J72)*Предпосылки!$F$274 -> 0 | K96: =SUM(K60,K72)*Предпосылки!$F$274 -> 0 | L96: =SUM(L60,L72)*Предпосылки!$F$274 -> 0 | M96: =SUM(M60,M72)*Предпосылки!$F$274 -> 0 | N96: =SUM(N60,N72)*Предпосылки!$F$274 -> 0 | O96: =SUM(O60,O72)*Предпосылки!$F$274 -> 0 | P96: =SUM(P60,P72)*Предпосылки!$F$274 -> 0 | Q96: =SUM(Q60,Q72)*Предпосылки!$F$274 -> 0 | R96: =SUM(R60,R72)*Предпосылки!$F$274 -> 0 | S96: =SUM(S60,S72)*Предпосылки!$F$274 -> 0 | T96: =SUM(T60,T72)*Предпосылки!$F$274 -> 0 | U96: =SUM(U60,U72)*Предпосылки!$F$274 -> 0 | V96: =SUM(V60,V72)*Предпосылки!$F$274 -> 0 | W96: =SUM(W60,W72)*Предпосылки!$F$274 -> 0 | X96: =SUM(X60,X72)*Предпосылки!$F$274 -> 0 | Y96: =SUM(Y60,Y72)*Предпосылки!$F$274 -> 0 | Z96: =SUM(Z60,Z72)*Предпосылки!$F$274 -> 0 | AA96: =SUM(AA60,AA72)*Предпосылки!$F$274 -> 0 | AB96: =SUM(AB60,AB72)*Предпосылки!$F$274 -> 0
B97: Административный персонал
C98: По общей ставке | D98: тыс. руб. | H98: =SUM(H63,Предпосылки!H264*Предпосылки!H119)*Предпосылки!H282 -> 0 | I98: =SUM(I63,Предпосылки!I264*Предпосылки!I119)*Предпосылки!I282 -> 0 | J98: =SUM(J63,Предпосылки!J264*Предпосылки!J119)*Предпосылки!J282 -> 0 | K98: =SUM(K63,Предпосылки!K264*Предпосылки!K119)*Предпосылки!K282 -> 0 | L98: =SUM(L63,Предпосылки!L264*Предпосылки!L119)*Предпосылки!L282 -> 0 | M98: =SUM(M63,Предпосылки!M264*Предпосылки!M119)*Предпосылки!M282 -> 0 | N98: =SUM(N63,Предпосылки!N264*Предпосылки!N119)*Предпосылки!N282 -> 0 | O98: =SUM(O63,Предпосылки!O264*Предпосылки!O119)*Предпосылки!O282 -> 0 | P98: =SUM(P63,Предпосылки!P264*Предпосылки!P119)*Предпосылки!P282 -> 0 | Q98: =SUM(Q63,Предпосылки!Q264*Предпосылки!Q119)*Предпосылки!Q282 -> 0 | R98: =SUM(R63,Предпосылки!R264*Предпосылки!R119)*Предпосылки!R282 -> 0 | S98: =SUM(S63,Предпосылки!S264*Предпосылки!S119)*Предпосылки!S282 -> 0 | T98: =SUM(T63,Предпосылки!T264*Предпосылки!T119)*Предпосылки!T282 -> 0 | U98: =SUM(U63,Предпосылки!U264*Предпосылки!U119)*Предпосылки!U282 -> 0 | V98: =SUM(V63,Предпосылки!V264*Предпосылки!V119)*Предпосылки!V282 -> 0 | W98: =SUM(W63,Предпосылки!W264*Предпосылки!W119)*Предпосылки!W282 -> 0 | X98: =SUM(X63,Предпосылки!X264*Предпосылки!X119)*Предпосылки!X282 -> 0 | Y98: =SUM(Y63,Предпосылки!Y264*Предпосылки!Y119)*Предпосылки!Y282 -> 0 | Z98: =SUM(Z63,Предпосылки!Z264*Предпосылки!Z119)*Предпосылки!Z282 -> 0 | AA98: =SUM(AA63,Предпосылки!AA264*Предпосылки!AA119)*Предпосылки!AA282 -> 0 | AB98: =SUM(AB63,Предпосылки!AB264*Предпосылки!AB119)*Предпосылки!AB282 -> 0
C99: По пониженной ставке | D99: тыс. руб. | H99: =(H75-Предпосылки!H264*Предпосылки!H119)*Предпосылки!H283 -> 0 | I99: =(I75-Предпосылки!I264*Предпосылки!I119)*Предпосылки!I283 -> 0 | J99: =(J75-Предпосылки!J264*Предпосылки!J119)*Предпосылки!J283 -> 0 | K99: =(K75-Предпосылки!K264*Предпосылки!K119)*Предпосылки!K283 -> 0 | L99: =(L75-Предпосылки!L264*Предпосылки!L119)*Предпосылки!L283 -> 0 | M99: =(M75-Предпосылки!M264*Предпосылки!M119)*Предпосылки!M283 -> 0 | N99: =(N75-Предпосылки!N264*Предпосылки!N119)*Предпосылки!N283 -> 0 | O99: =(O75-Предпосылки!O264*Предпосылки!O119)*Предпосылки!O283 -> 0 | P99: =(P75-Предпосылки!P264*Предпосылки!P119)*Предпосылки!P283 -> 0 | Q99: =(Q75-Предпосылки!Q264*Предпосылки!Q119)*Предпосылки!Q283 -> 0 | R99: =(R75-Предпосылки!R264*Предпосылки!R119)*Предпосылки!R283 -> 0 | S99: =(S75-Предпосылки!S264*Предпосылки!S119)*Предпосылки!S283 -> 0 | T99: =(T75-Предпосылки!T264*Предпосылки!T119)*Предпосылки!T283 -> 0 | U99: =(U75-Предпосылки!U264*Предпосылки!U119)*Предпосылки!U283 -> 0 | V99: =(V75-Предпосылки!V264*Предпосылки!V119)*Предпосылки!V283 -> 0 | W99: =(W75-Предпосылки!W264*Предпосылки!W119)*Предпосылки!W283 -> 0 | X99: =(X75-Предпосылки!X264*Предпосылки!X119)*Предпосылки!X283 -> 0 | Y99: =(Y75-Предпосылки!Y264*Предпосылки!Y119)*Предпосылки!Y283 -> 0 | Z99: =(Z75-Предпосылки!Z264*Предпосылки!Z119)*Предпосылки!Z283 -> 0 | AA99: =(AA75-Предпосылки!AA264*Предпосылки!AA119)*Предпосылки!AA283 -> 0 | AB99: =(AB75-Предпосылки!AB264*Предпосылки!AB119)*Предпосылки!AB283 -> 0
C100: На травматизм | D100: тыс. руб. | H100: =SUM(H63,H75)*Предпосылки!$F$274 -> 0 | I100: =SUM(I63,I75)*Предпосылки!$F$274 -> 0 | J100: =SUM(J63,J75)*Предпосылки!$F$274 -> 0 | K100: =SUM(K63,K75)*Предпосылки!$F$274 -> 0 | L100: =SUM(L63,L75)*Предпосылки!$F$274 -> 0 | M100: =SUM(M63,M75)*Предпосылки!$F$274 -> 0 | N100: =SUM(N63,N75)*Предпосылки!$F$274 -> 0 | O100: =SUM(O63,O75)*Предпосылки!$F$274 -> 0 | P100: =SUM(P63,P75)*Предпосылки!$F$274 -> 0 | Q100: =SUM(Q63,Q75)*Предпосылки!$F$274 -> 0 | R100: =SUM(R63,R75)*Предпосылки!$F$274 -> 0 | S100: =SUM(S63,S75)*Предпосылки!$F$274 -> 0 | T100: =SUM(T63,T75)*Предпосылки!$F$274 -> 0 | U100: =SUM(U63,U75)*Предпосылки!$F$274 -> 0 | V100: =SUM(V63,V75)*Предпосылки!$F$274 -> 0 | W100: =SUM(W63,W75)*Предпосылки!$F$274 -> 0 | X100: =SUM(X63,X75)*Предпосылки!$F$274 -> 0 | Y100: =SUM(Y63,Y75)*Предпосылки!$F$274 -> 0 | Z100: =SUM(Z63,Z75)*Предпосылки!$F$274 -> 0 | AA100: =SUM(AA63,AA75)*Предпосылки!$F$274 -> 0 | AB100: =SUM(AB63,AB75)*Предпосылки!$F$274 -> 0
C101: Итого | D101: тыс. руб. | H101: =SUBTOTAL(9,H90:H100) -> 0 | I101: =SUBTOTAL(9,I90:I100) -> 0 | J101: 0 | K101: 0 | L101: 0 | M101: 0 | N101: 0 | O101: 0 | P101: 0 | Q101: 0 | R101: 0 | S101: 0 | T101: 0 | U101: 0 | V101: 0 | W101: 0 | X101: 0 | Y101: 0 | Z101: 0 | AA101: 0 | AB101: 0
B103: Совокупные расходы на персонал
B105: Производственный персонал | D105: тыс. руб. | H105: =SUM(H90:H92) -> 0 | I105: =SUM(I90:I92) -> 0 | J105: 0 | K105: 0 | L105: 0 | M105: 0 | N105: 0 | O105: 0 | P105: 0 | Q105: 0 | R105: 0 | S105: 0 | T105: 0 | U105: 0 | V105: 0 | W105: 0 | X105: 0 | Y105: 0 | Z105: 0 | AA105: 0 | AB105: 0
B106: Вспомогательный персонал | D106: тыс. руб. | H106: =SUM(H94:H96) -> 0 | I106: =SUM(I94:I96) -> 0 | J106: 0 | K106: 0 | L106: 0 | M106: 0 | N106: 0 | O106: 0 | P106: 0 | Q106: 0 | R106: 0 | S106: 0 | T106: 0 | U106: 0 | V106: 0 | W106: 0 | X106: 0 | Y106: 0 | Z106: 0 | AA106: 0 | AB106: 0
B107: Административный персонал | D107: тыс. руб. | H107: =SUM(H98:H100) -> 0 | I107: =SUM(I98:I100) -> 0 | J107: 0 | K107: 0 | L107: 0 | M107: 0 | N107: 0 | O107: 0 | P107: 0 | Q107: 0 | R107: 0 | S107: 0 | T107: 0 | U107: 0 | V107: 0 | W107: 0 | X107: 0 | Y107: 0 | Z107: 0 | AA107: 0 | AB107: 0
C108: Итого | D108: тыс. руб. | H108: =SUM(H105:H107) -> 0 | I108: =SUM(I105:I107) -> 0 | J108: 0 | K108: 0 | L108: 0 | M108: 0 | N108: 0 | O108: 0 | P108: 0 | Q108: 0 | R108: 0 | S108: 0 | T108: 0 | U108: 0 | V108: 0 | W108: 0 | X108: 0 | Y108: 0 | Z108: 0 | AA108: 0 | AB108: 0
B110: Страховые взносы в иных случаях
B112: ПФР
B113: Производственный персонал | D113: тыс. руб.
C114: По общей ставке | D114: тыс. руб. | H114: =SUM(H57,Предпосылки!H264*Предпосылки!H113)*Предпосылки!$F$269 -> 0 | I114: =SUM(I57,Предпосылки!I264*Предпосылки!I113)*Предпосылки!$F$269 -> 0 | J114: =SUM(J57,Предпосылки!J264*Предпосылки!J113)*Предпосылки!$F$269 -> 0 | K114: =SUM(K57,Предпосылки!K264*Предпосылки!K113)*Предпосылки!$F$269 -> 0 | L114: =SUM(L57,Предпосылки!L264*Предпосылки!L113)*Предпосылки!$F$269 -> 0 | M114: =SUM(M57,Предпосылки!M264*Предпосылки!M113)*Предпосылки!$F$269 -> 0 | N114: =SUM(N57,Предпосылки!N264*Предпосылки!N113)*Предпосылки!$F$269 -> 0 | O114: =SUM(O57,Предпосылки!O264*Предпосылки!O113)*Предпосылки!$F$269 -> 0 | P114: =SUM(P57,Предпосылки!P264*Предпосылки!P113)*Предпосылки!$F$269 -> 0 | Q114: =SUM(Q57,Предпосылки!Q264*Предпосылки!Q113)*Предпосылки!$F$269 -> 0 | R114: =SUM(R57,Предпосылки!R264*Предпосылки!R113)*Предпосылки!$F$269 -> 0 | S114: =SUM(S57,Предпосылки!S264*Предпосылки!S113)*Предпосылки!$F$269 -> 0 | T114: =SUM(T57,Предпосылки!T264*Предпосылки!T113)*Предпосылки!$F$269 -> 0 | U114: =SUM(U57,Предпосылки!U264*Предпосылки!U113)*Предпосылки!$F$269 -> 0 | V114: =SUM(V57,Предпосылки!V264*Предпосылки!V113)*Предпосылки!$F$269 -> 0 | W114: =SUM(W57,Предпосылки!W264*Предпосылки!W113)*Предпосылки!$F$269 -> 0 | X114: =SUM(X57,Предпосылки!X264*Предпосылки!X113)*Предпосылки!$F$269 -> 0 | Y114: =SUM(Y57,Предпосылки!Y264*Предпосылки!Y113)*Предпосылки!$F$269 -> 0 | Z114: =SUM(Z57,Предпосылки!Z264*Предпосылки!Z113)*Предпосылки!$F$269 -> 0 | AA114: =SUM(AA57,Предпосылки!AA264*Предпосылки!AA113)*Предпосылки!$F$269 -> 0 | AB114: =SUM(AB57,Предпосылки!AB264*Предпосылки!AB113)*Предпосылки!$F$269 -> 0
C115: По пониженной ставке | D115: тыс. руб. | H115: =(H69-Предпосылки!H264*Предпосылки!H113)*Предпосылки!$F$270 -> 0 | I115: =(I69-Предпосылки!I264*Предпосылки!I113)*Предпосылки!$F$270 -> 0 | J115: =(J69-Предпосылки!J264*Предпосылки!J113)*Предпосылки!$F$270 -> 0 | K115: =(K69-Предпосылки!K264*Предпосылки!K113)*Предпосылки!$F$270 -> 0 | L115: =(L69-Предпосылки!L264*Предпосылки!L113)*Предпосылки!$F$270 -> 0 | M115: =(M69-Предпосылки!M264*Предпосылки!M113)*Предпосылки!$F$270 -> 0 | N115: =(N69-Предпосылки!N264*Предпосылки!N113)*Предпосылки!$F$270 -> 0 | O115: =(O69-Предпосылки!O264*Предпосылки!O113)*Предпосылки!$F$270 -> 0 | P115: =(P69-Предпосылки!P264*Предпосылки!P113)*Предпосылки!$F$270 -> 0 | Q115: =(Q69-Предпосылки!Q264*Предпосылки!Q113)*Предпосылки!$F$270 -> 0 | R115: =(R69-Предпосылки!R264*Предпосылки!R113)*Предпосылки!$F$270 -> 0 | S115: =(S69-Предпосылки!S264*Предпосылки!S113)*Предпосылки!$F$270 -> 0 | T115: =(T69-Предпосылки!T264*Предпосылки!T113)*Предпосылки!$F$270 -> 0 | U115: =(U69-Предпосылки!U264*Предпосылки!U113)*Предпосылки!$F$270 -> 0 | V115: =(V69-Предпосылки!V264*Предпосылки!V113)*Предпосылки!$F$270 -> 0 | W115: =(W69-Предпосылки!W264*Предпосылки!W113)*Предпосылки!$F$270 -> 0 | X115: =(X69-Предпосылки!X264*Предпосылки!X113)*Предпосылки!$F$270 -> 0 | Y115: =(Y69-Предпосылки!Y264*Предпосылки!Y113)*Предпосылки!$F$270 -> 0 | Z115: =(Z69-Предпосылки!Z264*Предпосылки!Z113)*Предпосылки!$F$270 -> 0 | AA115: =(AA69-Предпосылки!AA264*Предпосылки!AA113)*Предпосылки!$F$270 -> 0 | AB115: =(AB69-Предпосылки!AB264*Предпосылки!AB113)*Предпосылки!$F$270 -> 0
B116: Вспомогательный персонал | D116: тыс. руб.
C117: По общей ставке | D117: тыс. руб. | H117: =SUM(H60,Предпосылки!H264*Предпосылки!H116)*Предпосылки!$F$269 -> 0 | I117: =SUM(I60,Предпосылки!I264*Предпосылки!I116)*Предпосылки!$F$269 -> 0 | J117: =SUM(J60,Предпосылки!J264*Предпосылки!J116)*Предпосылки!$F$269 -> 0 | K117: =SUM(K60,Предпосылки!K264*Предпосылки!K116)*Предпосылки!$F$269 -> 0 | L117: =SUM(L60,Предпосылки!L264*Предпосылки!L116)*Предпосылки!$F$269 -> 0 | M117: =SUM(M60,Предпосылки!M264*Предпосылки!M116)*Предпосылки!$F$269 -> 0 | N117: =SUM(N60,Предпосылки!N264*Предпосылки!N116)*Предпосылки!$F$269 -> 0 | O117: =SUM(O60,Предпосылки!O264*Предпосылки!O116)*Предпосылки!$F$269 -> 0 | P117: =SUM(P60,Предпосылки!P264*Предпосылки!P116)*Предпосылки!$F$269 -> 0 | Q117: =SUM(Q60,Предпосылки!Q264*Предпосылки!Q116)*Предпосылки!$F$269 -> 0 | R117: =SUM(R60,Предпосылки!R264*Предпосылки!R116)*Предпосылки!$F$269 -> 0 | S117: =SUM(S60,Предпосылки!S264*Предпосылки!S116)*Предпосылки!$F$269 -> 0 | T117: =SUM(T60,Предпосылки!T264*Предпосылки!T116)*Предпосылки!$F$269 -> 0 | U117: =SUM(U60,Предпосылки!U264*Предпосылки!U116)*Предпосылки!$F$269 -> 0 | V117: =SUM(V60,Предпосылки!V264*Предпосылки!V116)*Предпосылки!$F$269 -> 0 | W117: =SUM(W60,Предпосылки!W264*Предпосылки!W116)*Предпосылки!$F$269 -> 0 | X117: =SUM(X60,Предпосылки!X264*Предпосылки!X116)*Предпосылки!$F$269 -> 0 | Y117: =SUM(Y60,Предпосылки!Y264*Предпосылки!Y116)*Предпосылки!$F$269 -> 0 | Z117: =SUM(Z60,Предпосылки!Z264*Предпосылки!Z116)*Предпосылки!$F$269 -> 0 | AA117: =SUM(AA60,Предпосылки!AA264*Предпосылки!AA116)*Предпосылки!$F$269 -> 0 | AB117: =SUM(AB60,Предпосылки!AB264*Предпосылки!AB116)*Предпосылки!$F$269 -> 0
C118: По пониженной ставке | D118: тыс. руб. | H118: =(H72-Предпосылки!H264*Предпосылки!H116)*Предпосылки!$F$270 -> 0 | I118: =(I72-Предпосылки!I264*Предпосылки!I116)*Предпосылки!$F$270 -> 0 | J118: =(J72-Предпосылки!J264*Предпосылки!J116)*Предпосылки!$F$270 -> 0 | K118: =(K72-Предпосылки!K264*Предпосылки!K116)*Предпосылки!$F$270 -> 0 | L118: =(L72-Предпосылки!L264*Предпосылки!L116)*Предпосылки!$F$270 -> 0 | M118: =(M72-Предпосылки!M264*Предпосылки!M116)*Предпосылки!$F$270 -> 0 | N118: =(N72-Предпосылки!N264*Предпосылки!N116)*Предпосылки!$F$270 -> 0 | O118: =(O72-Предпосылки!O264*Предпосылки!O116)*Предпосылки!$F$270 -> 0 | P118: =(P72-Предпосылки!P264*Предпосылки!P116)*Предпосылки!$F$270 -> 0 | Q118: =(Q72-Предпосылки!Q264*Предпосылки!Q116)*Предпосылки!$F$270 -> 0 | R118: =(R72-Предпосылки!R264*Предпосылки!R116)*Предпосылки!$F$270 -> 0 | S118: =(S72-Предпосылки!S264*Предпосылки!S116)*Предпосылки!$F$270 -> 0 | T118: =(T72-Предпосылки!T264*Предпосылки!T116)*Предпосылки!$F$270 -> 0 | U118: =(U72-Предпосылки!U264*Предпосылки!U116)*Предпосылки!$F$270 -> 0 | V118: =(V72-Предпосылки!V264*Предпосылки!V116)*Предпосылки!$F$270 -> 0 | W118: =(W72-Предпосылки!W264*Предпосылки!W116)*Предпосылки!$F$270 -> 0 | X118: =(X72-Предпосылки!X264*Предпосылки!X116)*Предпосылки!$F$270 -> 0 | Y118: =(Y72-Предпосылки!Y264*Предпосылки!Y116)*Предпосылки!$F$270 -> 0 | Z118: =(Z72-Предпосылки!Z264*Предпосылки!Z116)*Предпосылки!$F$270 -> 0 | AA118: =(AA72-Предпосылки!AA264*Предпосылки!AA116)*Предпосылки!$F$270 -> 0 | AB118: =(AB72-Предпосылки!AB264*Предпосылки!AB116)*Предпосылки!$F$270 -> 0
B119: Административный персонал | D119: тыс. руб.
C120: По общей ставке | D120: тыс. руб. | H120: =SUM(H63,Предпосылки!H264*Предпосылки!H119)*Предпосылки!$F$269 -> 0 | I120: =SUM(I63,Предпосылки!I264*Предпосылки!I119)*Предпосылки!$F$269 -> 0 | J120: =SUM(J63,Предпосылки!J264*Предпосылки!J119)*Предпосылки!$F$269 -> 0 | K120: =SUM(K63,Предпосылки!K264*Предпосылки!K119)*Предпосылки!$F$269 -> 0 | L120: =SUM(L63,Предпосылки!L264*Предпосылки!L119)*Предпосылки!$F$269 -> 0 | M120: =SUM(M63,Предпосылки!M264*Предпосылки!M119)*Предпосылки!$F$269 -> 0 | N120: =SUM(N63,Предпосылки!N264*Предпосылки!N119)*Предпосылки!$F$269 -> 0 | O120: =SUM(O63,Предпосылки!O264*Предпосылки!O119)*Предпосылки!$F$269 -> 0 | P120: =SUM(P63,Предпосылки!P264*Предпосылки!P119)*Предпосылки!$F$269 -> 0 | Q120: =SUM(Q63,Предпосылки!Q264*Предпосылки!Q119)*Предпосылки!$F$269 -> 0 | R120: =SUM(R63,Предпосылки!R264*Предпосылки!R119)*Предпосылки!$F$269 -> 0 | S120: =SUM(S63,Предпосылки!S264*Предпосылки!S119)*Предпосылки!$F$269 -> 0 | T120: =SUM(T63,Предпосылки!T264*Предпосылки!T119)*Предпосылки!$F$269 -> 0 | U120: =SUM(U63,Предпосылки!U264*Предпосылки!U119)*Предпосылки!$F$269 -> 0 | V120: =SUM(V63,Предпосылки!V264*Предпосылки!V119)*Предпосылки!$F$269 -> 0 | W120: =SUM(W63,Предпосылки!W264*Предпосылки!W119)*Предпосылки!$F$269 -> 0 | X120: =SUM(X63,Предпосылки!X264*Предпосылки!X119)*Предпосылки!$F$269 -> 0 | Y120: =SUM(Y63,Предпосылки!Y264*Предпосылки!Y119)*Предпосылки!$F$269 -> 0 | Z120: =SUM(Z63,Предпосылки!Z264*Предпосылки!Z119)*Предпосылки!$F$269 -> 0 | AA120: =SUM(AA63,Предпосылки!AA264*Предпосылки!AA119)*Предпосылки!$F$269 -> 0 | AB120: =SUM(AB63,Предпосылки!AB264*Предпосылки!AB119)*Предпосылки!$F$269 -> 0
C121: По пониженной ставке | D121: тыс. руб. | H121: =(H75-Предпосылки!H264*Предпосылки!H119)*Предпосылки!$F$270 -> 0 | I121: =(I75-Предпосылки!I264*Предпосылки!I119)*Предпосылки!$F$270 -> 0 | J121: =(J75-Предпосылки!J264*Предпосылки!J119)*Предпосылки!$F$270 -> 0 | K121: =(K75-Предпосылки!K264*Предпосылки!K119)*Предпосылки!$F$270 -> 0 | L121: =(L75-Предпосылки!L264*Предпосылки!L119)*Предпосылки!$F$270 -> 0 | M121: =(M75-Предпосылки!M264*Предпосылки!M119)*Предпосылки!$F$270 -> 0 | N121: =(N75-Предпосылки!N264*Предпосылки!N119)*Предпосылки!$F$270 -> 0 | O121: =(O75-Предпосылки!O264*Предпосылки!O119)*Предпосылки!$F$270 -> 0 | P121: =(P75-Предпосылки!P264*Предпосылки!P119)*Предпосылки!$F$270 -> 0 | Q121: =(Q75-Предпосылки!Q264*Предпосылки!Q119)*Предпосылки!$F$270 -> 0 | R121: =(R75-Предпосылки!R264*Предпосылки!R119)*Предпосылки!$F$270 -> 0 | S121: =(S75-Предпосылки!S264*Предпосылки!S119)*Предпосылки!$F$270 -> 0 | T121: =(T75-Предпосылки!T264*Предпосылки!T119)*Предпосылки!$F$270 -> 0 | U121: =(U75-Предпосылки!U264*Предпосылки!U119)*Предпосылки!$F$270 -> 0 | V121: =(V75-Предпосылки!V264*Предпосылки!V119)*Предпосылки!$F$270 -> 0 | W121: =(W75-Предпосылки!W264*Предпосылки!W119)*Предпосылки!$F$270 -> 0 | X121: =(X75-Предпосылки!X264*Предпосылки!X119)*Предпосылки!$F$270 -> 0 | Y121: =(Y75-Предпосылки!Y264*Предпосылки!Y119)*Предпосылки!$F$270 -> 0 | Z121: =(Z75-Предпосылки!Z264*Предпосылки!Z119)*Предпосылки!$F$270 -> 0 | AA121: =(AA75-Предпосылки!AA264*Предпосылки!AA119)*Предпосылки!$F$270 -> 0 | AB121: =(AB75-Предпосылки!AB264*Предпосылки!AB119)*Предпосылки!$F$270 -> 0
C122: Итого | D122: тыс. руб. | H122: =SUBTOTAL(9,H113:H121) -> 0 | I122: =SUBTOTAL(9,I113:I121) -> 0 | J122: 0 | K122: 0 | L122: 0 | M122: 0 | N122: 0 | O122: 0 | P122: 0 | Q122: 0 | R122: 0 | S122: 0 | T122: 0 | U122: 0 | V122: 0 | W122: 0 | X122: 0 | Y122: 0 | Z122: 0 | AA122: 0 | AB122: 0
B124: ФСС
B125: Производственный персонал | D125: тыс. руб.
C126: По общей ставке | D126: тыс. руб. | H126: =SUM(H57,Предпосылки!H264*Предпосылки!H113)*Предпосылки!$F$272 -> 0 | I126: =SUM(I57,Предпосылки!I264*Предпосылки!I113)*Предпосылки!$F$272 -> 0 | J126: =SUM(J57,Предпосылки!J264*Предпосылки!J113)*Предпосылки!$F$272 -> 0 | K126: =SUM(K57,Предпосылки!K264*Предпосылки!K113)*Предпосылки!$F$272 -> 0 | L126: =SUM(L57,Предпосылки!L264*Предпосылки!L113)*Предпосылки!$F$272 -> 0 | M126: =SUM(M57,Предпосылки!M264*Предпосылки!M113)*Предпосылки!$F$272 -> 0 | N126: =SUM(N57,Предпосылки!N264*Предпосылки!N113)*Предпосылки!$F$272 -> 0 | O126: =SUM(O57,Предпосылки!O264*Предпосылки!O113)*Предпосылки!$F$272 -> 0 | P126: =SUM(P57,Предпосылки!P264*Предпосылки!P113)*Предпосылки!$F$272 -> 0 | Q126: =SUM(Q57,Предпосылки!Q264*Предпосылки!Q113)*Предпосылки!$F$272 -> 0 | R126: =SUM(R57,Предпосылки!R264*Предпосылки!R113)*Предпосылки!$F$272 -> 0 | S126: =SUM(S57,Предпосылки!S264*Предпосылки!S113)*Предпосылки!$F$272 -> 0 | T126: =SUM(T57,Предпосылки!T264*Предпосылки!T113)*Предпосылки!$F$272 -> 0 | U126: =SUM(U57,Предпосылки!U264*Предпосылки!U113)*Предпосылки!$F$272 -> 0 | V126: =SUM(V57,Предпосылки!V264*Предпосылки!V113)*Предпосылки!$F$272 -> 0 | W126: =SUM(W57,Предпосылки!W264*Предпосылки!W113)*Предпосылки!$F$272 -> 0 | X126: =SUM(X57,Предпосылки!X264*Предпосылки!X113)*Предпосылки!$F$272 -> 0 | Y126: =SUM(Y57,Предпосылки!Y264*Предпосылки!Y113)*Предпосылки!$F$272 -> 0 | Z126: =SUM(Z57,Предпосылки!Z264*Предпосылки!Z113)*Предпосылки!$F$272 -> 0 | AA126: =SUM(AA57,Предпосылки!AA264*Предпосылки!AA113)*Предпосылки!$F$272 -> 0 | AB126: =SUM(AB57,Предпосылки!AB264*Предпосылки!AB113)*Предпосылки!$F$272 -> 0
C127: По пониженной ставке | D127: тыс. руб. | H127: =(H69-Предпосылки!H264*Предпосылки!H113)*Предпосылки!$F$273 -> 0 | I127: =(I69-Предпосылки!I264*Предпосылки!I113)*Предпосылки!$F$273 -> 0 | J127: =(J69-Предпосылки!J264*Предпосылки!J113)*Предпосылки!$F$273 -> 0 | K127: =(K69-Предпосылки!K264*Предпосылки!K113)*Предпосылки!$F$273 -> 0 | L127: =(L69-Предпосылки!L264*Предпосылки!L113)*Предпосылки!$F$273 -> 0 | M127: =(M69-Предпосылки!M264*Предпосылки!M113)*Предпосылки!$F$273 -> 0 | N127: =(N69-Предпосылки!N264*Предпосылки!N113)*Предпосылки!$F$273 -> 0 | O127: =(O69-Предпосылки!O264*Предпосылки!O113)*Предпосылки!$F$273 -> 0 | P127: =(P69-Предпосылки!P264*Предпосылки!P113)*Предпосылки!$F$273 -> 0 | Q127: =(Q69-Предпосылки!Q264*Предпосылки!Q113)*Предпосылки!$F$273 -> 0 | R127: =(R69-Предпосылки!R264*Предпосылки!R113)*Предпосылки!$F$273 -> 0 | S127: =(S69-Предпосылки!S264*Предпосылки!S113)*Предпосылки!$F$273 -> 0 | T127: =(T69-Предпосылки!T264*Предпосылки!T113)*Предпосылки!$F$273 -> 0 | U127: =(U69-Предпосылки!U264*Предпосылки!U113)*Предпосылки!$F$273 -> 0 | V127: =(V69-Предпосылки!V264*Предпосылки!V113)*Предпосылки!$F$273 -> 0 | W127: =(W69-Предпосылки!W264*Предпосылки!W113)*Предпосылки!$F$273 -> 0 | X127: =(X69-Предпосылки!X264*Предпосылки!X113)*Предпосылки!$F$273 -> 0 | Y127: =(Y69-Предпосылки!Y264*Предпосылки!Y113)*Предпосылки!$F$273 -> 0 | Z127: =(Z69-Предпосылки!Z264*Предпосылки!Z113)*Предпосылки!$F$273 -> 0 | AA127: =(AA69-Предпосылки!AA264*Предпосылки!AA113)*Предпосылки!$F$273 -> 0 | AB127: =(AB69-Предпосылки!AB264*Предпосылки!AB113)*Предпосылки!$F$273 -> 0
C128: На травматизм | H128: =SUM(H57,H69)*Предпосылки!$F$274 -> 0 | I128: =SUM(I57,I69)*Предпосылки!$F$274 -> 0 | J128: =SUM(J57,J69)*Предпосылки!$F$274 -> 0 | K128: =SUM(K57,K69)*Предпосылки!$F$274 -> 0 | L128: =SUM(L57,L69)*Предпосылки!$F$274 -> 0 | M128: =SUM(M57,M69)*Предпосылки!$F$274 -> 0 | N128: =SUM(N57,N69)*Предпосылки!$F$274 -> 0 | O128: =SUM(O57,O69)*Предпосылки!$F$274 -> 0 | P128: =SUM(P57,P69)*Предпосылки!$F$274 -> 0 | Q128: =SUM(Q57,Q69)*Предпосылки!$F$274 -> 0 | R128: =SUM(R57,R69)*Предпосылки!$F$274 -> 0 | S128: =SUM(S57,S69)*Предпосылки!$F$274 -> 0 | T128: =SUM(T57,T69)*Предпосылки!$F$274 -> 0 | U128: =SUM(U57,U69)*Предпосылки!$F$274 -> 0 | V128: =SUM(V57,V69)*Предпосылки!$F$274 -> 0 | W128: =SUM(W57,W69)*Предпосылки!$F$274 -> 0 | X128: =SUM(X57,X69)*Предпосылки!$F$274 -> 0 | Y128: =SUM(Y57,Y69)*Предпосылки!$F$274 -> 0 | Z128: =SUM(Z57,Z69)*Предпосылки!$F$274 -> 0 | AA128: =SUM(AA57,AA69)*Предпосылки!$F$274 -> 0 | AB128: =SUM(AB57,AB69)*Предпосылки!$F$274 -> 0
